Workbook

Sheet ①月末在庫(実)
E1: 2026 | F1: 年
E2: 鋳造Ｍｏ | F2: 102 | G2: 期 | H2: 4 | I2: 月末在庫
N3: T6済 | S3: T7済 | X3: バリ済 | AH3: S未 | AK3: S済 | AM3: AS済 | AO3: アロ済
H4: 鋳造在庫 | N4: 熱処理済在庫 | X4: バリトリ済在庫 | AH4: 完成在庫 | AM4: 表面処理在庫
C5: 鋳造 | E5: 前月在庫 | F5: 当月払出し | G5: 当月出来高 | H5: 外作 | J5: HM | M5: 合計 | N5: 外作在庫 | W5: 合計 | X5: 外作 | AC5: HM | AG5: 合計 | AH5: 外作 | AJ5: H | AK5: M | AL5: 合計 | AM5: HM | AO5: HM | AP5: 合計 | AQ5: Kｓｓ品 | AR5: 基準在庫 | AS5: 在庫差異
C6: 機種名 | D6: 設変部番 | E6: ＬＰＤＣ | F6: ＬＰＤＣ | G6: ＬＰＤＣ | H6: 湯口付 | I6: 切断済 | J6: 湯口付 | K6: 切断済 | L6: 前処理 | N6: ツノダ | O6: OTR | P6: AMC | R6: 小計 | S6: T6 | T6: T7 | V6: 小計 | X6: ツノダ | Y6: OTR | Z6: AMC | AB6: 小計 | AC6: DC | AD6: 面削 | AF6: 小計 | AH6: AMC | AI6: 鈴与 | AJ6: S未 | AK6: S済 | AM6: AS済 | AN6: アルサーフ | AO6: 陸便 | AQ6: ＴＴＬ在庫 | AR6: vsMA*15.1日 | AS6: vs2MA
C7: MFL | D7: 12201 MFL 0002 AA | G7: =+AQ7+F7-E7 -> 90 | H7: =集計_INPUT!D7 -> 0 | I7: =集計_INPUT!E7 -> 0 | J7: =集計_INPUT!F7 -> 0 | K7: =集計_INPUT!G7 -> 0 | L7: =集計_INPUT!H7 -> 0 | M7: =SUM(H7:L7) -> 0 | N7: =集計_INPUT!I7 -> 0 | O7: =集計_INPUT!J7 -> 0 | P7: =集計_INPUT!K7 -> 0 | Q7: =集計_INPUT!L7 -> 0 | R7: =SUM(N7:Q7) -> 0 | S7: =集計_INPUT!M7 -> 0 | T7: =集計_INPUT!N7 -> 0 | V7: =SUM(S7:U7) -> 0 | W7: =R7+V7 -> 0 | X7: =集計_INPUT!P7 -> 0 | Y7: =集計_INPUT!Q7 -> 0 | Z7: =集計_INPUT!R7 -> 0 | AB7: =SUM(X7:AA7) -> 0 | AC7: =集計_INPUT!T7 -> 0 | AD7: =集計_INPUT!U7 -> 0 | AF7: =SUM(AC7:AE7) -> 0 | AG7: =AB7+AF7 -> 0 | AH7: =集計_INPUT!W7 -> 0 | AI7: =集計_INPUT!X7 -> 0 | AJ7: =集計_INPUT!Y7 -> 90 | AK7: =集計_INPUT!Z7 -> 0 | AL7: =SUM(AH7:AK7) -> 90 | AM7: =集計_INPUT!AA7 -> 0 | AN7: =集計_INPUT!AB7 -> 0 | AO7: =集計_INPUT!AC7 -> 0 | AP7: =SUM(AM7:AO7) -> 0 | AQ7: =M7+W7+AG7+AL7+AP7 -> 90 | AR7: =+#REF!*15.1 ->  | AS7: =+AQ7-AR7 -> 
C8: MGPG | D8: 12201 MGP D601 AA | G8: 45 | H8: =集計_INPUT!D8 -> 0 | I8: =集計_INPUT!E8 -> 0 | J8: =集計_INPUT!F8 -> 0 | K8: =集計_INPUT!G8 -> 0 | L8: =集計_INPUT!H8 -> 0 | M8: =SUM(H8:L8) -> 0 | N8: =集計_INPUT!I8 -> 0 | O8: =集計_INPUT!J8 -> 0 | P8: =集計_INPUT!K8 -> 0 | Q8: =集計_INPUT!L8 -> 0 | R8: =SUM(N8:Q8) -> 0 | S8: =集計_INPUT!M8 -> 0 | T8: =集計_INPUT!N8 -> 37 | V8: 37 | W8: 37 | X8: =集計_INPUT!P8 -> 0 | Y8: =集計_INPUT!Q8 -> 0 | Z8: =集計_INPUT!R8 -> 0 | AB8: =SUM(X8:AA8) -> 0 | AC8: =集計_INPUT!T8 -> 0 | AD8: =集計_INPUT!U8 -> 0 | AF8: 0 | AG8: 0 | AH8: =集計_INPUT!W8 -> 0 | AI8: =集計_INPUT!X8 -> 0 | AJ8: =集計_INPUT!Y8 -> 0 | AK8: =集計_INPUT!Z8 -> 0 | AL8: =SUM(AH8:AK8) -> 0 | AM8: =集計_INPUT!AA8 -> 8 | AN8: =集計_INPUT!AB8 -> 0 | AO8: =集計_INPUT!AC8 -> 0 | AP8: =SUM(AM8:AO8) -> 8 | AQ8: 45 | AR8: =+#REF!*15.1 -> 
C9: MFJ | D9: 12201 MFJ A401 AA | G9: 1459 | H9: =集計_INPUT!D9 -> 0 | I9: =集計_INPUT!E9 -> 0 | J9: =集計_INPUT!F9 -> 0 | K9: =集計_INPUT!G9 -> 0 | L9: =集計_INPUT!H9 -> 0 | M9: 0 | N9: =集計_INPUT!I9 -> 0 | O9: =集計_INPUT!J9 -> 256 | P9: =集計_INPUT!K9 -> 0 | Q9: =集計_INPUT!L9 -> 0 | R9: =SUM(N9:Q9) -> 256 | S9: =集計_INPUT!M9 -> 0 | T9: =集計_INPUT!N9 -> 98 | V9: 98 | W9: 354 | X9: =集計_INPUT!P9 -> 0 | Y9: =集計_INPUT!Q9 -> 0 | Z9: =集計_INPUT!R9 -> 0 | AB9: =SUM(X9:AA9) -> 0 | AC9: =集計_INPUT!T9 -> 532 | AD9: =集計_INPUT!U9 -> 0 | AF9: 532 | AG9: 532 | AH9: =集計_INPUT!W9 -> 0 | AI9: =集計_INPUT!X9 -> 270 | AJ9: =集計_INPUT!Y9 -> 180 | AK9: =集計_INPUT!Z9 -> 0 | AL9: =SUM(AH9:AK9) -> 450 | AM9: =集計_INPUT!AA9 -> 123 | AN9: =集計_INPUT!AB9 -> 0 | AO9: =集計_INPUT!AC9 -> 0 | AP9: =SUM(AM9:AO9) -> 123 | AQ9: 1459 | AR9: =+#REF!*15.1 -> 
C10: MFG(MER) | D10: 12201 MFG D001 AA | G10: 0 | H10: =集計_INPUT!D10 -> 0 | I10: =集計_INPUT!E10 -> 0 | J10: =集計_INPUT!F10 -> 0 | K10: =集計_INPUT!G10 -> 0 | L10: =集計_INPUT!H10 -> 0 | M10: 0 | N10: =集計_INPUT!I10 -> 0 | O10: =集計_INPUT!J10 -> 0 | P10: =集計_INPUT!K10 -> 0 | Q10: =集計_INPUT!L10 -> 0 | R10: 0 | S10: =集計_INPUT!M10 -> 0 | T10: =集計_INPUT!N10 -> 0 | V10: 0 | W10: 0 | X10: =集計_INPUT!P10 -> 0 | Y10: =集計_INPUT!Q10 -> 0 | Z10: =集計_INPUT!R10 -> 0 | AB10: 0 | AC10: =集計_INPUT!T10 -> 0 | AD10: =集計_INPUT!U10 -> 0 | AF10: 0 | AG10: 0 | AH10: =集計_INPUT!W10 -> 0 | AI10: =集計_INPUT!X10 -> 0 | AJ10: =集計_INPUT!Y10 -> 0 | AK10: =集計_INPUT!Z10 -> 0 | AL10: 0 | AM10: =集計_INPUT!AA10 -> 0 | AN10: =集計_INPUT!AB10 -> 0 | AO10: =集計_INPUT!AC10 -> 0 | AP10: 0 | AQ10: 0 | AR10: =+#REF!*15.1 -> 
C11: MFA | D11: 12201 MFA D001 AA | G11: 65 | H11: =集計_INPUT!D11 -> 0 | I11: =集計_INPUT!E11 -> 0 | J11: =集計_INPUT!F11 -> 0 | K11: =集計_INPUT!G11 -> 0 | L11: =集計_INPUT!H11 -> 0 | M11: 0 | N11: =集計_INPUT!I11 -> 0 | O11: =集計_INPUT!J11 -> 0 | P11: =集計_INPUT!K11 -> 0 | Q11: =集計_INPUT!L11 -> 0 | R11: 0 | S11: =集計_INPUT!M11 -> 0 | T11: =集計_INPUT!N11 -> 65 | V11: 65 | W11: 65 | X11: =集計_INPUT!P11 -> 0 | Y11: =集計_INPUT!Q11 -> 0 | Z11: =集計_INPUT!R11 -> 0 | AB11: 0 | AC11: =集計_INPUT!T11 -> 0 | AD11: =集計_INPUT!U11 -> 0 | AF11: 0 | AG11: 0 | AH11: =集計_INPUT!W11 -> 0 | AI11: =集計_INPUT!X11 -> 0 | AJ11: =集計_INPUT!Y11 -> 0 | AK11: =集計_INPUT!Z11 -> 0 | AL11: 0 | AM11: =集計_INPUT!AA11 -> 0 | AN11: =集計_INPUT!AB11 -> 0 | AO11: =集計_INPUT!AC11 -> 0 | AP11: 0 | AQ11: 65 | AR11: =+#REF!*15.1 -> 
C12: MFPV | D12: 12201 MFP JC00 AA | G12: 11 | H12: =集計_INPUT!D12 -> 0 | I12: =集計_INPUT!E12 -> 0 | J12: =集計_INPUT!F12 -> 0 | K12: =集計_INPUT!G12 -> 0 | L12: =集計_INPUT!H12 -> 0 | M12: 0 | N12: =集計_INPUT!I12 -> 0 | O12: =集計_INPUT!J12 -> 0 | P12: =集計_INPUT!K12 -> 0 | Q12: =集計_INPUT!L12 -> 0 | R12: 0 | S12: =集計_INPUT!M12 -> 0 | T12: =集計_INPUT!N12 -> 11 | V12: 11 | W12: 11 | X12: =集計_INPUT!P12 -> 0 | Y12: =集計_INPUT!Q12 -> 0 | Z12: =集計_INPUT!R12 -> 0 | AB12: 0 | AC12: =集計_INPUT!T12 -> 0 | AD12: =集計_INPUT!U12 -> 0 | AF12: 0 | AG12: 0 | AH12: =集計_INPUT!W12 -> 0 | AI12: =集計_INPUT!X12 -> 0 | AJ12: =集計_INPUT!Y12 -> 0 | AK12: =集計_INPUT!Z12 -> 0 | AL12: 0 | AM12: =集計_INPUT!AA12 -> 0 | AN12: =集計_INPUT!AB12 -> 0 | AO12: =集計_INPUT!AC12 -> 0 | AP12: 0 | AQ12: 11 | AR12: =+#REF!*15.1 -> 
C13: MEJ | D13: 12201 MEJ 3001 AA | G13: 158 | H13: =集計_INPUT!D13 -> 0 | I13: =集計_INPUT!E13 -> 0 | J13: =集計_INPUT!F13 -> 0 | K13: =集計_INPUT!G13 -> 0 | L13: =集計_INPUT!H13 -> 0 | M13: 0 | N13: =集計_INPUT!I13 -> 0 | O13: =集計_INPUT!J13 -> 0 | P13: =集計_INPUT!K13 -> 0 | Q13: =集計_INPUT!L13 -> 0 | R13: 0 | S13: =集計_INPUT!M13 -> 0 | T13: =集計_INPUT!N13 -> 0 | V13: 0 | W13: 0 | X13: =集計_INPUT!P13 -> 0 | Y13: =集計_INPUT!Q13 -> 0 | Z13: =集計_INPUT!R13 -> 0 | AB13: 0 | AC13: =集計_INPUT!T13 -> 30 | AD13: =集計_INPUT!U13 -> 0 | AF13: 30 | AG13: 30 | AH13: =集計_INPUT!W13 -> 0 | AI13: =集計_INPUT!X13 -> 0 | AJ13: =集計_INPUT!Y13 -> 0 | AK13: =集計_INPUT!Z13 -> 128 | AL13: 128 | AM13: =集計_INPUT!AA13 -> 0 | AN13: =集計_INPUT!AB13 -> 0 | AO13: =集計_INPUT!AC13 -> 0 | AP13: 0 | AQ13: 158 | AR13: =+#REF!*15.1 -> 
C14: MGEf | D14: 12211 MGE 0001 AA | G14: 272 | H14: =集計_INPUT!D14 -> 0 | I14: =集計_INPUT!E14 -> 0 | J14: =集計_INPUT!F14 -> 0 | K14: =集計_INPUT!G14 -> 0 | L14: =集計_INPUT!H14 -> 0 | M14: 0 | N14: =集計_INPUT!I14 -> 0 | O14: =集計_INPUT!J14 -> 0 | P14: =集計_INPUT!K14 -> 0 | Q14: =集計_INPUT!L14 -> 0 | R14: 0 | S14: =集計_INPUT!M14 -> 0 | T14: =集計_INPUT!N14 -> 0 | V14: 0 | W14: 0 | X14: =集計_INPUT!P14 -> 0 | Y14: =集計_INPUT!Q14 -> 0 | Z14: =集計_INPUT!R14 -> 0 | AB14: 0 | AC14: =集計_INPUT!T14 -> 0 | AD14: =集計_INPUT!U14 -> 0 | AF14: 0 | AG14: 0 | AH14: =集計_INPUT!W14 -> 0 | AI14: =集計_INPUT!X14 -> 0 | AJ14: =集計_INPUT!Y14 -> 272 | AK14: =集計_INPUT!Z14 -> 0 | AL14: 272 | AM14: =集計_INPUT!AA14 -> 0 | AN14: =集計_INPUT!AB14 -> 0 | AO14: =集計_INPUT!AC14 -> 0 | AP14: 0 | AQ14: 272 | AR14: =+#REF!*15.1 -> 
C15: MGEr | D15: 12221 MGE 0001 AA | G15: 304 | H15: =集計_INPUT!D15 -> 0 | I15: =集計_INPUT!E15 -> 0 | J15: =集計_INPUT!F15 -> 0 | K15: =集計_INPUT!G15 -> 0 | L15: =集計_INPUT!H15 -> 0 | M15: 0 | N15: =集計_INPUT!I15 -> 0 | O15: =集計_INPUT!J15 -> 0 | P15: =集計_INPUT!K15 -> 0 | Q15: =集計_INPUT!L15 -> 0 | R15: 0 | S15: =集計_INPUT!M15 -> 0 | T15: =集計_INPUT!N15 -> 0 | V15: 0 | W15: 0 | X15: =集計_INPUT!P15 -> 0 | Y15: =集計_INPUT!Q15 -> 0 | Z15: =集計_INPUT!R15 -> 0 | AB15: 0 | AC15: =集計_INPUT!T15 -> 55 | AD15: =集計_INPUT!U15 -> 0 | AF15: 55 | AG15: 55 | AH15: =集計_INPUT!W15 -> 0 | AI15: =集計_INPUT!X15 -> 0 | AJ15: =集計_INPUT!Y15 -> 249 | AK15: =集計_INPUT!Z15 -> 0 | AL15: 249 | AM15: =集計_INPUT!AA15 -> 0 | AN15: =集計_INPUT!AB15 -> 0 | AO15: =集計_INPUT!AC15 -> 0 | AP15: 0 | AQ15: 304 | AR15: =+#REF!*15.1 -> 
C16: MBTf | D16: 12211 MBT F201 AA | G16: 0 | H16: =集計_INPUT!D16 -> 0 | I16: =集計_INPUT!E16 -> 0 | J16: =集計_INPUT!F16 -> 0 | K16: =集計_INPUT!G16 -> 0 | L16: =集計_INPUT!H16 -> 0 | M16: 0 | N16: =集計_INPUT!I16 -> 0 | O16: =集計_INPUT!J16 -> 0 | P16: =集計_INPUT!K16 -> 0 | Q16: =集計_INPUT!L16 -> 0 | R16: 0 | S16: =集計_INPUT!M16 -> 0 | T16: =集計_INPUT!N16 -> 0 | V16: 0 | W16: 0 | X16: =集計_INPUT!P16 -> 0 | Y16: =集計_INPUT!Q16 -> 0 | Z16: =集計_INPUT!R16 -> 0 | AB16: 0 | AC16: =集計_INPUT!T16 -> 0 | AD16: =集計_INPUT!U16 -> 0 | AF16: 0 | AG16: 0 | AH16: =集計_INPUT!W16 -> 0 | AI16: =集計_INPUT!X16 -> 0 | AJ16: =集計_INPUT!Y16 -> 0 | AK16: =集計_INPUT!Z16 -> 0 | AL16: 0 | AM16: =集計_INPUT!AA16 -> 0 | AN16: =集計_INPUT!AB16 -> 0 | AO16: =集計_INPUT!AC16 -> 0 | AP16: 0 | AQ16: 0 | AR16: =+#REF!*15.1 -> 
C17: MBTr | D17: 12221 MBT F201 AA | G17: 0 | H17: =集計_INPUT!D17 -> 0 | I17: =集計_INPUT!E17 -> 0 | J17: =集計_INPUT!F17 -> 0 | K17: =集計_INPUT!G17 -> 0 | L17: =集計_INPUT!H17 -> 0 | M17: 0 | N17: =集計_INPUT!I17 -> 0 | O17: =集計_INPUT!J17 -> 0 | P17: =集計_INPUT!K17 -> 0 | Q17: =集計_INPUT!L17 -> 0 | R17: 0 | S17: =集計_INPUT!M17 -> 0 | T17: =集計_INPUT!N17 -> 0 | V17: 0 | W17: 0 | X17: =集計_INPUT!P17 -> 0 | Y17: =集計_INPUT!Q17 -> 0 | Z17: =集計_INPUT!R17 -> 0 | AB17: 0 | AC17: =集計_INPUT!T17 -> 0 | AD17: =集計_INPUT!U17 -> 0 | AF17: 0 | AG17: 0 | AH17: =集計_INPUT!W17 -> 0 | AI17: =集計_INPUT!X17 -> 0 | AJ17: =集計_INPUT!Y17 -> 0 | AK17: =集計_INPUT!Z17 -> 0 | AL17: 0 | AM17: =集計_INPUT!AA17 -> 0 | AN17: =集計_INPUT!AB17 -> 0 | AO17: =集計_INPUT!AC17 -> 0 | AP17: 0 | AQ17: 0 | AR17: =+#REF!*15.1 -> 
C18: MCWf | D18: 12210 MCW 0001 AA | G18: 28 | H18: =集計_INPUT!D18 -> 0 | I18: =集計_INPUT!E18 -> 0 | J18: =集計_INPUT!F18 -> 0 | K18: =集計_INPUT!G18 -> 0 | L18: =集計_INPUT!H18 -> 0 | M18: 0 | N18: =集計_INPUT!I18 -> 0 | O18: =集計_INPUT!J18 -> 0 | P18: =集計_INPUT!K18 -> 0 | Q18: =集計_INPUT!L18 -> 0 | R18: 0 | S18: =集計_INPUT!M18 -> 0 | T18: =集計_INPUT!N18 -> 0 | V18: 0 | W18: 0 | X18: =集計_INPUT!P18 -> 0 | Y18: =集計_INPUT!Q18 -> 0 | Z18: =集計_INPUT!R18 -> 0 | AB18: 0 | AC18: =集計_INPUT!T18 -> 0 | AD18: =集計_INPUT!U18 -> 0 | AF18: 0 | AG18: 0 | AH18: =集計_INPUT!W18 -> 0 | AI18: =集計_INPUT!X18 -> 0 | AJ18: =集計_INPUT!Y18 -> 28 | AK18: =集計_INPUT!Z18 -> 0 | AL18: 28 | AM18: =集計_INPUT!AA18 -> 0 | AN18: =集計_INPUT!AB18 -> 0 | AO18: =集計_INPUT!AC18 -> 0 | AP18: 0 | AQ18: 28 | AR18: =+#REF!*15.1 -> 
C19: MCWr | D19: 12220 MCW 0001 AA | G19: 18 | H19: =集計_INPUT!D19 -> 0 | I19: =集計_INPUT!E19 -> 0 | J19: =集計_INPUT!F19 -> 0 | K19: =集計_INPUT!G19 -> 0 | L19: =集計_INPUT!H19 -> 0 | M19: 0 | N19: =集計_INPUT!I19 -> 0 | O19: =集計_INPUT!J19 -> 0 | P19: =集計_INPUT!K19 -> 0 | Q19: =集計_INPUT!L19 -> 0 | R19: 0 | S19: =集計_INPUT!M19 -> 0 | T19: =集計_INPUT!N19 -> 0 | V19: 0 | W19: 0 | X19: =集計_INPUT!P19 -> 0 | Y19: =集計_INPUT!Q19 -> 0 | Z19: =集計_INPUT!R19 -> 0 | AB19: 0 | AC19: =集計_INPUT!T19 -> 0 | AD19: =集計_INPUT!U19 -> 0 | AF19: 0 | AG19: 0 | AH19: =集計_INPUT!W19 -> 0 | AI19: =集計_INPUT!X19 -> 0 | AJ19: =集計_INPUT!Y19 -> 18 | AK19: =集計_INPUT!Z19 -> 0 | AL19: 18 | AM19: =集計_INPUT!AA19 -> 0 | AN19: =集計_INPUT!AB19 -> 0 | AO19: =集計_INPUT!AC19 -> 0 | AP19: 0 | AQ19: 18 | AR19: =+#REF!*15.1 -> 
C20: MJNr | D20: 12211 MJN A000 AA | G20: 60 | H20: =集計_INPUT!D20 -> 0 | I20: =集計_INPUT!E20 -> 0 | J20: =集計_INPUT!F20 -> 0 | K20: =集計_INPUT!G20 -> 0 | L20: =集計_INPUT!H20 -> 0 | M20: 0 | N20: =集計_INPUT!I20 -> 0 | O20: =集計_INPUT!J20 -> 0 | P20: =集計_INPUT!K20 -> 0 | Q20: =集計_INPUT!L20 -> 0 | R20: 0 | S20: =集計_INPUT!M20 -> 0 | T20: =集計_INPUT!N20 -> 60 | V20: 60 | W20: 60 | X20: =集計_INPUT!P20 -> 0 | Y20: =集計_INPUT!Q20 -> 0 | Z20: =集計_INPUT!R20 -> 0 | AB20: 0 | AC20: =集計_INPUT!T20 -> 0 | AD20: =集計_INPUT!U20 -> 0 | AF20: 0 | AG20: 0 | AH20: =集計_INPUT!W20 -> 0 | AI20: =集計_INPUT!X20 -> 0 | AJ20: =集計_INPUT!Y20 -> 0 | AK20: =集計_INPUT!Z20 -> 0 | AL20: 0 | AM20: =集計_INPUT!AA20 -> 0 | AN20: =集計_INPUT!AB20 -> 0 | AO20: =集計_INPUT!AC20 -> 0 | AP20: 0 | AQ20: 60 | AR20: =+#REF!*15.1 -> 
C21: MCSl | D21: 12221 MCS D801 AA | G21: 45 | H21: =集計_INPUT!D21 -> 0 | I21: =集計_INPUT!E21 -> 0 | J21: =集計_INPUT!F21 -> 0 | K21: =集計_INPUT!G21 -> 0 | L21: =集計_INPUT!H21 -> 0 | M21: 0 | N21: =集計_INPUT!I21 -> 0 | O21: =集計_INPUT!J21 -> 0 | P21: =集計_INPUT!K21 -> 0 | Q21: =集計_INPUT!L21 -> 0 | R21: 0 | S21: =集計_INPUT!M21 -> 0 | T21: =集計_INPUT!N21 -> 45 | V21: 45 | W21: 45 | X21: =集計_INPUT!P21 -> 0 | Y21: =集計_INPUT!Q21 -> 0 | Z21: =集計_INPUT!R21 -> 0 | AB21: 0 | AC21: =集計_INPUT!T21 -> 0 | AD21: =集計_INPUT!U21 -> 0 | AF21: 0 | AG21: 0 | AH21: =集計_INPUT!W21 -> 0 | AI21: =集計_INPUT!X21 -> 0 | AJ21: =集計_INPUT!Y21 -> 0 | AK21: =集計_INPUT!Z21 -> 0 | AL21: 0 | AM21: =集計_INPUT!AA21 -> 0 | AN21: =集計_INPUT!AB21 -> 0 | AO21: =集計_INPUT!AC21 -> 0 | AP21: 0 | AQ21: 45 | AR21: =+#REF!*15.1 -> 
C22: MKF | D22: 12201 MKF D700 AA | G22: 465 | H22: =集計_INPUT!D22 -> 0 | I22: =集計_INPUT!E22 -> 0 | J22: =集計_INPUT!F22 -> 0 | K22: =集計_INPUT!G22 -> 0 | L22: =集計_INPUT!H22 -> 0 | M22: 0 | N22: =集計_INPUT!I22 -> 0 | O22: =集計_INPUT!J22 -> 0 | P22: =集計_INPUT!K22 -> 0 | Q22: =集計_INPUT!L22 -> 0 | R22: 0 | S22: =集計_INPUT!M22 -> 0 | T22: =集計_INPUT!N22 -> 244 | V22: 244 | W22: 244 | X22: =集計_INPUT!P22 -> 0 | Y22: =集計_INPUT!Q22 -> 0 | Z22: =集計_INPUT!R22 -> 0 | AB22: 0 | AC22: =集計_INPUT!T22 -> 0 | AD22: =集計_INPUT!U22 -> 0 | AF22: 0 | AG22: 0 | AH22: =集計_INPUT!W22 -> 0 | AI22: =集計_INPUT!X22 -> 0 | AJ22: =集計_INPUT!Y22 -> 0 | AK22: =集計_INPUT!Z22 -> 0 | AL22: 0 | AM22: =集計_INPUT!AA22 -> 221 | AN22: =集計_INPUT!AB22 -> 0 | AO22: =集計_INPUT!AC22 -> 0 | AP22: 221 | AQ22: 465 | AR22: =+#REF!*15.1 -> 
C23: MCAr | D23: 12211 MCA 7801 AA | G23: 22 | H23: =集計_INPUT!D23 -> 0 | I23: =集計_INPUT!E23 -> 0 | J23: =集計_INPUT!F23 -> 0 | K23: =集計_INPUT!G23 -> 0 | L23: =集計_INPUT!H23 -> 0 | M23: 0 | N23: =集計_INPUT!I23 -> 0 | O23: =集計_INPUT!J23 -> 0 | P23: =集計_INPUT!K23 -> 0 | Q23: =集計_INPUT!L23 -> 0 | R23: 0 | S23: =集計_INPUT!M23 -> 0 | T23: =集計_INPUT!N23 -> 0 | V23: 0 | W23: 0 | X23: =集計_INPUT!P23 -> 0 | Y23: =集計_INPUT!Q23 -> 0 | Z23: =集計_INPUT!R23 -> 0 | AB23: 0 | AC23: =集計_INPUT!T23 -> 0 | AD23: =集計_INPUT!U23 -> 0 | AF23: 0 | AG23: 0 | AH23: =集計_INPUT!W23 -> 0 | AI23: =集計_INPUT!X23 -> 0 | AJ23: =集計_INPUT!Y23 -> 22 | AK23: =集計_INPUT!Z23 -> 0 | AL23: 22 | AM23: =集計_INPUT!AA23 -> 0 | AN23: =集計_INPUT!AB23 -> 0 | AO23: =集計_INPUT!AC23 -> 0 | AP23: 0 | AQ23: 22 | AR23: =+#REF!*15.1 -> 
C24: MCAl | D24: 12221 MCA 7801 AA | G24: 96 | H24: =集計_INPUT!D24 -> 0 | I24: =集計_INPUT!E24 -> 0 | J24: =集計_INPUT!F24 -> 0 | K24: =集計_INPUT!G24 -> 0 | L24: =集計_INPUT!H24 -> 0 | M24: 0 | N24: =集計_INPUT!I24 -> 0 | O24: =集計_INPUT!J24 -> 0 | P24: =集計_INPUT!K24 -> 0 | Q24: =集計_INPUT!L24 -> 0 | R24: 0 | S24: =集計_INPUT!M24 -> 0 | T24: =集計_INPUT!N24 -> 96 | V24: 96 | W24: 96 | X24: =集計_INPUT!P24 -> 0 | Y24: =集計_INPUT!Q24 -> 0 | Z24: =集計_INPUT!R24 -> 0 | AB24: 0 | AC24: =集計_INPUT!T24 -> 0 | AD24: =集計_INPUT!U24 -> 0 | AF24: 0 | AG24: 0 | AH24: =集計_INPUT!W24 -> 0 | AI24: =集計_INPUT!X24 -> 0 | AJ24: =集計_INPUT!Y24 -> 0 | AK24: =集計_INPUT!Z24 -> 0 | AL24: 0 | AM24: =集計_INPUT!AA24 -> 0 | AN24: =集計_INPUT!AB24 -> 0 | AO24: =集計_INPUT!AC24 -> 0 | AP24: 0 | AQ24: 96 | AR24: =+#REF!*15.1 -> 
C25: MGC | D25: 12201 MGC 0001 AA | G25: 457 | H25: =集計_INPUT!D25 -> 0 | I25: =集計_INPUT!E25 -> 0 | J25: =集計_INPUT!F25 -> 0 | K25: =集計_INPUT!G25 -> 320 | L25: =集計_INPUT!H25 -> 0 | M25: 320 | N25: =集計_INPUT!I25 -> 0 | O25: =集計_INPUT!J25 -> 0 | P25: =集計_INPUT!K25 -> 0 | Q25: =集計_INPUT!L25 -> 0 | R25: 0 | S25: =集計_INPUT!M25 -> 0 | T25: =集計_INPUT!N25 -> 0 | V25: 0 | W25: 0 | X25: =集計_INPUT!P25 -> 0 | Y25: =集計_INPUT!Q25 -> 0 | Z25: =集計_INPUT!R25 -> 0 | AB25: 0 | AC25: =集計_INPUT!T25 -> 98 | AD25: =集計_INPUT!U25 -> 0 | AF25: 98 | AG25: 98 | AH25: =集計_INPUT!W25 -> 0 | AI25: =集計_INPUT!X25 -> 0 | AJ25: =集計_INPUT!Y25 -> 29 | AK25: =集計_INPUT!Z25 -> 10 | AL25: 39 | AM25: =集計_INPUT!AA25 -> 0 | AN25: =集計_INPUT!AB25 -> 0 | AO25: =集計_INPUT!AC25 -> 0 | AP25: 0 | AQ25: 457 | AR25: =+#REF!*15.1 -> 
C26: MFLc | D26: 12100 MFL 0001 AA | G26: 0 | H26: =集計_INPUT!D26 -> 0 | I26: =集計_INPUT!E26 -> 0 | J26: =集計_INPUT!F26 -> 0 | K26: =集計_INPUT!G26 -> 0 | L26: =集計_INPUT!H26 -> 0 | M26: 0 | N26: =集計_INPUT!I26 -> 0 | O26: =集計_INPUT!J26 -> 0 | P26: =集計_INPUT!K26 -> 0 | Q26: =集計_INPUT!L26 -> 0 | R26: 0 | S26: =集計_INPUT!M26 -> 0 | T26: =集計_INPUT!N26 -> 0 | V26: 0 | W26: 0 | X26: =集計_INPUT!P26 -> 0 | Y26: =集計_INPUT!Q26 -> 0 | Z26: =集計_INPUT!R26 -> 0 | AB26: 0 | AC26: =集計_INPUT!T26 -> 0 | AD26: =集計_INPUT!U26 -> 0 | AF26: 0 | AG26: 0 | AH26: =集計_INPUT!W26 -> 0 | AI26: =集計_INPUT!X26 -> 0 | AJ26: =集計_INPUT!Y26 -> 0 | AK26: =集計_INPUT!Z26 -> 0 | AL26: 0 | AM26: =集計_INPUT!AA26 -> 0 | AN26: =集計_INPUT!AB26 -> 0 | AO26: =集計_INPUT!AC26 -> 0 | AP26: 0 | AQ26: 0 | AR26: =+#REF!*15.1 -> 
C27: MGS | D27: 12200 MGS 0002 AA | G27: 110 | H27: =集計_INPUT!D27 -> 0 | I27: =集計_INPUT!E27 -> 0 | J27: =集計_INPUT!F27 -> 0 | K27: =集計_INPUT!G27 -> 0 | L27: =集計_INPUT!H27 -> 0 | M27: 0 | N27: =集計_INPUT!I27 -> 0 | O27: =集計_INPUT!J27 -> 0 | P27: =集計_INPUT!K27 -> 0 | Q27: =集計_INPUT!L27 -> 0 | R27: 0 | S27: =集計_INPUT!M27 -> 0 | T27: =集計_INPUT!N27 -> 0 | V27: 0 | W27: 0 | X27: =集計_INPUT!P27 -> 0 | Y27: =集計_INPUT!Q27 -> 0 | Z27: =集計_INPUT!R27 -> 0 | AB27: 0 | AC27: =集計_INPUT!T27 -> 68 | AD27: =集計_INPUT!U27 -> 0 | AF27: 68 | AG27: 68 | AH27: =集計_INPUT!W27 -> 0 | AI27: =集計_INPUT!X27 -> 0 | AJ27: =集計_INPUT!Y27 -> 42 | AK27: =集計_INPUT!Z27 -> 0 | AL27: 42 | AM27: =集計_INPUT!AA27 -> 0 | AN27: =集計_INPUT!AB27 -> 0 | AO27: =集計_INPUT!AC27 -> 0 | AP27: 0 | AQ27: 110 | AR27: =+#REF!*15.1 -> 
C28: MJH | D28: 12200 MJH Y000 AA | G28: 193 | H28: =集計_INPUT!D28 -> 0 | I28: =集計_INPUT!E28 -> 0 | J28: =集計_INPUT!F28 -> 0 | K28: =集計_INPUT!G28 -> 0 | L28: =集計_INPUT!H28 -> 0 | M28: 0 | N28: =集計_INPUT!I28 -> 0 | O28: =集計_INPUT!J28 -> 0 | P28: =集計_INPUT!K28 -> 0 | Q28: =集計_INPUT!L28 -> 0 | R28: 0 | S28: =集計_INPUT!M28 -> 0 | T28: =集計_INPUT!N28 -> 0 | V28: 0 | W28: 0 | X28: =集計_INPUT!P28 -> 0 | Y28: =集計_INPUT!Q28 -> 0 | Z28: =集計_INPUT!R28 -> 0 | AB28: 0 | AC28: =集計_INPUT!T28 -> 0 | AD28: =集計_INPUT!U28 -> 0 | AF28: 0 | AG28: 0 | AH28: =集計_INPUT!W28 -> 0 | AI28: =集計_INPUT!X28 -> 0 | AJ28: =集計_INPUT!Y28 -> 0 | AK28: =集計_INPUT!Z28 -> 193 | AL28: 193 | AM28: =集計_INPUT!AA28 -> 0 | AN28: =集計_INPUT!AB28 -> 0 | AO28: =集計_INPUT!AC28 -> 0 | AP28: 0 | AQ28: 193 | AR28: =+#REF!*15.1 -> 
C29: HL4 | D29: 12201 HL4 0001 AA | G29: 2706 | H29: =集計_INPUT!D29 -> 0 | I29: =集計_INPUT!E29 -> 0 | J29: =集計_INPUT!F29 -> 120 | K29: =集計_INPUT!G29 -> 1000 | L29: =集計_INPUT!H29 -> 0 | M29: 1120 | N29: =集計_INPUT!I29 -> 0 | O29: =集計_INPUT!J29 -> 0 | P29: =集計_INPUT!K29 -> 0 | Q29: =集計_INPUT!L29 -> 0 | R29: 0 | S29: =集計_INPUT!M29 -> 0 | T29: =集計_INPUT!N29 -> 139 | V29: 139 | W29: 139 | X29: =集計_INPUT!P29 -> 0 | Y29: =集計_INPUT!Q29 -> 0 | Z29: =集計_INPUT!R29 -> 0 | AB29: 0 | AC29: =集計_INPUT!T29 -> 600 | AD29: =集計_INPUT!U29 -> 0 | AF29: 600 | AG29: 600 | AH29: =集計_INPUT!W29 -> 150 | AI29: =集計_INPUT!X29 -> 0 | AJ29: =集計_INPUT!Y29 -> 397 | AK29: =集計_INPUT!Z29 -> 300 | AL29: 847 | AM29: =集計_INPUT!AA29 -> 0 | AN29: =集計_INPUT!AB29 -> 0 | AO29: =集計_INPUT!AC29 -> 0 | AP29: 0 | AQ29: 2706 | AR29: =+#REF!*15.1 -> 
C30: HL6 | D30: 12201 HL6 A000 AA | G30: 387 | H30: =集計_INPUT!D30 -> 0 | I30: =集計_INPUT!E30 -> 0 | J30: =集計_INPUT!F30 -> 0 | K30: =集計_INPUT!G30 -> 0 | L30: =集計_INPUT!H30 -> 0 | M30: 0 | N30: =集計_INPUT!I30 -> 0 | O30: =集計_INPUT!J30 -> 0 | P30: =集計_INPUT!K30 -> 0 | Q30: =集計_INPUT!L30 -> 0 | R30: 0 | S30: =集計_INPUT!M30 -> 0 | T30: =集計_INPUT!N30 -> 207 | V30: 207 | W30: 207 | X30: =集計_INPUT!P30 -> 0 | Y30: =集計_INPUT!Q30 -> 0 | Z30: =集計_INPUT!R30 -> 0 | AB30: 0 | AC30: =集計_INPUT!T30 -> 0 | AD30: =集計_INPUT!U30 -> 0 | AF30: 0 | AG30: 0 | AH30: =集計_INPUT!W30 -> 0 | AI30: =集計_INPUT!X30 -> 0 | AJ30: =集計_INPUT!Y30 -> 30 | AK30: =集計_INPUT!Z30 -> 150 | AL30: 180 | AM30: =集計_INPUT!AA30 -> 0 | AN30: =集計_INPUT!AB30 -> 0 | AO30: =集計_INPUT!AC30 -> 0 | AP30: 0 | AQ30: 387 | AR30: =+#REF!*15.1 -> 
C31: MKS | D31: 12201 MLN E000 AA | G31: 2404 | H31: =集計_INPUT!D31 -> 0 | I31: =集計_INPUT!E31 -> 0 | J31: =集計_INPUT!F31 -> 0 | K31: =集計_INPUT!G31 -> 870 | L31: =集計_INPUT!H31 -> 0 | M31: 870 | N31: =集計_INPUT!I31 -> 0 | O31: =集計_INPUT!J31 -> 0 | P31: =集計_INPUT!K31 -> 0 | Q31: =集計_INPUT!L31 -> 0 | R31: 0 | S31: =集計_INPUT!M31 -> 0 | T31: =集計_INPUT!N31 -> 2 | V31: 2 | W31: 2 | X31: =集計_INPUT!P31 -> 34 | Y31: =集計_INPUT!Q31 -> 0 | Z31: =集計_INPUT!R31 -> 0 | AB31: 34 | AC31: =集計_INPUT!T31 -> 73 | AD31: =集計_INPUT!U31 -> 0 | AF31: 73 | AG31: 107 | AH31: =集計_INPUT!W31 -> 0 | AI31: =集計_INPUT!X31 -> 0 | AJ31: =集計_INPUT!Y31 -> 1425 | AK31: =集計_INPUT!Z31 -> 0 | AL31: 1425 | AM31: =集計_INPUT!AA31 -> 0 | AN31: =集計_INPUT!AB31 -> 0 | AO31: =集計_INPUT!AC31 -> 0 | AP31: 0 | AQ31: 2404 | AR31: =+#REF!*15.1 -> 
C32: NX7 | D32: 12200 NX7 0000 AA | G32: 650 | H32: =集計_INPUT!D32 -> 0 | I32: =集計_INPUT!E32 -> 0 | J32: =集計_INPUT!F32 -> 0 | K32: =集計_INPUT!G32 -> 0 | L32: =集計_INPUT!H32 -> 0 | M32: 0 | N32: =集計_INPUT!I32 -> 0 | O32: =集計_INPUT!J32 -> 0 | P32: =集計_INPUT!K32 -> 0 | Q32: =集計_INPUT!L32 -> 0 | R32: 0 | S32: =集計_INPUT!M32 -> 0 | T32: =集計_INPUT!N32 -> 533 | V32: 533 | W32: 533 | X32: =集計_INPUT!P32 -> 0 | Y32: =集計_INPUT!Q32 -> 0 | Z32: =集計_INPUT!R32 -> 0 | AB32: 0 | AC32: =集計_INPUT!T32 -> 0 | AD32: =集計_INPUT!U32 -> 0 | AF32: 0 | AG32: 0 | AH32: =集計_INPUT!W32 -> 0 | AI32: =集計_INPUT!X32 -> 0 | AJ32: =集計_INPUT!Y32 -> 0 | AK32: =集計_INPUT!Z32 -> 117 | AL32: 117 | AM32: =集計_INPUT!AA32 -> 0 | AN32: =集計_INPUT!AB32 -> 0 | AO32: =集計_INPUT!AC32 -> 0 | AP32: 0 | AQ32: 650 | AR32: =+#REF!*15.1 -> 
C33: NX7c | D33: 12101 NX7 0000 AA | G33: 141 | H33: =集計_INPUT!D33 -> 0 | I33: =集計_INPUT!E33 -> 0 | J33: =集計_INPUT!F33 -> 0 | K33: =集計_INPUT!G33 -> 0 | L33: =集計_INPUT!H33 -> 0 | M33: 0 | N33: =集計_INPUT!I33 -> 0 | O33: =集計_INPUT!J33 -> 0 | P33: =集計_INPUT!K33 -> 0 | Q33: =集計_INPUT!L33 -> 0 | R33: 0 | S33: =集計_INPUT!M33 -> 0 | T33: =集計_INPUT!N33 -> 87 | V33: 87 | W33: 87 | X33: =集計_INPUT!P33 -> 0 | Y33: =集計_INPUT!Q33 -> 0 | Z33: =集計_INPUT!R33 -> 0 | AB33: 0 | AC33: =集計_INPUT!T33 -> 0 | AD33: =集計_INPUT!U33 -> 0 | AF33: 0 | AG33: 0 | AH33: =集計_INPUT!W33 -> 0 | AI33: =集計_INPUT!X33 -> 0 | AJ33: =集計_INPUT!Y33 -> 0 | AK33: =集計_INPUT!Z33 -> 54 | AL33: 54 | AM33: =集計_INPUT!AA33 -> 0 | AN33: =集計_INPUT!AB33 -> 0 | AO33: =集計_INPUT!AC33 -> 0 | AP33: 0 | AQ33: 141 | AR33: =+#REF!*15.1 -> 
C34: MLL | D34: 12201 MLL D000 AA | G34: 4308 | H34: =集計_INPUT!D34 -> 0 | I34: =集計_INPUT!E34 -> 0 | J34: =集計_INPUT!F34 -> 412 | K34: =集計_INPUT!G34 -> 103 | L34: =集計_INPUT!H34 -> 0 | M34: 515 | N34: =集計_INPUT!I34 -> 0 | O34: =集計_INPUT!J34 -> 0 | P34: =集計_INPUT!K34 -> 576 | Q34: =集計_INPUT!L34 -> 0 | R34: =SUM(N34:Q34) -> 576 | S34: =集計_INPUT!M34 -> 0 | T34: =集計_INPUT!N34 -> 416 | V34: 416 | W34: 992 | X34: =集計_INPUT!P34 -> 155 | Y34: =集計_INPUT!Q34 -> 0 | Z34: =集計_INPUT!R34 -> 0 | AB34: =SUM(X34:AA34) -> 155 | AC34: =集計_INPUT!T34 -> 0 | AD34: =集計_INPUT!U34 -> 0 | AF34: =SUM(AC34:AE34) -> 0 | AG34: 155 | AH34: =集計_INPUT!W34 -> 0 | AI34: =集計_INPUT!X34 -> 0 | AJ34: =集計_INPUT!Y34 -> 2646 | AK34: =集計_INPUT!Z34 -> 0 | AL34: 2646 | AM34: =集計_INPUT!AA34 -> 0 | AN34: =集計_INPUT!AB34 -> 0 | AO34: =集計_INPUT!AC34 -> 0 | AP34: 0 | AQ34: 4308 | AR34: =+#REF!*15.1 -> 
C35: MLLc | D35: 12100 MLL D000 AA | G35: 2311 | H35: =集計_INPUT!D35 -> 0 | I35: =集計_INPUT!E35 -> 0 | J35: =集計_INPUT!F35 -> 0 | K35: =集計_INPUT!G35 -> 280 | L35: =集計_INPUT!H35 -> 0 | M35: 280 | N35: =集計_INPUT!I35 -> 0 | O35: =集計_INPUT!J35 -> 0 | P35: =集計_INPUT!K35 -> 0 | Q35: =集計_INPUT!L35 -> 0 | R35: 0 | S35: =集計_INPUT!M35 -> 0 | T35: =集計_INPUT!N35 -> 1199 | V35: 1199 | W35: 1199 | X35: =集計_INPUT!P35 -> 0 | Y35: =集計_INPUT!Q35 -> 0 | Z35: =集計_INPUT!R35 -> 0 | AB35: 0 | AC35: =集計_INPUT!T35 -> 0 | AD35: =集計_INPUT!U35 -> 0 | AF35: 0 | AG35: 0 | AH35: =集計_INPUT!W35 -> 0 | AI35: =集計_INPUT!X35 -> 0 | AJ35: =集計_INPUT!Y35 -> 832 | AK35: =集計_INPUT!Z35 -> 0 | AL35: 832 | AM35: =集計_INPUT!AA35 -> 0 | AN35: =集計_INPUT!AB35 -> 0 | AO35: =集計_INPUT!AC35 -> 0 | AP35: 0 | AQ35: 2311 | AR35: =+#REF!*15.1 -> 
C36: ZY9 | D36: 12211 ZY9 M001 AA | G36: 1374 | H36: =集計_INPUT!D36 -> 0 | I36: =集計_INPUT!E36 -> 0 | J36: =集計_INPUT!F36 -> 0 | K36: =集計_INPUT!G36 -> 546 | L36: =集計_INPUT!H36 -> 0 | M36: 546 | N36: =集計_INPUT!I36 -> 28 | O36: =集計_INPUT!J36 -> 0 | P36: =集計_INPUT!K36 -> 0 | Q36: =集計_INPUT!L36 -> 0 | R36: 28 | S36: =集計_INPUT!M36 -> 0 | T36: =集計_INPUT!N36 -> 319 | V36: 319 | W36: 347 | X36: =集計_INPUT!P36 -> 0 | Y36: =集計_INPUT!Q36 -> 0 | Z36: =集計_INPUT!R36 -> 0 | AB36: 0 | AC36: =集計_INPUT!T36 -> 0 | AD36: =集計_INPUT!U36 -> 0 | AF36: 0 | AG36: 0 | AH36: =集計_INPUT!W36 -> 0 | AI36: =集計_INPUT!X36 -> 0 | AJ36: =集計_INPUT!Y36 -> 481 | AK36: =集計_INPUT!Z36 -> 0 | AL36: 481 | AM36: =集計_INPUT!AA36 -> 0 | AN36: =集計_INPUT!AB36 -> 0 | AO36: =集計_INPUT!AC36 -> 0 | AP36: 0 | AQ36: 1374 | AR36: =+#REF!*15.1 -> 
C37: ZZ3 | D37: 12211 ZZ3 3001 AA | G37: 422 | H37: =集計_INPUT!D37 -> 0 | I37: =集計_INPUT!E37 -> 0 | J37: =集計_INPUT!F37 -> 109 | K37: =集計_INPUT!G37 -> 128 | L37: =集計_INPUT!H37 -> 0 | M37: 237 | N37: =集計_INPUT!I37 -> 0 | O37: =集計_INPUT!J37 -> 0 | P37: =集計_INPUT!K37 -> 0 | Q37: =集計_INPUT!L37 -> 0 | R37: 0 | S37: =集計_INPUT!M37 -> 0 | T37: =集計_INPUT!N37 -> 0 | V37: 0 | W37: 0 | X37: =集計_INPUT!P37 -> 38 | Y37: =集計_INPUT!Q37 -> 0 | Z37: =集計_INPUT!R37 -> 0 | AB37: 38 | AC37: =集計_INPUT!T37 -> 44 | AD37: =集計_INPUT!U37 -> 0 | AF37: 44 | AG37: 82 | AH37: =集計_INPUT!W37 -> 0 | AI37: =集計_INPUT!X37 -> 0 | AJ37: =集計_INPUT!Y37 -> 103 | AK37: =集計_INPUT!Z37 -> 0 | AL37: 103 | AM37: =集計_INPUT!AA37 -> 0 | AN37: =集計_INPUT!AB37 -> 0 | AO37: =集計_INPUT!AC37 -> 0 | AP37: 0 | AQ37: 422 | AR37: =+#REF!*15.1 -> 
C38: ZW5 | D38: 12211 ZW5 3001 AC-01 | G38: 124 | H38: =集計_INPUT!D38 -> 0 | I38: =集計_INPUT!E38 -> 0 | J38: =集計_INPUT!F38 -> 0 | K38: =集計_INPUT!G38 -> 0 | L38: =集計_INPUT!H38 -> 0 | M38: 0 | N38: =集計_INPUT!I38 -> 0 | O38: =集計_INPUT!J38 -> 0 | P38: =集計_INPUT!K38 -> 0 | Q38: =集計_INPUT!L38 -> 0 | R38: 0 | S38: =集計_INPUT!M38 -> 0 | T38: =集計_INPUT!N38 -> 110 | V38: 110 | W38: 110 | X38: =集計_INPUT!P38 -> 0 | Y38: =集計_INPUT!Q38 -> 0 | Z38: =集計_INPUT!R38 -> 0 | AB38: 0 | AC38: =集計_INPUT!T38 -> 0 | AD38: =集計_INPUT!U38 -> 0 | AF38: 0 | AG38: 0 | AH38: =集計_INPUT!W38 -> 0 | AI38: =集計_INPUT!X38 -> 0 | AJ38: =集計_INPUT!Y38 -> 14 | AK38: =集計_INPUT!Z38 -> 0 | AL38: 14 | AM38: =集計_INPUT!AA38 -> 0 | AN38: =集計_INPUT!AB38 -> 0 | AO38: =集計_INPUT!AC38 -> 0 | AP38: 0 | AQ38: 124 | AR38: =+#REF!*15.1 -> 
C39: MKCr | D39: 12211 MKC A000 AA | G39: 2078 | H39: =集計_INPUT!D39 -> 0 | I39: =集計_INPUT!E39 -> 0 | J39: =集計_INPUT!F39 -> 149 | K39: =集計_INPUT!G39 -> 212 | L39: =集計_INPUT!H39 -> 0 | M39: 361 | N39: =集計_INPUT!I39 -> 0 | O39: =集計_INPUT!J39 -> 0 | P39: =集計_INPUT!K39 -> 630 | Q39: =集計_INPUT!L39 -> 0 | R39: 630 | S39: =集計_INPUT!M39 -> 0 | T39: =集計_INPUT!N39 -> 167 | V39: 167 | W39: 797 | X39: =集計_INPUT!P39 -> 377 | Y39: =集計_INPUT!Q39 -> 0 | Z39: =集計_INPUT!R39 -> 0 | AB39: 377 | AC39: =集計_INPUT!T39 -> 105 | AD39: =集計_INPUT!U39 -> 0 | AF39: 105 | AG39: 482 | AH39: =集計_INPUT!W39 -> 0 | AI39: =集計_INPUT!X39 -> 0 | AJ39: =集計_INPUT!Y39 -> 438 | AK39: =集計_INPUT!Z39 -> 0 | AL39: 438 | AM39: =集計_INPUT!AA39 -> 0 | AN39: =集計_INPUT!AB39 -> 0 | AO39: =集計_INPUT!AC39 -> 0 | AP39: 0 | AQ39: 2078 | AR39: =+#REF!*15.1 -> 
C40: MKCl | D40: 12221 MKC A000 AA | G40: 1416 | H40: =集計_INPUT!D40 -> 0 | I40: =集計_INPUT!E40 -> 0 | J40: =集計_INPUT!F40 -> 150 | K40: =集計_INPUT!G40 -> 21 | L40: =集計_INPUT!H40 -> 0 | M40: 171 | N40: =集計_INPUT!I40 -> 424 | O40: =集計_INPUT!J40 -> 0 | P40: =集計_INPUT!K40 -> 0 | Q40: =集計_INPUT!L40 -> 0 | R40: 424 | S40: =集計_INPUT!M40 -> 0 | T40: =集計_INPUT!N40 -> 408 | V40: 408 | W40: 832 | X40: =集計_INPUT!P40 -> 0 | Y40: =集計_INPUT!Q40 -> 0 | Z40: =集計_INPUT!R40 -> 0 | AB40: 0 | AC40: =集計_INPUT!T40 -> 0 | AD40: =集計_INPUT!U40 -> 0 | AF40: 0 | AG40: 0 | AH40: =集計_INPUT!W40 -> 0 | AI40: =集計_INPUT!X40 -> 0 | AJ40: =集計_INPUT!Y40 -> 413 | AK40: =集計_INPUT!Z40 -> 0 | AL40: 413 | AM40: =集計_INPUT!AA40 -> 0 | AN40: =集計_INPUT!AB40 -> 0 | AO40: =集計_INPUT!AC40 -> 0 | AP40: 0 | AQ40: 1416 | AR40: =+#REF!*15.1 -> 
C41: MKJ | D41: 12201 MKJ D001 AA | G41: 165 | H41: =集計_INPUT!D41 -> 0 | I41: =集計_INPUT!E41 -> 0 | J41: =集計_INPUT!F41 -> 0 | K41: =集計_INPUT!G41 -> 0 | L41: =集計_INPUT!H41 -> 0 | M41: 0 | N41: =集計_INPUT!I41 -> 0 | O41: =集計_INPUT!J41 -> 0 | P41: =集計_INPUT!K41 -> 0 | Q41: =集計_INPUT!L41 -> 0 | R41: 0 | S41: =集計_INPUT!M41 -> 0 | T41: =集計_INPUT!N41 -> 65 | V41: 65 | W41: 65 | X41: =集計_INPUT!P41 -> 0 | Y41: =集計_INPUT!Q41 -> 0 | Z41: =集計_INPUT!R41 -> 0 | AB41: 0 | AC41: =集計_INPUT!T41 -> 34 | AD41: =集計_INPUT!U41 -> 0 | AF41: 34 | AG41: 34 | AH41: =集計_INPUT!W41 -> 0 | AI41: =集計_INPUT!X41 -> 0 | AJ41: =集計_INPUT!Y41 -> 66 | AK41: =集計_INPUT!Z41 -> 0 | AL41: 66 | AM41: =集計_INPUT!AA41 -> 0 | AN41: =集計_INPUT!AB41 -> 0 | AO41: =集計_INPUT!AC41 -> 0 | AP41: 0 | AQ41: 165
C42: MKR | D42: 12200 MKR D103 AA | G42: 252 | H42: =集計_INPUT!D42 -> 0 | I42: =集計_INPUT!E42 -> 0 | J42: =集計_INPUT!F42 -> 0 | K42: =集計_INPUT!G42 -> 0 | L42: =集計_INPUT!H42 -> 0 | M42: 0 | N42: =集計_INPUT!I42 -> 0 | O42: =集計_INPUT!J42 -> 0 | P42: =集計_INPUT!K42 -> 0 | Q42: =集計_INPUT!L42 -> 0 | R42: 0 | S42: =集計_INPUT!M42 -> 0 | T42: =集計_INPUT!N42 -> 206 | V42: 206 | W42: 206 | X42: =集計_INPUT!P42 -> 0 | Y42: =集計_INPUT!Q42 -> 0 | Z42: =集計_INPUT!R42 -> 0 | AB42: 0 | AC42: =集計_INPUT!T42 -> 0 | AD42: =集計_INPUT!U42 -> 0 | AF42: 0 | AG42: 0 | AH42: =集計_INPUT!W42 -> 0 | AI42: =集計_INPUT!X42 -> 0 | AJ42: =集計_INPUT!Y42 -> 46 | AK42: =集計_INPUT!Z42 -> 0 | AL42: 46 | AM42: =集計_INPUT!AA42 -> 0 | AN42: =集計_INPUT!AB42 -> 0 | AO42: =集計_INPUT!AC42 -> 0 | AP42: 0 | AQ42: 252 | AR42: =+#REF!*15.1 ->  | AS42: =+AQ42-AR42 -> 
C43: MKRF | D43: 12201 MKR D600 AA | G43: 217 | H43: =集計_INPUT!D43 -> 0 | I43: =集計_INPUT!E43 -> 0 | J43: =集計_INPUT!F43 -> 0 | K43: =集計_INPUT!G43 -> 0 | L43: =集計_INPUT!H43 -> 0 | M43: 0 | N43: =集計_INPUT!I43 -> 0 | O43: =集計_INPUT!J43 -> 0 | P43: =集計_INPUT!K43 -> 0 | Q43: =集計_INPUT!L43 -> 0 | R43: 0 | S43: =集計_INPUT!M43 -> 0 | T43: =集計_INPUT!N43 -> 116 | V43: 116 | W43: 116 | X43: =集計_INPUT!P43 -> 0 | Y43: =集計_INPUT!Q43 -> 0 | Z43: =集計_INPUT!R43 -> 0 | AB43: 0 | AC43: =集計_INPUT!T43 -> 42 | AD43: =集計_INPUT!U43 -> 0 | AF43: 42 | AG43: 42 | AH43: =集計_INPUT!W43 -> 0 | AI43: =集計_INPUT!X43 -> 0 | AJ43: =集計_INPUT!Y43 -> 30 | AK43: =集計_INPUT!Z43 -> 0 | AL43: 30 | AM43: =集計_INPUT!AA43 -> 29 | AN43: =集計_INPUT!AB43 -> 0 | AO43: =集計_INPUT!AC43 -> 0 | AP43: 29 | AQ43: 217 | AR43: =+#REF!*15.1 -> 
C44: MKRc | D44: 12100 MKR D101 AA | G44: 1204 | H44: =集計_INPUT!D44 -> 0 | I44: =集計_INPUT!E44 -> 0 | J44: =集計_INPUT!F44 -> 404 | K44: =集計_INPUT!G44 -> 179 | L44: =集計_INPUT!H44 -> 0 | M44: 583 | N44: =集計_INPUT!I44 -> 0 | O44: =集計_INPUT!J44 -> 0 | P44: =集計_INPUT!K44 -> 0 | Q44: =集計_INPUT!L44 -> 0 | R44: 0 | S44: =集計_INPUT!M44 -> 0 | T44: =集計_INPUT!N44 -> 511 | V44: 511 | W44: 511 | X44: =集計_INPUT!P44 -> 0 | Y44: =集計_INPUT!Q44 -> 0 | Z44: =集計_INPUT!R44 -> 0 | AB44: 0 | AC44: =集計_INPUT!T44 -> 0 | AD44: =集計_INPUT!U44 -> 0 | AF44: 0 | AG44: 0 | AH44: =集計_INPUT!W44 -> 0 | AI44: =集計_INPUT!X44 -> 0 | AJ44: =集計_INPUT!Y44 -> 110 | AK44: =集計_INPUT!Z44 -> 0 | AL44: 110 | AM44: =集計_INPUT!AA44 -> 0 | AN44: =集計_INPUT!AB44 -> 0 | AO44: =集計_INPUT!AC44 -> 0 | AP44: 0 | AQ44: 1204 | AR44: =+#REF!*15.1 -> 
C45: MKT | D45: 12200 MKT D000 AA | G45: 3187 | H45: =集計_INPUT!D45 -> 0 | I45: =集計_INPUT!E45 -> 0 | J45: =集計_INPUT!F45 -> 125 | K45: =集計_INPUT!G45 -> 820 | L45: =集計_INPUT!H45 -> 0 | M45: 945 | N45: =集計_INPUT!I45 -> 0 | O45: =集計_INPUT!J45 -> 0 | P45: =集計_INPUT!K45 -> 0 | Q45: =集計_INPUT!L45 -> 0 | R45: 0 | S45: =集計_INPUT!M45 -> 0 | T45: =集計_INPUT!N45 -> 245 | V45: 245 | W45: 245 | X45: =集計_INPUT!P45 -> 0 | Y45: =集計_INPUT!Q45 -> 0 | Z45: =集計_INPUT!R45 -> 0 | AB45: 0 | AC45: =集計_INPUT!T45 -> 903 | AD45: =集計_INPUT!U45 -> 0 | AF45: 903 | AG45: 903 | AH45: =集計_INPUT!W45 -> 288 | AI45: =集計_INPUT!X45 -> 0 | AJ45: =集計_INPUT!Y45 -> 134 | AK45: =集計_INPUT!Z45 -> 672 | AL45: 1094 | AM45: =集計_INPUT!AA45 -> 0 | AN45: =集計_INPUT!AB45 -> 0 | AO45: =集計_INPUT!AC45 -> 0 | AP45: 0 | AQ45: 3187 | AR45: =+#REF!*15.1 -> 
C46: MKZ | D46: 12201 MKZ J000 AA | G46: 1746 | H46: =集計_INPUT!D46 -> 0 | I46: =集計_INPUT!E46 -> 0 | J46: =集計_INPUT!F46 -> 160 | K46: =集計_INPUT!G46 -> 71 | L46: =集計_INPUT!H46 -> 0 | M46: 231 | N46: =集計_INPUT!I46 -> 0 | O46: =集計_INPUT!J46 -> 270 | P46: =集計_INPUT!K46 -> 0 | Q46: =集計_INPUT!L46 -> 0 | R46: 270 | S46: =集計_INPUT!M46 -> 0 | T46: =集計_INPUT!N46 -> 172 | V46: 172 | W46: 442 | X46: =集計_INPUT!P46 -> 0 | Y46: =集計_INPUT!Q46 -> 0 | Z46: =集計_INPUT!R46 -> 0 | AB46: 0 | AC46: =集計_INPUT!T46 -> 268 | AD46: =集計_INPUT!U46 -> 0 | AF46: 268 | AG46: 268 | AH46: =集計_INPUT!W46 -> 0 | AI46: =集計_INPUT!X46 -> 0 | AJ46: =集計_INPUT!Y46 -> 73 | AK46: =集計_INPUT!Z46 -> 0 | AL46: 73 | AM46: =集計_INPUT!AA46 -> 12 | AN46: =集計_INPUT!AB46 -> 720 | AO46: =集計_INPUT!AC46 -> 0 | AP46: 732 | AQ46: 1746
C47: MLB | D47: 12201 MLB D001 AA | G47: 3190 | H47: =集計_INPUT!D47 -> 0 | I47: =集計_INPUT!E47 -> 0 | J47: =集計_INPUT!F47 -> 200 | K47: =集計_INPUT!G47 -> 821 | L47: =集計_INPUT!H47 -> 0 | M47: 1021 | N47: =集計_INPUT!I47 -> 0 | O47: =集計_INPUT!J47 -> 0 | P47: =集計_INPUT!K47 -> 0 | Q47: =集計_INPUT!L47 -> 0 | R47: 0 | S47: =集計_INPUT!M47 -> 0 | T47: =集計_INPUT!N47 -> 155 | V47: 155 | W47: 155 | X47: =集計_INPUT!P47 -> 0 | Y47: =集計_INPUT!Q47 -> 0 | Z47: =集計_INPUT!R47 -> 0 | AB47: 0 | AC47: =集計_INPUT!T47 -> 64 | AD47: =集計_INPUT!U47 -> 0 | AF47: 64 | AG47: 64 | AH47: =集計_INPUT!W47 -> 0 | AI47: =集計_INPUT!X47 -> 0 | AJ47: =集計_INPUT!Y47 -> 1950 | AK47: =集計_INPUT!Z47 -> 0 | AL47: 1950 | AM47: =集計_INPUT!AA47 -> 0 | AN47: =集計_INPUT!AB47 -> 0 | AO47: =集計_INPUT!AC47 -> 0 | AP47: 0 | AQ47: 3190
C48: MLBc | D48: 12100 MLB D001 AA | G48: 2526 | H48: =集計_INPUT!D48 -> 0 | I48: =集計_INPUT!E48 -> 0 | J48: =集計_INPUT!F48 -> 0 | K48: =集計_INPUT!G48 -> 646 | L48: =集計_INPUT!H48 -> 0 | M48: 646 | N48: =集計_INPUT!I48 -> 154 | O48: =集計_INPUT!J48 -> 0 | P48: =集計_INPUT!K48 -> 0 | Q48: =集計_INPUT!L48 -> 0 | R48: 154 | S48: =集計_INPUT!M48 -> 0 | T48: =集計_INPUT!N48 -> 0 | V48: 0 | W48: 154 | X48: =集計_INPUT!P48 -> 0 | Y48: =集計_INPUT!Q48 -> 0 | Z48: =集計_INPUT!R48 -> 0 | AB48: 0 | AC48: =集計_INPUT!T48 -> 0 | AD48: =集計_INPUT!U48 -> 0 | AF48: 0 | AG48: 0 | AH48: =集計_INPUT!W48 -> 0 | AI48: =集計_INPUT!X48 -> 0 | AJ48: =集計_INPUT!Y48 -> 1726 | AK48: =集計_INPUT!Z48 -> 0 | AL48: 1726 | AM48: =集計_INPUT!AA48 -> 0 | AN48: =集計_INPUT!AB48 -> 0 | AO48: =集計_INPUT!AC48 -> 0 | AP48: 0 | AQ48: 2526
C49: MKRG | D49: 12200 MKR DH01 AA | G49: 559 | H49: =集計_INPUT!D49 -> 0 | I49: =集計_INPUT!E49 -> 0 | J49: =集計_INPUT!F49 -> 0 | K49: =集計_INPUT!G49 -> 0 | L49: =集計_INPUT!H49 -> 0 | M49: 0 | N49: =集計_INPUT!I49 -> 291 | O49: =集計_INPUT!J49 -> 0 | P49: =集計_INPUT!K49 -> 0 | Q49: =集計_INPUT!L49 -> 0 | R49: 291 | S49: =集計_INPUT!M49 -> 0 | T49: =集計_INPUT!N49 -> 84 | V49: 84 | W49: 375 | X49: =集計_INPUT!P49 -> 0 | Y49: =集計_INPUT!Q49 -> 0 | Z49: =集計_INPUT!R49 -> 0 | AB49: 0 | AC49: =集計_INPUT!T49 -> 0 | AD49: =集計_INPUT!U49 -> 0 | AF49: 0 | AG49: 0 | AH49: =集計_INPUT!W49 -> 0 | AI49: =集計_INPUT!X49 -> 60 | AJ49: =集計_INPUT!Y49 -> 27 | AK49: =集計_INPUT!Z49 -> 0 | AL49: 87 | AM49: =集計_INPUT!AA49 -> 97 | AN49: =集計_INPUT!AB49 -> 0 | AO49: =集計_INPUT!AC49 -> 0 | AP49: 97 | AQ49: 559
G50: =+AQ50+F50-E50 -> 0 | H50: =集計_INPUT!D50 -> 0 | I50: =集計_INPUT!E50 -> 0 | J50: =集計_INPUT!F50 -> 0 | K50: =集計_INPUT!G50 -> 0 | L50: =集計_INPUT!H50 -> 0 | M50: 0 | N50: =集計_INPUT!I50 -> 0 | O50: =集計_INPUT!J50 -> 0 | P50: =集計_INPUT!K50 -> 0 | Q50: =集計_INPUT!L50 -> 0 | R50: 0 | S50: =集計_INPUT!M50 -> 0 | T50: =集計_INPUT!N50 -> 0 | V50: 0 | W50: 0 | X50: =集計_INPUT!P50 -> 0 | Y50: =集計_INPUT!Q50 -> 0 | Z50: =集計_INPUT!R50 -> 0 | AB50: 0 | AC50: =集計_INPUT!T50 -> 0 | AD50: =集計_INPUT!U50 -> 0 | AF50: 0 | AG50: 0 | AH50: =集計_INPUT!W50 -> 0 | AI50: =集計_INPUT!X50 -> 0 | AJ50: =集計_INPUT!Y50 -> 0 | AK50: =集計_INPUT!Z50 -> 0 | AL50: 0 | AM50: =集計_INPUT!AA50 -> 0 | AN50: =集計_INPUT!AB50 -> 0 | AO50: =集計_INPUT!AC50 -> 0 | AP50: 0 | AQ50: 0 | AR50: =+#REF!*15.1 -> 
H51: =集計_INPUT!D51 -> 0 | I51: =集計_INPUT!E51 -> 0 | J51: =集計_INPUT!F51 -> 0 | K51: =集計_INPUT!G51 -> 0 | L51: =集計_INPUT!H51 -> 0 | N51: =集計_INPUT!I51 -> 0 | O51: =集計_INPUT!J51 -> 0 | P51: =集計_INPUT!K51 -> 0 | Q51: =集計_INPUT!L51 -> 0 | S51: =集計_INPUT!M51 -> 0 | T51: =集計_INPUT!N51 -> 0 | X51: =集計_INPUT!P51 -> 0 | Y51: =集計_INPUT!Q51 -> 0 | Z51: =集計_INPUT!R51 -> 0 | AC51: =集計_INPUT!T51 -> 0 | AD51: =集計_INPUT!U51 -> 0 | AH51: =集計_INPUT!W51 -> 0 | AI51: =集計_INPUT!X51 -> 0 | AJ51: =集計_INPUT!Y51 -> 0 | AK51: =集計_INPUT!Z51 -> 0 | AM51: =集計_INPUT!AA51 -> 0 | AN51: =集計_INPUT!AB51 -> 0 | AO51: =集計_INPUT!AC51 -> 0
C52: KCN | D52: 12200-KCN-0003-AA | G52: =+AQ52+F52-E52 -> 232 | H52: =集計_INPUT!D52 -> 0 | I52: =集計_INPUT!E52 -> 0 | J52: =集計_INPUT!F52 -> 0 | K52: =集計_INPUT!G52 -> 0 | L52: =集計_INPUT!H52 -> 0 | M52: =SUM(H52:L52) -> 0 | N52: =集計_INPUT!I52 -> 0 | O52: =集計_INPUT!J52 -> 0 | P52: =集計_INPUT!K52 -> 0 | Q52: =集計_INPUT!L52 -> 0 | R52: =SUM(N52:Q52) -> 0 | S52: =集計_INPUT!M52 -> 0 | T52: =集計_INPUT!N52 -> 0 | V52: =SUM(S52:U52) -> 0 | W52: =R52+V52 -> 0 | X52: =集計_INPUT!P52 -> 0 | Y52: =集計_INPUT!Q52 -> 0 | Z52: =集計_INPUT!R52 -> 0 | AB52: 0 | AC52: =集計_INPUT!T52 -> 0 | AD52: =集計_INPUT!U52 -> 0 | AF52: =SUM(AC52:AE52) -> 0 | AG52: =AB52+AF52 -> 0 | AH52: =集計_INPUT!W52 -> 0 | AI52: =集計_INPUT!X52 -> 0 | AJ52: =集計_INPUT!Y52 -> 0 | AK52: =集計_INPUT!Z52 -> 0 | AL52: 0 | AM52: =集計_INPUT!AA52 -> 0 | AN52: =集計_INPUT!AB52 -> 232 | AO52: =集計_INPUT!AC52 -> 0 | AP52: 232 | AQ52: =M52+W52+AG52+AL52+AP52 -> 232 | AR52: =+#REF!*15.1 ->  | AS52: =+AQ52-AR52 -> 
C53: KRNM | D53: 12201-KRN-A400-AA | G53: 36 | H53: =集計_INPUT!D53 -> 0 | I53: =集計_INPUT!E53 -> 0 | J53: =集計_INPUT!F53 -> 0 | K53: =集計_INPUT!G53 -> 0 | L53: =集計_INPUT!H53 -> 0 | M53: 0 | N53: =集計_INPUT!I53 -> 0 | O53: =集計_INPUT!J53 -> 0 | P53: =集計_INPUT!K53 -> 0 | Q53: =集計_INPUT!L53 -> 0 | R53: 0 | S53: =集計_INPUT!M53 -> 0 | T53: =集計_INPUT!N53 -> 0 | V53: 0 | W53: 0 | X53: =集計_INPUT!P53 -> 0 | Y53: =集計_INPUT!Q53 -> 0 | Z53: =集計_INPUT!R53 -> 0 | AB53: 0 | AC53: =集計_INPUT!T53 -> 0 | AD53: =集計_INPUT!U53 -> 0 | AF53: 0 | AG53: 0 | AH53: =集計_INPUT!W53 -> 0 | AI53: =集計_INPUT!X53 -> 0 | AJ53: =集計_INPUT!Y53 -> 0 | AK53: =集計_INPUT!Z53 -> 36 | AL53: 36 | AM53: =集計_INPUT!AA53 -> 0 | AN53: =集計_INPUT!AB53 -> 0 | AO53: =集計_INPUT!AC53 -> 0 | AP53: 0 | AQ53: 36 | AR53: =+#REF!*15.1 ->  | AS53: =+AQ53-AR53 -> 
C54: KRNP | D54: 12201-KRN-A600-AA | G54: 45 | H54: =集計_INPUT!D54 -> 0 | I54: =集計_INPUT!E54 -> 0 | J54: =集計_INPUT!F54 -> 0 | K54: =集計_INPUT!G54 -> 0 | L54: =集計_INPUT!H54 -> 0 | M54: 0 | N54: =集計_INPUT!I54 -> 0 | O54: =集計_INPUT!J54 -> 0 | P54: =集計_INPUT!K54 -> 0 | Q54: =集計_INPUT!L54 -> 0 | R54: 0 | S54: =集計_INPUT!M54 -> 0 | T54: =集計_INPUT!N54 -> 0 | V54: 0 | W54: 0 | X54: =集計_INPUT!P54 -> 0 | Y54: =集計_INPUT!Q54 -> 0 | Z54: =集計_INPUT!R54 -> 0 | AB54: 0 | AC54: =集計_INPUT!T54 -> 0 | AD54: =集計_INPUT!U54 -> 0 | AF54: 0 | AG54: 0 | AH54: =集計_INPUT!W54 -> 0 | AI54: =集計_INPUT!X54 -> 0 | AJ54: =集計_INPUT!Y54 -> 0 | AK54: =集計_INPUT!Z54 -> 0 | AL54: 0 | AM54: =集計_INPUT!AA54 -> 0 | AN54: =集計_INPUT!AB54 -> 45 | AO54: =集計_INPUT!AC54 -> 0 | AP54: 45 | AQ54: 45 | AR54: =+#REF!*15.1 -> 
C55: KRNS | D55: 12201-KRN-A800-AA | G55: 25 | H55: =集計_INPUT!D55 -> 0 | I55: =集計_INPUT!E55 -> 0 | J55: =集計_INPUT!F55 -> 0 | K55: =集計_INPUT!G55 -> 0 | L55: =集計_INPUT!H55 -> 0 | M55: 0 | N55: =集計_INPUT!I55 -> 0 | O55: =集計_INPUT!J55 -> 0 | P55: =集計_INPUT!K55 -> 0 | Q55: =集計_INPUT!L55 -> 0 | R55: 0 | S55: =集計_INPUT!M55 -> 0 | T55: =集計_INPUT!N55 -> 0 | V55: 0 | W55: 0 | X55: =集計_INPUT!P55 -> 0 | Y55: =集計_INPUT!Q55 -> 0 | Z55: =集計_INPUT!R55 -> 0 | AB55: 0 | AC55: =集計_INPUT!T55 -> 0 | AD55: =集計_INPUT!U55 -> 0 | AF55: 0 | AG55: 0 | AH55: =集計_INPUT!W55 -> 0 | AI55: =集計_INPUT!X55 -> 0 | AJ55: =集計_INPUT!Y55 -> 0 | AK55: =集計_INPUT!Z55 -> 0 | AL55: 0 | AM55: =集計_INPUT!AA55 -> 0 | AN55: =集計_INPUT!AB55 -> 25 | AO55: =集計_INPUT!AC55 -> 0 | AP55: 25 | AQ55: 25 | AR55: =+#REF!*15.1 -> 
C56: KRNV | D56: 12201-KRN-B100-AA | G56: 23 | H56: =集計_INPUT!D56 -> 0 | I56: =集計_INPUT!E56 -> 0 | J56: =集計_INPUT!F56 -> 0 | K56: =集計_INPUT!G56 -> 0 | L56: =集計_INPUT!H56 -> 0 | M56: 0 | N56: =集計_INPUT!I56 -> 0 | O56: =集計_INPUT!J56 -> 0 | P56: =集計_INPUT!K56 -> 0 | Q56: =集計_INPUT!L56 -> 0 | R56: 0 | S56: =集計_INPUT!M56 -> 0 | T56: =集計_INPUT!N56 -> 0 | V56: 0 | W56: 0 | X56: =集計_INPUT!P56 -> 0 | Y56: =集計_INPUT!Q56 -> 0 | Z56: =集計_INPUT!R56 -> 0 | AB56: 0 | AC56: =集計_INPUT!T56 -> 0 | AD56: =集計_INPUT!U56 -> 0 | AF56: 0 | AG56: 0 | AH56: =集計_INPUT!W56 -> 0 | AI56: =集計_INPUT!X56 -> 0 | AJ56: =集計_INPUT!Y56 -> 0 | AK56: =集計_INPUT!Z56 -> 23 | AL56: 23 | AM56: =集計_INPUT!AA56 -> 0 | AN56: =集計_INPUT!AB56 -> 0 | AO56: =集計_INPUT!AC56 -> 0 | AP56: 0 | AQ56: 23 | AR56: =+#REF!*15.1 -> 
C57: KSE | D57: 12200-KSE-6701-AA | G57: 323 | H57: =集計_INPUT!D57 -> 0 | I57: =集計_INPUT!E57 -> 0 | J57: =集計_INPUT!F57 -> 0 | K57: =集計_INPUT!G57 -> 0 | L57: =集計_INPUT!H57 -> 0 | M57: 0 | N57: =集計_INPUT!I57 -> 0 | O57: =集計_INPUT!J57 -> 0 | P57: =集計_INPUT!K57 -> 0 | Q57: =集計_INPUT!L57 -> 0 | R57: 0 | S57: =集計_INPUT!M57 -> 323 | T57: =集計_INPUT!N57 -> 0 | V57: 323 | W57: 323 | X57: =集計_INPUT!P57 -> 0 | Y57: =集計_INPUT!Q57 -> 0 | Z57: =集計_INPUT!R57 -> 0 | AB57: 0 | AC57: =集計_INPUT!T57 -> 0 | AD57: =集計_INPUT!U57 -> 0 | AF57: 0 | AG57: 0 | AH57: =集計_INPUT!W57 -> 0 | AI57: =集計_INPUT!X57 -> 0 | AJ57: =集計_INPUT!Y57 -> 0 | AK57: =集計_INPUT!Z57 -> 0 | AL57: 0 | AM57: =集計_INPUT!AA57 -> 0 | AN57: =集計_INPUT!AB57 -> 0 | AO57: =集計_INPUT!AC57 -> 0 | AP57: 0 | AQ57: 323 | AR57: =+#REF!*15.1 -> 
C58: KSEK | D58: 12200-KSE-A700-AA | G58: 960 | H58: =集計_INPUT!D58 -> 0 | I58: =集計_INPUT!E58 -> 0 | J58: =集計_INPUT!F58 -> 0 | K58: =集計_INPUT!G58 -> 695 | L58: =集計_INPUT!H58 -> 0 | M58: 695 | N58: =集計_INPUT!I58 -> 0 | O58: =集計_INPUT!J58 -> 0 | P58: =集計_INPUT!K58 -> 0 | Q58: =集計_INPUT!L58 -> 0 | R58: 0 | S58: =集計_INPUT!M58 -> 152 | T58: =集計_INPUT!N58 -> 0 | V58: 152 | W58: 152 | X58: =集計_INPUT!P58 -> 0 | Y58: =集計_INPUT!Q58 -> 0 | Z58: =集計_INPUT!R58 -> 0 | AB58: 0 | AC58: =集計_INPUT!T58 -> 0 | AD58: =集計_INPUT!U58 -> 0 | AF58: 0 | AG58: 0 | AH58: =集計_INPUT!W58 -> 0 | AI58: =集計_INPUT!X58 -> 0 | AJ58: =集計_INPUT!Y58 -> 0 | AK58: =集計_INPUT!Z58 -> 113 | AL58: 113 | AM58: =集計_INPUT!AA58 -> 0 | AN58: =集計_INPUT!AB58 -> 0 | AO58: =集計_INPUT!AC58 -> 0 | AP58: 0 | AQ58: 960 | AR58: =+#REF!*15.1 -> 
C59: HP1 | D59: 12200-HP1-6700-AA | G59: 70 | H59: =集計_INPUT!D59 -> 0 | I59: =集計_INPUT!E59 -> 0 | J59: =集計_INPUT!F59 -> 0 | K59: =集計_INPUT!G59 -> 0 | L59: =集計_INPUT!H59 -> 0 | M59: 0 | N59: =集計_INPUT!I59 -> 0 | O59: =集計_INPUT!J59 -> 0 | P59: =集計_INPUT!K59 -> 0 | Q59: =集計_INPUT!L59 -> 0 | R59: 0 | S59: =集計_INPUT!M59 -> 0 | T59: =集計_INPUT!N59 -> 0 | V59: 0 | W59: 0 | X59: =集計_INPUT!P59 -> 0 | Y59: =集計_INPUT!Q59 -> 0 | Z59: =集計_INPUT!R59 -> 0 | AB59: 0 | AC59: =集計_INPUT!T59 -> 0 | AD59: =集計_INPUT!U59 -> 0 | AF59: 0 | AG59: 0 | AH59: =集計_INPUT!W59 -> 0 | AI59: =集計_INPUT!X59 -> 0 | AJ59: =集計_INPUT!Y59 -> 0 | AK59: =集計_INPUT!Z59 -> 70 | AL59: 70 | AM59: =集計_INPUT!AA59 -> 0 | AN59: =集計_INPUT!AB59 -> 0 | AO59: =集計_INPUT!AC59 -> 0 | AP59: 0 | AQ59: 70 | AR59: =+#REF!*15.1 -> 
C60: HP1G | D60: 12200-HP1-6001-AA | G60: 5 | H60: =集計_INPUT!D60 -> 0 | I60: =集計_INPUT!E60 -> 0 | J60: =集計_INPUT!F60 -> 0 | K60: =集計_INPUT!G60 -> 0 | L60: =集計_INPUT!H60 -> 0 | M60: 0 | N60: =集計_INPUT!I60 -> 0 | O60: =集計_INPUT!J60 -> 0 | P60: =集計_INPUT!K60 -> 0 | Q60: =集計_INPUT!L60 -> 0 | R60: 0 | S60: =集計_INPUT!M60 -> 0 | T60: =集計_INPUT!N60 -> 0 | V60: 0 | W60: 0 | X60: =集計_INPUT!P60 -> 0 | Y60: =集計_INPUT!Q60 -> 0 | Z60: =集計_INPUT!R60 -> 0 | AB60: 0 | AC60: =集計_INPUT!T60 -> 0 | AD60: =集計_INPUT!U60 -> 0 | AF60: 0 | AG60: 0 | AH60: =集計_INPUT!W60 -> 0 | AI60: =集計_INPUT!X60 -> 0 | AJ60: =集計_INPUT!Y60 -> 0 | AK60: =集計_INPUT!Z60 -> 5 | AL60: 5 | AM60: =集計_INPUT!AA60 -> 0 | AN60: =集計_INPUT!AB60 -> 0 | AO60: =集計_INPUT!AC60 -> 0 | AP60: 0 | AQ60: 5 | AR60: =+#REF!*15.1 -> 
C61: K95 | D61: 12201-K95-A000-AA | G61: 45 | H61: =集計_INPUT!D61 -> 0 | I61: =集計_INPUT!E61 -> 0 | J61: =集計_INPUT!F61 -> 0 | K61: =集計_INPUT!G61 -> 0 | L61: =集計_INPUT!H61 -> 0 | M61: 0 | N61: =集計_INPUT!I61 -> 0 | O61: =集計_INPUT!J61 -> 0 | P61: =集計_INPUT!K61 -> 0 | Q61: =集計_INPUT!L61 -> 0 | R61: 0 | S61: =集計_INPUT!M61 -> 0 | T61: =集計_INPUT!N61 -> 0 | V61: 0 | W61: 0 | X61: =集計_INPUT!P61 -> 0 | Y61: =集計_INPUT!Q61 -> 0 | Z61: =集計_INPUT!R61 -> 0 | AB61: 0 | AC61: =集計_INPUT!T61 -> 0 | AD61: =集計_INPUT!U61 -> 0 | AF61: 0 | AG61: 0 | AH61: =集計_INPUT!W61 -> 0 | AI61: =集計_INPUT!X61 -> 0 | AJ61: =集計_INPUT!Y61 -> 45 | AK61: =集計_INPUT!Z61 -> 0 | AL61: 45 | AM61: =集計_INPUT!AA61 -> 0 | AN61: =集計_INPUT!AB61 -> 0 | AO61: =集計_INPUT!AC61 -> 0 | AP61: 0 | AQ61: 45 | AR61: =+#REF!*15.1 -> 
C62: K95F | D62: 12201-K95-A400-AA | G62: 252 | H62: =集計_INPUT!D62 -> 0 | I62: =集計_INPUT!E62 -> 0 | J62: =集計_INPUT!F62 -> 0 | K62: =集計_INPUT!G62 -> 0 | L62: =集計_INPUT!H62 -> 0 | M62: 0 | N62: =集計_INPUT!I62 -> 0 | O62: =集計_INPUT!J62 -> 0 | P62: =集計_INPUT!K62 -> 0 | Q62: =集計_INPUT!L62 -> 0 | R62: 0 | S62: =集計_INPUT!M62 -> 190 | T62: =集計_INPUT!N62 -> 0 | V62: 190 | W62: 190 | X62: =集計_INPUT!P62 -> 0 | Y62: =集計_INPUT!Q62 -> 0 | Z62: =集計_INPUT!R62 -> 0 | AB62: 0 | AC62: =集計_INPUT!T62 -> 0 | AD62: =集計_INPUT!U62 -> 0 | AF62: 0 | AG62: 0 | AH62: =集計_INPUT!W62 -> 0 | AI62: =集計_INPUT!X62 -> 0 | AJ62: =集計_INPUT!Y62 -> 0 | AK62: =集計_INPUT!Z62 -> 62 | AL62: 62 | AM62: =集計_INPUT!AA62 -> 0 | AN62: =集計_INPUT!AB62 -> 0 | AO62: =集計_INPUT!AC62 -> 0 | AP62: 0 | AQ62: 252 | AR62: =+#REF!*15.1 -> 
C63: k95G | D63: 12201-K95-A600-AA | G63: 11 | H63: =集計_INPUT!D63 -> 0 | I63: =集計_INPUT!E63 -> 0 | J63: =集計_INPUT!F63 -> 0 | K63: =集計_INPUT!G63 -> 0 | L63: =集計_INPUT!H63 -> 0 | M63: 0 | N63: =集計_INPUT!I63 -> 0 | O63: =集計_INPUT!J63 -> 0 | P63: =集計_INPUT!K63 -> 0 | Q63: =集計_INPUT!L63 -> 0 | R63: 0 | S63: =集計_INPUT!M63 -> 0 | T63: =集計_INPUT!N63 -> 0 | V63: 0 | W63: 0 | X63: =集計_INPUT!P63 -> 0 | Y63: =集計_INPUT!Q63 -> 0 | Z63: =集計_INPUT!R63 -> 0 | AB63: 0 | AC63: =集計_INPUT!T63 -> 0 | AD63: =集計_INPUT!U63 -> 0 | AF63: 0 | AG63: 0 | AH63: =集計_INPUT!W63 -> 0 | AI63: =集計_INPUT!X63 -> 0 | AJ63: =集計_INPUT!Y63 -> 0 | AK63: =集計_INPUT!Z63 -> 11 | AL63: 11 | AM63: =集計_INPUT!AA63 -> 0 | AN63: =集計_INPUT!AB63 -> 0 | AO63: =集計_INPUT!AC63 -> 0 | AP63: 0 | AQ63: 11 | AR63: =+#REF!*15.1 -> 
C64: K95H | D64: 12201-K95-AA00-AA | G64: 1374 | H64: =集計_INPUT!D64 -> 0 | I64: =集計_INPUT!E64 -> 0 | J64: =集計_INPUT!F64 -> 0 | K64: =集計_INPUT!G64 -> 220 | L64: =集計_INPUT!H64 -> 0 | M64: 220 | N64: =集計_INPUT!I64 -> 682 | O64: =集計_INPUT!J64 -> 0 | P64: =集計_INPUT!K64 -> 0 | Q64: =集計_INPUT!L64 -> 0 | R64: 682 | S64: =集計_INPUT!M64 -> 31 | T64: =集計_INPUT!N64 -> 0 | V64: 31 | W64: 713 | X64: =集計_INPUT!P64 -> 0 | Y64: =集計_INPUT!Q64 -> 0 | Z64: =集計_INPUT!R64 -> 0 | AB64: 0 | AC64: =集計_INPUT!T64 -> 0 | AD64: =集計_INPUT!U64 -> 0 | AF64: 0 | AG64: 0 | AH64: =集計_INPUT!W64 -> 0 | AI64: =集計_INPUT!X64 -> 0 | AJ64: =集計_INPUT!Y64 -> 186 | AK64: =集計_INPUT!Z64 -> 63 | AL64: 249 | AM64: =集計_INPUT!AA64 -> 0 | AN64: =集計_INPUT!AB64 -> 192 | AO64: =集計_INPUT!AC64 -> 0 | AP64: 192 | AQ64: 1374 | AR64: =+#REF!*15.1 -> 
C65: MKE | D65: 12201-MKE-A000-AA | G65: 240 | H65: =集計_INPUT!D65 -> 0 | I65: =集計_INPUT!E65 -> 0 | J65: =集計_INPUT!F65 -> 0 | K65: =集計_INPUT!G65 -> 0 | L65: =集計_INPUT!H65 -> 0 | M65: 0 | N65: =集計_INPUT!I65 -> 0 | O65: =集計_INPUT!J65 -> 0 | P65: =集計_INPUT!K65 -> 0 | Q65: =集計_INPUT!L65 -> 0 | R65: 0 | S65: =集計_INPUT!M65 -> 0 | T65: =集計_INPUT!N65 -> 0 | V65: 0 | W65: 0 | X65: =集計_INPUT!P65 -> 0 | Y65: =集計_INPUT!Q65 -> 0 | Z65: =集計_INPUT!R65 -> 0 | AB65: 0 | AC65: =集計_INPUT!T65 -> 0 | AD65: =集計_INPUT!U65 -> 0 | AF65: 0 | AG65: 0 | AH65: =集計_INPUT!W65 -> 0 | AI65: =集計_INPUT!X65 -> 0 | AJ65: =集計_INPUT!Y65 -> 0 | AK65: =集計_INPUT!Z65 -> 240 | AL65: 240 | AM65: =集計_INPUT!AA65 -> 0 | AN65: =集計_INPUT!AB65 -> 0 | AO65: =集計_INPUT!AC65 -> 0 | AP65: 0 | AQ65: 240 | AR65: =+#REF!*15.1 -> 
C66: MKEH | D66: 12201-MKE-A700-AA | G66: 213 | H66: =集計_INPUT!D66 -> 0 | I66: =集計_INPUT!E66 -> 0 | J66: =集計_INPUT!F66 -> 0 | K66: =集計_INPUT!G66 -> 0 | L66: =集計_INPUT!H66 -> 0 | M66: 0 | N66: =集計_INPUT!I66 -> 0 | O66: =集計_INPUT!J66 -> 0 | P66: =集計_INPUT!K66 -> 0 | Q66: =集計_INPUT!L66 -> 0 | R66: 0 | S66: =集計_INPUT!M66 -> 44 | T66: =集計_INPUT!N66 -> 0 | V66: 44 | W66: 44 | X66: =集計_INPUT!P66 -> 0 | Y66: =集計_INPUT!Q66 -> 0 | Z66: =集計_INPUT!R66 -> 0 | AB66: 0 | AC66: =集計_INPUT!T66 -> 0 | AD66: =集計_INPUT!U66 -> 0 | AF66: 0 | AG66: 0 | AH66: =集計_INPUT!W66 -> 0 | AI66: =集計_INPUT!X66 -> 0 | AJ66: =集計_INPUT!Y66 -> 120 | AK66: =集計_INPUT!Z66 -> 49 | AL66: 169 | AM66: =集計_INPUT!AA66 -> 0 | AN66: =集計_INPUT!AB66 -> 0 | AO66: =集計_INPUT!AC66 -> 0 | AP66: 0 | AQ66: 213 | AR66: =+#REF!*15.1 -> 
C67: MKEG | D67: 12201-MKE-A500-AA | G67: 872 | H67: =集計_INPUT!D67 -> 0 | I67: =集計_INPUT!E67 -> 0 | J67: =集計_INPUT!F67 -> 0 | K67: =集計_INPUT!G67 -> 0 | L67: =集計_INPUT!H67 -> 0 | M67: 0 | N67: =集計_INPUT!I67 -> 0 | O67: =集計_INPUT!J67 -> 0 | P67: =集計_INPUT!K67 -> 0 | Q67: =集計_INPUT!L67 -> 0 | R67: 0 | S67: =集計_INPUT!M67 -> 679 | T67: =集計_INPUT!N67 -> 0 | V67: 679 | W67: 679 | X67: =集計_INPUT!P67 -> 0 | Y67: =集計_INPUT!Q67 -> 0 | Z67: =集計_INPUT!R67 -> 0 | AB67: 0 | AC67: =集計_INPUT!T67 -> 0 | AD67: =集計_INPUT!U67 -> 0 | AF67: 0 | AG67: 0 | AH67: =集計_INPUT!W67 -> 0 | AI67: =集計_INPUT!X67 -> 0 | AJ67: =集計_INPUT!Y67 -> 0 | AK67: =集計_INPUT!Z67 -> 193 | AL67: 193 | AM67: =集計_INPUT!AA67 -> 0 | AN67: =集計_INPUT!AB67 -> 0 | AO67: =集計_INPUT!AC67 -> 0 | AP67: 0 | AQ67: 872 | AR67: =+#REF!*15.1 -> 
C68: MKEK | D68: 12201-MKE-AF01-AA | G68: 1029 | H68: =集計_INPUT!D68 -> 0 | I68: =集計_INPUT!E68 -> 0 | J68: =集計_INPUT!F68 -> 0 | K68: =集計_INPUT!G68 -> 0 | L68: =集計_INPUT!H68 -> 0 | M68: 0 | N68: =集計_INPUT!I68 -> 0 | O68: =集計_INPUT!J68 -> 0 | P68: =集計_INPUT!K68 -> 0 | Q68: =集計_INPUT!L68 -> 0 | R68: 0 | S68: =集計_INPUT!M68 -> 720 | T68: =集計_INPUT!N68 -> 0 | V68: 720 | W68: 720 | X68: =集計_INPUT!P68 -> 0 | Y68: =集計_INPUT!Q68 -> 0 | Z68: =集計_INPUT!R68 -> 0 | AB68: 0 | AC68: =集計_INPUT!T68 -> 110 | AD68: =集計_INPUT!U68 -> 0 | AF68: 110 | AG68: 110 | AH68: =集計_INPUT!W68 -> 0 | AI68: =集計_INPUT!X68 -> 0 | AJ68: =集計_INPUT!Y68 -> 118 | AK68: =集計_INPUT!Z68 -> 81 | AL68: 199 | AM68: =集計_INPUT!AA68 -> 0 | AN68: =集計_INPUT!AB68 -> 0 | AO68: =集計_INPUT!AC68 -> 0 | AP68: 0 | AQ68: 1029 | AR68: =+#REF!*15.1 -> 
C69: MKEM | D69: 12201-MKE-AS00-AA | G69: 1060 | H69: =集計_INPUT!D69 -> 0 | I69: =集計_INPUT!E69 -> 0 | J69: =集計_INPUT!F69 -> 0 | K69: =集計_INPUT!G69 -> 219 | L69: =集計_INPUT!H69 -> 0 | M69: 219 | N69: =集計_INPUT!I69 -> 0 | O69: =集計_INPUT!J69 -> 0 | P69: =集計_INPUT!K69 -> 0 | Q69: =集計_INPUT!L69 -> 0 | R69: 0 | S69: =集計_INPUT!M69 -> 257 | T69: =集計_INPUT!N69 -> 0 | V69: 257 | W69: 257 | X69: =集計_INPUT!P69 -> 0 | Y69: =集計_INPUT!Q69 -> 0 | Z69: =集計_INPUT!R69 -> 0 | AB69: 0 | AC69: =集計_INPUT!T69 -> 0 | AD69: =集計_INPUT!U69 -> 0 | AF69: 0 | AG69: 0 | AH69: =集計_INPUT!W69 -> 0 | AI69: =集計_INPUT!X69 -> 0 | AJ69: =集計_INPUT!Y69 -> 0 | AK69: =集計_INPUT!Z69 -> 584 | AL69: 584 | AM69: =集計_INPUT!AA69 -> 0 | AN69: =集計_INPUT!AB69 -> 0 | AO69: =集計_INPUT!AC69 -> 0 | AP69: 0 | AQ69: 1060 | AR69: =+#REF!*15.1 -> 
C70: HP6 | D70: 12200-HP6-A000-AA | G70: 153 | H70: =集計_INPUT!D70 -> 0 | I70: =集計_INPUT!E70 -> 0 | J70: =集計_INPUT!F70 -> 0 | K70: =集計_INPUT!G70 -> 0 | L70: =集計_INPUT!H70 -> 0 | M70: 0 | N70: =集計_INPUT!I70 -> 0 | O70: =集計_INPUT!J70 -> 0 | P70: =集計_INPUT!K70 -> 0 | Q70: =集計_INPUT!L70 -> 0 | R70: 0 | S70: =集計_INPUT!M70 -> 0 | T70: =集計_INPUT!N70 -> 0 | V70: 0 | W70: 0 | X70: =集計_INPUT!P70 -> 0 | Y70: =集計_INPUT!Q70 -> 0 | Z70: =集計_INPUT!R70 -> 0 | AB70: 0 | AC70: =集計_INPUT!T70 -> 0 | AD70: =集計_INPUT!U70 -> 0 | AF70: 0 | AG70: 0 | AH70: =集計_INPUT!W70 -> 0 | AI70: =集計_INPUT!X70 -> 0 | AJ70: =集計_INPUT!Y70 -> 0 | AK70: =集計_INPUT!Z70 -> 0 | AL70: 0 | AM70: =集計_INPUT!AA70 -> 0 | AN70: =集計_INPUT!AB70 -> 153 | AO70: =集計_INPUT!AC70 -> 0 | AP70: 153 | AQ70: 153 | AR70: =+#REF!*15.1 -> 
C71: KSV | D71: 12200-KSV-J101-AA | G71: 2 | H71: =集計_INPUT!D71 -> 0 | I71: =集計_INPUT!E71 -> 0 | J71: =集計_INPUT!F71 -> 0 | K71: =集計_INPUT!G71 -> 0 | L71: =集計_INPUT!H71 -> 0 | M71: 0 | N71: =集計_INPUT!I71 -> 0 | O71: =集計_INPUT!J71 -> 0 | P71: =集計_INPUT!K71 -> 0 | Q71: =集計_INPUT!L71 -> 0 | R71: 0 | S71: =集計_INPUT!M71 -> 0 | T71: =集計_INPUT!N71 -> 0 | V71: 0 | W71: 0 | X71: =集計_INPUT!P71 -> 0 | Y71: =集計_INPUT!Q71 -> 0 | Z71: =集計_INPUT!R71 -> 0 | AB71: 0 | AC71: =集計_INPUT!T71 -> 0 | AD71: =集計_INPUT!U71 -> 0 | AF71: 0 | AG71: 0 | AH71: =集計_INPUT!W71 -> 0 | AI71: =集計_INPUT!X71 -> 0 | AJ71: =集計_INPUT!Y71 -> 2 | AK71: =集計_INPUT!Z71 -> 0 | AL71: 2 | AM71: =集計_INPUT!AA71 -> 0 | AN71: =集計_INPUT!AB71 -> 0 | AO71: =集計_INPUT!AC71 -> 0 | AP71: 0 | AQ71: 2 | AR71: =+#REF!*15.1 -> 
C72: HN8 | D72: 12200-HN8-0002-AA | G72: 155 | H72: =集計_INPUT!D72 -> 0 | I72: =集計_INPUT!E72 -> 0 | J72: =集計_INPUT!F72 -> 0 | K72: =集計_INPUT!G72 -> 0 | L72: =集計_INPUT!H72 -> 0 | M72: 0 | N72: =集計_INPUT!I72 -> 0 | O72: =集計_INPUT!J72 -> 0 | P72: =集計_INPUT!K72 -> 0 | Q72: =集計_INPUT!L72 -> 0 | R72: 0 | S72: =集計_INPUT!M72 -> 0 | T72: =集計_INPUT!N72 -> 0 | V72: 0 | W72: 0 | X72: =集計_INPUT!P72 -> 0 | Y72: =集計_INPUT!Q72 -> 0 | Z72: =集計_INPUT!R72 -> 0 | AB72: 0 | AC72: =集計_INPUT!T72 -> 0 | AD72: =集計_INPUT!U72 -> 0 | AF72: 0 | AG72: 0 | AH72: =集計_INPUT!W72 -> 0 | AI72: =集計_INPUT!X72 -> 0 | AJ72: =集計_INPUT!Y72 -> 155 | AK72: =集計_INPUT!Z72 -> 0 | AL72: 155 | AM72: =集計_INPUT!AA72 -> 0 | AN72: =集計_INPUT!AB72 -> 0 | AO72: =集計_INPUT!AC72 -> 0 | AP72: 0 | AQ72: 155 | AR72: =+#REF!*15.1 -> 
C73: HN8H | D73: 12200-HN8-A600-AA | G73: 353 | H73: =集計_INPUT!D73 -> 0 | I73: =集計_INPUT!E73 -> 0 | J73: =集計_INPUT!F73 -> 0 | K73: =集計_INPUT!G73 -> 0 | L73: =集計_INPUT!H73 -> 0 | M73: 0 | N73: =集計_INPUT!I73 -> 0 | O73: =集計_INPUT!J73 -> 0 | P73: =集計_INPUT!K73 -> 0 | Q73: =集計_INPUT!L73 -> 0 | R73: 0 | S73: =集計_INPUT!M73 -> 0 | T73: =集計_INPUT!N73 -> 0 | V73: 0 | W73: 0 | X73: =集計_INPUT!P73 -> 0 | Y73: =集計_INPUT!Q73 -> 0 | Z73: =集計_INPUT!R73 -> 0 | AB73: 0 | AC73: =集計_INPUT!T73 -> 0 | AD73: =集計_INPUT!U73 -> 0 | AF73: 0 | AG73: 0 | AH73: =集計_INPUT!W73 -> 0 | AI73: =集計_INPUT!X73 -> 0 | AJ73: =集計_INPUT!Y73 -> 353 | AK73: =集計_INPUT!Z73 -> 0 | AL73: 353 | AM73: =集計_INPUT!AA73 -> 0 | AN73: =集計_INPUT!AB73 -> 0 | AO73: =集計_INPUT!AC73 -> 0 | AP73: 0 | AQ73: 353 | AR73: =+#REF!*15.1 -> 
C74: HN8T | D74: 12200-HN8-F401-AA | G74: 569 | H74: =集計_INPUT!D74 -> 0 | I74: =集計_INPUT!E74 -> 0 | J74: =集計_INPUT!F74 -> 0 | K74: =集計_INPUT!G74 -> 0 | L74: =集計_INPUT!H74 -> 0 | M74: 0 | N74: =集計_INPUT!I74 -> 0 | O74: =集計_INPUT!J74 -> 0 | P74: =集計_INPUT!K74 -> 0 | Q74: =集計_INPUT!L74 -> 0 | R74: 0 | S74: =集計_INPUT!M74 -> 309 | T74: =集計_INPUT!N74 -> 0 | V74: 309 | W74: 309 | X74: =集計_INPUT!P74 -> 0 | Y74: =集計_INPUT!Q74 -> 0 | Z74: =集計_INPUT!R74 -> 0 | AB74: =SUM(X74:AA74) -> 0 | AC74: =集計_INPUT!T74 -> 0 | AD74: =集計_INPUT!U74 -> 0 | AF74: 0 | AG74: 0 | AH74: =集計_INPUT!W74 -> 0 | AI74: =集計_INPUT!X74 -> 0 | AJ74: =集計_INPUT!Y74 -> 260 | AK74: =集計_INPUT!Z74 -> 0 | AL74: =SUM(AH74:AK74) -> 260 | AM74: =集計_INPUT!AA74 -> 0 | AN74: =集計_INPUT!AB74 -> 0 | AO74: =集計_INPUT!AC74 -> 0 | AP74: =SUM(AM74:AO74) -> 0 | AQ74: 569 | AR74: =+#REF!*15.1 -> 
C75: KVZ | D75: 12201-KVZ-6300-AA | G75: 39 | H75: =集計_INPUT!D75 -> 0 | I75: =集計_INPUT!E75 -> 0 | J75: =集計_INPUT!F75 -> 0 | K75: =集計_INPUT!G75 -> 0 | L75: =集計_INPUT!H75 -> 0 | M75: 0 | N75: =集計_INPUT!I75 -> 0 | O75: =集計_INPUT!J75 -> 0 | P75: =集計_INPUT!K75 -> 0 | Q75: =集計_INPUT!L75 -> 0 | R75: 0 | S75: =集計_INPUT!M75 -> 0 | T75: =集計_INPUT!N75 -> 0 | V75: 0 | W75: 0 | X75: =集計_INPUT!P75 -> 0 | Y75: =集計_INPUT!Q75 -> 0 | Z75: =集計_INPUT!R75 -> 0 | AB75: 0 | AC75: =集計_INPUT!T75 -> 0 | AD75: =集計_INPUT!U75 -> 0 | AF75: 0 | AG75: 0 | AH75: =集計_INPUT!W75 -> 0 | AI75: =集計_INPUT!X75 -> 0 | AJ75: =集計_INPUT!Y75 -> 39 | AK75: =集計_INPUT!Z75 -> 0 | AL75: 39 | AM75: =集計_INPUT!AA75 -> 0 | AN75: =集計_INPUT!AB75 -> 0 | AO75: =集計_INPUT!AC75 -> 0 | AP75: 0 | AQ75: 39 | AR75: =+#REF!*15.1 -> 
C76: MCT | D76: 12201-MCT-3003-AA | G76: 203 | H76: =集計_INPUT!D76 -> 0 | I76: =集計_INPUT!E76 -> 0 | J76: =集計_INPUT!F76 -> 0 | K76: =集計_INPUT!G76 -> 0 | L76: =集計_INPUT!H76 -> 0 | M76: 0 | N76: =集計_INPUT!I76 -> 0 | O76: =集計_INPUT!J76 -> 0 | P76: =集計_INPUT!K76 -> 0 | Q76: =集計_INPUT!L76 -> 0 | R76: 0 | S76: =集計_INPUT!M76 -> 0 | T76: =集計_INPUT!N76 -> 0 | V76: 0 | W76: 0 | X76: =集計_INPUT!P76 -> 0 | Y76: =集計_INPUT!Q76 -> 0 | Z76: =集計_INPUT!R76 -> 0 | AB76: 0 | AC76: =集計_INPUT!T76 -> 0 | AD76: =集計_INPUT!U76 -> 0 | AF76: 0 | AG76: 0 | AH76: =集計_INPUT!W76 -> 0 | AI76: =集計_INPUT!X76 -> 0 | AJ76: =集計_INPUT!Y76 -> 203 | AK76: =集計_INPUT!Z76 -> 0 | AL76: 203 | AM76: =集計_INPUT!AA76 -> 0 | AN76: =集計_INPUT!AB76 -> 0 | AO76: =集計_INPUT!AC76 -> 0 | AP76: 0 | AQ76: 203 | AR76: =+#REF!*15.1 -> 
C77: MEF | D77: 12201-MEF-3000-AA | G77: 86 | H77: =集計_INPUT!D77 -> 0 | I77: =集計_INPUT!E77 -> 0 | J77: =集計_INPUT!F77 -> 0 | K77: =集計_INPUT!G77 -> 0 | L77: =集計_INPUT!H77 -> 0 | M77: 0 | N77: =集計_INPUT!I77 -> 0 | O77: =集計_INPUT!J77 -> 0 | P77: =集計_INPUT!K77 -> 0 | Q77: =集計_INPUT!L77 -> 0 | R77: 0 | S77: =集計_INPUT!M77 -> 0 | T77: =集計_INPUT!N77 -> 0 | V77: 0 | W77: 0 | X77: =集計_INPUT!P77 -> 0 | Y77: =集計_INPUT!Q77 -> 0 | Z77: =集計_INPUT!R77 -> 0 | AB77: 0 | AC77: =集計_INPUT!T77 -> 0 | AD77: =集計_INPUT!U77 -> 0 | AF77: 0 | AG77: 0 | AH77: =集計_INPUT!W77 -> 0 | AI77: =集計_INPUT!X77 -> 0 | AJ77: =集計_INPUT!Y77 -> 86 | AK77: =集計_INPUT!Z77 -> 0 | AL77: 86 | AM77: =集計_INPUT!AA77 -> 0 | AN77: =集計_INPUT!AB77 -> 0 | AO77: =集計_INPUT!AC77 -> 0 | AP77: 0 | AQ77: 86 | AR77: =+#REF!*15.1 -> 
C78: MBV | D78: 12200-MBV-0000-AA | G78: 0 | H78: =集計_INPUT!D78 -> 0 | I78: =集計_INPUT!E78 -> 0 | J78: =集計_INPUT!F78 -> 0 | K78: =集計_INPUT!G78 -> 0 | L78: =集計_INPUT!H78 -> 0 | M78: 0 | N78: =集計_INPUT!I78 -> 0 | O78: =集計_INPUT!J78 -> 0 | P78: =集計_INPUT!K78 -> 0 | Q78: =集計_INPUT!L78 -> 0 | R78: 0 | S78: =集計_INPUT!M78 -> 0 | T78: =集計_INPUT!N78 -> 0 | V78: 0 | W78: 0 | X78: =集計_INPUT!P78 -> 0 | Y78: =集計_INPUT!Q78 -> 0 | Z78: =集計_INPUT!R78 -> 0 | AB78: 0 | AC78: =集計_INPUT!T78 -> 0 | AD78: =集計_INPUT!U78 -> 0 | AF78: 0 | AG78: 0 | AH78: =集計_INPUT!W78 -> 0 | AI78: =集計_INPUT!X78 -> 0 | AJ78: =集計_INPUT!Y78 -> 0 | AK78: =集計_INPUT!Z78 -> 0 | AL78: 0 | AM78: =集計_INPUT!AA78 -> 0 | AN78: =集計_INPUT!AB78 -> 0 | AO78: =集計_INPUT!AC78 -> 0 | AP78: 0 | AQ78: 0 | AR78: =+#REF!*15.1 -> 
C79: HP7 | D79: 12200-HP7-B000-AA | G79: 4048 | H79: =集計_INPUT!D79 -> 0 | I79: =集計_INPUT!E79 -> 0 | J79: =集計_INPUT!F79 -> 0 | K79: =集計_INPUT!G79 -> 2708 | L79: =集計_INPUT!H79 -> 0 | M79: 2708 | N79: =集計_INPUT!I79 -> 0 | O79: =集計_INPUT!J79 -> 0 | P79: =集計_INPUT!K79 -> 0 | Q79: =集計_INPUT!L79 -> 0 | R79: 0 | S79: =集計_INPUT!M79 -> 938 | T79: =集計_INPUT!N79 -> 0 | V79: 938 | W79: 938 | X79: =集計_INPUT!P79 -> 0 | Y79: =集計_INPUT!Q79 -> 0 | Z79: =集計_INPUT!R79 -> 0 | AB79: 0 | AC79: =集計_INPUT!T79 -> 0 | AD79: =集計_INPUT!U79 -> 0 | AF79: 0 | AG79: 0 | AH79: =集計_INPUT!W79 -> 0 | AI79: =集計_INPUT!X79 -> 0 | AJ79: =集計_INPUT!Y79 -> 402 | AK79: =集計_INPUT!Z79 -> 0 | AL79: 402 | AM79: =集計_INPUT!AA79 -> 0 | AN79: =集計_INPUT!AB79 -> 0 | AO79: =集計_INPUT!AC79 -> 0 | AP79: 0 | AQ79: 4048 | AR79: =+#REF!*15.1 -> 
C80: HS0 | D80: 12200-HS0-B000-AA | G80: 3206 | H80: =集計_INPUT!D80 -> 0 | I80: =集計_INPUT!E80 -> 0 | J80: =集計_INPUT!F80 -> 0 | K80: =集計_INPUT!G80 -> 1558 | L80: =集計_INPUT!H80 -> 0 | M80: 1558 | N80: =集計_INPUT!I80 -> 751 | O80: =集計_INPUT!J80 -> 0 | P80: =集計_INPUT!K80 -> 0 | Q80: =集計_INPUT!L80 -> 0 | R80: 751 | S80: =集計_INPUT!M80 -> 0 | T80: =集計_INPUT!N80 -> 0 | V80: 0 | W80: 751 | X80: =集計_INPUT!P80 -> 0 | Y80: =集計_INPUT!Q80 -> 0 | Z80: =集計_INPUT!R80 -> 0 | AB80: 0 | AC80: =集計_INPUT!T80 -> 0 | AD80: =集計_INPUT!U80 -> 0 | AF80: 0 | AG80: 0 | AH80: =集計_INPUT!W80 -> 0 | AI80: =集計_INPUT!X80 -> 0 | AJ80: =集計_INPUT!Y80 -> 897 | AK80: =集計_INPUT!Z80 -> 0 | AL80: 897 | AM80: =集計_INPUT!AA80 -> 0 | AN80: =集計_INPUT!AB80 -> 0 | AO80: =集計_INPUT!AC80 -> 0 | AP80: 0 | AQ80: 3206 | AR80: =+#REF!*15.1 -> 
C81: HR6 | D81: 12200-HR6-B000-AA | G81: 4118 | H81: =集計_INPUT!D81 -> 0 | I81: =集計_INPUT!E81 -> 0 | J81: =集計_INPUT!F81 -> 0 | K81: =集計_INPUT!G81 -> 690 | L81: =集計_INPUT!H81 -> 0 | M81: 690 | N81: =集計_INPUT!I81 -> 949 | O81: =集計_INPUT!J81 -> 0 | P81: =集計_INPUT!K81 -> 0 | Q81: =集計_INPUT!L81 -> 0 | R81: 949 | S81: =集計_INPUT!M81 -> 1569 | T81: =集計_INPUT!N81 -> 0 | V81: 1569 | W81: 2518 | X81: =集計_INPUT!P81 -> 0 | Y81: =集計_INPUT!Q81 -> 0 | Z81: =集計_INPUT!R81 -> 0 | AB81: 0 | AC81: =集計_INPUT!T81 -> 0 | AD81: =集計_INPUT!U81 -> 0 | AF81: 0 | AG81: 0 | AH81: =集計_INPUT!W81 -> 0 | AI81: =集計_INPUT!X81 -> 0 | AJ81: =集計_INPUT!Y81 -> 910 | AK81: =集計_INPUT!Z81 -> 0 | AL81: 910 | AM81: =集計_INPUT!AA81 -> 0 | AN81: =集計_INPUT!AB81 -> 0 | AO81: =集計_INPUT!AC81 -> 0 | AP81: 0 | AQ81: 4118 | AR81: =+#REF!*15.1 -> 
C82: GET | D82: 12200-GET-0001-AA | G82: 3606 | H82: =集計_INPUT!D82 -> 0 | I82: =集計_INPUT!E82 -> 0 | J82: =集計_INPUT!F82 -> 0 | K82: =集計_INPUT!G82 -> 0 | L82: =集計_INPUT!H82 -> 0 | M82: 0 | N82: =集計_INPUT!I82 -> 0 | O82: =集計_INPUT!J82 -> 0 | P82: =集計_INPUT!K82 -> 0 | Q82: =集計_INPUT!L82 -> 0 | R82: 0 | S82: =集計_INPUT!M82 -> 2949 | T82: =集計_INPUT!N82 -> 0 | V82: 2949 | W82: 2949 | X82: =集計_INPUT!P82 -> 0 | Y82: =集計_INPUT!Q82 -> 0 | Z82: =集計_INPUT!R82 -> 0 | AB82: 0 | AC82: =集計_INPUT!T82 -> 0 | AD82: =集計_INPUT!U82 -> 0 | AF82: 0 | AG82: 0 | AH82: =集計_INPUT!W82 -> 0 | AI82: =集計_INPUT!X82 -> 0 | AJ82: =集計_INPUT!Y82 -> 657 | AK82: =集計_INPUT!Z82 -> 0 | AL82: 657 | AM82: =集計_INPUT!AA82 -> 0 | AN82: =集計_INPUT!AB82 -> 0 | AO82: =集計_INPUT!AC82 -> 0 | AP82: 0 | AQ82: 3606 | AR82: =+#REF!*15.1 -> 
C83: GETY | D83: 12200-GET-K400-AA | G83: 595 | H83: =集計_INPUT!D83 -> 0 | I83: =集計_INPUT!E83 -> 0 | J83: =集計_INPUT!F83 -> 0 | K83: =集計_INPUT!G83 -> 0 | L83: =集計_INPUT!H83 -> 0 | M83: 0 | N83: =集計_INPUT!I83 -> 0 | O83: =集計_INPUT!J83 -> 0 | P83: =集計_INPUT!K83 -> 0 | Q83: =集計_INPUT!L83 -> 0 | R83: 0 | S83: =集計_INPUT!M83 -> 0 | T83: =集計_INPUT!N83 -> 0 | V83: 0 | W83: 0 | X83: =集計_INPUT!P83 -> 0 | Y83: =集計_INPUT!Q83 -> 0 | Z83: =集計_INPUT!R83 -> 0 | AB83: 0 | AC83: =集計_INPUT!T83 -> 0 | AD83: =集計_INPUT!U83 -> 0 | AF83: 0 | AG83: 0 | AH83: =集計_INPUT!W83 -> 0 | AI83: =集計_INPUT!X83 -> 0 | AJ83: =集計_INPUT!Y83 -> 595 | AK83: =集計_INPUT!Z83 -> 0 | AL83: 595 | AM83: =集計_INPUT!AA83 -> 0 | AN83: =集計_INPUT!AB83 -> 0 | AO83: =集計_INPUT!AC83 -> 0 | AP83: 0 | AQ83: 595 | AR83: =+#REF!*15.1 -> 
C84: GFZ | D84: 12200-GFZ-0000-AA | G84: =+AQ84+F84-E84 -> 1529 | H84: =集計_INPUT!D84 -> 0 | I84: =集計_INPUT!E84 -> 0 | J84: =集計_INPUT!F84 -> 0 | K84: =集計_INPUT!G84 -> 210 | L84: =集計_INPUT!H84 -> 0 | M84: 210 | N84: =集計_INPUT!I84 -> 2 | O84: =集計_INPUT!J84 -> 0 | P84: =集計_INPUT!K84 -> 0 | Q84: =集計_INPUT!L84 -> 0 | R84: 2 | S84: =集計_INPUT!M84 -> 1007 | T84: =集計_INPUT!N84 -> 0 | V84: =SUM(S84:U84) -> 1007 | W84: =R84+V84 -> 1009 | X84: =集計_INPUT!P84 -> 0 | Y84: =集計_INPUT!Q84 -> 0 | Z84: =集計_INPUT!R84 -> 0 | AB84: 0 | AC84: =集計_INPUT!T84 -> 0 | AD84: =集計_INPUT!U84 -> 0 | AF84: =SUM(AC84:AE84) -> 0 | AG84: =AB84+AF84 -> 0 | AH84: =集計_INPUT!W84 -> 0 | AI84: =集計_INPUT!X84 -> 0 | AJ84: =集計_INPUT!Y84 -> 310 | AK84: =集計_INPUT!Z84 -> 0 | AL84: 310 | AM84: =集計_INPUT!AA84 -> 0 | AN84: =集計_INPUT!AB84 -> 0 | AO84: =集計_INPUT!AC84 -> 0 | AP84: 0 | AQ84: =M84+W84+AG84+AL84+AP84 -> 1529 | AR84: =+#REF!*15.1 -> 
C85: GEV | D85: 12200-GEV-7601-AA | G85: 187 | H85: =集計_INPUT!D85 -> 0 | I85: =集計_INPUT!E85 -> 0 | J85: =集計_INPUT!F85 -> 0 | K85: =集計_INPUT!G85 -> 0 | L85: =集計_INPUT!H85 -> 0 | M85: 0 | N85: =集計_INPUT!I85 -> 0 | O85: =集計_INPUT!J85 -> 0 | P85: =集計_INPUT!K85 -> 0 | Q85: =集計_INPUT!L85 -> 0 | R85: 0 | S85: =集計_INPUT!M85 -> 0 | T85: =集計_INPUT!N85 -> 0 | V85: 0 | W85: 0 | X85: =集計_INPUT!P85 -> 0 | Y85: =集計_INPUT!Q85 -> 0 | Z85: =集計_INPUT!R85 -> 0 | AB85: 0 | AC85: =集計_INPUT!T85 -> 0 | AD85: =集計_INPUT!U85 -> 0 | AF85: 0 | AG85: 0 | AH85: =集計_INPUT!W85 -> 0 | AI85: =集計_INPUT!X85 -> 0 | AJ85: =集計_INPUT!Y85 -> 187 | AK85: =集計_INPUT!Z85 -> 0 | AL85: 187 | AM85: =集計_INPUT!AA85 -> 0 | AN85: =集計_INPUT!AB85 -> 0 | AO85: =集計_INPUT!AC85 -> 0 | AP85: 0 | AQ85: 187 | AR85: =+#REF!*15.1 -> 
C86: KSEc | D86: 12100-KSE-6720-AD | G86: 831 | H86: =集計_INPUT!D86 -> 0 | I86: =集計_INPUT!E86 -> 0 | J86: =集計_INPUT!F86 -> 0 | K86: =集計_INPUT!G86 -> 668 | L86: =集計_INPUT!H86 -> 0 | M86: 668 | N86: =集計_INPUT!I86 -> 0 | O86: =集計_INPUT!J86 -> 0 | P86: =集計_INPUT!K86 -> 0 | Q86: =集計_INPUT!L86 -> 0 | R86: 0 | S86: =集計_INPUT!M86 -> 120 | T86: =集計_INPUT!N86 -> 0 | V86: 120 | W86: 120 | X86: =集計_INPUT!P86 -> 0 | Y86: =集計_INPUT!Q86 -> 0 | Z86: =集計_INPUT!R86 -> 0 | AB86: 0 | AC86: =集計_INPUT!T86 -> 0 | AD86: =集計_INPUT!U86 -> 0 | AF86: 0 | AG86: 0 | AH86: =集計_INPUT!W86 -> 0 | AI86: =集計_INPUT!X86 -> 0 | AJ86: =集計_INPUT!Y86 -> 0 | AK86: =集計_INPUT!Z86 -> 43 | AL86: 43 | AM86: =集計_INPUT!AA86 -> 0 | AN86: =集計_INPUT!AB86 -> 0 | AO86: =集計_INPUT!AC86 -> 0 | AP86: 0 | AQ86: 831 | AR86: =+#REF!*15.1 ->  | AS86: =+AQ86-AR86 -> 
C87: KRNc | D87: 12100-KRN-A601-AA-01 | G87: 685 | H87: =集計_INPUT!D87 -> 0 | I87: =集計_INPUT!E87 -> 0 | J87: =集計_INPUT!F87 -> 0 | K87: =集計_INPUT!G87 -> 588 | L87: =集計_INPUT!H87 -> 0 | M87: 588 | N87: =集計_INPUT!I87 -> 0 | O87: =集計_INPUT!J87 -> 0 | P87: =集計_INPUT!K87 -> 0 | Q87: =集計_INPUT!L87 -> 0 | R87: 0 | S87: =集計_INPUT!M87 -> 0 | T87: =集計_INPUT!N87 -> 0 | V87: 0 | W87: 0 | X87: =集計_INPUT!P87 -> 0 | Y87: =集計_INPUT!Q87 -> 0 | Z87: =集計_INPUT!R87 -> 0 | AB87: 0 | AC87: =集計_INPUT!T87 -> 0 | AD87: =集計_INPUT!U87 -> 0 | AF87: 0 | AG87: 0 | AH87: =集計_INPUT!W87 -> 0 | AI87: =集計_INPUT!X87 -> 0 | AJ87: =集計_INPUT!Y87 -> 0 | AK87: =集計_INPUT!Z87 -> 97 | AL87: 97 | AM87: =集計_INPUT!AA87 -> 0 | AN87: =集計_INPUT!AB87 -> 0 | AO87: =集計_INPUT!AC87 -> 0 | AP87: 0 | AQ87: 685 | AR87: =+#REF!*15.1 ->  | AS87: =+AQ87-AR87 -> 
C88: KSCc | D88: 12100-KRN-7300-AD | G88: 67 | H88: =集計_INPUT!D88 -> 0 | I88: =集計_INPUT!E88 -> 0 | J88: =集計_INPUT!F88 -> 0 | K88: =集計_INPUT!G88 -> 0 | L88: =集計_INPUT!H88 -> 0 | M88: 0 | N88: =集計_INPUT!I88 -> 0 | O88: =集計_INPUT!J88 -> 0 | P88: =集計_INPUT!K88 -> 0 | Q88: =集計_INPUT!L88 -> 0 | R88: 0 | S88: =集計_INPUT!M88 -> 0 | T88: =集計_INPUT!N88 -> 0 | V88: 0 | W88: 0 | X88: =集計_INPUT!P88 -> 0 | Y88: =集計_INPUT!Q88 -> 0 | Z88: =集計_INPUT!R88 -> 0 | AB88: 0 | AC88: =集計_INPUT!T88 -> 0 | AD88: =集計_INPUT!U88 -> 0 | AF88: 0 | AG88: 0 | AH88: =集計_INPUT!W88 -> 0 | AI88: =集計_INPUT!X88 -> 0 | AJ88: =集計_INPUT!Y88 -> 0 | AK88: =集計_INPUT!Z88 -> 67 | AL88: 67 | AM88: =集計_INPUT!AA88 -> 0 | AN88: =集計_INPUT!AB88 -> 0 | AO88: =集計_INPUT!AC88 -> 0 | AP88: 0 | AQ88: 67 | AR88: =+#REF!*15.1 -> 
C89: MEYc | D89: 12100-MEY-6700-AD | G89: 282 | H89: =集計_INPUT!D89 -> 0 | I89: =集計_INPUT!E89 -> 0 | J89: =集計_INPUT!F89 -> 0 | K89: =集計_INPUT!G89 -> 0 | L89: =集計_INPUT!H89 -> 0 | M89: 0 | N89: =集計_INPUT!I89 -> 0 | O89: =集計_INPUT!J89 -> 0 | P89: =集計_INPUT!K89 -> 0 | Q89: =集計_INPUT!L89 -> 0 | R89: 0 | S89: =集計_INPUT!M89 -> 108 | T89: =集計_INPUT!N89 -> 0 | V89: 108 | W89: 108 | X89: =集計_INPUT!P89 -> 0 | Y89: =集計_INPUT!Q89 -> 0 | Z89: =集計_INPUT!R89 -> 0 | AB89: 0 | AC89: =集計_INPUT!T89 -> 0 | AD89: =集計_INPUT!U89 -> 0 | AF89: 0 | AG89: 0 | AH89: =集計_INPUT!W89 -> 0 | AI89: =集計_INPUT!X89 -> 0 | AJ89: =集計_INPUT!Y89 -> 0 | AK89: =集計_INPUT!Z89 -> 174 | AL89: 174 | AM89: =集計_INPUT!AA89 -> 0 | AN89: =集計_INPUT!AB89 -> 0 | AO89: =集計_INPUT!AC89 -> 0 | AP89: 0 | AQ89: 282 | AR89: =+#REF!*15.1 -> 
C90: HP1c | D90: 12100-HP1-6000-AD | G90: 327 | H90: =集計_INPUT!D90 -> 0 | I90: =集計_INPUT!E90 -> 0 | J90: =集計_INPUT!F90 -> 0 | K90: =集計_INPUT!G90 -> 0 | L90: =集計_INPUT!H90 -> 0 | M90: 0 | N90: =集計_INPUT!I90 -> 0 | O90: =集計_INPUT!J90 -> 0 | P90: =集計_INPUT!K90 -> 0 | Q90: =集計_INPUT!L90 -> 0 | R90: 0 | S90: =集計_INPUT!M90 -> 300 | T90: =集計_INPUT!N90 -> 0 | V90: 300 | W90: 300 | X90: =集計_INPUT!P90 -> 0 | Y90: =集計_INPUT!Q90 -> 0 | Z90: =集計_INPUT!R90 -> 0 | AB90: 0 | AC90: =集計_INPUT!T90 -> 0 | AD90: =集計_INPUT!U90 -> 0 | AF90: 0 | AG90: 0 | AH90: =集計_INPUT!W90 -> 0 | AI90: =集計_INPUT!X90 -> 0 | AJ90: =集計_INPUT!Y90 -> 0 | AK90: =集計_INPUT!Z90 -> 27 | AL90: 27 | AM90: =集計_INPUT!AA90 -> 0 | AN90: =集計_INPUT!AB90 -> 0 | AO90: =集計_INPUT!AC90 -> 0 | AP90: 0 | AQ90: 327 | AR90: =+#REF!*15.1 -> 
C91: MENc | D91: 12100-MEN-A501-AD-01 | G91: 476 | H91: =集計_INPUT!D91 -> 0 | I91: =集計_INPUT!E91 -> 0 | J91: =集計_INPUT!F91 -> 0 | K91: =集計_INPUT!G91 -> 0 | L91: =集計_INPUT!H91 -> 0 | M91: 0 | N91: =集計_INPUT!I91 -> 0 | O91: =集計_INPUT!J91 -> 0 | P91: =集計_INPUT!K91 -> 0 | Q91: =集計_INPUT!L91 -> 0 | R91: 0 | S91: =集計_INPUT!M91 -> 356 | T91: =集計_INPUT!N91 -> 0 | V91: 356 | W91: 356 | X91: =集計_INPUT!P91 -> 0 | Y91: =集計_INPUT!Q91 -> 0 | Z91: =集計_INPUT!R91 -> 0 | AB91: 0 | AC91: =集計_INPUT!T91 -> 0 | AD91: =集計_INPUT!U91 -> 0 | AF91: 0 | AG91: 0 | AH91: =集計_INPUT!W91 -> 0 | AI91: =集計_INPUT!X91 -> 0 | AJ91: =集計_INPUT!Y91 -> 32 | AK91: =集計_INPUT!Z91 -> 88 | AL91: 120 | AM91: =集計_INPUT!AA91 -> 0 | AN91: =集計_INPUT!AB91 -> 0 | AO91: =集計_INPUT!AC91 -> 0 | AP91: 0 | AQ91: 476 | AR91: =+#REF!*15.1 -> 
C92: K95c | D92: 12100-K95-A000-AD-01 | G92: 6395 | H92: =集計_INPUT!D92 -> 0 | I92: =集計_INPUT!E92 -> 0 | J92: =集計_INPUT!F92 -> 0 | K92: =集計_INPUT!G92 -> 5727 | L92: =集計_INPUT!H92 -> 0 | M92: 5727 | N92: =集計_INPUT!I92 -> 16 | O92: =集計_INPUT!J92 -> 0 | P92: =集計_INPUT!K92 -> 0 | Q92: =集計_INPUT!L92 -> 0 | R92: 16 | S92: =集計_INPUT!M92 -> 0 | T92: =集計_INPUT!N92 -> 0 | V92: 0 | W92: 16 | X92: =集計_INPUT!P92 -> 0 | Y92: =集計_INPUT!Q92 -> 0 | Z92: =集計_INPUT!R92 -> 0 | AB92: 0 | AC92: =集計_INPUT!T92 -> 0 | AD92: =集計_INPUT!U92 -> 0 | AF92: 0 | AG92: 0 | AH92: =集計_INPUT!W92 -> 0 | AI92: =集計_INPUT!X92 -> 0 | AJ92: =集計_INPUT!Y92 -> 0 | AK92: =集計_INPUT!Z92 -> 652 | AL92: 652 | AM92: =集計_INPUT!AA92 -> 0 | AN92: =集計_INPUT!AB92 -> 0 | AO92: =集計_INPUT!AC92 -> 0 | AP92: 0 | AQ92: 6395 | AR92: =+#REF!*15.1 -> 
C93: MKEc | D93: 12100-MKE-A000-AD-01 | G93: 2209 | H93: =集計_INPUT!D93 -> 0 | I93: =集計_INPUT!E93 -> 0 | J93: =集計_INPUT!F93 -> 0 | K93: =集計_INPUT!G93 -> 1151 | L93: =集計_INPUT!H93 -> 0 | M93: 1151 | N93: =集計_INPUT!I93 -> 0 | O93: =集計_INPUT!J93 -> 0 | P93: =集計_INPUT!K93 -> 0 | Q93: =集計_INPUT!L93 -> 0 | R93: 0 | S93: =集計_INPUT!M93 -> 758 | T93: =集計_INPUT!N93 -> 0 | V93: 758 | W93: 758 | X93: =集計_INPUT!P93 -> 0 | Y93: =集計_INPUT!Q93 -> 0 | Z93: =集計_INPUT!R93 -> 0 | AB93: 0 | AC93: =集計_INPUT!T93 -> 0 | AD93: =集計_INPUT!U93 -> 0 | AF93: 0 | AG93: 0 | AH93: =集計_INPUT!W93 -> 0 | AI93: =集計_INPUT!X93 -> 0 | AJ93: =集計_INPUT!Y93 -> 0 | AK93: =集計_INPUT!Z93 -> 300 | AL93: 300 | AM93: =集計_INPUT!AA93 -> 0 | AN93: =集計_INPUT!AB93 -> 0 | AO93: =集計_INPUT!AC93 -> 0 | AP93: 0 | AQ93: 2209 | AR93: =+#REF!*15.1 -> 
C94: KCM | D94: 12200-KCM-0002-AA | G94: 5 | H94: =集計_INPUT!D94 -> 0 | I94: =集計_INPUT!E94 -> 0 | J94: =集計_INPUT!F94 -> 0 | K94: =集計_INPUT!G94 -> 0 | L94: =集計_INPUT!H94 -> 0 | M94: 0 | N94: =集計_INPUT!I94 -> 0 | O94: =集計_INPUT!J94 -> 0 | P94: =集計_INPUT!K94 -> 0 | Q94: =集計_INPUT!L94 -> 0 | R94: 0 | S94: =集計_INPUT!M94 -> 0 | T94: =集計_INPUT!N94 -> 0 | V94: 0 | W94: 0 | X94: =集計_INPUT!P94 -> 0 | Y94: =集計_INPUT!Q94 -> 0 | Z94: =集計_INPUT!R94 -> 0 | AB94: 0 | AC94: =集計_INPUT!T94 -> 0 | AD94: =集計_INPUT!U94 -> 0 | AF94: 0 | AG94: 0 | AH94: =集計_INPUT!W94 -> 0 | AI94: =集計_INPUT!X94 -> 0 | AJ94: =集計_INPUT!Y94 -> 0 | AK94: =集計_INPUT!Z94 -> 5 | AL94: 5 | AM94: =集計_INPUT!AA94 -> 0 | AN94: =集計_INPUT!AB94 -> 0 | AO94: =集計_INPUT!AC94 -> 0 | AP94: 0 | AQ94: 5 | AR94: =+#REF!*15.1 -> 
C95: MKERc | D95: 12100-MKE-B500-AD | G95: 3659 | H95: =集計_INPUT!D95 -> 0 | I95: =集計_INPUT!E95 -> 0 | J95: =集計_INPUT!F95 -> 725 | K95: =集計_INPUT!G95 -> 788 | L95: =集計_INPUT!H95 -> 0 | M95: 1513 | N95: =集計_INPUT!I95 -> 722 | O95: =集計_INPUT!J95 -> 0 | P95: =集計_INPUT!K95 -> 0 | Q95: =集計_INPUT!L95 -> 0 | R95: 722 | S95: =集計_INPUT!M95 -> 62 | T95: =集計_INPUT!N95 -> 0 | V95: 62 | W95: 784 | X95: =集計_INPUT!P95 -> 0 | Y95: =集計_INPUT!Q95 -> 0 | Z95: =集計_INPUT!R95 -> 0 | AB95: 0 | AC95: =集計_INPUT!T95 -> 0 | AD95: =集計_INPUT!U95 -> 0 | AF95: 0 | AG95: 0 | AH95: =集計_INPUT!W95 -> 0 | AI95: =集計_INPUT!X95 -> 0 | AJ95: =集計_INPUT!Y95 -> 35 | AK95: =集計_INPUT!Z95 -> 1327 | AL95: 1362 | AM95: =集計_INPUT!AA95 -> 0 | AN95: =集計_INPUT!AB95 -> 0 | AO95: =集計_INPUT!AC95 -> 0 | AP95: 0 | AQ95: 3659 | AR95: =+#REF!*15.1 -> 
C96: MKER | D96: 12201-MKE-B500-AA | G96: 2541 | H96: =集計_INPUT!D96 -> 0 | I96: =集計_INPUT!E96 -> 0 | J96: =集計_INPUT!F96 -> 0 | K96: =集計_INPUT!G96 -> 25 | L96: =集計_INPUT!H96 -> 0 | M96: 25 | N96: =集計_INPUT!I96 -> 504 | O96: =集計_INPUT!J96 -> 0 | P96: =集計_INPUT!K96 -> 0 | Q96: =集計_INPUT!L96 -> 0 | R96: 504 | S96: =集計_INPUT!M96 -> 1169 | T96: =集計_INPUT!N96 -> 0 | V96: 1169 | W96: 1673 | X96: =集計_INPUT!P96 -> 0 | Y96: =集計_INPUT!Q96 -> 0 | Z96: =集計_INPUT!R96 -> 0 | AB96: 0 | AC96: =集計_INPUT!T96 -> 0 | AD96: =集計_INPUT!U96 -> 0 | AF96: 0 | AG96: 0 | AH96: =集計_INPUT!W96 -> 0 | AI96: =集計_INPUT!X96 -> 0 | AJ96: =集計_INPUT!Y96 -> 737 | AK96: =集計_INPUT!Z96 -> 106 | AL96: 843 | AM96: =集計_INPUT!AA96 -> 0 | AN96: =集計_INPUT!AB96 -> 0 | AO96: =集計_INPUT!AC96 -> 0 | AP96: 0 | AQ96: 2541 | AR96: =+#REF!*15.1 -> 
G97: 0 | H97: =集計_INPUT!D97 -> 0 | I97: =集計_INPUT!E97 -> 0 | J97: =集計_INPUT!F97 -> 0 | K97: =集計_INPUT!G97 -> 0 | L97: =集計_INPUT!H97 -> 0 | M97: 0 | N97: =集計_INPUT!I97 -> 0 | O97: =集計_INPUT!J97 -> 0 | P97: =集計_INPUT!K97 -> 0 | Q97: =集計_INPUT!L97 -> 0 | R97: 0 | S97: =集計_INPUT!M97 -> 0 | T97: =集計_INPUT!N97 -> 0 | V97: 0 | W97: 0 | X97: =集計_INPUT!P97 -> 0 | Y97: =集計_INPUT!Q97 -> 0 | Z97: =集計_INPUT!R97 -> 0 | AB97: 0 | AC97: =集計_INPUT!T97 -> 0 | AD97: =集計_INPUT!U97 -> 0 | AF97: 0 | AG97: 0 | AH97: =集計_INPUT!W97 -> 0 | AI97: =集計_INPUT!X97 -> 0 | AJ97: =集計_INPUT!Y97 -> 0 | AK97: =集計_INPUT!Z97 -> 0 | AL97: 0 | AM97: =集計_INPUT!AA97 -> 0 | AN97: =集計_INPUT!AB97 -> 0 | AO97: =集計_INPUT!AC97 -> 0 | AP97: 0 | AQ97: 0 | AR97: =+#REF!*15.1 -> 
G98: 0 | H98: =集計_INPUT!D98 -> 0 | I98: =集計_INPUT!E98 -> 0 | J98: =集計_INPUT!F98 -> 0 | K98: =集計_INPUT!G98 -> 0 | L98: =集計_INPUT!H98 -> 0 | M98: 0 | N98: =集計_INPUT!I98 -> 0 | O98: =集計_INPUT!J98 -> 0 | P98: =集計_INPUT!K98 -> 0 | Q98: =集計_INPUT!L98 -> 0 | R98: 0 | S98: =集計_INPUT!M98 -> 0 | T98: =集計_INPUT!N98 -> 0 | V98: 0 | W98: 0 | X98: =集計_INPUT!P98 -> 0 | Y98: =集計_INPUT!Q98 -> 0 | Z98: =集計_INPUT!R98 -> 0 | AB98: 0 | AC98: =集計_INPUT!T98 -> 0 | AD98: =集計_INPUT!U98 -> 0 | AF98: 0 | AG98: 0 | AH98: =集計_INPUT!W98 -> 0 | AI98: =集計_INPUT!X98 -> 0 | AJ98: =集計_INPUT!Y98 -> 0 | AK98: =集計_INPUT!Z98 -> 0 | AL98: 0 | AM98: =集計_INPUT!AA98 -> 0 | AN98: =集計_INPUT!AB98 -> 0 | AO98: =集計_INPUT!AC98 -> 0 | AP98: 0 | AQ98: 0 | AR98: =+#REF!*15.1 -> 
C99: 152 | D99: 12200-152-0003-XA | G99: 1189 | H99: =集計_INPUT!D99 -> 0 | I99: =集計_INPUT!E99 -> 0 | J99: =集計_INPUT!F99 -> 0 | K99: =集計_INPUT!G99 -> 0 | L99: =集計_INPUT!H99 -> 0 | M99: 0 | N99: =集計_INPUT!I99 -> 0 | O99: =集計_INPUT!J99 -> 0 | P99: =集計_INPUT!K99 -> 0 | Q99: =集計_INPUT!L99 -> 0 | R99: 0 | S99: =集計_INPUT!M99 -> 1139 | T99: =集計_INPUT!N99 -> 0 | V99: 1139 | W99: 1139 | X99: =集計_INPUT!P99 -> 0 | Y99: =集計_INPUT!Q99 -> 0 | Z99: =集計_INPUT!R99 -> 0 | AB99: 0 | AC99: =集計_INPUT!T99 -> 0 | AD99: =集計_INPUT!U99 -> 0 | AF99: 0 | AG99: 0 | AH99: =集計_INPUT!W99 -> 0 | AI99: =集計_INPUT!X99 -> 0 | AJ99: =集計_INPUT!Y99 -> 0 | AK99: =集計_INPUT!Z99 -> 50 | AL99: 50 | AM99: =集計_INPUT!AA99 -> 0 | AN99: =集計_INPUT!AB99 -> 0 | AO99: =集計_INPUT!AC99 -> 0 | AP99: 0 | AQ99: 1189 | AR99: =+#REF!*15.1 ->  | AS99: =+AQ99-AR99 -> 
C100: KA8 | D100: 12200-KA8-0003-XA | G100: 632 | H100: =集計_INPUT!D100 -> 0 | I100: =集計_INPUT!E100 -> 0 | J100: =集計_INPUT!F100 -> 0 | K100: =集計_INPUT!G100 -> 0 | L100: =集計_INPUT!H100 -> 0 | M100: 0 | N100: =集計_INPUT!I100 -> 47 | O100: =集計_INPUT!J100 -> 0 | P100: =集計_INPUT!K100 -> 0 | Q100: =集計_INPUT!L100 -> 0 | R100: 47 | S100: =集計_INPUT!M100 -> 386 | T100: =集計_INPUT!N100 -> 0 | V100: 386 | W100: 433 | X100: =集計_INPUT!P100 -> 0 | Y100: =集計_INPUT!Q100 -> 0 | Z100: =集計_INPUT!R100 -> 0 | AB100: 0 | AC100: =集計_INPUT!T100 -> 0 | AD100: =集計_INPUT!U100 -> 0 | AF100: 0 | AG100: 0 | AH100: =集計_INPUT!W100 -> 0 | AI100: =集計_INPUT!X100 -> 0 | AJ100: =集計_INPUT!Y100 -> 0 | AK100: =集計_INPUT!Z100 -> 199 | AL100: 199 | AM100: =集計_INPUT!AA100 -> 0 | AN100: =集計_INPUT!AB100 -> 0 | AO100: =集計_INPUT!AC100 -> 0 | AP100: 0 | AQ100: 632 | AR100: =+#REF!*15.1 ->  | AS100: =+AQ100-AR100 -> 
C101: GEYL | D101: 12200-GEY-6400-AA | G101: 388 | H101: =集計_INPUT!D101 -> 0 | I101: =集計_INPUT!E101 -> 0 | J101: =集計_INPUT!F101 -> 0 | K101: =集計_INPUT!G101 -> 0 | L101: =集計_INPUT!H101 -> 0 | M101: 0 | N101: =集計_INPUT!I101 -> 0 | O101: =集計_INPUT!J101 -> 0 | P101: =集計_INPUT!K101 -> 0 | Q101: =集計_INPUT!L101 -> 0 | R101: 0 | S101: =集計_INPUT!M101 -> 0 | T101: =集計_INPUT!N101 -> 0 | V101: 0 | W101: 0 | X101: =集計_INPUT!P101 -> 0 | Y101: =集計_INPUT!Q101 -> 0 | Z101: =集計_INPUT!R101 -> 0 | AB101: 0 | AC101: =集計_INPUT!T101 -> 0 | AD101: =集計_INPUT!U101 -> 0 | AF101: 0 | AG101: 0 | AH101: =集計_INPUT!W101 -> 0 | AI101: =集計_INPUT!X101 -> 0 | AJ101: =集計_INPUT!Y101 -> 0 | AK101: =集計_INPUT!Z101 -> 95 | AL101: 95 | AM101: =集計_INPUT!AA101 -> 0 | AN101: =集計_INPUT!AB101 -> 293 | AO101: =集計_INPUT!AC101 -> 0 | AP101: 293 | AQ101: 388 | AR101: =+#REF!*15.1 -> 
C102: MCG | D102: 12200-MCG-0002-AA | G102: 35 | H102: =集計_INPUT!D102 -> 0 | I102: =集計_INPUT!E102 -> 0 | J102: =集計_INPUT!F102 -> 0 | K102: =集計_INPUT!G102 -> 0 | L102: =集計_INPUT!H102 -> 0 | M102: 0 | N102: =集計_INPUT!I102 -> 0 | O102: =集計_INPUT!J102 -> 0 | P102: =集計_INPUT!K102 -> 0 | Q102: =集計_INPUT!L102 -> 0 | R102: 0 | S102: =集計_INPUT!M102 -> 29 | T102: =集計_INPUT!N102 -> 0 | V102: 29 | W102: 29 | X102: =集計_INPUT!P102 -> 0 | Y102: =集計_INPUT!Q102 -> 0 | Z102: =集計_INPUT!R102 -> 0 | AB102: 0 | AC102: =集計_INPUT!T102 -> 0 | AD102: =集計_INPUT!U102 -> 0 | AF102: 0 | AG102: 0 | AH102: =集計_INPUT!W102 -> 0 | AI102: =集計_INPUT!X102 -> 0 | AJ102: =集計_INPUT!Y102 -> 0 | AK102: =集計_INPUT!Z102 -> 6 | AL102: 6 | AM102: =集計_INPUT!AA102 -> 0 | AN102: =集計_INPUT!AB102 -> 0 | AO102: =集計_INPUT!AC102 -> 0 | AP102: 0 | AQ102: 35 | AR102: =+#REF!*15.1 -> 
C103: MCGP | D103: 12200-MCG-6000-AA | G103: 114 | H103: =集計_INPUT!D103 -> 0 | I103: =集計_INPUT!E103 -> 0 | J103: =集計_INPUT!F103 -> 0 | K103: =集計_INPUT!G103 -> 48 | L103: =集計_INPUT!H103 -> 0 | M103: 48 | N103: =集計_INPUT!I103 -> 0 | O103: =集計_INPUT!J103 -> 0 | P103: =集計_INPUT!K103 -> 0 | Q103: =集計_INPUT!L103 -> 0 | R103: 0 | S103: =集計_INPUT!M103 -> 66 | T103: =集計_INPUT!N103 -> 0 | V103: 66 | W103: 66 | X103: =集計_INPUT!P103 -> 0 | Y103: =集計_INPUT!Q103 -> 0 | Z103: =集計_INPUT!R103 -> 0 | AB103: 0 | AC103: =集計_INPUT!T103 -> 0 | AD103: =集計_INPUT!U103 -> 0 | AF103: 0 | AG103: 0 | AH103: =集計_INPUT!W103 -> 0 | AI103: =集計_INPUT!X103 -> 0 | AJ103: =集計_INPUT!Y103 -> 0 | AK103: =集計_INPUT!Z103 -> 0 | AL103: 0 | AM103: =集計_INPUT!AA103 -> 0 | AN103: =集計_INPUT!AB103 -> 0 | AO103: =集計_INPUT!AC103 -> 0 | AP103: 0 | AQ103: 114 | AR103: =+#REF!*15.1 -> 
C104: KCY | D104: 12200-KCY-6700-AA | G104: 75 | H104: =集計_INPUT!D104 -> 0 | I104: =集計_INPUT!E104 -> 0 | J104: =集計_INPUT!F104 -> 0 | K104: =集計_INPUT!G104 -> 0 | L104: =集計_INPUT!H104 -> 0 | M104: 0 | N104: =集計_INPUT!I104 -> 0 | O104: =集計_INPUT!J104 -> 0 | P104: =集計_INPUT!K104 -> 0 | Q104: =集計_INPUT!L104 -> 0 | R104: 0 | S104: =集計_INPUT!M104 -> 0 | T104: =集計_INPUT!N104 -> 0 | V104: 0 | W104: 0 | X104: =集計_INPUT!P104 -> 0 | Y104: =集計_INPUT!Q104 -> 0 | Z104: =集計_INPUT!R104 -> 0 | AB104: 0 | AC104: =集計_INPUT!T104 -> 0 | AD104: =集計_INPUT!U104 -> 0 | AF104: 0 | AG104: 0 | AH104: =集計_INPUT!W104 -> 0 | AI104: =集計_INPUT!X104 -> 0 | AJ104: =集計_INPUT!Y104 -> 0 | AK104: =集計_INPUT!Z104 -> 75 | AL104: 75 | AM104: =集計_INPUT!AA104 -> 0 | AN104: =集計_INPUT!AB104 -> 0 | AO104: =集計_INPUT!AC104 -> 0 | AP104: 0 | AQ104: 75 | AR104: =+#REF!*15.1 -> 
C105: KW4 | D105: 12200-KW4-0002-AA | G105: 224 | H105: =集計_INPUT!D105 -> 0 | I105: =集計_INPUT!E105 -> 0 | J105: =集計_INPUT!F105 -> 0 | K105: =集計_INPUT!G105 -> 0 | L105: =集計_INPUT!H105 -> 0 | M105: 0 | N105: =集計_INPUT!I105 -> 0 | O105: =集計_INPUT!J105 -> 0 | P105: =集計_INPUT!K105 -> 0 | Q105: =集計_INPUT!L105 -> 0 | R105: 0 | S105: =集計_INPUT!M105 -> 0 | T105: =集計_INPUT!N105 -> 0 | V105: 0 | W105: 0 | X105: =集計_INPUT!P105 -> 0 | Y105: =集計_INPUT!Q105 -> 0 | Z105: =集計_INPUT!R105 -> 0 | AB105: 0 | AC105: =集計_INPUT!T105 -> 0 | AD105: =集計_INPUT!U105 -> 0 | AF105: 0 | AG105: 0 | AH105: =集計_INPUT!W105 -> 0 | AI105: =集計_INPUT!X105 -> 0 | AJ105: =集計_INPUT!Y105 -> 0 | AK105: =集計_INPUT!Z105 -> 215 | AL105: 215 | AM105: =集計_INPUT!AA105 -> 0 | AN105: =集計_INPUT!AB105 -> 9 | AO105: =集計_INPUT!AC105 -> 0 | AP105: 9 | AQ105: 224 | AR105: =+#REF!*15.1 -> 
C106: KCZ | D106: 12200-KCZ-0001-AA | G106: 116 | H106: =集計_INPUT!D106 -> 0 | I106: =集計_INPUT!E106 -> 0 | J106: =集計_INPUT!F106 -> 0 | K106: =集計_INPUT!G106 -> 0 | L106: =集計_INPUT!H106 -> 0 | M106: 0 | N106: =集計_INPUT!I106 -> 0 | O106: =集計_INPUT!J106 -> 0 | P106: =集計_INPUT!K106 -> 0 | Q106: =集計_INPUT!L106 -> 0 | R106: 0 | S106: =集計_INPUT!M106 -> 16 | T106: =集計_INPUT!N106 -> 0 | V106: 16 | W106: 16 | X106: =集計_INPUT!P106 -> 0 | Y106: =集計_INPUT!Q106 -> 0 | Z106: =集計_INPUT!R106 -> 0 | AB106: 0 | AC106: =集計_INPUT!T106 -> 0 | AD106: =集計_INPUT!U106 -> 0 | AF106: 0 | AG106: 0 | AH106: =集計_INPUT!W106 -> 0 | AI106: =集計_INPUT!X106 -> 0 | AJ106: =集計_INPUT!Y106 -> 0 | AK106: =集計_INPUT!Z106 -> 100 | AL106: 100 | AM106: =集計_INPUT!AA106 -> 0 | AN106: =集計_INPUT!AB106 -> 0 | AO106: =集計_INPUT!AC106 -> 0 | AP106: 0 | AQ106: 116 | AR106: =+#REF!*15.1 -> 
C107: MEGf | D107: 12211 MEG 3001 AA | G107: =+AQ107+F107-E107 -> 1334 | H107: =集計_INPUT!D107 -> 0 | I107: =集計_INPUT!E107 -> 0 | J107: =集計_INPUT!F107 -> 0 | K107: =集計_INPUT!G107 -> 0 | L107: =集計_INPUT!H107 -> 0 | M107: 0 | N107: =集計_INPUT!I107 -> 0 | O107: =集計_INPUT!J107 -> 0 | P107: =集計_INPUT!K107 -> 0 | Q107: =集計_INPUT!L107 -> 0 | R107: 0 | S107: =集計_INPUT!M107 -> 0 | T107: =集計_INPUT!N107 -> 1071 | V107: 1071 | W107: 1071 | X107: =集計_INPUT!P107 -> 0 | Y107: =集計_INPUT!Q107 -> 0 | Z107: =集計_INPUT!R107 -> 0 | AB107: 0 | AC107: =集計_INPUT!T107 -> 0 | AD107: =集計_INPUT!U107 -> 0 | AF107: 0 | AG107: 0 | AH107: =集計_INPUT!W107 -> 0 | AI107: =集計_INPUT!X107 -> 0 | AJ107: =集計_INPUT!Y107 -> 263 | AK107: =集計_INPUT!Z107 -> 0 | AL107: 263 | AM107: =集計_INPUT!AA107 -> 0 | AN107: =集計_INPUT!AB107 -> 0 | AO107: =集計_INPUT!AC107 -> 0 | AP107: 0 | AQ107: 1334 | AR107: =+#REF!*15.1 -> 
C108: MEGr | D108: 12221 MEG 3001 AA | G108: 1337 | H108: =集計_INPUT!D108 -> 0 | I108: =集計_INPUT!E108 -> 0 | J108: =集計_INPUT!F108 -> 0 | K108: =集計_INPUT!G108 -> 0 | L108: =集計_INPUT!H108 -> 0 | M108: 0 | N108: =集計_INPUT!I108 -> 0 | O108: =集計_INPUT!J108 -> 0 | P108: =集計_INPUT!K108 -> 0 | Q108: =集計_INPUT!L108 -> 0 | R108: 0 | S108: =集計_INPUT!M108 -> 0 | T108: =集計_INPUT!N108 -> 1017 | V108: 1017 | W108: 1017 | X108: =集計_INPUT!P108 -> 0 | Y108: =集計_INPUT!Q108 -> 0 | Z108: =集計_INPUT!R108 -> 0 | AB108: 0 | AC108: =集計_INPUT!T108 -> 0 | AD108: =集計_INPUT!U108 -> 0 | AF108: 0 | AG108: 0 | AH108: =集計_INPUT!W108 -> 0 | AI108: =集計_INPUT!X108 -> 0 | AJ108: =集計_INPUT!Y108 -> 320 | AK108: =集計_INPUT!Z108 -> 0 | AL108: 320 | AM108: =集計_INPUT!AA108 -> 0 | AN108: =集計_INPUT!AB108 -> 0 | AO108: =集計_INPUT!AC108 -> 0 | AP108: 0 | AQ108: 1337 | AR108: =+#REF!*15.1 -> 
C109: MFSf | D109: 12211 MFS 0001 AA | G109: 210 | H109: =集計_INPUT!D109 -> 0 | I109: =集計_INPUT!E109 -> 0 | J109: =集計_INPUT!F109 -> 0 | K109: =集計_INPUT!G109 -> 0 | L109: =集計_INPUT!H109 -> 0 | M109: 0 | N109: =集計_INPUT!I109 -> 0 | O109: =集計_INPUT!J109 -> 0 | P109: =集計_INPUT!K109 -> 0 | Q109: =集計_INPUT!L109 -> 0 | R109: 0 | S109: =集計_INPUT!M109 -> 0 | T109: =集計_INPUT!N109 -> 0 | V109: 0 | W109: 0 | X109: =集計_INPUT!P109 -> 0 | Y109: =集計_INPUT!Q109 -> 0 | Z109: =集計_INPUT!R109 -> 0 | AB109: 0 | AC109: =集計_INPUT!T109 -> 162 | AD109: =集計_INPUT!U109 -> 0 | AF109: 162 | AG109: 162 | AH109: =集計_INPUT!W109 -> 0 | AI109: =集計_INPUT!X109 -> 0 | AJ109: =集計_INPUT!Y109 -> 48 | AK109: =集計_INPUT!Z109 -> 0 | AL109: 48 | AM109: =集計_INPUT!AA109 -> 0 | AN109: =集計_INPUT!AB109 -> 0 | AO109: =集計_INPUT!AC109 -> 0 | AP109: 0 | AQ109: 210 | AR109: =+#REF!*15.1 -> 
C110: MFSr | D110: 12221 MFS 0001 AA | G110: 179 | H110: =集計_INPUT!D110 -> 0 | I110: =集計_INPUT!E110 -> 0 | J110: =集計_INPUT!F110 -> 0 | K110: =集計_INPUT!G110 -> 0 | L110: =集計_INPUT!H110 -> 0 | M110: 0 | N110: =集計_INPUT!I110 -> 0 | O110: =集計_INPUT!J110 -> 0 | P110: =集計_INPUT!K110 -> 0 | Q110: =集計_INPUT!L110 -> 0 | R110: 0 | S110: =集計_INPUT!M110 -> 0 | T110: =集計_INPUT!N110 -> 0 | V110: 0 | W110: 0 | X110: =集計_INPUT!P110 -> 0 | Y110: =集計_INPUT!Q110 -> 0 | Z110: =集計_INPUT!R110 -> 0 | AB110: 0 | AC110: =集計_INPUT!T110 -> 131 | AD110: =集計_INPUT!U110 -> 0 | AF110: 131 | AG110: 131 | AH110: =集計_INPUT!W110 -> 0 | AI110: =集計_INPUT!X110 -> 0 | AJ110: =集計_INPUT!Y110 -> 48 | AK110: =集計_INPUT!Z110 -> 0 | AL110: 48 | AM110: =集計_INPUT!AA110 -> 0 | AN110: =集計_INPUT!AB110 -> 0 | AO110: =集計_INPUT!AC110 -> 0 | AP110: 0 | AQ110: 179 | AR110: =+#REF!*15.1 -> 
C111: MENl | D111: 12201 MEN 0001 AA | G111: 141 | H111: =集計_INPUT!D111 -> 0 | I111: =集計_INPUT!E111 -> 0 | J111: =集計_INPUT!F111 -> 0 | K111: =集計_INPUT!G111 -> 29 | L111: =集計_INPUT!H111 -> 0 | M111: 29 | N111: =集計_INPUT!I111 -> 0 | O111: =集計_INPUT!J111 -> 0 | P111: =集計_INPUT!K111 -> 0 | Q111: =集計_INPUT!L111 -> 0 | R111: 0 | S111: =集計_INPUT!M111 -> 0 | T111: =集計_INPUT!N111 -> 99 | V111: 99 | W111: 99 | X111: =集計_INPUT!P111 -> 0 | Y111: =集計_INPUT!Q111 -> 0 | Z111: =集計_INPUT!R111 -> 0 | AB111: 0 | AC111: =集計_INPUT!T111 -> 0 | AD111: =集計_INPUT!U111 -> 0 | AF111: 0 | AG111: 0 | AH111: =集計_INPUT!W111 -> 0 | AI111: =集計_INPUT!X111 -> 0 | AJ111: =集計_INPUT!Y111 -> 0 | AK111: =集計_INPUT!Z111 -> 13 | AL111: 13 | AM111: =集計_INPUT!AA111 -> 0 | AN111: =集計_INPUT!AB111 -> 0 | AO111: =集計_INPUT!AC111 -> 0 | AP111: 0 | AQ111: 141 | AR111: =+#REF!*17.7 ->  | AS111: =+AQ111-AR111 -> 
C112: MENr | D112: 12201 MEN A700 AA | G112: 23 | H112: =集計_INPUT!D112 -> 0 | I112: =集計_INPUT!E112 -> 0 | J112: =集計_INPUT!F112 -> 0 | K112: =集計_INPUT!G112 -> 0 | L112: =集計_INPUT!H112 -> 0 | M112: 0 | N112: =集計_INPUT!I112 -> 0 | O112: =集計_INPUT!J112 -> 0 | P112: =集計_INPUT!K112 -> 0 | Q112: =集計_INPUT!L112 -> 0 | R112: 0 | S112: =集計_INPUT!M112 -> 0 | T112: =集計_INPUT!N112 -> 0 | V112: 0 | W112: 0 | X112: =集計_INPUT!P112 -> 0 | Y112: =集計_INPUT!Q112 -> 0 | Z112: =集計_INPUT!R112 -> 0 | AB112: 0 | AC112: =集計_INPUT!T112 -> 0 | AD112: =集計_INPUT!U112 -> 0 | AF112: 0 | AG112: 0 | AH112: =集計_INPUT!W112 -> 0 | AI112: =集計_INPUT!X112 -> 0 | AJ112: =集計_INPUT!Y112 -> 23 | AK112: =集計_INPUT!Z112 -> 0 | AL112: 23 | AM112: =集計_INPUT!AA112 -> 0 | AN112: =集計_INPUT!AB112 -> 0 | AO112: =集計_INPUT!AC112 -> 0 | AP112: 0 | AQ112: 23 | AR112: =+#REF!*17.7 ->  | AS112: =+AQ112-AR112 -> 
C113: MENS | D113: 12201 MEN A800 AA | G113: 84 | H113: =集計_INPUT!D113 -> 0 | I113: =集計_INPUT!E113 -> 0 | J113: =集計_INPUT!F113 -> 0 | K113: =集計_INPUT!G113 -> 0 | L113: =集計_INPUT!H113 -> 0 | M113: =SUM(H113:L113) -> 0 | N113: =集計_INPUT!I113 -> 0 | O113: =集計_INPUT!J113 -> 0 | P113: =集計_INPUT!K113 -> 0 | Q113: =集計_INPUT!L113 -> 0 | R113: =SUM(N113:Q113) -> 0 | S113: =集計_INPUT!M113 -> 0 | T113: =集計_INPUT!N113 -> 0 | V113: 0 | W113: 0 | X113: =集計_INPUT!P113 -> 0 | Y113: =集計_INPUT!Q113 -> 0 | Z113: =集計_INPUT!R113 -> 0 | AB113: 0 | AC113: =集計_INPUT!T113 -> 0 | AD113: =集計_INPUT!U113 -> 0 | AF113: 0 | AG113: 0 | AH113: =集計_INPUT!W113 -> 0 | AI113: =集計_INPUT!X113 -> 0 | AJ113: =集計_INPUT!Y113 -> 84 | AK113: =集計_INPUT!Z113 -> 0 | AL113: 84 | AM113: =集計_INPUT!AA113 -> 0 | AN113: =集計_INPUT!AB113 -> 0 | AO113: =集計_INPUT!AC113 -> 0 | AP113: 0 | AQ113: 84 | AR113: =+#REF!*17.7 ->  | AS113: =+AQ113-AR113 -> 
C114: MENT | D114: 12201 MEN A900 AA | G114: 157 | H114: =集計_INPUT!D114 -> 0 | I114: =集計_INPUT!E114 -> 0 | J114: =集計_INPUT!F114 -> 0 | K114: =集計_INPUT!G114 -> 0 | L114: =集計_INPUT!H114 -> 0 | M114: 0 | N114: =集計_INPUT!I114 -> 0 | O114: =集計_INPUT!J114 -> 0 | P114: =集計_INPUT!K114 -> 0 | Q114: =集計_INPUT!L114 -> 0 | R114: 0 | S114: =集計_INPUT!M114 -> 0 | T114: =集計_INPUT!N114 -> 0 | V114: 0 | W114: 0 | X114: =集計_INPUT!P114 -> 0 | Y114: =集計_INPUT!Q114 -> 0 | Z114: =集計_INPUT!R114 -> 0 | AB114: 0 | AC114: =集計_INPUT!T114 -> 120 | AD114: =集計_INPUT!U114 -> 0 | AF114: 120 | AG114: 120 | AH114: =集計_INPUT!W114 -> 0 | AI114: =集計_INPUT!X114 -> 0 | AJ114: =集計_INPUT!Y114 -> 37 | AK114: =集計_INPUT!Z114 -> 0 | AL114: 37 | AM114: =集計_INPUT!AA114 -> 0 | AN114: =集計_INPUT!AB114 -> 0 | AO114: =集計_INPUT!AC114 -> 0 | AP114: 0 | AQ114: 157 | AR114: =+#REF!*17.7 ->  | AS114: =+AQ114-AR114 -> 
C115: KSC | D115: 12201 KSC A101 AA | G115: 279 | H115: =集計_INPUT!D115 -> 0 | I115: =集計_INPUT!E115 -> 0 | J115: =集計_INPUT!F115 -> 0 | K115: =集計_INPUT!G115 -> 0 | L115: =集計_INPUT!H115 -> 0 | M115: 0 | N115: =集計_INPUT!I115 -> 0 | O115: =集計_INPUT!J115 -> 0 | P115: =集計_INPUT!K115 -> 0 | Q115: =集計_INPUT!L115 -> 0 | R115: 0 | S115: =集計_INPUT!M115 -> 0 | T115: =集計_INPUT!N115 -> 279 | V115: 279 | W115: 279 | X115: =集計_INPUT!P115 -> 0 | Y115: =集計_INPUT!Q115 -> 0 | Z115: =集計_INPUT!R115 -> 0 | AB115: 0 | AC115: =集計_INPUT!T115 -> 0 | AD115: =集計_INPUT!U115 -> 0 | AF115: 0 | AG115: 0 | AH115: =集計_INPUT!W115 -> 0 | AI115: =集計_INPUT!X115 -> 0 | AJ115: =集計_INPUT!Y115 -> 0 | AK115: =集計_INPUT!Z115 -> 0 | AL115: 0 | AM115: =集計_INPUT!AA115 -> 0 | AN115: =集計_INPUT!AB115 -> 0 | AO115: =集計_INPUT!AC115 -> 0 | AP115: 0 | AQ115: 279 | AR115: =+#REF!*17.7 ->  | AS115: =+AQ115-AR115 -> 
C116: MEY | D116: 12201 MEY 6701 AA | G116: =+AQ116+F116-E116 -> 226 | H116: =集計_INPUT!D116 -> 0 | I116: =集計_INPUT!E116 -> 0 | J116: =集計_INPUT!F116 -> 0 | K116: =集計_INPUT!G116 -> 200 | L116: =集計_INPUT!H116 -> 0 | M116: 200 | N116: =集計_INPUT!I116 -> 0 | O116: =集計_INPUT!J116 -> 0 | P116: =集計_INPUT!K116 -> 0 | Q116: =集計_INPUT!L116 -> 0 | R116: 0 | S116: =集計_INPUT!M116 -> 0 | T116: =集計_INPUT!N116 -> 0 | V116: =SUM(S116:U116) -> 0 | W116: =R116+V116 -> 0 | X116: =集計_INPUT!P116 -> 0 | Y116: =集計_INPUT!Q116 -> 0 | Z116: =集計_INPUT!R116 -> 0 | AB116: 0 | AC116: =集計_INPUT!T116 -> 0 | AD116: =集計_INPUT!U116 -> 0 | AF116: =SUM(AC116:AE116) -> 0 | AG116: =AB116+AF116 -> 0 | AH116: =集計_INPUT!W116 -> 0 | AI116: =集計_INPUT!X116 -> 0 | AJ116: =集計_INPUT!Y116 -> 26 | AK116: =集計_INPUT!Z116 -> 0 | AL116: 26 | AM116: =集計_INPUT!AA116 -> 0 | AN116: =集計_INPUT!AB116 -> 0 | AO116: =集計_INPUT!AC116 -> 0 | AP116: 0 | AQ116: =M116+W116+AG116+AL116+AP116 -> 226 | AR116: =+#REF!*17.7 ->  | AS116: =+AQ116-AR116 -> 
C117: MENJ | D117: 12201 MEN A000 AE | G117: 265 | H117: =集計_INPUT!D117 -> 0 | I117: =集計_INPUT!E117 -> 0 | J117: =集計_INPUT!F117 -> 0 | K117: =集計_INPUT!G117 -> 0 | L117: =集計_INPUT!H117 -> 0 | M117: 0 | N117: =集計_INPUT!I117 -> 0 | O117: =集計_INPUT!J117 -> 0 | P117: =集計_INPUT!K117 -> 0 | Q117: =集計_INPUT!L117 -> 0 | R117: 0 | S117: =集計_INPUT!M117 -> 0 | T117: =集計_INPUT!N117 -> 245 | V117: 245 | W117: 245 | X117: =集計_INPUT!P117 -> 0 | Y117: =集計_INPUT!Q117 -> 0 | Z117: =集計_INPUT!R117 -> 0 | AB117: 0 | AC117: =集計_INPUT!T117 -> 0 | AD117: =集計_INPUT!U117 -> 0 | AF117: 0 | AG117: 0 | AH117: =集計_INPUT!W117 -> 0 | AI117: =集計_INPUT!X117 -> 0 | AJ117: =集計_INPUT!Y117 -> 20 | AK117: =集計_INPUT!Z117 -> 0 | AL117: 20 | AM117: =集計_INPUT!AA117 -> 0 | AN117: =集計_INPUT!AB117 -> 0 | AO117: =集計_INPUT!AC117 -> 0 | AP117: 0 | AQ117: 265 | AR117: =+#REF!*17.7 -> 
C118: NN4 | D118: 12201 NN4 3001 AA | G118: 5 | H118: =集計_INPUT!D118 -> 0 | I118: =集計_INPUT!E118 -> 0 | J118: =集計_INPUT!F118 -> 0 | K118: =集計_INPUT!G118 -> 0 | L118: =集計_INPUT!H118 -> 0 | M118: 0 | N118: =集計_INPUT!I118 -> 0 | O118: =集計_INPUT!J118 -> 0 | P118: =集計_INPUT!K118 -> 0 | Q118: =集計_INPUT!L118 -> 0 | R118: 0 | S118: =集計_INPUT!M118 -> 0 | T118: =集計_INPUT!N118 -> 0 | V118: 0 | W118: 0 | X118: =集計_INPUT!P118 -> 0 | Y118: =集計_INPUT!Q118 -> 0 | Z118: =集計_INPUT!R118 -> 0 | AB118: 0 | AC118: =集計_INPUT!T118 -> 0 | AD118: =集計_INPUT!U118 -> 0 | AF118: 0 | AG118: 0 | AH118: =集計_INPUT!W118 -> 0 | AI118: =集計_INPUT!X118 -> 0 | AJ118: =集計_INPUT!Y118 -> 0 | AK118: =集計_INPUT!Z118 -> 5 | AL118: 5 | AM118: =集計_INPUT!AA118 -> 0 | AN118: =集計_INPUT!AB118 -> 0 | AO118: =集計_INPUT!AC118 -> 0 | AP118: 0 | AQ118: 5 | AR118: =+#REF!*17.7 -> 
C119: MFRf | D119: 12211 MFR 6701 AA | G119: 1156 | H119: =集計_INPUT!D119 -> 0 | I119: =集計_INPUT!E119 -> 0 | J119: =集計_INPUT!F119 -> 0 | K119: =集計_INPUT!G119 -> 0 | L119: =集計_INPUT!H119 -> 0 | M119: 0 | N119: =集計_INPUT!I119 -> 0 | O119: =集計_INPUT!J119 -> 0 | P119: =集計_INPUT!K119 -> 0 | Q119: =集計_INPUT!L119 -> 0 | R119: 0 | S119: =集計_INPUT!M119 -> 0 | T119: =集計_INPUT!N119 -> 1003 | V119: 1003 | W119: 1003 | X119: =集計_INPUT!P119 -> 0 | Y119: =集計_INPUT!Q119 -> 0 | Z119: =集計_INPUT!R119 -> 0 | AB119: 0 | AC119: =集計_INPUT!T119 -> 0 | AD119: =集計_INPUT!U119 -> 0 | AF119: 0 | AG119: 0 | AH119: =集計_INPUT!W119 -> 0 | AI119: =集計_INPUT!X119 -> 0 | AJ119: =集計_INPUT!Y119 -> 153 | AK119: =集計_INPUT!Z119 -> 0 | AL119: 153 | AM119: =集計_INPUT!AA119 -> 0 | AN119: =集計_INPUT!AB119 -> 0 | AO119: =集計_INPUT!AC119 -> 0 | AP119: 0 | AQ119: 1156 | AR119: =+#REF!*17.7 -> 
C120: MEAr | D120: 12221 MEA 6701 AA | G120: 791 | H120: =集計_INPUT!D120 -> 0 | I120: =集計_INPUT!E120 -> 0 | J120: =集計_INPUT!F120 -> 0 | K120: =集計_INPUT!G120 -> 108 | L120: =集計_INPUT!H120 -> 0 | M120: 108 | N120: =集計_INPUT!I120 -> 0 | O120: =集計_INPUT!J120 -> 0 | P120: =集計_INPUT!K120 -> 0 | Q120: =集計_INPUT!L120 -> 0 | R120: 0 | S120: =集計_INPUT!M120 -> 0 | T120: =集計_INPUT!N120 -> 523 | V120: 523 | W120: 523 | X120: =集計_INPUT!P120 -> 0 | Y120: =集計_INPUT!Q120 -> 0 | Z120: =集計_INPUT!R120 -> 0 | AB120: 0 | AC120: =集計_INPUT!T120 -> 0 | AD120: =集計_INPUT!U120 -> 0 | AF120: 0 | AG120: 0 | AH120: =集計_INPUT!W120 -> 0 | AI120: =集計_INPUT!X120 -> 0 | AJ120: =集計_INPUT!Y120 -> 160 | AK120: =集計_INPUT!Z120 -> 0 | AL120: 160 | AM120: =集計_INPUT!AA120 -> 0 | AN120: =集計_INPUT!AB120 -> 0 | AO120: =集計_INPUT!AC120 -> 0 | AP120: 0 | AQ120: 791 | AR120: =+#REF!*17.7 ->  | AS120: =+AQ120-AR120 -> 
C121: MEWf | D121: 12211 MEW 9201 AA | G121: 0 | H121: =集計_INPUT!D121 -> 0 | I121: =集計_INPUT!E121 -> 0 | J121: =集計_INPUT!F121 -> 0 | K121: =集計_INPUT!G121 -> 0 | L121: =集計_INPUT!H121 -> 0 | M121: 0 | N121: =集計_INPUT!I121 -> 0 | O121: =集計_INPUT!J121 -> 0 | P121: =集計_INPUT!K121 -> 0 | Q121: =集計_INPUT!L121 -> 0 | R121: 0 | S121: =集計_INPUT!M121 -> 0 | T121: =集計_INPUT!N121 -> 0 | V121: 0 | W121: 0 | X121: =集計_INPUT!P121 -> 0 | Y121: =集計_INPUT!Q121 -> 0 | Z121: =集計_INPUT!R121 -> 0 | AB121: 0 | AC121: =集計_INPUT!T121 -> 0 | AD121: =集計_INPUT!U121 -> 0 | AF121: 0 | AG121: 0 | AH121: =集計_INPUT!W121 -> 0 | AI121: =集計_INPUT!X121 -> 0 | AJ121: =集計_INPUT!Y121 -> 0 | AK121: =集計_INPUT!Z121 -> 0 | AL121: 0 | AM121: =集計_INPUT!AA121 -> 0 | AN121: =集計_INPUT!AB121 -> 0 | AO121: =集計_INPUT!AC121 -> 0 | AP121: 0 | AQ121: 0 | AR121: =+#REF!*17.7 ->  | AS121: =+AQ121-AR121 -> 
C122: MEWr | D122: 12221 MEW 9201 AA | G122: 114 | H122: =集計_INPUT!D122 -> 0 | I122: =集計_INPUT!E122 -> 0 | J122: =集計_INPUT!F122 -> 0 | K122: =集計_INPUT!G122 -> 0 | L122: =集計_INPUT!H122 -> 0 | M122: 0 | N122: =集計_INPUT!I122 -> 0 | O122: =集計_INPUT!J122 -> 0 | P122: =集計_INPUT!K122 -> 0 | Q122: =集計_INPUT!L122 -> 0 | R122: 0 | S122: =集計_INPUT!M122 -> 0 | T122: =集計_INPUT!N122 -> 0 | V122: 0 | W122: 0 | X122: =集計_INPUT!P122 -> 0 | Y122: =集計_INPUT!Q122 -> 0 | Z122: =集計_INPUT!R122 -> 0 | AB122: 0 | AC122: =集計_INPUT!T122 -> 0 | AD122: =集計_INPUT!U122 -> 0 | AF122: 0 | AG122: 0 | AH122: =集計_INPUT!W122 -> 0 | AI122: =集計_INPUT!X122 -> 0 | AJ122: =集計_INPUT!Y122 -> 0 | AK122: =集計_INPUT!Z122 -> 114 | AL122: 114 | AM122: =集計_INPUT!AA122 -> 0 | AN122: =集計_INPUT!AB122 -> 0 | AO122: =集計_INPUT!AC122 -> 0 | AP122: 0 | AQ122: 114
C123: KFKf | D123: 12211 KFK 6301 AA | G123: 176 | H123: =集計_INPUT!D123 -> 0 | I123: =集計_INPUT!E123 -> 0 | J123: =集計_INPUT!F123 -> 0 | K123: =集計_INPUT!G123 -> 0 | L123: =集計_INPUT!H123 -> 0 | M123: 0 | N123: =集計_INPUT!I123 -> 0 | O123: =集計_INPUT!J123 -> 0 | P123: =集計_INPUT!K123 -> 0 | Q123: =集計_INPUT!L123 -> 0 | R123: 0 | S123: =集計_INPUT!M123 -> 0 | T123: =集計_INPUT!N123 -> 69 | V123: 69 | W123: 69 | X123: =集計_INPUT!P123 -> 0 | Y123: =集計_INPUT!Q123 -> 0 | Z123: =集計_INPUT!R123 -> 0 | AB123: 0 | AC123: =集計_INPUT!T123 -> 102 | AD123: =集計_INPUT!U123 -> 0 | AF123: 102 | AG123: 102 | AH123: =集計_INPUT!W123 -> 0 | AI123: =集計_INPUT!X123 -> 0 | AJ123: =集計_INPUT!Y123 -> 5 | AK123: =集計_INPUT!Z123 -> 0 | AL123: 5 | AM123: =集計_INPUT!AA123 -> 0 | AN123: =集計_INPUT!AB123 -> 0 | AO123: =集計_INPUT!AC123 -> 0 | AP123: 0 | AQ123: 176
C124: KFKr | D124: 12221 KFK 6301 AA | G124: 271 | H124: =集計_INPUT!D124 -> 0 | I124: =集計_INPUT!E124 -> 0 | J124: =集計_INPUT!F124 -> 0 | K124: =集計_INPUT!G124 -> 0 | L124: =集計_INPUT!H124 -> 0 | M124: 0 | N124: =集計_INPUT!I124 -> 0 | O124: =集計_INPUT!J124 -> 0 | P124: =集計_INPUT!K124 -> 0 | Q124: =集計_INPUT!L124 -> 0 | R124: 0 | S124: =集計_INPUT!M124 -> 0 | T124: =集計_INPUT!N124 -> 68 | V124: 68 | W124: 68 | X124: =集計_INPUT!P124 -> 0 | Y124: =集計_INPUT!Q124 -> 0 | Z124: =集計_INPUT!R124 -> 0 | AB124: 0 | AC124: =集計_INPUT!T124 -> 190 | AD124: =集計_INPUT!U124 -> 0 | AF124: 190 | AG124: 190 | AH124: =集計_INPUT!W124 -> 0 | AI124: =集計_INPUT!X124 -> 0 | AJ124: =集計_INPUT!Y124 -> 13 | AK124: =集計_INPUT!Z124 -> 0 | AL124: 13 | AM124: =集計_INPUT!AA124 -> 0 | AN124: =集計_INPUT!AB124 -> 0 | AO124: =集計_INPUT!AC124 -> 0 | AP124: 0 | AQ124: 271
C125: MFFf | D125: 12211 MFF D001 AA | G125: 80 | H125: =集計_INPUT!D125 -> 0 | I125: =集計_INPUT!E125 -> 0 | J125: =集計_INPUT!F125 -> 0 | K125: =集計_INPUT!G125 -> 0 | L125: =集計_INPUT!H125 -> 0 | M125: 0 | N125: =集計_INPUT!I125 -> 0 | O125: =集計_INPUT!J125 -> 0 | P125: =集計_INPUT!K125 -> 0 | Q125: =集計_INPUT!L125 -> 0 | R125: 0 | S125: =集計_INPUT!M125 -> 0 | T125: =集計_INPUT!N125 -> 0 | V125: 0 | W125: 0 | X125: =集計_INPUT!P125 -> 0 | Y125: =集計_INPUT!Q125 -> 0 | Z125: =集計_INPUT!R125 -> 0 | AB125: 0 | AC125: =集計_INPUT!T125 -> 0 | AD125: =集計_INPUT!U125 -> 0 | AF125: 0 | AG125: 0 | AH125: =集計_INPUT!W125 -> 0 | AI125: =集計_INPUT!X125 -> 0 | AJ125: =集計_INPUT!Y125 -> 80 | AK125: =集計_INPUT!Z125 -> 0 | AL125: 80 | AM125: =集計_INPUT!AA125 -> 0 | AN125: =集計_INPUT!AB125 -> 0 | AO125: =集計_INPUT!AC125 -> 0 | AP125: 0 | AQ125: 80
C126: MFFr | D126: 12221 MFF D001 AA | G126: =+AQ126+F126-E126 -> 80 | H126: =集計_INPUT!D126 -> 0 | I126: =集計_INPUT!E126 -> 0 | J126: =集計_INPUT!F126 -> 0 | K126: =集計_INPUT!G126 -> 0 | L126: =集計_INPUT!H126 -> 0 | M126: 0 | N126: =集計_INPUT!I126 -> 0 | O126: =集計_INPUT!J126 -> 0 | P126: =集計_INPUT!K126 -> 0 | Q126: =集計_INPUT!L126 -> 0 | R126: 0 | S126: =集計_INPUT!M126 -> 0 | T126: =集計_INPUT!N126 -> 0 | V126: 0 | W126: 0 | X126: =集計_INPUT!P126 -> 0 | Y126: =集計_INPUT!Q126 -> 0 | Z126: =集計_INPUT!R126 -> 0 | AB126: 0 | AC126: =集計_INPUT!T126 -> 0 | AD126: =集計_INPUT!U126 -> 0 | AF126: 0 | AG126: 0 | AH126: =集計_INPUT!W126 -> 0 | AI126: =集計_INPUT!X126 -> 0 | AJ126: =集計_INPUT!Y126 -> 80 | AK126: =集計_INPUT!Z126 -> 0 | AL126: 80 | AM126: =集計_INPUT!AA126 -> 0 | AN126: =集計_INPUT!AB126 -> 0 | AO126: =集計_INPUT!AC126 -> 0 | AP126: 0 | AQ126: 80 | AR126: =+#REF!*17.7 ->  | AS126: =+AQ126-AR126 -> 
C127: GE2 | G127: 131 | H127: =集計_INPUT!D127 -> 0 | I127: =集計_INPUT!E127 -> 0 | J127: =集計_INPUT!F127 -> 0 | K127: =集計_INPUT!G127 -> 0 | L127: =集計_INPUT!H127 -> 0 | M127: 0 | N127: =集計_INPUT!I127 -> 0 | O127: =集計_INPUT!J127 -> 0 | P127: =集計_INPUT!K127 -> 0 | Q127: =集計_INPUT!L127 -> 0 | R127: 0 | S127: =集計_INPUT!M127 -> 0 | T127: =集計_INPUT!N127 -> 0 | V127: 0 | W127: 0 | X127: =集計_INPUT!P127 -> 0 | Y127: =集計_INPUT!Q127 -> 0 | Z127: =集計_INPUT!R127 -> 0 | AB127: 0 | AC127: =集計_INPUT!T127 -> 131 | AD127: =集計_INPUT!U127 -> 0 | AF127: 131 | AG127: 131 | AH127: =集計_INPUT!W127 -> 0 | AI127: =集計_INPUT!X127 -> 0 | AJ127: =集計_INPUT!Y127 -> 0 | AK127: =集計_INPUT!Z127 -> 0 | AL127: 0 | AM127: =集計_INPUT!AA127 -> 0 | AN127: =集計_INPUT!AB127 -> 0 | AO127: =集計_INPUT!AC127 -> 0 | AP127: 0 | AQ127: 131 | AR127: =+#REF!*17.7 -> 
C128: KFR | D128: 12200-KFR-0000-AA | G128: 5 | H128: =集計_INPUT!D128 -> 0 | I128: =集計_INPUT!E128 -> 0 | J128: =集計_INPUT!F128 -> 0 | K128: =集計_INPUT!G128 -> 0 | L128: =集計_INPUT!H128 -> 0 | M128: 0 | N128: =集計_INPUT!I128 -> 0 | O128: =集計_INPUT!J128 -> 0 | P128: =集計_INPUT!K128 -> 0 | Q128: =集計_INPUT!L128 -> 0 | R128: 0 | S128: =集計_INPUT!M128 -> 0 | T128: =集計_INPUT!N128 -> 0 | V128: 0 | W128: 0 | X128: =集計_INPUT!P128 -> 0 | Y128: =集計_INPUT!Q128 -> 0 | Z128: =集計_INPUT!R128 -> 0 | AB128: 0 | AC128: =集計_INPUT!T128 -> 0 | AD128: =集計_INPUT!U128 -> 0 | AF128: 0 | AG128: 0 | AH128: =集計_INPUT!W128 -> 0 | AI128: =集計_INPUT!X128 -> 0 | AJ128: =集計_INPUT!Y128 -> 5 | AK128: =集計_INPUT!Z128 -> 0 | AL128: 5 | AM128: =集計_INPUT!AA128 -> 0 | AN128: =集計_INPUT!AB128 -> 0 | AO128: =集計_INPUT!AC128 -> 0 | AP128: 0 | AQ128: 5 | AR128: =+#REF!*17.7 -> 
C129: KPB | D129: 12200-KPB-0000-AA | G129: 5 | H129: =集計_INPUT!D129 -> 0 | I129: =集計_INPUT!E129 -> 0 | J129: =集計_INPUT!F129 -> 0 | K129: =集計_INPUT!G129 -> 0 | L129: =集計_INPUT!H129 -> 0 | M129: 0 | N129: =集計_INPUT!I129 -> 0 | O129: =集計_INPUT!J129 -> 0 | P129: =集計_INPUT!K129 -> 0 | Q129: =集計_INPUT!L129 -> 0 | R129: 0 | S129: =集計_INPUT!M129 -> 0 | T129: =集計_INPUT!N129 -> 0 | V129: 0 | W129: 0 | X129: =集計_INPUT!P129 -> 0 | Y129: =集計_INPUT!Q129 -> 0 | Z129: =集計_INPUT!R129 -> 0 | AB129: 0 | AC129: =集計_INPUT!T129 -> 0 | AD129: =集計_INPUT!U129 -> 0 | AF129: 0 | AG129: 0 | AH129: =集計_INPUT!W129 -> 0 | AI129: =集計_INPUT!X129 -> 0 | AJ129: =集計_INPUT!Y129 -> 5 | AK129: =集計_INPUT!Z129 -> 0 | AL129: 5 | AM129: =集計_INPUT!AA129 -> 0 | AN129: =集計_INPUT!AB129 -> 0 | AO129: =集計_INPUT!AC129 -> 0 | AP129: 0 | AQ129: 5 | AR129: =+#REF!*17.7 -> 
C130: KAB | D130: 12200-KAB-0003-AA | G130: 29 | H130: =集計_INPUT!D130 -> 0 | I130: =集計_INPUT!E130 -> 0 | J130: =集計_INPUT!F130 -> 0 | K130: =集計_INPUT!G130 -> 0 | L130: =集計_INPUT!H130 -> 0 | M130: 0 | N130: =集計_INPUT!I130 -> 0 | O130: =集計_INPUT!J130 -> 0 | P130: =集計_INPUT!K130 -> 0 | Q130: =集計_INPUT!L130 -> 0 | R130: 0 | S130: =集計_INPUT!M130 -> 0 | T130: =集計_INPUT!N130 -> 0 | V130: 0 | W130: 0 | X130: =集計_INPUT!P130 -> 0 | Y130: =集計_INPUT!Q130 -> 0 | Z130: =集計_INPUT!R130 -> 0 | AB130: 0 | AC130: =集計_INPUT!T130 -> 0 | AD130: =集計_INPUT!U130 -> 0 | AF130: 0 | AG130: 0 | AH130: =集計_INPUT!W130 -> 0 | AI130: =集計_INPUT!X130 -> 0 | AJ130: =集計_INPUT!Y130 -> 29 | AK130: =集計_INPUT!Z130 -> 0 | AL130: 29 | AM130: =集計_INPUT!AA130 -> 0 | AN130: =集計_INPUT!AB130 -> 0 | AO130: =集計_INPUT!AC130 -> 0 | AP130: 0 | AQ130: 29 | AR130: =+#REF!*17.7 -> 
C131: GCR | G131: 5 | H131: =集計_INPUT!D131 -> 0 | I131: =集計_INPUT!E131 -> 0 | J131: =集計_INPUT!F131 -> 0 | K131: =集計_INPUT!G131 -> 0 | L131: =集計_INPUT!H131 -> 0 | M131: 0 | N131: =集計_INPUT!I131 -> 0 | O131: =集計_INPUT!J131 -> 0 | P131: =集計_INPUT!K131 -> 0 | Q131: =集計_INPUT!L131 -> 0 | R131: 0 | S131: =集計_INPUT!M131 -> 5 | T131: =集計_INPUT!N131 -> 0 | V131: 5 | W131: 5 | X131: =集計_INPUT!P131 -> 0 | Y131: =集計_INPUT!Q131 -> 0 | Z131: =集計_INPUT!R131 -> 0 | AB131: 0 | AC131: =集計_INPUT!T131 -> 0 | AD131: =集計_INPUT!U131 -> 0 | AF131: 0 | AG131: 0 | AH131: =集計_INPUT!W131 -> 0 | AI131: =集計_INPUT!X131 -> 0 | AJ131: =集計_INPUT!Y131 -> 0 | AK131: =集計_INPUT!Z131 -> 0 | AL131: 0 | AM131: =集計_INPUT!AA131 -> 0 | AN131: =集計_INPUT!AB131 -> 0 | AO131: =集計_INPUT!AC131 -> 0 | AP131: 0 | AQ131: 5 | AR131: =+#REF!*17.7 -> 
C132: 418 | D132: 12200-418-0003-AA | G132: 24 | H132: =集計_INPUT!D132 -> 0 | I132: =集計_INPUT!E132 -> 0 | J132: =集計_INPUT!F132 -> 0 | K132: =集計_INPUT!G132 -> 0 | L132: =集計_INPUT!H132 -> 0 | M132: 0 | N132: =集計_INPUT!I132 -> 0 | O132: =集計_INPUT!J132 -> 0 | P132: =集計_INPUT!K132 -> 0 | Q132: =集計_INPUT!L132 -> 0 | R132: 0 | S132: =集計_INPUT!M132 -> 0 | T132: =集計_INPUT!N132 -> 0 | V132: 0 | W132: 0 | X132: =集計_INPUT!P132 -> 0 | Y132: =集計_INPUT!Q132 -> 0 | Z132: =集計_INPUT!R132 -> 0 | AB132: 0 | AC132: =集計_INPUT!T132 -> 0 | AD132: =集計_INPUT!U132 -> 0 | AF132: 0 | AG132: 0 | AH132: =集計_INPUT!W132 -> 0 | AI132: =集計_INPUT!X132 -> 0 | AJ132: =集計_INPUT!Y132 -> 0 | AK132: =集計_INPUT!Z132 -> 24 | AL132: 24 | AM132: =集計_INPUT!AA132 -> 0 | AN132: =集計_INPUT!AB132 -> 0 | AO132: =集計_INPUT!AC132 -> 0 | AP132: 0 | AQ132: 24 | AR132: =+#REF!*17.7 -> 
C133: GEY | D133: 12200-GEY-0000-AA | G133: 48 | H133: =集計_INPUT!D133 -> 0 | I133: =集計_INPUT!E133 -> 0 | J133: =集計_INPUT!F133 -> 0 | K133: =集計_INPUT!G133 -> 0 | L133: =集計_INPUT!H133 -> 0 | M133: 0 | N133: =集計_INPUT!I133 -> 0 | O133: =集計_INPUT!J133 -> 0 | P133: =集計_INPUT!K133 -> 0 | Q133: =集計_INPUT!L133 -> 0 | R133: 0 | S133: =集計_INPUT!M133 -> 0 | T133: =集計_INPUT!N133 -> 0 | V133: 0 | W133: 0 | X133: =集計_INPUT!P133 -> 0 | Y133: =集計_INPUT!Q133 -> 0 | Z133: =集計_INPUT!R133 -> 0 | AB133: 0 | AC133: =集計_INPUT!T133 -> 0 | AD133: =集計_INPUT!U133 -> 0 | AF133: 0 | AG133: 0 | AH133: =集計_INPUT!W133 -> 0 | AI133: =集計_INPUT!X133 -> 0 | AJ133: =集計_INPUT!Y133 -> 0 | AK133: =集計_INPUT!Z133 -> 48 | AL133: 48 | AM133: =集計_INPUT!AA133 -> 0 | AN133: =集計_INPUT!AB133 -> 0 | AO133: =集計_INPUT!AC133 -> 0 | AP133: 0 | AQ133: 48 | AR133: =+#REF!*17.7 ->  | AS133: =+AQ133-AR133 -> 
C134: MENF | D134: 12201 MEN 7300AC | G134: 122 | H134: =集計_INPUT!D134 -> 0 | I134: =集計_INPUT!E134 -> 0 | J134: =集計_INPUT!F134 -> 0 | K134: =集計_INPUT!G134 -> 0 | L134: =集計_INPUT!H134 -> 0 | M134: 0 | N134: =集計_INPUT!I134 -> 0 | O134: =集計_INPUT!J134 -> 0 | P134: =集計_INPUT!K134 -> 0 | Q134: =集計_INPUT!L134 -> 0 | R134: 0 | S134: =集計_INPUT!M134 -> 0 | T134: =集計_INPUT!N134 -> 28 | V134: 28 | W134: 28 | X134: =集計_INPUT!P134 -> 0 | Y134: =集計_INPUT!Q134 -> 0 | Z134: =集計_INPUT!R134 -> 0 | AB134: 0 | AC134: =集計_INPUT!T134 -> 0 | AD134: =集計_INPUT!U134 -> 0 | AF134: 0 | AG134: 0 | AH134: =集計_INPUT!W134 -> 0 | AI134: =集計_INPUT!X134 -> 0 | AJ134: =集計_INPUT!Y134 -> 94 | AK134: =集計_INPUT!Z134 -> 0 | AL134: 94 | AM134: =集計_INPUT!AA134 -> 0 | AN134: =集計_INPUT!AB134 -> 0 | AO134: =集計_INPUT!AC134 -> 0 | AP134: 0 | AQ134: 122 | AR134: =+#REF!*17.7 ->  | AS134: =+AQ134-AR134 -> 
C135: MN9 | D135: 1220A-MY6-6700 | H135: =集計_INPUT!D135 -> 0 | I135: =集計_INPUT!E135 -> 0 | J135: =集計_INPUT!F135 -> 0 | K135: =集計_INPUT!G135 -> 0 | L135: =集計_INPUT!H135 -> 0 | M135: 0 | N135: =集計_INPUT!I135 -> 0 | O135: =集計_INPUT!J135 -> 0 | P135: =集計_INPUT!K135 -> 0 | Q135: =集計_INPUT!L135 -> 0 | R135: 0 | S135: =集計_INPUT!M135 -> 0 | T135: =集計_INPUT!N135 -> 0 | V135: 0 | W135: 0 | X135: =集計_INPUT!P135 -> 0 | Y135: =集計_INPUT!Q135 -> 0 | Z135: =集計_INPUT!R135 -> 0 | AB135: =SUM(X135:AA135) -> 0 | AC135: =集計_INPUT!T135 -> 0 | AD135: =集計_INPUT!U135 -> 0 | AF135: 0 | AG135: 0 | AH135: =集計_INPUT!W135 -> 0 | AI135: =集計_INPUT!X135 -> 0 | AJ135: =集計_INPUT!Y135 -> 0 | AK135: =集計_INPUT!Z135 -> 0 | AL135: =SUM(AH135:AK135) -> 0 | AM135: =集計_INPUT!AA135 -> 0 | AN135: =集計_INPUT!AB135 -> 0 | AO135: =集計_INPUT!AC135 -> 0 | AP135: =SUM(AM135:AO135) -> 0 | AQ135: 0
C136: MKW | D136: MKTショット無し | H136: =集計_INPUT!D136 -> 0 | I136: =集計_INPUT!E136 -> 0 | J136: =集計_INPUT!F136 -> 0 | K136: =集計_INPUT!G136 -> 0 | L136: =集計_INPUT!H136 -> 0 | M136: 0 | N136: =集計_INPUT!I136 -> 0 | O136: =集計_INPUT!J136 -> 0 | P136: =集計_INPUT!K136 -> 0 | Q136: =集計_INPUT!L136 -> 0 | R136: 0 | S136: =集計_INPUT!M136 -> 0 | T136: =集計_INPUT!N136 -> 0 | V136: 0 | W136: 0 | X136: =集計_INPUT!P136 -> 0 | Y136: =集計_INPUT!Q136 -> 0 | Z136: =集計_INPUT!R136 -> 0 | AB136: =SUM(X136:AA136) -> 0 | AC136: =集計_INPUT!T136 -> 0 | AD136: =集計_INPUT!U136 -> 0 | AF136: 0 | AG136: 0 | AH136: =集計_INPUT!W136 -> 0 | AI136: =集計_INPUT!X136 -> 0 | AJ136: =集計_INPUT!Y136 -> 0 | AK136: =集計_INPUT!Z136 -> 0 | AL136: =SUM(AH136:AK136) -> 0 | AM136: =集計_INPUT!AA136 -> 0 | AN136: =集計_INPUT!AB136 -> 0 | AO136: =集計_INPUT!AC136 -> 0 | AP136: =SUM(AM136:AO136) -> 0 | AQ136: 0
H137: =集計_INPUT!D137 -> 0 | I137: =集計_INPUT!E137 -> 0 | J137: =集計_INPUT!F137 -> 0 | K137: =集計_INPUT!G137 -> 0 | L137: =集計_INPUT!H137 -> 0 | M137: 0 | N137: =集計_INPUT!I137 -> 0 | O137: =集計_INPUT!J137 -> 0 | P137: =集計_INPUT!K137 -> 0 | Q137: =集計_INPUT!L137 -> 0 | R137: 0 | S137: =集計_INPUT!M137 -> 0 | T137: =集計_INPUT!N137 -> 0 | V137: 0 | W137: 0 | X137: =集計_INPUT!P137 -> 0 | Y137: =集計_INPUT!Q137 -> 0 | Z137: =集計_INPUT!R137 -> 0 | AB137: =SUM(X137:AA137) -> 0 | AC137: =集計_INPUT!T137 -> 0 | AD137: =集計_INPUT!U137 -> 0 | AF137: 0 | AG137: 0 | AH137: =集計_INPUT!W137 -> 0 | AI137: =集計_INPUT!X137 -> 0 | AJ137: =集計_INPUT!Y137 -> 0 | AK137: =集計_INPUT!Z137 -> 0 | AL137: =SUM(AH137:AK137) -> 0 | AM137: =集計_INPUT!AA137 -> 0 | AN137: =集計_INPUT!AB137 -> 0 | AO137: =集計_INPUT!AC137 -> 0 | AP137: =SUM(AM137:AO137) -> 0 | AQ137: 0
C139: 合 計 | E139: =SUM(E7:E137) -> 0 | F139: =SUM(F7:F137) -> 0 | G139: =SUM(G7:G137) -> 88456 | H139: =SUM(M7:M137) -> 24203 | I139: =+#REF!+#REF!+#REF! ->  | M139: =+#REF!+#REF!+#REF! ->  | N139: =SUM(R7:R137) -> 6302 | S139: =SUM(V7:V137) -> 23881 | T139: =+#REF!+#REF!+#REF! ->  | U139: =+#REF!+#REF!+#REF! ->  | V139: =+#REF!+#REF!+#REF! ->  | W139: =N139+S139 -> 30183 | X139: =SUM(AB7:AB137) -> 604 | Y139: =+#REF!+#REF!+#REF! ->  | Z139: =+#REF!+#REF!+#REF! ->  | AB139: =+#REF!+#REF!+#REF! ->  | AC139: =SUM(AF7:AF137) -> 3862 | AD139: =+#REF!+#REF!+#REF! ->  | AE139: =+#REF!+#REF!+#REF! ->  | AF139: =+#REF!+#REF!+#REF! ->  | AG139: =X139+AC139 -> 4466 | AH139: =SUM(AH7:AJ137) -> 20461 | AK139: =SUM(AK7:AK137) -> 6984 | AM139: =SUM(AM7:AM137) -> 490 | AN139: =SUM(AN7:AN137) -> 1669 | AO139: =SUM(AO7:AO137) -> 0 | AQ139: =SUM(AQ7:AQ137) -> 88456 | AR139: =+#REF!+#REF!+#REF! ->  | AS139: =+#REF!+#REF!+#REF! -> 

Sheet ②月末在庫 (補)
E1: ='①月末在庫(実)'!E1 -> 2026 | F1: 年
E2: 鋳造Ｍｏ | F2: ='①月末在庫(実)'!F2 -> 102 | G2: 期 | H2: ='①月末在庫(実)'!H2 -> 4 | I2: 月末在庫
N3: T6済 | S3: T7済 | X3: バリ済 | AH3: S未 | AK3: S済 | AM3: AS済 | AO3: アロ済
H4: 鋳造在庫 | N4: 熱処理済在庫 | X4: バリトリ済在庫 | AH4: 完成在庫 | AM4: 表面処理在庫
C5: 鋳造 | E5: 前月在庫 | F5: 当月払出し | G5: 当月出来高 | H5: 外作 | J5: HM | M5: 合計 | N5: 外作在庫 | W5: 合計 | X5: 外作 | AC5: HM | AG5: 合計 | AH5: 外作 | AJ5: H | AK5: M | AL5: 合計 | AM5: HM | AO5: HM | AP5: 合計 | AQ5: Kｓｓ品 | AR5: 基準在庫 | AS5: 在庫差異
C6: 機種名 | D6: 設変部番 | E6: ＬＰＤＣ | F6: ＬＰＤＣ | G6: ＬＰＤＣ | H6: 湯口付 | I6: 切断済 | J6: 湯口付 | K6: 切断済 | L6: 前処理 | N6: ツノダ | O6: OTR | P6: AMC | R6: 小計 | S6: T6 | T6: T7 | V6: 小計 | X6: ツノダ | Y6: OTR | Z6: AMC | AB6: 小計 | AC6: DC | AD6: 面削 | AF6: 小計 | AH6: AMC | AI6: 鈴与 | AJ6: S未 | AK6: S済 | AM6: AS済 | AN6: アルサーフ | AO6: 陸便 | AQ6: ＴＴＬ在庫 | AR6: vsMA*15.1日 | AS6: vs2MA
C7: ='①月末在庫(実)'!C7 -> MFL | D7: ='①月末在庫(実)'!D7 -> 12201 MFL 0002 AA | G7: =+AQ7+F7-E7 -> 90 | H7: ='①月末在庫(実)'!H7 -> 0 | I7: ='①月末在庫(実)'!I7 -> 0 | J7: ='①月末在庫(実)'!J7 -> 0 | K7: ='①月末在庫(実)'!K7 -> 0 | L7: ='①月末在庫(実)'!L7 -> 0 | M7: =SUM(H7:L7) -> 0 | N7: ='①月末在庫(実)'!N7 -> 0 | O7: ='①月末在庫(実)'!O7 -> 0 | P7: ='①月末在庫(実)'!P7 -> 0 | Q7: ='①月末在庫(実)'!Q7 -> 0 | R7: =SUM(N7:Q7) -> 0 | S7: ='①月末在庫(実)'!S7 -> 0 | T7: ='①月末在庫(実)'!T7 -> 0 | V7: =SUM(S7:U7) -> 0 | W7: =R7+V7 -> 0 | X7: ='①月末在庫(実)'!X7 -> 0 | Y7: ='①月末在庫(実)'!Y7 -> 0 | Z7: ='①月末在庫(実)'!Z7 -> 0 | AA7: ='①月末在庫(実)'!AA7 -> 0 | AB7: =SUM(X7:AA7) -> 0 | AC7: ='①月末在庫(実)'!AC7 -> 0 | AD7: ='①月末在庫(実)'!AD7 -> 0 | AE7: ='①月末在庫(実)'!AE7 -> 0 | AF7: =SUM(AC7:AE7) -> 0 | AG7: =AB7+AF7 -> 0 | AH7: ='①月末在庫(実)'!AH7 -> 0 | AI7: ='①月末在庫(実)'!AI7 -> 0 | AJ7: ='①月末在庫(実)'!AJ7 -> 90 | AK7: ='①月末在庫(実)'!AK7 -> 0 | AL7: =SUM(AH7:AK7) -> 90 | AM7: ='①月末在庫(実)'!AM7 -> 0 | AN7: ='①月末在庫(実)'!AN7 -> 0 | AO7: ='①月末在庫(実)'!AO7 -> 0 | AP7: =SUM(AM7:AO7) -> 0 | AQ7: =M7+W7+AG7+AL7+AP7 -> 90 | AR7: =+#REF!*15.1 ->  | AS7: =+AQ7-AR7 -> 
C8: ='①月末在庫(実)'!C8 -> MGPG | D8: ='①月末在庫(実)'!D8 -> 12201 MGP D601 AA | G8: =+AQ8+F8-E8 -> 45 | H8: ='①月末在庫(実)'!H8 -> 0 | I8: ='①月末在庫(実)'!I8 -> 0 | J8: ='①月末在庫(実)'!J8 -> 0 | K8: ='①月末在庫(実)'!K8 -> 0 | L8: ='①月末在庫(実)'!L8 -> 0 | M8: =SUM(H8:L8) -> 0 | N8: ='①月末在庫(実)'!N8 -> 0 | O8: ='①月末在庫(実)'!O8 -> 0 | P8: ='①月末在庫(実)'!P8 -> 0 | Q8: ='①月末在庫(実)'!Q8 -> 0 | R8: =SUM(N8:Q8) -> 0 | S8: ='①月末在庫(実)'!S8 -> 0 | T8: ='①月末在庫(実)'!T8 -> 37 | V8: 37 | W8: 37 | X8: ='①月末在庫(実)'!X8 -> 0 | Y8: ='①月末在庫(実)'!Y8 -> 0 | Z8: ='①月末在庫(実)'!Z8 -> 0 | AA8: ='①月末在庫(実)'!AA8 -> 0 | AB8: =SUM(X8:AA8) -> 0 | AC8: ='①月末在庫(実)'!AC8 -> 0 | AD8: ='①月末在庫(実)'!AD8 -> 0 | AE8: ='①月末在庫(実)'!AE8 -> 0 | AF8: 0 | AG8: 0 | AH8: ='①月末在庫(実)'!AH8 -> 0 | AI8: ='①月末在庫(実)'!AI8 -> 0 | AJ8: ='①月末在庫(実)'!AJ8 -> 0 | AK8: ='①月末在庫(実)'!AK8 -> 0 | AL8: =SUM(AH8:AK8) -> 0 | AM8: ='①月末在庫(実)'!AM8 -> 8 | AN8: ='①月末在庫(実)'!AN8 -> 0 | AO8: ='①月末在庫(実)'!AO8 -> 0 | AP8: =SUM(AM8:AO8) -> 8 | AQ8: =M8+W8+AG8+AL8+AP8 -> 45 | AR8: =+#REF!*15.1 -> 
C9: ='①月末在庫(実)'!C9 -> MFJ | D9: ='①月末在庫(実)'!D9 -> 12201 MFJ A401 AA | G9: 1459 | H9: ='①月末在庫(実)'!H9 -> 0 | I9: ='①月末在庫(実)'!I9 -> 0 | J9: ='①月末在庫(実)'!J9 -> 0 | K9: ='①月末在庫(実)'!K9 -> 0 | L9: ='①月末在庫(実)'!L9 -> 0 | M9: =SUM(H9:L9) -> 0 | N9: ='①月末在庫(実)'!N9 -> 0 | O9: ='①月末在庫(実)'!O9 -> 256 | P9: ='①月末在庫(実)'!P9 -> 0 | Q9: ='①月末在庫(実)'!Q9 -> 0 | R9: =SUM(N9:Q9) -> 256 | S9: ='①月末在庫(実)'!S9 -> 0 | T9: ='①月末在庫(実)'!T9 -> 98 | V9: 98 | W9: 354 | X9: ='①月末在庫(実)'!X9 -> 0 | Y9: ='①月末在庫(実)'!Y9 -> 0 | Z9: ='①月末在庫(実)'!Z9 -> 0 | AA9: ='①月末在庫(実)'!AA9 -> 0 | AB9: =SUM(X9:AA9) -> 0 | AC9: ='①月末在庫(実)'!AC9 -> 532 | AD9: ='①月末在庫(実)'!AD9 -> 0 | AE9: ='①月末在庫(実)'!AE9 -> 0 | AF9: 532 | AG9: 532 | AH9: ='①月末在庫(実)'!AH9 -> 0 | AI9: ='①月末在庫(実)'!AI9 -> 270 | AJ9: ='①月末在庫(実)'!AJ9 -> 180 | AK9: ='①月末在庫(実)'!AK9 -> 0 | AL9: =SUM(AH9:AK9) -> 450 | AM9: ='①月末在庫(実)'!AM9 -> 123 | AN9: ='①月末在庫(実)'!AN9 -> 0 | AO9: ='①月末在庫(実)'!AO9 -> 0 | AP9: =SUM(AM9:AO9) -> 123 | AQ9: 1459 | AR9: =+#REF!*15.1 -> 
C10: ='①月末在庫(実)'!C10 -> MFG(MER) | D10: ='①月末在庫(実)'!D10 -> 12201 MFG D001 AA | G10: 0 | H10: ='①月末在庫(実)'!H10 -> 0 | I10: ='①月末在庫(実)'!I10 -> 0 | J10: ='①月末在庫(実)'!J10 -> 0 | K10: ='①月末在庫(実)'!K10 -> 0 | L10: ='①月末在庫(実)'!L10 -> 0 | M10: 0 | N10: ='①月末在庫(実)'!N10 -> 0 | O10: ='①月末在庫(実)'!O10 -> 0 | P10: ='①月末在庫(実)'!P10 -> 0 | Q10: ='①月末在庫(実)'!Q10 -> 0 | R10: 0 | S10: ='①月末在庫(実)'!S10 -> 0 | T10: ='①月末在庫(実)'!T10 -> 0 | V10: 0 | W10: 0 | X10: ='①月末在庫(実)'!X10 -> 0 | Y10: ='①月末在庫(実)'!Y10 -> 0 | Z10: ='①月末在庫(実)'!Z10 -> 0 | AA10: ='①月末在庫(実)'!AA10 -> 0 | AB10: 0 | AC10: ='①月末在庫(実)'!AC10 -> 0 | AD10: ='①月末在庫(実)'!AD10 -> 0 | AE10: ='①月末在庫(実)'!AE10 -> 0 | AF10: 0 | AG10: 0 | AH10: ='①月末在庫(実)'!AH10 -> 0 | AI10: ='①月末在庫(実)'!AI10 -> 0 | AJ10: ='①月末在庫(実)'!AJ10 -> 0 | AK10: ='①月末在庫(実)'!AK10 -> 0 | AL10: 0 | AM10: ='①月末在庫(実)'!AM10 -> 0 | AN10: ='①月末在庫(実)'!AN10 -> 0 | AO10: ='①月末在庫(実)'!AO10 -> 0 | AP10: 0 | AQ10: 0 | AR10: =+#REF!*15.1 -> 
C11: ='①月末在庫(実)'!C11 -> MFA | D11: ='①月末在庫(実)'!D11 -> 12201 MFA D001 AA | G11: 65 | H11: ='①月末在庫(実)'!H11 -> 0 | I11: ='①月末在庫(実)'!I11 -> 0 | J11: ='①月末在庫(実)'!J11 -> 0 | K11: ='①月末在庫(実)'!K11 -> 0 | L11: ='①月末在庫(実)'!L11 -> 0 | M11: 0 | N11: ='①月末在庫(実)'!N11 -> 0 | O11: ='①月末在庫(実)'!O11 -> 0 | P11: ='①月末在庫(実)'!P11 -> 0 | Q11: ='①月末在庫(実)'!Q11 -> 0 | R11: 0 | S11: ='①月末在庫(実)'!S11 -> 0 | T11: ='①月末在庫(実)'!T11 -> 65 | V11: 65 | W11: 65 | X11: ='①月末在庫(実)'!X11 -> 0 | Y11: ='①月末在庫(実)'!Y11 -> 0 | Z11: ='①月末在庫(実)'!Z11 -> 0 | AA11: ='①月末在庫(実)'!AA11 -> 0 | AB11: 0 | AC11: ='①月末在庫(実)'!AC11 -> 0 | AD11: ='①月末在庫(実)'!AD11 -> 0 | AE11: ='①月末在庫(実)'!AE11 -> 0 | AF11: 0 | AG11: 0 | AH11: ='①月末在庫(実)'!AH11 -> 0 | AI11: ='①月末在庫(実)'!AI11 -> 0 | AJ11: ='①月末在庫(実)'!AJ11 -> 0 | AK11: ='①月末在庫(実)'!AK11 -> 0 | AL11: 0 | AM11: ='①月末在庫(実)'!AM11 -> 0 | AN11: ='①月末在庫(実)'!AN11 -> 0 | AO11: ='①月末在庫(実)'!AO11 -> 0 | AP11: 0 | AQ11: 65 | AR11: =+#REF!*15.1 -> 
C12: ='①月末在庫(実)'!C12 -> MFPV | D12: ='①月末在庫(実)'!D12 -> 12201 MFP JC00 AA | G12: 11 | H12: ='①月末在庫(実)'!H12 -> 0 | I12: ='①月末在庫(実)'!I12 -> 0 | J12: ='①月末在庫(実)'!J12 -> 0 | K12: ='①月末在庫(実)'!K12 -> 0 | L12: ='①月末在庫(実)'!L12 -> 0 | M12: 0 | N12: ='①月末在庫(実)'!N12 -> 0 | O12: ='①月末在庫(実)'!O12 -> 0 | P12: ='①月末在庫(実)'!P12 -> 0 | Q12: ='①月末在庫(実)'!Q12 -> 0 | R12: 0 | S12: ='①月末在庫(実)'!S12 -> 0 | T12: ='①月末在庫(実)'!T12 -> 11 | V12: 11 | W12: 11 | X12: ='①月末在庫(実)'!X12 -> 0 | Y12: ='①月末在庫(実)'!Y12 -> 0 | Z12: ='①月末在庫(実)'!Z12 -> 0 | AA12: ='①月末在庫(実)'!AA12 -> 0 | AB12: 0 | AC12: ='①月末在庫(実)'!AC12 -> 0 | AD12: ='①月末在庫(実)'!AD12 -> 0 | AE12: ='①月末在庫(実)'!AE12 -> 0 | AF12: 0 | AG12: 0 | AH12: ='①月末在庫(実)'!AH12 -> 0 | AI12: ='①月末在庫(実)'!AI12 -> 0 | AJ12: ='①月末在庫(実)'!AJ12 -> 0 | AK12: ='①月末在庫(実)'!AK12 -> 0 | AL12: 0 | AM12: ='①月末在庫(実)'!AM12 -> 0 | AN12: ='①月末在庫(実)'!AN12 -> 0 | AO12: ='①月末在庫(実)'!AO12 -> 0 | AP12: 0 | AQ12: 11 | AR12: =+#REF!*15.1 -> 
C13: ='①月末在庫(実)'!C13 -> MEJ | D13: ='①月末在庫(実)'!D13 -> 12201 MEJ 3001 AA | G13: 158 | H13: ='①月末在庫(実)'!H13 -> 0 | I13: ='①月末在庫(実)'!I13 -> 0 | J13: ='①月末在庫(実)'!J13 -> 0 | K13: ='①月末在庫(実)'!K13 -> 0 | L13: ='①月末在庫(実)'!L13 -> 0 | M13: 0 | N13: ='①月末在庫(実)'!N13 -> 0 | O13: ='①月末在庫(実)'!O13 -> 0 | P13: ='①月末在庫(実)'!P13 -> 0 | Q13: ='①月末在庫(実)'!Q13 -> 0 | R13: 0 | S13: ='①月末在庫(実)'!S13 -> 0 | T13: ='①月末在庫(実)'!T13 -> 0 | V13: 0 | W13: 0 | X13: ='①月末在庫(実)'!X13 -> 0 | Y13: ='①月末在庫(実)'!Y13 -> 0 | Z13: ='①月末在庫(実)'!Z13 -> 0 | AA13: ='①月末在庫(実)'!AA13 -> 0 | AB13: 0 | AC13: ='①月末在庫(実)'!AC13 -> 30 | AD13: ='①月末在庫(実)'!AD13 -> 0 | AE13: ='①月末在庫(実)'!AE13 -> 0 | AF13: 30 | AG13: 30 | AH13: ='①月末在庫(実)'!AH13 -> 0 | AI13: ='①月末在庫(実)'!AI13 -> 0 | AJ13: ='①月末在庫(実)'!AJ13 -> 0 | AK13: ='①月末在庫(実)'!AK13 -> 128 | AL13: 128 | AM13: ='①月末在庫(実)'!AM13 -> 0 | AN13: ='①月末在庫(実)'!AN13 -> 0 | AO13: ='①月末在庫(実)'!AO13 -> 0 | AP13: 0 | AQ13: 158 | AR13: =+#REF!*15.1 -> 
C14: ='①月末在庫(実)'!C14 -> MGEf | D14: ='①月末在庫(実)'!D14 -> 12211 MGE 0001 AA | G14: 272 | H14: ='①月末在庫(実)'!H14 -> 0 | I14: ='①月末在庫(実)'!I14 -> 0 | J14: ='①月末在庫(実)'!J14 -> 0 | K14: ='①月末在庫(実)'!K14 -> 0 | L14: ='①月末在庫(実)'!L14 -> 0 | M14: 0 | N14: ='①月末在庫(実)'!N14 -> 0 | O14: ='①月末在庫(実)'!O14 -> 0 | P14: ='①月末在庫(実)'!P14 -> 0 | Q14: ='①月末在庫(実)'!Q14 -> 0 | R14: 0 | S14: ='①月末在庫(実)'!S14 -> 0 | T14: ='①月末在庫(実)'!T14 -> 0 | V14: 0 | W14: 0 | X14: ='①月末在庫(実)'!X14 -> 0 | Y14: ='①月末在庫(実)'!Y14 -> 0 | Z14: ='①月末在庫(実)'!Z14 -> 0 | AA14: ='①月末在庫(実)'!AA14 -> 0 | AB14: 0 | AC14: ='①月末在庫(実)'!AC14 -> 0 | AD14: ='①月末在庫(実)'!AD14 -> 0 | AE14: ='①月末在庫(実)'!AE14 -> 0 | AF14: 0 | AG14: 0 | AH14: ='①月末在庫(実)'!AH14 -> 0 | AI14: ='①月末在庫(実)'!AI14 -> 0 | AJ14: ='①月末在庫(実)'!AJ14 -> 272 | AK14: ='①月末在庫(実)'!AK14 -> 0 | AL14: 272 | AM14: ='①月末在庫(実)'!AM14 -> 0 | AN14: ='①月末在庫(実)'!AN14 -> 0 | AO14: ='①月末在庫(実)'!AO14 -> 0 | AP14: 0 | AQ14: 272 | AR14: =+#REF!*15.1 -> 
C15: ='①月末在庫(実)'!C15 -> MGEr | D15: ='①月末在庫(実)'!D15 -> 12221 MGE 0001 AA | G15: 304 | H15: ='①月末在庫(実)'!H15 -> 0 | I15: ='①月末在庫(実)'!I15 -> 0 | J15: ='①月末在庫(実)'!J15 -> 0 | K15: ='①月末在庫(実)'!K15 -> 0 | L15: ='①月末在庫(実)'!L15 -> 0 | M15: 0 | N15: ='①月末在庫(実)'!N15 -> 0 | O15: ='①月末在庫(実)'!O15 -> 0 | P15: ='①月末在庫(実)'!P15 -> 0 | Q15: ='①月末在庫(実)'!Q15 -> 0 | R15: 0 | S15: ='①月末在庫(実)'!S15 -> 0 | T15: ='①月末在庫(実)'!T15 -> 0 | V15: 0 | W15: 0 | X15: ='①月末在庫(実)'!X15 -> 0 | Y15: ='①月末在庫(実)'!Y15 -> 0 | Z15: ='①月末在庫(実)'!Z15 -> 0 | AA15: ='①月末在庫(実)'!AA15 -> 0 | AB15: 0 | AC15: ='①月末在庫(実)'!AC15 -> 55 | AD15: ='①月末在庫(実)'!AD15 -> 0 | AE15: ='①月末在庫(実)'!AE15 -> 0 | AF15: 55 | AG15: 55 | AH15: ='①月末在庫(実)'!AH15 -> 0 | AI15: ='①月末在庫(実)'!AI15 -> 0 | AJ15: ='①月末在庫(実)'!AJ15 -> 249 | AK15: ='①月末在庫(実)'!AK15 -> 0 | AL15: 249 | AM15: ='①月末在庫(実)'!AM15 -> 0 | AN15: ='①月末在庫(実)'!AN15 -> 0 | AO15: ='①月末在庫(実)'!AO15 -> 0 | AP15: 0 | AQ15: 304 | AR15: =+#REF!*15.1 -> 
C16: ='①月末在庫(実)'!C16 -> MBTf | D16: ='①月末在庫(実)'!D16 -> 12211 MBT F201 AA | G16: 0 | H16: ='①月末在庫(実)'!H16 -> 0 | I16: ='①月末在庫(実)'!I16 -> 0 | J16: ='①月末在庫(実)'!J16 -> 0 | K16: ='①月末在庫(実)'!K16 -> 0 | L16: ='①月末在庫(実)'!L16 -> 0 | M16: 0 | N16: ='①月末在庫(実)'!N16 -> 0 | O16: ='①月末在庫(実)'!O16 -> 0 | P16: ='①月末在庫(実)'!P16 -> 0 | Q16: ='①月末在庫(実)'!Q16 -> 0 | R16: 0 | S16: ='①月末在庫(実)'!S16 -> 0 | T16: ='①月末在庫(実)'!T16 -> 0 | V16: 0 | W16: 0 | X16: ='①月末在庫(実)'!X16 -> 0 | Y16: ='①月末在庫(実)'!Y16 -> 0 | Z16: ='①月末在庫(実)'!Z16 -> 0 | AA16: ='①月末在庫(実)'!AA16 -> 0 | AB16: 0 | AC16: ='①月末在庫(実)'!AC16 -> 0 | AD16: ='①月末在庫(実)'!AD16 -> 0 | AE16: ='①月末在庫(実)'!AE16 -> 0 | AF16: 0 | AG16: 0 | AH16: ='①月末在庫(実)'!AH16 -> 0 | AI16: ='①月末在庫(実)'!AI16 -> 0 | AJ16: ='①月末在庫(実)'!AJ16 -> 0 | AK16: ='①月末在庫(実)'!AK16 -> 0 | AL16: 0 | AM16: ='①月末在庫(実)'!AM16 -> 0 | AN16: ='①月末在庫(実)'!AN16 -> 0 | AO16: ='①月末在庫(実)'!AO16 -> 0 | AP16: 0 | AQ16: 0 | AR16: =+#REF!*15.1 -> 
C17: ='①月末在庫(実)'!C17 -> MBTr | D17: ='①月末在庫(実)'!D17 -> 12221 MBT F201 AA | G17: 0 | H17: ='①月末在庫(実)'!H17 -> 0 | I17: ='①月末在庫(実)'!I17 -> 0 | J17: ='①月末在庫(実)'!J17 -> 0 | K17: ='①月末在庫(実)'!K17 -> 0 | L17: ='①月末在庫(実)'!L17 -> 0 | M17: 0 | N17: ='①月末在庫(実)'!N17 -> 0 | O17: ='①月末在庫(実)'!O17 -> 0 | P17: ='①月末在庫(実)'!P17 -> 0 | Q17: ='①月末在庫(実)'!Q17 -> 0 | R17: 0 | S17: ='①月末在庫(実)'!S17 -> 0 | T17: ='①月末在庫(実)'!T17 -> 0 | V17: 0 | W17: 0 | X17: ='①月末在庫(実)'!X17 -> 0 | Y17: ='①月末在庫(実)'!Y17 -> 0 | Z17: ='①月末在庫(実)'!Z17 -> 0 | AA17: ='①月末在庫(実)'!AA17 -> 0 | AB17: 0 | AC17: ='①月末在庫(実)'!AC17 -> 0 | AD17: ='①月末在庫(実)'!AD17 -> 0 | AE17: ='①月末在庫(実)'!AE17 -> 0 | AF17: 0 | AG17: 0 | AH17: ='①月末在庫(実)'!AH17 -> 0 | AI17: ='①月末在庫(実)'!AI17 -> 0 | AJ17: ='①月末在庫(実)'!AJ17 -> 0 | AK17: ='①月末在庫(実)'!AK17 -> 0 | AL17: 0 | AM17: ='①月末在庫(実)'!AM17 -> 0 | AN17: ='①月末在庫(実)'!AN17 -> 0 | AO17: ='①月末在庫(実)'!AO17 -> 0 | AP17: 0 | AQ17: =M17+W17+AG17+AL17+AP17 -> 0 | AR17: =+#REF!*15.1 -> 
C18: ='①月末在庫(実)'!C18 -> MCWf | D18: ='①月末在庫(実)'!D18 -> 12210 MCW 0001 AA | G18: 28 | H18: ='①月末在庫(実)'!H18 -> 0 | I18: ='①月末在庫(実)'!I18 -> 0 | J18: ='①月末在庫(実)'!J18 -> 0 | K18: ='①月末在庫(実)'!K18 -> 0 | L18: ='①月末在庫(実)'!L18 -> 0 | M18: 0 | N18: ='①月末在庫(実)'!N18 -> 0 | O18: ='①月末在庫(実)'!O18 -> 0 | P18: ='①月末在庫(実)'!P18 -> 0 | Q18: ='①月末在庫(実)'!Q18 -> 0 | R18: 0 | S18: ='①月末在庫(実)'!S18 -> 0 | T18: ='①月末在庫(実)'!T18 -> 0 | V18: 0 | W18: 0 | X18: ='①月末在庫(実)'!X18 -> 0 | Y18: ='①月末在庫(実)'!Y18 -> 0 | Z18: ='①月末在庫(実)'!Z18 -> 0 | AA18: ='①月末在庫(実)'!AA18 -> 0 | AB18: 0 | AC18: ='①月末在庫(実)'!AC18 -> 0 | AD18: ='①月末在庫(実)'!AD18 -> 0 | AE18: ='①月末在庫(実)'!AE18 -> 0 | AF18: 0 | AG18: 0 | AH18: ='①月末在庫(実)'!AH18 -> 0 | AI18: ='①月末在庫(実)'!AI18 -> 0 | AJ18: ='①月末在庫(実)'!AJ18 -> 28 | AK18: ='①月末在庫(実)'!AK18 -> 0 | AL18: 28 | AM18: ='①月末在庫(実)'!AM18 -> 0 | AN18: ='①月末在庫(実)'!AN18 -> 0 | AO18: ='①月末在庫(実)'!AO18 -> 0 | AP18: 0 | AQ18: 28 | AR18: =+#REF!*15.1 -> 
C19: ='①月末在庫(実)'!C19 -> MCWr | D19: ='①月末在庫(実)'!D19 -> 12220 MCW 0001 AA | G19: 18 | H19: ='①月末在庫(実)'!H19 -> 0 | I19: ='①月末在庫(実)'!I19 -> 0 | J19: ='①月末在庫(実)'!J19 -> 0 | K19: ='①月末在庫(実)'!K19 -> 0 | L19: ='①月末在庫(実)'!L19 -> 0 | M19: 0 | N19: ='①月末在庫(実)'!N19 -> 0 | O19: ='①月末在庫(実)'!O19 -> 0 | P19: ='①月末在庫(実)'!P19 -> 0 | Q19: ='①月末在庫(実)'!Q19 -> 0 | R19: 0 | S19: ='①月末在庫(実)'!S19 -> 0 | T19: ='①月末在庫(実)'!T19 -> 0 | V19: 0 | W19: 0 | X19: ='①月末在庫(実)'!X19 -> 0 | Y19: ='①月末在庫(実)'!Y19 -> 0 | Z19: ='①月末在庫(実)'!Z19 -> 0 | AA19: ='①月末在庫(実)'!AA19 -> 0 | AB19: 0 | AC19: ='①月末在庫(実)'!AC19 -> 0 | AD19: ='①月末在庫(実)'!AD19 -> 0 | AE19: ='①月末在庫(実)'!AE19 -> 0 | AF19: 0 | AG19: 0 | AH19: ='①月末在庫(実)'!AH19 -> 0 | AI19: ='①月末在庫(実)'!AI19 -> 0 | AJ19: ='①月末在庫(実)'!AJ19 -> 18 | AK19: ='①月末在庫(実)'!AK19 -> 0 | AL19: 18 | AM19: ='①月末在庫(実)'!AM19 -> 0 | AN19: ='①月末在庫(実)'!AN19 -> 0 | AO19: ='①月末在庫(実)'!AO19 -> 0 | AP19: 0 | AQ19: 18 | AR19: =+#REF!*15.1 -> 
C20: ='①月末在庫(実)'!C20 -> MJNr | D20: ='①月末在庫(実)'!D20 -> 12211 MJN A000 AA | G20: 60 | H20: ='①月末在庫(実)'!H20 -> 0 | I20: ='①月末在庫(実)'!I20 -> 0 | J20: ='①月末在庫(実)'!J20 -> 0 | K20: ='①月末在庫(実)'!K20 -> 0 | L20: ='①月末在庫(実)'!L20 -> 0 | M20: 0 | N20: ='①月末在庫(実)'!N20 -> 0 | O20: ='①月末在庫(実)'!O20 -> 0 | P20: ='①月末在庫(実)'!P20 -> 0 | Q20: ='①月末在庫(実)'!Q20 -> 0 | R20: 0 | S20: ='①月末在庫(実)'!S20 -> 0 | T20: ='①月末在庫(実)'!T20 -> 60 | V20: 60 | W20: 60 | X20: ='①月末在庫(実)'!X20 -> 0 | Y20: ='①月末在庫(実)'!Y20 -> 0 | Z20: ='①月末在庫(実)'!Z20 -> 0 | AA20: ='①月末在庫(実)'!AA20 -> 0 | AB20: 0 | AC20: ='①月末在庫(実)'!AC20 -> 0 | AD20: ='①月末在庫(実)'!AD20 -> 0 | AE20: ='①月末在庫(実)'!AE20 -> 0 | AF20: 0 | AG20: 0 | AH20: ='①月末在庫(実)'!AH20 -> 0 | AI20: ='①月末在庫(実)'!AI20 -> 0 | AJ20: ='①月末在庫(実)'!AJ20 -> 0 | AK20: ='①月末在庫(実)'!AK20 -> 0 | AL20: 0 | AM20: ='①月末在庫(実)'!AM20 -> 0 | AN20: ='①月末在庫(実)'!AN20 -> 0 | AO20: ='①月末在庫(実)'!AO20 -> 0 | AP20: 0 | AQ20: 60 | AR20: =+#REF!*15.1 -> 
C21: ='①月末在庫(実)'!C21 -> MCSl | D21: ='①月末在庫(実)'!D21 -> 12221 MCS D801 AA | G21: 45 | H21: ='①月末在庫(実)'!H21 -> 0 | I21: ='①月末在庫(実)'!I21 -> 0 | J21: ='①月末在庫(実)'!J21 -> 0 | K21: ='①月末在庫(実)'!K21 -> 0 | L21: ='①月末在庫(実)'!L21 -> 0 | M21: 0 | N21: ='①月末在庫(実)'!N21 -> 0 | O21: ='①月末在庫(実)'!O21 -> 0 | P21: ='①月末在庫(実)'!P21 -> 0 | Q21: ='①月末在庫(実)'!Q21 -> 0 | R21: 0 | S21: ='①月末在庫(実)'!S21 -> 0 | T21: ='①月末在庫(実)'!T21 -> 45 | V21: 45 | W21: 45 | X21: ='①月末在庫(実)'!X21 -> 0 | Y21: ='①月末在庫(実)'!Y21 -> 0 | Z21: ='①月末在庫(実)'!Z21 -> 0 | AA21: ='①月末在庫(実)'!AA21 -> 0 | AB21: 0 | AC21: ='①月末在庫(実)'!AC21 -> 0 | AD21: ='①月末在庫(実)'!AD21 -> 0 | AE21: ='①月末在庫(実)'!AE21 -> 0 | AF21: 0 | AG21: 0 | AH21: ='①月末在庫(実)'!AH21 -> 0 | AI21: ='①月末在庫(実)'!AI21 -> 0 | AJ21: ='①月末在庫(実)'!AJ21 -> 0 | AK21: ='①月末在庫(実)'!AK21 -> 0 | AL21: 0 | AM21: ='①月末在庫(実)'!AM21 -> 0 | AN21: ='①月末在庫(実)'!AN21 -> 0 | AO21: ='①月末在庫(実)'!AO21 -> 0 | AP21: 0 | AQ21: 45 | AR21: =+#REF!*15.1 -> 
C22: ='①月末在庫(実)'!C22 -> MKF | D22: ='①月末在庫(実)'!D22 -> 12201 MKF D700 AA | G22: 465 | H22: ='①月末在庫(実)'!H22 -> 0 | I22: ='①月末在庫(実)'!I22 -> 0 | J22: ='①月末在庫(実)'!J22 -> 0 | K22: ='①月末在庫(実)'!K22 -> 0 | L22: ='①月末在庫(実)'!L22 -> 0 | M22: 0 | N22: ='①月末在庫(実)'!N22 -> 0 | O22: ='①月末在庫(実)'!O22 -> 0 | P22: ='①月末在庫(実)'!P22 -> 0 | Q22: ='①月末在庫(実)'!Q22 -> 0 | R22: 0 | S22: ='①月末在庫(実)'!S22 -> 0 | T22: ='①月末在庫(実)'!T22 -> 244 | V22: 244 | W22: 244 | X22: ='①月末在庫(実)'!X22 -> 0 | Y22: ='①月末在庫(実)'!Y22 -> 0 | Z22: ='①月末在庫(実)'!Z22 -> 0 | AA22: ='①月末在庫(実)'!AA22 -> 0 | AB22: 0 | AC22: ='①月末在庫(実)'!AC22 -> 0 | AD22: ='①月末在庫(実)'!AD22 -> 0 | AE22: ='①月末在庫(実)'!AE22 -> 0 | AF22: 0 | AG22: 0 | AH22: ='①月末在庫(実)'!AH22 -> 0 | AI22: ='①月末在庫(実)'!AI22 -> 0 | AJ22: ='①月末在庫(実)'!AJ22 -> 0 | AK22: ='①月末在庫(実)'!AK22 -> 0 | AL22: 0 | AM22: ='①月末在庫(実)'!AM22 -> 221 | AN22: ='①月末在庫(実)'!AN22 -> 0 | AO22: ='①月末在庫(実)'!AO22 -> 0 | AP22: 221 | AQ22: 465 | AR22: =+#REF!*15.1 -> 
C23: ='①月末在庫(実)'!C23 -> MCAr | D23: ='①月末在庫(実)'!D23 -> 12211 MCA 7801 AA | G23: 22 | H23: ='①月末在庫(実)'!H23 -> 0 | I23: ='①月末在庫(実)'!I23 -> 0 | J23: ='①月末在庫(実)'!J23 -> 0 | K23: ='①月末在庫(実)'!K23 -> 0 | L23: ='①月末在庫(実)'!L23 -> 0 | M23: 0 | N23: ='①月末在庫(実)'!N23 -> 0 | O23: ='①月末在庫(実)'!O23 -> 0 | P23: ='①月末在庫(実)'!P23 -> 0 | Q23: ='①月末在庫(実)'!Q23 -> 0 | R23: 0 | S23: ='①月末在庫(実)'!S23 -> 0 | T23: ='①月末在庫(実)'!T23 -> 0 | V23: 0 | W23: 0 | X23: ='①月末在庫(実)'!X23 -> 0 | Y23: ='①月末在庫(実)'!Y23 -> 0 | Z23: ='①月末在庫(実)'!Z23 -> 0 | AA23: ='①月末在庫(実)'!AA23 -> 0 | AB23: 0 | AC23: ='①月末在庫(実)'!AC23 -> 0 | AD23: ='①月末在庫(実)'!AD23 -> 0 | AE23: ='①月末在庫(実)'!AE23 -> 0 | AF23: 0 | AG23: 0 | AH23: ='①月末在庫(実)'!AH23 -> 0 | AI23: ='①月末在庫(実)'!AI23 -> 0 | AJ23: ='①月末在庫(実)'!AJ23 -> 22 | AK23: ='①月末在庫(実)'!AK23 -> 0 | AL23: 22 | AM23: ='①月末在庫(実)'!AM23 -> 0 | AN23: ='①月末在庫(実)'!AN23 -> 0 | AO23: ='①月末在庫(実)'!AO23 -> 0 | AP23: 0 | AQ23: 22 | AR23: =+#REF!*15.1 -> 
C24: ='①月末在庫(実)'!C24 -> MCAl | D24: ='①月末在庫(実)'!D24 -> 12221 MCA 7801 AA | G24: 96 | H24: ='①月末在庫(実)'!H24 -> 0 | I24: ='①月末在庫(実)'!I24 -> 0 | J24: ='①月末在庫(実)'!J24 -> 0 | K24: ='①月末在庫(実)'!K24 -> 0 | L24: ='①月末在庫(実)'!L24 -> 0 | M24: 0 | N24: ='①月末在庫(実)'!N24 -> 0 | O24: ='①月末在庫(実)'!O24 -> 0 | P24: ='①月末在庫(実)'!P24 -> 0 | Q24: ='①月末在庫(実)'!Q24 -> 0 | R24: 0 | S24: ='①月末在庫(実)'!S24 -> 0 | T24: ='①月末在庫(実)'!T24 -> 96 | V24: 96 | W24: 96 | X24: ='①月末在庫(実)'!X24 -> 0 | Y24: ='①月末在庫(実)'!Y24 -> 0 | Z24: ='①月末在庫(実)'!Z24 -> 0 | AA24: ='①月末在庫(実)'!AA24 -> 0 | AB24: 0 | AC24: ='①月末在庫(実)'!AC24 -> 0 | AD24: ='①月末在庫(実)'!AD24 -> 0 | AE24: ='①月末在庫(実)'!AE24 -> 0 | AF24: 0 | AG24: 0 | AH24: ='①月末在庫(実)'!AH24 -> 0 | AI24: ='①月末在庫(実)'!AI24 -> 0 | AJ24: ='①月末在庫(実)'!AJ24 -> 0 | AK24: ='①月末在庫(実)'!AK24 -> 0 | AL24: 0 | AM24: ='①月末在庫(実)'!AM24 -> 0 | AN24: ='①月末在庫(実)'!AN24 -> 0 | AO24: ='①月末在庫(実)'!AO24 -> 0 | AP24: 0 | AQ24: 96 | AR24: =+#REF!*15.1 -> 
C25: ='①月末在庫(実)'!C25 -> MGC | D25: ='①月末在庫(実)'!D25 -> 12201 MGC 0001 AA | G25: 457 | H25: ='①月末在庫(実)'!H25 -> 0 | I25: ='①月末在庫(実)'!I25 -> 0 | J25: ='①月末在庫(実)'!J25 -> 0 | K25: ='①月末在庫(実)'!K25 -> 320 | L25: ='①月末在庫(実)'!L25 -> 0 | M25: 320 | N25: ='①月末在庫(実)'!N25 -> 0 | O25: ='①月末在庫(実)'!O25 -> 0 | P25: ='①月末在庫(実)'!P25 -> 0 | Q25: ='①月末在庫(実)'!Q25 -> 0 | R25: 0 | S25: ='①月末在庫(実)'!S25 -> 0 | T25: ='①月末在庫(実)'!T25 -> 0 | V25: 0 | W25: 0 | X25: ='①月末在庫(実)'!X25 -> 0 | Y25: ='①月末在庫(実)'!Y25 -> 0 | Z25: ='①月末在庫(実)'!Z25 -> 0 | AA25: ='①月末在庫(実)'!AA25 -> 0 | AB25: 0 | AC25: ='①月末在庫(実)'!AC25 -> 98 | AD25: ='①月末在庫(実)'!AD25 -> 0 | AE25: ='①月末在庫(実)'!AE25 -> 0 | AF25: 98 | AG25: 98 | AH25: ='①月末在庫(実)'!AH25 -> 0 | AI25: ='①月末在庫(実)'!AI25 -> 0 | AJ25: ='①月末在庫(実)'!AJ25 -> 29 | AK25: ='①月末在庫(実)'!AK25 -> 10 | AL25: 39 | AM25: ='①月末在庫(実)'!AM25 -> 0 | AN25: ='①月末在庫(実)'!AN25 -> 0 | AO25: ='①月末在庫(実)'!AO25 -> 0 | AP25: 0 | AQ25: 457 | AR25: =+#REF!*15.1 -> 
C26: ='①月末在庫(実)'!C26 -> MFLc | D26: ='①月末在庫(実)'!D26 -> 12100 MFL 0001 AA | G26: 0 | H26: ='①月末在庫(実)'!H26 -> 0 | I26: ='①月末在庫(実)'!I26 -> 0 | J26: ='①月末在庫(実)'!J26 -> 0 | K26: ='①月末在庫(実)'!K26 -> 0 | L26: ='①月末在庫(実)'!L26 -> 0 | M26: 0 | N26: ='①月末在庫(実)'!N26 -> 0 | O26: ='①月末在庫(実)'!O26 -> 0 | P26: ='①月末在庫(実)'!P26 -> 0 | Q26: ='①月末在庫(実)'!Q26 -> 0 | R26: 0 | S26: ='①月末在庫(実)'!S26 -> 0 | T26: ='①月末在庫(実)'!T26 -> 0 | V26: 0 | W26: 0 | X26: ='①月末在庫(実)'!X26 -> 0 | Y26: ='①月末在庫(実)'!Y26 -> 0 | Z26: ='①月末在庫(実)'!Z26 -> 0 | AA26: ='①月末在庫(実)'!AA26 -> 0 | AB26: 0 | AC26: ='①月末在庫(実)'!AC26 -> 0 | AD26: ='①月末在庫(実)'!AD26 -> 0 | AE26: ='①月末在庫(実)'!AE26 -> 0 | AF26: 0 | AG26: 0 | AH26: ='①月末在庫(実)'!AH26 -> 0 | AI26: ='①月末在庫(実)'!AI26 -> 0 | AJ26: ='①月末在庫(実)'!AJ26 -> 0 | AK26: ='①月末在庫(実)'!AK26 -> 0 | AL26: 0 | AM26: ='①月末在庫(実)'!AM26 -> 0 | AN26: ='①月末在庫(実)'!AN26 -> 0 | AO26: ='①月末在庫(実)'!AO26 -> 0 | AP26: 0 | AQ26: 0 | AR26: =+#REF!*15.1 -> 
C27: ='①月末在庫(実)'!C27 -> MGS | D27: ='①月末在庫(実)'!D27 -> 12200 MGS 0002 AA | G27: 110 | H27: ='①月末在庫(実)'!H27 -> 0 | I27: ='①月末在庫(実)'!I27 -> 0 | J27: ='①月末在庫(実)'!J27 -> 0 | K27: ='①月末在庫(実)'!K27 -> 0 | L27: ='①月末在庫(実)'!L27 -> 0 | M27: 0 | N27: ='①月末在庫(実)'!N27 -> 0 | O27: ='①月末在庫(実)'!O27 -> 0 | P27: ='①月末在庫(実)'!P27 -> 0 | Q27: ='①月末在庫(実)'!Q27 -> 0 | R27: 0 | S27: ='①月末在庫(実)'!S27 -> 0 | T27: ='①月末在庫(実)'!T27 -> 0 | V27: 0 | W27: 0 | X27: ='①月末在庫(実)'!X27 -> 0 | Y27: ='①月末在庫(実)'!Y27 -> 0 | Z27: ='①月末在庫(実)'!Z27 -> 0 | AA27: ='①月末在庫(実)'!AA27 -> 0 | AB27: 0 | AC27: ='①月末在庫(実)'!AC27 -> 68 | AD27: ='①月末在庫(実)'!AD27 -> 0 | AE27: ='①月末在庫(実)'!AE27 -> 0 | AF27: 68 | AG27: 68 | AH27: ='①月末在庫(実)'!AH27 -> 0 | AI27: ='①月末在庫(実)'!AI27 -> 0 | AJ27: ='①月末在庫(実)'!AJ27 -> 42 | AK27: ='①月末在庫(実)'!AK27 -> 0 | AL27: 42 | AM27: ='①月末在庫(実)'!AM27 -> 0 | AN27: ='①月末在庫(実)'!AN27 -> 0 | AO27: ='①月末在庫(実)'!AO27 -> 0 | AP27: 0 | AQ27: 110 | AR27: =+#REF!*15.1 -> 
C28: ='①月末在庫(実)'!C28 -> MJH | D28: ='①月末在庫(実)'!D28 -> 12200 MJH Y000 AA | G28: 193 | H28: ='①月末在庫(実)'!H28 -> 0 | I28: ='①月末在庫(実)'!I28 -> 0 | J28: ='①月末在庫(実)'!J28 -> 0 | K28: ='①月末在庫(実)'!K28 -> 0 | L28: ='①月末在庫(実)'!L28 -> 0 | M28: 0 | N28: ='①月末在庫(実)'!N28 -> 0 | O28: ='①月末在庫(実)'!O28 -> 0 | P28: ='①月末在庫(実)'!P28 -> 0 | Q28: ='①月末在庫(実)'!Q28 -> 0 | R28: 0 | S28: ='①月末在庫(実)'!S28 -> 0 | T28: ='①月末在庫(実)'!T28 -> 0 | V28: 0 | W28: 0 | X28: ='①月末在庫(実)'!X28 -> 0 | Y28: ='①月末在庫(実)'!Y28 -> 0 | Z28: ='①月末在庫(実)'!Z28 -> 0 | AA28: ='①月末在庫(実)'!AA28 -> 0 | AB28: 0 | AC28: ='①月末在庫(実)'!AC28 -> 0 | AD28: ='①月末在庫(実)'!AD28 -> 0 | AE28: ='①月末在庫(実)'!AE28 -> 0 | AF28: 0 | AG28: 0 | AH28: ='①月末在庫(実)'!AH28 -> 0 | AI28: ='①月末在庫(実)'!AI28 -> 0 | AJ28: ='①月末在庫(実)'!AJ28 -> 0 | AK28: ='①月末在庫(実)'!AK28 -> 193 | AL28: 193 | AM28: ='①月末在庫(実)'!AM28 -> 0 | AN28: ='①月末在庫(実)'!AN28 -> 0 | AO28: ='①月末在庫(実)'!AO28 -> 0 | AP28: 0 | AQ28: 193 | AR28: =+#REF!*15.1 -> 
C29: ='①月末在庫(実)'!C29 -> HL4 | D29: ='①月末在庫(実)'!D29 -> 12201 HL4 0001 AA | G29: 2706 | H29: ='①月末在庫(実)'!H29 -> 0 | I29: ='①月末在庫(実)'!I29 -> 0 | J29: ='①月末在庫(実)'!J29 -> 120 | K29: ='①月末在庫(実)'!K29 -> 1000 | L29: ='①月末在庫(実)'!L29 -> 0 | M29: 1120 | N29: ='①月末在庫(実)'!N29 -> 0 | O29: ='①月末在庫(実)'!O29 -> 0 | P29: ='①月末在庫(実)'!P29 -> 0 | Q29: ='①月末在庫(実)'!Q29 -> 0 | R29: 0 | S29: ='①月末在庫(実)'!S29 -> 0 | T29: ='①月末在庫(実)'!T29 -> 139 | V29: 139 | W29: 139 | X29: ='①月末在庫(実)'!X29 -> 0 | Y29: ='①月末在庫(実)'!Y29 -> 0 | Z29: ='①月末在庫(実)'!Z29 -> 0 | AA29: ='①月末在庫(実)'!AA29 -> 0 | AB29: 0 | AC29: ='①月末在庫(実)'!AC29 -> 600 | AD29: ='①月末在庫(実)'!AD29 -> 0 | AE29: ='①月末在庫(実)'!AE29 -> 0 | AF29: 600 | AG29: 600 | AH29: ='①月末在庫(実)'!AH29 -> 150 | AI29: ='①月末在庫(実)'!AI29 -> 0 | AJ29: ='①月末在庫(実)'!AJ29 -> 397 | AK29: ='①月末在庫(実)'!AK29 -> 300 | AL29: 847 | AM29: ='①月末在庫(実)'!AM29 -> 0 | AN29: ='①月末在庫(実)'!AN29 -> 0 | AO29: ='①月末在庫(実)'!AO29 -> 0 | AP29: 0 | AQ29: 2706 | AR29: =+#REF!*15.1 -> 
C30: ='①月末在庫(実)'!C30 -> HL6 | D30: ='①月末在庫(実)'!D30 -> 12201 HL6 A000 AA | G30: 387 | H30: ='①月末在庫(実)'!H30 -> 0 | I30: ='①月末在庫(実)'!I30 -> 0 | J30: ='①月末在庫(実)'!J30 -> 0 | K30: ='①月末在庫(実)'!K30 -> 0 | L30: ='①月末在庫(実)'!L30 -> 0 | M30: 0 | N30: ='①月末在庫(実)'!N30 -> 0 | O30: ='①月末在庫(実)'!O30 -> 0 | P30: ='①月末在庫(実)'!P30 -> 0 | Q30: ='①月末在庫(実)'!Q30 -> 0 | R30: 0 | S30: ='①月末在庫(実)'!S30 -> 0 | T30: ='①月末在庫(実)'!T30 -> 207 | V30: 207 | W30: 207 | X30: ='①月末在庫(実)'!X30 -> 0 | Y30: ='①月末在庫(実)'!Y30 -> 0 | Z30: ='①月末在庫(実)'!Z30 -> 0 | AA30: ='①月末在庫(実)'!AA30 -> 0 | AB30: 0 | AC30: ='①月末在庫(実)'!AC30 -> 0 | AD30: ='①月末在庫(実)'!AD30 -> 0 | AE30: ='①月末在庫(実)'!AE30 -> 0 | AF30: 0 | AG30: 0 | AH30: ='①月末在庫(実)'!AH30 -> 0 | AI30: ='①月末在庫(実)'!AI30 -> 0 | AJ30: ='①月末在庫(実)'!AJ30 -> 30 | AK30: ='①月末在庫(実)'!AK30 -> 150 | AL30: 180 | AM30: ='①月末在庫(実)'!AM30 -> 0 | AN30: ='①月末在庫(実)'!AN30 -> 0 | AO30: ='①月末在庫(実)'!AO30 -> 0 | AP30: 0 | AQ30: 387 | AR30: =+#REF!*15.1 -> 
C31: ='①月末在庫(実)'!C31 -> MKS | D31: ='①月末在庫(実)'!D31 -> 12201 MLN E000 AA | G31: 2404 | H31: ='①月末在庫(実)'!H31 -> 0 | I31: ='①月末在庫(実)'!I31 -> 0 | J31: ='①月末在庫(実)'!J31 -> 0 | K31: ='①月末在庫(実)'!K31 -> 870 | L31: ='①月末在庫(実)'!L31 -> 0 | M31: 870 | N31: ='①月末在庫(実)'!N31 -> 0 | O31: ='①月末在庫(実)'!O31 -> 0 | P31: ='①月末在庫(実)'!P31 -> 0 | Q31: ='①月末在庫(実)'!Q31 -> 0 | R31: 0 | S31: ='①月末在庫(実)'!S31 -> 0 | T31: ='①月末在庫(実)'!T31 -> 2 | V31: 2 | W31: 2 | X31: ='①月末在庫(実)'!X31 -> 34 | Y31: ='①月末在庫(実)'!Y31 -> 0 | Z31: ='①月末在庫(実)'!Z31 -> 0 | AA31: ='①月末在庫(実)'!AA31 -> 0 | AB31: 34 | AC31: ='①月末在庫(実)'!AC31 -> 73 | AD31: ='①月末在庫(実)'!AD31 -> 0 | AE31: ='①月末在庫(実)'!AE31 -> 0 | AF31: 73 | AG31: 107 | AH31: ='①月末在庫(実)'!AH31 -> 0 | AI31: ='①月末在庫(実)'!AI31 -> 0 | AJ31: ='①月末在庫(実)'!AJ31 -> 1425 | AK31: ='①月末在庫(実)'!AK31 -> 0 | AL31: 1425 | AM31: ='①月末在庫(実)'!AM31 -> 0 | AN31: ='①月末在庫(実)'!AN31 -> 0 | AO31: ='①月末在庫(実)'!AO31 -> 0 | AP31: 0 | AQ31: 2404 | AR31: =+#REF!*15.1 -> 
C32: ='①月末在庫(実)'!C32 -> NX7 | D32: ='①月末在庫(実)'!D32 -> 12200 NX7 0000 AA | G32: 650 | H32: ='①月末在庫(実)'!H32 -> 0 | I32: ='①月末在庫(実)'!I32 -> 0 | J32: ='①月末在庫(実)'!J32 -> 0 | K32: ='①月末在庫(実)'!K32 -> 0 | L32: ='①月末在庫(実)'!L32 -> 0 | M32: 0 | N32: ='①月末在庫(実)'!N32 -> 0 | O32: ='①月末在庫(実)'!O32 -> 0 | P32: ='①月末在庫(実)'!P32 -> 0 | Q32: ='①月末在庫(実)'!Q32 -> 0 | R32: 0 | S32: ='①月末在庫(実)'!S32 -> 0 | T32: ='①月末在庫(実)'!T32 -> 533 | V32: 533 | W32: 533 | X32: ='①月末在庫(実)'!X32 -> 0 | Y32: ='①月末在庫(実)'!Y32 -> 0 | Z32: ='①月末在庫(実)'!Z32 -> 0 | AA32: ='①月末在庫(実)'!AA32 -> 0 | AB32: 0 | AC32: ='①月末在庫(実)'!AC32 -> 0 | AD32: ='①月末在庫(実)'!AD32 -> 0 | AE32: ='①月末在庫(実)'!AE32 -> 0 | AF32: 0 | AG32: 0 | AH32: ='①月末在庫(実)'!AH32 -> 0 | AI32: ='①月末在庫(実)'!AI32 -> 0 | AJ32: ='①月末在庫(実)'!AJ32 -> 0 | AK32: ='①月末在庫(実)'!AK32 -> 117 | AL32: 117 | AM32: ='①月末在庫(実)'!AM32 -> 0 | AN32: ='①月末在庫(実)'!AN32 -> 0 | AO32: ='①月末在庫(実)'!AO32 -> 0 | AP32: 0 | AQ32: 650 | AR32: =+#REF!*15.1 -> 
C33: ='①月末在庫(実)'!C33 -> NX7c | D33: ='①月末在庫(実)'!D33 -> 12101 NX7 0000 AA | G33: 141 | H33: ='①月末在庫(実)'!H33 -> 0 | I33: ='①月末在庫(実)'!I33 -> 0 | J33: ='①月末在庫(実)'!J33 -> 0 | K33: ='①月末在庫(実)'!K33 -> 0 | L33: ='①月末在庫(実)'!L33 -> 0 | M33: 0 | N33: ='①月末在庫(実)'!N33 -> 0 | O33: ='①月末在庫(実)'!O33 -> 0 | P33: ='①月末在庫(実)'!P33 -> 0 | Q33: ='①月末在庫(実)'!Q33 -> 0 | R33: 0 | S33: ='①月末在庫(実)'!S33 -> 0 | T33: ='①月末在庫(実)'!T33 -> 87 | V33: 87 | W33: 87 | X33: ='①月末在庫(実)'!X33 -> 0 | Y33: ='①月末在庫(実)'!Y33 -> 0 | Z33: ='①月末在庫(実)'!Z33 -> 0 | AA33: ='①月末在庫(実)'!AA33 -> 0 | AB33: 0 | AC33: ='①月末在庫(実)'!AC33 -> 0 | AD33: ='①月末在庫(実)'!AD33 -> 0 | AE33: ='①月末在庫(実)'!AE33 -> 0 | AF33: 0 | AG33: 0 | AH33: ='①月末在庫(実)'!AH33 -> 0 | AI33: ='①月末在庫(実)'!AI33 -> 0 | AJ33: ='①月末在庫(実)'!AJ33 -> 0 | AK33: ='①月末在庫(実)'!AK33 -> 54 | AL33: 54 | AM33: ='①月末在庫(実)'!AM33 -> 0 | AN33: ='①月末在庫(実)'!AN33 -> 0 | AO33: ='①月末在庫(実)'!AO33 -> 0 | AP33: 0 | AQ33: 141 | AR33: =+#REF!*15.1 -> 
C34: ='①月末在庫(実)'!C34 -> MLL | D34: ='①月末在庫(実)'!D34 -> 12201 MLL D000 AA | G34: 4308 | H34: ='①月末在庫(実)'!H34 -> 0 | I34: ='①月末在庫(実)'!I34 -> 0 | J34: ='①月末在庫(実)'!J34 -> 412 | K34: ='①月末在庫(実)'!K34 -> 103 | L34: ='①月末在庫(実)'!L34 -> 0 | M34: 515 | N34: ='①月末在庫(実)'!N34 -> 0 | O34: ='①月末在庫(実)'!O34 -> 0 | P34: ='①月末在庫(実)'!P34 -> 576 | Q34: ='①月末在庫(実)'!Q34 -> 0 | R34: 576 | S34: ='①月末在庫(実)'!S34 -> 0 | T34: ='①月末在庫(実)'!T34 -> 416 | V34: 416 | W34: =R34+V34 -> 992 | X34: ='①月末在庫(実)'!X34 -> 155 | Y34: ='①月末在庫(実)'!Y34 -> 0 | Z34: ='①月末在庫(実)'!Z34 -> 0 | AA34: ='①月末在庫(実)'!AA34 -> 0 | AB34: 155 | AC34: ='①月末在庫(実)'!AC34 -> 0 | AD34: ='①月末在庫(実)'!AD34 -> 0 | AE34: ='①月末在庫(実)'!AE34 -> 0 | AF34: 0 | AG34: 155 | AH34: ='①月末在庫(実)'!AH34 -> 0 | AI34: ='①月末在庫(実)'!AI34 -> 0 | AJ34: ='①月末在庫(実)'!AJ34 -> 2646 | AK34: ='①月末在庫(実)'!AK34 -> 0 | AL34: 2646 | AM34: ='①月末在庫(実)'!AM34 -> 0 | AN34: ='①月末在庫(実)'!AN34 -> 0 | AO34: ='①月末在庫(実)'!AO34 -> 0 | AP34: 0 | AQ34: =M34+W34+AG34+AL34+AP34 -> 4308 | AR34: =+#REF!*15.1 -> 
C35: ='①月末在庫(実)'!C35 -> MLLc | D35: ='①月末在庫(実)'!D35 -> 12100 MLL D000 AA | G35: 2311 | H35: ='①月末在庫(実)'!H35 -> 0 | I35: ='①月末在庫(実)'!I35 -> 0 | J35: ='①月末在庫(実)'!J35 -> 0 | K35: ='①月末在庫(実)'!K35 -> 280 | L35: ='①月末在庫(実)'!L35 -> 0 | M35: 280 | N35: ='①月末在庫(実)'!N35 -> 0 | O35: ='①月末在庫(実)'!O35 -> 0 | P35: ='①月末在庫(実)'!P35 -> 0 | Q35: ='①月末在庫(実)'!Q35 -> 0 | R35: 0 | S35: ='①月末在庫(実)'!S35 -> 0 | T35: ='①月末在庫(実)'!T35 -> 1199 | V35: 1199 | W35: 1199 | X35: ='①月末在庫(実)'!X35 -> 0 | Y35: ='①月末在庫(実)'!Y35 -> 0 | Z35: ='①月末在庫(実)'!Z35 -> 0 | AA35: ='①月末在庫(実)'!AA35 -> 0 | AB35: 0 | AC35: ='①月末在庫(実)'!AC35 -> 0 | AD35: ='①月末在庫(実)'!AD35 -> 0 | AE35: ='①月末在庫(実)'!AE35 -> 0 | AF35: 0 | AG35: 0 | AH35: ='①月末在庫(実)'!AH35 -> 0 | AI35: ='①月末在庫(実)'!AI35 -> 0 | AJ35: ='①月末在庫(実)'!AJ35 -> 832 | AK35: ='①月末在庫(実)'!AK35 -> 0 | AL35: 832 | AM35: ='①月末在庫(実)'!AM35 -> 0 | AN35: ='①月末在庫(実)'!AN35 -> 0 | AO35: ='①月末在庫(実)'!AO35 -> 0 | AP35: 0 | AQ35: 2311 | AR35: =+#REF!*15.1 -> 
C36: ='①月末在庫(実)'!C36 -> ZY9 | D36: ='①月末在庫(実)'!D36 -> 12211 ZY9 M001 AA | G36: 1374 | H36: ='①月末在庫(実)'!H36 -> 0 | I36: ='①月末在庫(実)'!I36 -> 0 | J36: ='①月末在庫(実)'!J36 -> 0 | K36: ='①月末在庫(実)'!K36 -> 546 | L36: ='①月末在庫(実)'!L36 -> 0 | M36: =SUM(H36:L36) -> 546 | N36: ='①月末在庫(実)'!N36 -> 28 | O36: ='①月末在庫(実)'!O36 -> 0 | P36: ='①月末在庫(実)'!P36 -> 0 | Q36: ='①月末在庫(実)'!Q36 -> 0 | R36: =SUM(N36:Q36) -> 28 | S36: ='①月末在庫(実)'!S36 -> 0 | T36: ='①月末在庫(実)'!T36 -> 319 | V36: =SUM(S36:U36) -> 319 | W36: =R36+V36 -> 347 | X36: ='①月末在庫(実)'!X36 -> 0 | Y36: ='①月末在庫(実)'!Y36 -> 0 | Z36: ='①月末在庫(実)'!Z36 -> 0 | AA36: ='①月末在庫(実)'!AA36 -> 0 | AB36: =SUM(X36:AA36) -> 0 | AC36: ='①月末在庫(実)'!AC36 -> 0 | AD36: ='①月末在庫(実)'!AD36 -> 0 | AE36: ='①月末在庫(実)'!AE36 -> 0 | AF36: =SUM(AC36:AE36) -> 0 | AG36: =AB36+AF36 -> 0 | AH36: ='①月末在庫(実)'!AH36 -> 0 | AI36: ='①月末在庫(実)'!AI36 -> 0 | AJ36: ='①月末在庫(実)'!AJ36 -> 481 | AK36: ='①月末在庫(実)'!AK36 -> 0 | AL36: =SUM(AH36:AK36) -> 481 | AM36: ='①月末在庫(実)'!AM36 -> 0 | AN36: ='①月末在庫(実)'!AN36 -> 0 | AO36: ='①月末在庫(実)'!AO36 -> 0 | AP36: 0 | AQ36: 1374 | AR36: =+#REF!*15.1 -> 
C37: ='①月末在庫(実)'!C37 -> ZZ3 | D37: ='①月末在庫(実)'!D37 -> 12211 ZZ3 3001 AA | G37: 422 | H37: ='①月末在庫(実)'!H37 -> 0 | I37: ='①月末在庫(実)'!I37 -> 0 | J37: ='①月末在庫(実)'!J37 -> 109 | K37: ='①月末在庫(実)'!K37 -> 128 | L37: ='①月末在庫(実)'!L37 -> 0 | M37: =SUM(H37:L37) -> 237 | N37: ='①月末在庫(実)'!N37 -> 0 | O37: ='①月末在庫(実)'!O37 -> 0 | P37: ='①月末在庫(実)'!P37 -> 0 | Q37: ='①月末在庫(実)'!Q37 -> 0 | R37: =SUM(N37:Q37) -> 0 | S37: ='①月末在庫(実)'!S37 -> 0 | T37: ='①月末在庫(実)'!T37 -> 0 | V37: =SUM(S37:U37) -> 0 | W37: =R37+V37 -> 0 | X37: ='①月末在庫(実)'!X37 -> 38 | Y37: ='①月末在庫(実)'!Y37 -> 0 | Z37: ='①月末在庫(実)'!Z37 -> 0 | AA37: ='①月末在庫(実)'!AA37 -> 0 | AB37: =SUM(X37:AA37) -> 38 | AC37: ='①月末在庫(実)'!AC37 -> 44 | AD37: ='①月末在庫(実)'!AD37 -> 0 | AE37: ='①月末在庫(実)'!AE37 -> 0 | AF37: =SUM(AC37:AE37) -> 44 | AG37: =AB37+AF37 -> 82 | AH37: ='①月末在庫(実)'!AH37 -> 0 | AI37: ='①月末在庫(実)'!AI37 -> 0 | AJ37: ='①月末在庫(実)'!AJ37 -> 103 | AK37: ='①月末在庫(実)'!AK37 -> 0 | AL37: =SUM(AH37:AK37) -> 103 | AM37: ='①月末在庫(実)'!AM37 -> 0 | AN37: ='①月末在庫(実)'!AN37 -> 0 | AO37: ='①月末在庫(実)'!AO37 -> 0 | AP37: 0 | AQ37: 422 | AR37: =+#REF!*15.1 -> 
C38: ='①月末在庫(実)'!C38 -> ZW5 | D38: ='①月末在庫(実)'!D38 -> 12211 ZW5 3001 AC-01 | G38: 124 | H38: ='①月末在庫(実)'!H38 -> 0 | I38: ='①月末在庫(実)'!I38 -> 0 | J38: ='①月末在庫(実)'!J38 -> 0 | K38: ='①月末在庫(実)'!K38 -> 0 | L38: ='①月末在庫(実)'!L38 -> 0 | M38: 0 | N38: ='①月末在庫(実)'!N38 -> 0 | O38: ='①月末在庫(実)'!O38 -> 0 | P38: ='①月末在庫(実)'!P38 -> 0 | Q38: ='①月末在庫(実)'!Q38 -> 0 | R38: 0 | S38: ='①月末在庫(実)'!S38 -> 0 | T38: ='①月末在庫(実)'!T38 -> 110 | V38: 110 | W38: 110 | X38: ='①月末在庫(実)'!X38 -> 0 | Y38: ='①月末在庫(実)'!Y38 -> 0 | Z38: ='①月末在庫(実)'!Z38 -> 0 | AA38: ='①月末在庫(実)'!AA38 -> 0 | AB38: 0 | AC38: ='①月末在庫(実)'!AC38 -> 0 | AD38: ='①月末在庫(実)'!AD38 -> 0 | AE38: ='①月末在庫(実)'!AE38 -> 0 | AF38: 0 | AG38: 0 | AH38: ='①月末在庫(実)'!AH38 -> 0 | AI38: ='①月末在庫(実)'!AI38 -> 0 | AJ38: ='①月末在庫(実)'!AJ38 -> 14 | AK38: ='①月末在庫(実)'!AK38 -> 0 | AL38: 14 | AM38: ='①月末在庫(実)'!AM38 -> 0 | AN38: ='①月末在庫(実)'!AN38 -> 0 | AO38: ='①月末在庫(実)'!AO38 -> 0 | AP38: 0 | AQ38: 124 | AR38: =+#REF!*15.1 -> 
C39: ='①月末在庫(実)'!C39 -> MKCr | D39: ='①月末在庫(実)'!D39 -> 12211 MKC A000 AA | G39: 2078 | H39: ='①月末在庫(実)'!H39 -> 0 | I39: ='①月末在庫(実)'!I39 -> 0 | J39: ='①月末在庫(実)'!J39 -> 149 | K39: ='①月末在庫(実)'!K39 -> 212 | L39: ='①月末在庫(実)'!L39 -> 0 | M39: 361 | N39: ='①月末在庫(実)'!N39 -> 0 | O39: ='①月末在庫(実)'!O39 -> 0 | P39: ='①月末在庫(実)'!P39 -> 630 | Q39: ='①月末在庫(実)'!Q39 -> 0 | R39: 630 | S39: ='①月末在庫(実)'!S39 -> 0 | T39: ='①月末在庫(実)'!T39 -> 167 | V39: =SUM(S39:U39) -> 167 | W39: =R39+V39 -> 797 | X39: ='①月末在庫(実)'!X39 -> 377 | Y39: ='①月末在庫(実)'!Y39 -> 0 | Z39: ='①月末在庫(実)'!Z39 -> 0 | AA39: ='①月末在庫(実)'!AA39 -> 0 | AB39: 377 | AC39: ='①月末在庫(実)'!AC39 -> 105 | AD39: ='①月末在庫(実)'!AD39 -> 0 | AE39: ='①月末在庫(実)'!AE39 -> 0 | AF39: =SUM(AC39:AE39) -> 105 | AG39: =AB39+AF39 -> 482 | AH39: ='①月末在庫(実)'!AH39 -> 0 | AI39: ='①月末在庫(実)'!AI39 -> 0 | AJ39: ='①月末在庫(実)'!AJ39 -> 438 | AK39: ='①月末在庫(実)'!AK39 -> 0 | AL39: 438 | AM39: ='①月末在庫(実)'!AM39 -> 0 | AN39: ='①月末在庫(実)'!AN39 -> 0 | AO39: ='①月末在庫(実)'!AO39 -> 0 | AP39: 0 | AQ39: =M39+W39+AG39+AL39+AP39 -> 2078 | AR39: =+#REF!*15.1 -> 
C40: ='①月末在庫(実)'!C40 -> MKCl | D40: ='①月末在庫(実)'!D40 -> 12221 MKC A000 AA | G40: 1416 | H40: ='①月末在庫(実)'!H40 -> 0 | I40: ='①月末在庫(実)'!I40 -> 0 | J40: ='①月末在庫(実)'!J40 -> 150 | K40: ='①月末在庫(実)'!K40 -> 21 | L40: ='①月末在庫(実)'!L40 -> 0 | M40: 171 | N40: ='①月末在庫(実)'!N40 -> 424 | O40: ='①月末在庫(実)'!O40 -> 0 | P40: ='①月末在庫(実)'!P40 -> 0 | Q40: ='①月末在庫(実)'!Q40 -> 0 | R40: 424 | S40: ='①月末在庫(実)'!S40 -> 0 | T40: ='①月末在庫(実)'!T40 -> 408 | V40: 408 | W40: 832 | X40: ='①月末在庫(実)'!X40 -> 0 | Y40: ='①月末在庫(実)'!Y40 -> 0 | Z40: ='①月末在庫(実)'!Z40 -> 0 | AA40: ='①月末在庫(実)'!AA40 -> 0 | AB40: 0 | AC40: ='①月末在庫(実)'!AC40 -> 0 | AD40: ='①月末在庫(実)'!AD40 -> 0 | AE40: ='①月末在庫(実)'!AE40 -> 0 | AF40: 0 | AG40: 0 | AH40: ='①月末在庫(実)'!AH40 -> 0 | AI40: ='①月末在庫(実)'!AI40 -> 0 | AJ40: ='①月末在庫(実)'!AJ40 -> 413 | AK40: ='①月末在庫(実)'!AK40 -> 0 | AL40: 413 | AM40: ='①月末在庫(実)'!AM40 -> 0 | AN40: ='①月末在庫(実)'!AN40 -> 0 | AO40: ='①月末在庫(実)'!AO40 -> 0 | AP40: 0 | AQ40: 1416 | AR40: =+#REF!*15.1 -> 
C41: ='①月末在庫(実)'!C41 -> MKJ | D41: ='①月末在庫(実)'!D41 -> 12201 MKJ D001 AA | G41: 165 | H41: ='①月末在庫(実)'!H41 -> 0 | I41: ='①月末在庫(実)'!I41 -> 0 | J41: ='①月末在庫(実)'!J41 -> 0 | K41: ='①月末在庫(実)'!K41 -> 0 | L41: ='①月末在庫(実)'!L41 -> 0 | M41: 0 | N41: ='①月末在庫(実)'!N41 -> 0 | O41: ='①月末在庫(実)'!O41 -> 0 | P41: ='①月末在庫(実)'!P41 -> 0 | Q41: ='①月末在庫(実)'!Q41 -> 0 | R41: 0 | S41: ='①月末在庫(実)'!S41 -> 0 | T41: ='①月末在庫(実)'!T41 -> 65 | V41: 65 | W41: 65 | X41: ='①月末在庫(実)'!X41 -> 0 | Y41: ='①月末在庫(実)'!Y41 -> 0 | Z41: ='①月末在庫(実)'!Z41 -> 0 | AA41: ='①月末在庫(実)'!AA41 -> 0 | AB41: 0 | AC41: ='①月末在庫(実)'!AC41 -> 34 | AD41: ='①月末在庫(実)'!AD41 -> 0 | AE41: ='①月末在庫(実)'!AE41 -> 0 | AF41: 34 | AG41: 34 | AH41: ='①月末在庫(実)'!AH41 -> 0 | AI41: ='①月末在庫(実)'!AI41 -> 0 | AJ41: ='①月末在庫(実)'!AJ41 -> 66 | AK41: ='①月末在庫(実)'!AK41 -> 0 | AL41: 66 | AM41: ='①月末在庫(実)'!AM41 -> 0 | AN41: ='①月末在庫(実)'!AN41 -> 0 | AO41: ='①月末在庫(実)'!AO41 -> 0 | AP41: 0 | AQ41: 165
C42: ='①月末在庫(実)'!C42 -> MKR | D42: ='①月末在庫(実)'!D42 -> 12200 MKR D103 AA | G42: 252 | H42: ='①月末在庫(実)'!H42 -> 0 | I42: ='①月末在庫(実)'!I42 -> 0 | J42: ='①月末在庫(実)'!J42 -> 0 | K42: ='①月末在庫(実)'!K42 -> 0 | L42: ='①月末在庫(実)'!L42 -> 0 | M42: 0 | N42: ='①月末在庫(実)'!N42 -> 0 | O42: ='①月末在庫(実)'!O42 -> 0 | P42: ='①月末在庫(実)'!P42 -> 0 | Q42: ='①月末在庫(実)'!Q42 -> 0 | R42: 0 | S42: ='①月末在庫(実)'!S42 -> 0 | T42: ='①月末在庫(実)'!T42 -> 206 | V42: 206 | W42: 206 | X42: ='①月末在庫(実)'!X42 -> 0 | Y42: ='①月末在庫(実)'!Y42 -> 0 | Z42: ='①月末在庫(実)'!Z42 -> 0 | AA42: ='①月末在庫(実)'!AA42 -> 0 | AB42: 0 | AC42: ='①月末在庫(実)'!AC42 -> 0 | AD42: ='①月末在庫(実)'!AD42 -> 0 | AE42: ='①月末在庫(実)'!AE42 -> 0 | AF42: 0 | AG42: 0 | AH42: ='①月末在庫(実)'!AH42 -> 0 | AI42: ='①月末在庫(実)'!AI42 -> 0 | AJ42: ='①月末在庫(実)'!AJ42 -> 46 | AK42: ='①月末在庫(実)'!AK42 -> 0 | AL42: 46 | AM42: ='①月末在庫(実)'!AM42 -> 0 | AN42: ='①月末在庫(実)'!AN42 -> 0 | AO42: ='①月末在庫(実)'!AO42 -> 0 | AP42: 0 | AQ42: 252 | AR42: =+#REF!*15.1 ->  | AS42: =+AQ42-AR42 -> 
C43: ='①月末在庫(実)'!C43 -> MKRF | D43: ='①月末在庫(実)'!D43 -> 12201 MKR D600 AA | G43: 217 | H43: ='①月末在庫(実)'!H43 -> 0 | I43: ='①月末在庫(実)'!I43 -> 0 | J43: ='①月末在庫(実)'!J43 -> 0 | K43: ='①月末在庫(実)'!K43 -> 0 | L43: ='①月末在庫(実)'!L43 -> 0 | M43: 0 | N43: ='①月末在庫(実)'!N43 -> 0 | O43: ='①月末在庫(実)'!O43 -> 0 | P43: ='①月末在庫(実)'!P43 -> 0 | Q43: ='①月末在庫(実)'!Q43 -> 0 | R43: 0 | S43: ='①月末在庫(実)'!S43 -> 0 | T43: ='①月末在庫(実)'!T43 -> 116 | V43: 116 | W43: 116 | X43: ='①月末在庫(実)'!X43 -> 0 | Y43: ='①月末在庫(実)'!Y43 -> 0 | Z43: ='①月末在庫(実)'!Z43 -> 0 | AA43: ='①月末在庫(実)'!AA43 -> 0 | AB43: 0 | AC43: ='①月末在庫(実)'!AC43 -> 42 | AD43: ='①月末在庫(実)'!AD43 -> 0 | AE43: ='①月末在庫(実)'!AE43 -> 0 | AF43: 42 | AG43: 42 | AH43: ='①月末在庫(実)'!AH43 -> 0 | AI43: ='①月末在庫(実)'!AI43 -> 0 | AJ43: ='①月末在庫(実)'!AJ43 -> 30 | AK43: ='①月末在庫(実)'!AK43 -> 0 | AL43: 30 | AM43: ='①月末在庫(実)'!AM43 -> 29 | AN43: ='①月末在庫(実)'!AN43 -> 0 | AO43: ='①月末在庫(実)'!AO43 -> 0 | AP43: 29 | AQ43: 217 | AR43: =+#REF!*15.1 -> 
C44: ='①月末在庫(実)'!C44 -> MKRc | D44: ='①月末在庫(実)'!D44 -> 12100 MKR D101 AA | G44: 1204 | H44: ='①月末在庫(実)'!H44 -> 0 | I44: ='①月末在庫(実)'!I44 -> 0 | J44: ='①月末在庫(実)'!J44 -> 404 | K44: ='①月末在庫(実)'!K44 -> 179 | L44: ='①月末在庫(実)'!L44 -> 0 | M44: 583 | N44: ='①月末在庫(実)'!N44 -> 0 | O44: ='①月末在庫(実)'!O44 -> 0 | P44: ='①月末在庫(実)'!P44 -> 0 | Q44: ='①月末在庫(実)'!Q44 -> 0 | R44: 0 | S44: ='①月末在庫(実)'!S44 -> 0 | T44: ='①月末在庫(実)'!T44 -> 511 | V44: 511 | W44: 511 | X44: ='①月末在庫(実)'!X44 -> 0 | Y44: ='①月末在庫(実)'!Y44 -> 0 | Z44: ='①月末在庫(実)'!Z44 -> 0 | AA44: ='①月末在庫(実)'!AA44 -> 0 | AB44: 0 | AC44: ='①月末在庫(実)'!AC44 -> 0 | AD44: ='①月末在庫(実)'!AD44 -> 0 | AE44: ='①月末在庫(実)'!AE44 -> 0 | AF44: 0 | AG44: 0 | AH44: ='①月末在庫(実)'!AH44 -> 0 | AI44: ='①月末在庫(実)'!AI44 -> 0 | AJ44: ='①月末在庫(実)'!AJ44 -> 110 | AK44: ='①月末在庫(実)'!AK44 -> 0 | AL44: 110 | AM44: ='①月末在庫(実)'!AM44 -> 0 | AN44: ='①月末在庫(実)'!AN44 -> 0 | AO44: ='①月末在庫(実)'!AO44 -> 0 | AP44: 0 | AQ44: 1204 | AR44: =+#REF!*15.1 -> 
C45: ='①月末在庫(実)'!C45 -> MKT | D45: ='①月末在庫(実)'!D45 -> 12200 MKT D000 AA | G45: 3187 | H45: ='①月末在庫(実)'!H45 -> 0 | I45: ='①月末在庫(実)'!I45 -> 0 | J45: ='①月末在庫(実)'!J45 -> 125 | K45: ='①月末在庫(実)'!K45 -> 820 | L45: ='①月末在庫(実)'!L45 -> 0 | M45: 945 | N45: ='①月末在庫(実)'!N45 -> 0 | O45: ='①月末在庫(実)'!O45 -> 0 | P45: ='①月末在庫(実)'!P45 -> 0 | Q45: ='①月末在庫(実)'!Q45 -> 0 | R45: 0 | S45: ='①月末在庫(実)'!S45 -> 0 | T45: ='①月末在庫(実)'!T45 -> 245 | V45: 245 | W45: 245 | X45: ='①月末在庫(実)'!X45 -> 0 | Y45: ='①月末在庫(実)'!Y45 -> 0 | Z45: ='①月末在庫(実)'!Z45 -> 0 | AA45: ='①月末在庫(実)'!AA45 -> 0 | AB45: 0 | AC45: ='①月末在庫(実)'!AC45 -> 903 | AD45: ='①月末在庫(実)'!AD45 -> 0 | AE45: ='①月末在庫(実)'!AE45 -> 0 | AF45: 903 | AG45: 903 | AH45: ='①月末在庫(実)'!AH45 -> 288 | AI45: ='①月末在庫(実)'!AI45 -> 0 | AJ45: ='①月末在庫(実)'!AJ45 -> 134 | AK45: ='①月末在庫(実)'!AK45 -> 672 | AL45: 1094 | AM45: ='①月末在庫(実)'!AM45 -> 0 | AN45: ='①月末在庫(実)'!AN45 -> 0 | AO45: ='①月末在庫(実)'!AO45 -> 0 | AP45: 0 | AQ45: 3187 | AR45: =+#REF!*15.1 -> 
C46: ='①月末在庫(実)'!C46 -> MKZ | D46: ='①月末在庫(実)'!D46 -> 12201 MKZ J000 AA | G46: 1746 | H46: ='①月末在庫(実)'!H46 -> 0 | I46: ='①月末在庫(実)'!I46 -> 0 | J46: ='①月末在庫(実)'!J46 -> 160 | K46: ='①月末在庫(実)'!K46 -> 71 | L46: ='①月末在庫(実)'!L46 -> 0 | M46: 231 | N46: ='①月末在庫(実)'!N46 -> 0 | O46: ='①月末在庫(実)'!O46 -> 270 | P46: ='①月末在庫(実)'!P46 -> 0 | Q46: ='①月末在庫(実)'!Q46 -> 0 | R46: 270 | S46: ='①月末在庫(実)'!S46 -> 0 | T46: ='①月末在庫(実)'!T46 -> 172 | V46: 172 | W46: 442 | X46: ='①月末在庫(実)'!X46 -> 0 | Y46: ='①月末在庫(実)'!Y46 -> 0 | Z46: ='①月末在庫(実)'!Z46 -> 0 | AA46: ='①月末在庫(実)'!AA46 -> 0 | AB46: 0 | AC46: ='①月末在庫(実)'!AC46 -> 268 | AD46: ='①月末在庫(実)'!AD46 -> 0 | AE46: ='①月末在庫(実)'!AE46 -> 0 | AF46: 268 | AG46: 268 | AH46: ='①月末在庫(実)'!AH46 -> 0 | AI46: ='①月末在庫(実)'!AI46 -> 0 | AJ46: ='①月末在庫(実)'!AJ46 -> 73 | AK46: ='①月末在庫(実)'!AK46 -> 0 | AL46: 73 | AM46: ='①月末在庫(実)'!AM46 -> 12 | AN46: ='①月末在庫(実)'!AN46 -> 720 | AO46: ='①月末在庫(実)'!AO46 -> 0 | AP46: 732 | AQ46: 1746
C47: ='①月末在庫(実)'!C47 -> MLB | D47: ='①月末在庫(実)'!D47 -> 12201 MLB D001 AA | G47: 3190 | H47: ='①月末在庫(実)'!H47 -> 0 | I47: ='①月末在庫(実)'!I47 -> 0 | J47: ='①月末在庫(実)'!J47 -> 200 | K47: ='①月末在庫(実)'!K47 -> 821 | L47: ='①月末在庫(実)'!L47 -> 0 | M47: 1021 | N47: ='①月末在庫(実)'!N47 -> 0 | O47: ='①月末在庫(実)'!O47 -> 0 | P47: ='①月末在庫(実)'!P47 -> 0 | Q47: ='①月末在庫(実)'!Q47 -> 0 | R47: 0 | S47: ='①月末在庫(実)'!S47 -> 0 | T47: ='①月末在庫(実)'!T47 -> 155 | V47: 155 | W47: 155 | X47: ='①月末在庫(実)'!X47 -> 0 | Y47: ='①月末在庫(実)'!Y47 -> 0 | Z47: ='①月末在庫(実)'!Z47 -> 0 | AA47: ='①月末在庫(実)'!AA47 -> 0 | AB47: 0 | AC47: ='①月末在庫(実)'!AC47 -> 64 | AD47: ='①月末在庫(実)'!AD47 -> 0 | AE47: ='①月末在庫(実)'!AE47 -> 0 | AF47: 64 | AG47: 64 | AH47: ='①月末在庫(実)'!AH47 -> 0 | AI47: ='①月末在庫(実)'!AI47 -> 0 | AJ47: ='①月末在庫(実)'!AJ47 -> 1950 | AK47: ='①月末在庫(実)'!AK47 -> 0 | AL47: 1950 | AM47: ='①月末在庫(実)'!AM47 -> 0 | AN47: ='①月末在庫(実)'!AN47 -> 0 | AO47: ='①月末在庫(実)'!AO47 -> 0 | AP47: 0 | AQ47: 3190
C48: ='①月末在庫(実)'!C48 -> MLBc | D48: ='①月末在庫(実)'!D48 -> 12100 MLB D001 AA | G48: 2526 | H48: ='①月末在庫(実)'!H48 -> 0 | I48: ='①月末在庫(実)'!I48 -> 0 | J48: ='①月末在庫(実)'!J48 -> 0 | K48: ='①月末在庫(実)'!K48 -> 646 | L48: ='①月末在庫(実)'!L48 -> 0 | M48: 646 | N48: ='①月末在庫(実)'!N48 -> 154 | O48: ='①月末在庫(実)'!O48 -> 0 | P48: ='①月末在庫(実)'!P48 -> 0 | Q48: ='①月末在庫(実)'!Q48 -> 0 | R48: 154 | S48: ='①月末在庫(実)'!S48 -> 0 | T48: ='①月末在庫(実)'!T48 -> 0 | V48: 0 | W48: 154 | X48: ='①月末在庫(実)'!X48 -> 0 | Y48: ='①月末在庫(実)'!Y48 -> 0 | Z48: ='①月末在庫(実)'!Z48 -> 0 | AA48: ='①月末在庫(実)'!AA48 -> 0 | AB48: 0 | AC48: ='①月末在庫(実)'!AC48 -> 0 | AD48: ='①月末在庫(実)'!AD48 -> 0 | AE48: ='①月末在庫(実)'!AE48 -> 0 | AF48: 0 | AG48: 0 | AH48: ='①月末在庫(実)'!AH48 -> 0 | AI48: ='①月末在庫(実)'!AI48 -> 0 | AJ48: ='①月末在庫(実)'!AJ48 -> 1726 | AK48: ='①月末在庫(実)'!AK48 -> 0 | AL48: 1726 | AM48: ='①月末在庫(実)'!AM48 -> 0 | AN48: ='①月末在庫(実)'!AN48 -> 0 | AO48: ='①月末在庫(実)'!AO48 -> 0 | AP48: 0 | AQ48: 2526
C49: ='①月末在庫(実)'!C49 -> MKRG | D49: ='①月末在庫(実)'!D49 -> 12200 MKR DH01 AA | G49: 559 | H49: ='①月末在庫(実)'!H49 -> 0 | I49: ='①月末在庫(実)'!I49 -> 0 | J49: ='①月末在庫(実)'!J49 -> 0 | K49: ='①月末在庫(実)'!K49 -> 0 | L49: ='①月末在庫(実)'!L49 -> 0 | M49: 0 | N49: ='①月末在庫(実)'!N49 -> 291 | O49: ='①月末在庫(実)'!O49 -> 0 | P49: ='①月末在庫(実)'!P49 -> 0 | Q49: ='①月末在庫(実)'!Q49 -> 0 | R49: 291 | S49: ='①月末在庫(実)'!S49 -> 0 | T49: ='①月末在庫(実)'!T49 -> 84 | V49: 84 | W49: 375 | X49: ='①月末在庫(実)'!X49 -> 0 | Y49: ='①月末在庫(実)'!Y49 -> 0 | Z49: ='①月末在庫(実)'!Z49 -> 0 | AA49: ='①月末在庫(実)'!AA49 -> 0 | AB49: 0 | AC49: ='①月末在庫(実)'!AC49 -> 0 | AD49: ='①月末在庫(実)'!AD49 -> 0 | AE49: ='①月末在庫(実)'!AE49 -> 0 | AF49: 0 | AG49: 0 | AH49: ='①月末在庫(実)'!AH49 -> 0 | AI49: ='①月末在庫(実)'!AI49 -> 60 | AJ49: ='①月末在庫(実)'!AJ49 -> 27 | AK49: ='①月末在庫(実)'!AK49 -> 0 | AL49: 87 | AM49: ='①月末在庫(実)'!AM49 -> 97 | AN49: ='①月末在庫(実)'!AN49 -> 0 | AO49: ='①月末在庫(実)'!AO49 -> 0 | AP49: 97 | AQ49: 559
C50: ='①月末在庫(実)'!C50 -> 0 | D50: ='①月末在庫(実)'!D50 -> 0 | G50: =+AQ50+F50-E50 -> 0 | H50: ='①月末在庫(実)'!H50 -> 0 | I50: ='①月末在庫(実)'!I50 -> 0 | J50: ='①月末在庫(実)'!J50 -> 0 | K50: ='①月末在庫(実)'!K50 -> 0 | L50: ='①月末在庫(実)'!L50 -> 0 | M50: 0 | N50: ='①月末在庫(実)'!N50 -> 0 | O50: ='①月末在庫(実)'!O50 -> 0 | P50: ='①月末在庫(実)'!P50 -> 0 | Q50: ='①月末在庫(実)'!Q50 -> 0 | R50: 0 | S50: ='①月末在庫(実)'!S50 -> 0 | T50: ='①月末在庫(実)'!T50 -> 0 | V50: 0 | W50: 0 | X50: ='①月末在庫(実)'!X50 -> 0 | Y50: ='①月末在庫(実)'!Y50 -> 0 | Z50: ='①月末在庫(実)'!Z50 -> 0 | AA50: ='①月末在庫(実)'!AA50 -> 0 | AB50: 0 | AC50: ='①月末在庫(実)'!AC50 -> 0 | AD50: ='①月末在庫(実)'!AD50 -> 0 | AE50: ='①月末在庫(実)'!AE50 -> 0 | AF50: 0 | AG50: 0 | AH50: ='①月末在庫(実)'!AH50 -> 0 | AI50: ='①月末在庫(実)'!AI50 -> 0 | AJ50: ='①月末在庫(実)'!AJ50 -> 0 | AK50: ='①月末在庫(実)'!AK50 -> 0 | AL50: 0 | AM50: ='①月末在庫(実)'!AM50 -> 0 | AN50: ='①月末在庫(実)'!AN50 -> 0 | AO50: ='①月末在庫(実)'!AO50 -> 0 | AP50: 0 | AQ50: 0 | AR50: =+#REF!*15.1 -> 
C51: ='①月末在庫(実)'!C51 -> 0 | D51: ='①月末在庫(実)'!D51 -> 0 | H51: ='①月末在庫(実)'!H51 -> 0 | I51: ='①月末在庫(実)'!I51 -> 0 | J51: ='①月末在庫(実)'!J51 -> 0 | K51: ='①月末在庫(実)'!K51 -> 0 | L51: ='①月末在庫(実)'!L51 -> 0 | M51: =SUM(H51:L51) -> 0 | N51: ='①月末在庫(実)'!N51 -> 0 | O51: ='①月末在庫(実)'!O51 -> 0 | P51: ='①月末在庫(実)'!P51 -> 0 | Q51: ='①月末在庫(実)'!Q51 -> 0 | R51: =SUM(N51:Q51) -> 0 | S51: ='①月末在庫(実)'!S51 -> 0 | T51: ='①月末在庫(実)'!T51 -> 0 | V51: 0 | W51: 0 | X51: ='①月末在庫(実)'!X51 -> 0 | Y51: ='①月末在庫(実)'!Y51 -> 0 | Z51: ='①月末在庫(実)'!Z51 -> 0 | AA51: ='①月末在庫(実)'!AA51 -> 0 | AB51: =SUM(X51:AA51) -> 0 | AC51: ='①月末在庫(実)'!AC51 -> 0 | AD51: ='①月末在庫(実)'!AD51 -> 0 | AE51: ='①月末在庫(実)'!AE51 -> 0 | AF51: 0 | AG51: 0 | AH51: ='①月末在庫(実)'!AH51 -> 0 | AI51: ='①月末在庫(実)'!AI51 -> 0 | AJ51: ='①月末在庫(実)'!AJ51 -> 0 | AK51: ='①月末在庫(実)'!AK51 -> 0 | AL51: =SUM(AH51:AK51) -> 0 | AM51: ='①月末在庫(実)'!AM51 -> 0 | AN51: ='①月末在庫(実)'!AN51 -> 0 | AO51: ='①月末在庫(実)'!AO51 -> 0 | AP51: =SUM(AM51:AO51) -> 0 | AQ51: 0 | AR51: =+#REF!*15.1 ->  | AS51: =+AQ51-AR51 -> 
C52: ='①月末在庫(実)'!C52 -> KCN | D52: ='①月末在庫(実)'!D52 -> 12200-KCN-0003-AA | G52: =+AQ52+F52-E52 -> 232 | H52: ='①月末在庫(実)'!H52 -> 0 | I52: ='①月末在庫(実)'!I52 -> 0 | J52: ='①月末在庫(実)'!J52 -> 0 | K52: ='①月末在庫(実)'!K52 -> 0 | L52: ='①月末在庫(実)'!L52 -> 0 | M52: 0 | N52: ='①月末在庫(実)'!N52 -> 0 | O52: ='①月末在庫(実)'!O52 -> 0 | P52: ='①月末在庫(実)'!P52 -> 0 | Q52: ='①月末在庫(実)'!Q52 -> 0 | R52: 0 | S52: ='①月末在庫(実)'!S52 -> 0 | T52: ='①月末在庫(実)'!T52 -> 0 | V52: 0 | W52: 0 | X52: ='①月末在庫(実)'!X52 -> 0 | Y52: ='①月末在庫(実)'!Y52 -> 0 | Z52: ='①月末在庫(実)'!Z52 -> 0 | AA52: ='①月末在庫(実)'!AA52 -> 0 | AB52: 0 | AC52: ='①月末在庫(実)'!AC52 -> 0 | AD52: ='①月末在庫(実)'!AD52 -> 0 | AE52: ='①月末在庫(実)'!AE52 -> 0 | AF52: 0 | AG52: 0 | AH52: ='①月末在庫(実)'!AH52 -> 0 | AI52: ='①月末在庫(実)'!AI52 -> 0 | AJ52: ='①月末在庫(実)'!AJ52 -> 0 | AK52: ='①月末在庫(実)'!AK52 -> 0 | AL52: 0 | AM52: ='①月末在庫(実)'!AM52 -> 0 | AN52: ='①月末在庫(実)'!AN52 -> 232 | AO52: ='①月末在庫(実)'!AO52 -> 0 | AP52: 232 | AQ52: 232 | AR52: =+#REF!*15.1 ->  | AS52: =+AQ52-AR52 -> 
C53: ='①月末在庫(実)'!C53 -> KRNM | D53: ='①月末在庫(実)'!D53 -> 12201-KRN-A400-AA | G53: 36 | H53: ='①月末在庫(実)'!H53 -> 0 | I53: ='①月末在庫(実)'!I53 -> 0 | J53: ='①月末在庫(実)'!J53 -> 0 | K53: ='①月末在庫(実)'!K53 -> 0 | L53: ='①月末在庫(実)'!L53 -> 0 | M53: 0 | N53: ='①月末在庫(実)'!N53 -> 0 | O53: ='①月末在庫(実)'!O53 -> 0 | P53: ='①月末在庫(実)'!P53 -> 0 | Q53: ='①月末在庫(実)'!Q53 -> 0 | R53: 0 | S53: ='①月末在庫(実)'!S53 -> 0 | T53: ='①月末在庫(実)'!T53 -> 0 | V53: 0 | W53: 0 | X53: ='①月末在庫(実)'!X53 -> 0 | Y53: ='①月末在庫(実)'!Y53 -> 0 | Z53: ='①月末在庫(実)'!Z53 -> 0 | AA53: ='①月末在庫(実)'!AA53 -> 0 | AB53: 0 | AC53: ='①月末在庫(実)'!AC53 -> 0 | AD53: ='①月末在庫(実)'!AD53 -> 0 | AE53: ='①月末在庫(実)'!AE53 -> 0 | AF53: 0 | AG53: 0 | AH53: ='①月末在庫(実)'!AH53 -> 0 | AI53: ='①月末在庫(実)'!AI53 -> 0 | AJ53: ='①月末在庫(実)'!AJ53 -> 0 | AK53: ='①月末在庫(実)'!AK53 -> 36 | AL53: 36 | AM53: ='①月末在庫(実)'!AM53 -> 0 | AN53: ='①月末在庫(実)'!AN53 -> 0 | AO53: ='①月末在庫(実)'!AO53 -> 0 | AP53: 0 | AQ53: 36 | AR53: =+#REF!*15.1 ->  | AS53: =+AQ53-AR53 -> 
C54: ='①月末在庫(実)'!C54 -> KRNP | D54: ='①月末在庫(実)'!D54 -> 12201-KRN-A600-AA | G54: 45 | H54: ='①月末在庫(実)'!H54 -> 0 | I54: ='①月末在庫(実)'!I54 -> 0 | J54: ='①月末在庫(実)'!J54 -> 0 | K54: ='①月末在庫(実)'!K54 -> 0 | L54: ='①月末在庫(実)'!L54 -> 0 | M54: 0 | N54: ='①月末在庫(実)'!N54 -> 0 | O54: ='①月末在庫(実)'!O54 -> 0 | P54: ='①月末在庫(実)'!P54 -> 0 | Q54: ='①月末在庫(実)'!Q54 -> 0 | R54: 0 | S54: ='①月末在庫(実)'!S54 -> 0 | T54: ='①月末在庫(実)'!T54 -> 0 | V54: 0 | W54: 0 | X54: ='①月末在庫(実)'!X54 -> 0 | Y54: ='①月末在庫(実)'!Y54 -> 0 | Z54: ='①月末在庫(実)'!Z54 -> 0 | AA54: ='①月末在庫(実)'!AA54 -> 0 | AB54: 0 | AC54: ='①月末在庫(実)'!AC54 -> 0 | AD54: ='①月末在庫(実)'!AD54 -> 0 | AE54: ='①月末在庫(実)'!AE54 -> 0 | AF54: 0 | AG54: 0 | AH54: ='①月末在庫(実)'!AH54 -> 0 | AI54: ='①月末在庫(実)'!AI54 -> 0 | AJ54: ='①月末在庫(実)'!AJ54 -> 0 | AK54: ='①月末在庫(実)'!AK54 -> 0 | AL54: 0 | AM54: ='①月末在庫(実)'!AM54 -> 0 | AN54: ='①月末在庫(実)'!AN54 -> 45 | AO54: ='①月末在庫(実)'!AO54 -> 0 | AP54: 45 | AQ54: 45 | AR54: =+#REF!*15.1 -> 
C55: ='①月末在庫(実)'!C55 -> KRNS | D55: ='①月末在庫(実)'!D55 -> 12201-KRN-A800-AA | G55: 25 | H55: ='①月末在庫(実)'!H55 -> 0 | I55: ='①月末在庫(実)'!I55 -> 0 | J55: ='①月末在庫(実)'!J55 -> 0 | K55: ='①月末在庫(実)'!K55 -> 0 | L55: ='①月末在庫(実)'!L55 -> 0 | M55: 0 | N55: ='①月末在庫(実)'!N55 -> 0 | O55: ='①月末在庫(実)'!O55 -> 0 | P55: ='①月末在庫(実)'!P55 -> 0 | Q55: ='①月末在庫(実)'!Q55 -> 0 | R55: 0 | S55: ='①月末在庫(実)'!S55 -> 0 | T55: ='①月末在庫(実)'!T55 -> 0 | V55: 0 | W55: 0 | X55: ='①月末在庫(実)'!X55 -> 0 | Y55: ='①月末在庫(実)'!Y55 -> 0 | Z55: ='①月末在庫(実)'!Z55 -> 0 | AA55: ='①月末在庫(実)'!AA55 -> 0 | AB55: 0 | AC55: ='①月末在庫(実)'!AC55 -> 0 | AD55: ='①月末在庫(実)'!AD55 -> 0 | AE55: ='①月末在庫(実)'!AE55 -> 0 | AF55: 0 | AG55: 0 | AH55: ='①月末在庫(実)'!AH55 -> 0 | AI55: ='①月末在庫(実)'!AI55 -> 0 | AJ55: ='①月末在庫(実)'!AJ55 -> 0 | AK55: ='①月末在庫(実)'!AK55 -> 0 | AL55: 0 | AM55: ='①月末在庫(実)'!AM55 -> 0 | AN55: ='①月末在庫(実)'!AN55 -> 25 | AO55: ='①月末在庫(実)'!AO55 -> 0 | AP55: 25 | AQ55: 25 | AR55: =+#REF!*15.1 -> 
C56: ='①月末在庫(実)'!C56 -> KRNV | D56: ='①月末在庫(実)'!D56 -> 12201-KRN-B100-AA | G56: 23 | H56: ='①月末在庫(実)'!H56 -> 0 | I56: ='①月末在庫(実)'!I56 -> 0 | J56: ='①月末在庫(実)'!J56 -> 0 | K56: ='①月末在庫(実)'!K56 -> 0 | L56: ='①月末在庫(実)'!L56 -> 0 | M56: 0 | N56: ='①月末在庫(実)'!N56 -> 0 | O56: ='①月末在庫(実)'!O56 -> 0 | P56: ='①月末在庫(実)'!P56 -> 0 | Q56: ='①月末在庫(実)'!Q56 -> 0 | R56: 0 | S56: ='①月末在庫(実)'!S56 -> 0 | T56: ='①月末在庫(実)'!T56 -> 0 | V56: 0 | W56: 0 | X56: ='①月末在庫(実)'!X56 -> 0 | Y56: ='①月末在庫(実)'!Y56 -> 0 | Z56: ='①月末在庫(実)'!Z56 -> 0 | AA56: ='①月末在庫(実)'!AA56 -> 0 | AB56: 0 | AC56: ='①月末在庫(実)'!AC56 -> 0 | AD56: ='①月末在庫(実)'!AD56 -> 0 | AE56: ='①月末在庫(実)'!AE56 -> 0 | AF56: 0 | AG56: 0 | AH56: ='①月末在庫(実)'!AH56 -> 0 | AI56: ='①月末在庫(実)'!AI56 -> 0 | AJ56: ='①月末在庫(実)'!AJ56 -> 0 | AK56: ='①月末在庫(実)'!AK56 -> 23 | AL56: 23 | AM56: ='①月末在庫(実)'!AM56 -> 0 | AN56: ='①月末在庫(実)'!AN56 -> 0 | AO56: ='①月末在庫(実)'!AO56 -> 0 | AP56: 0 | AQ56: 23 | AR56: =+#REF!*15.1 -> 
C57: ='①月末在庫(実)'!C57 -> KSE | D57: ='①月末在庫(実)'!D57 -> 12200-KSE-6701-AA | G57: 323 | H57: ='①月末在庫(実)'!H57 -> 0 | I57: ='①月末在庫(実)'!I57 -> 0 | J57: ='①月末在庫(実)'!J57 -> 0 | K57: ='①月末在庫(実)'!K57 -> 0 | L57: ='①月末在庫(実)'!L57 -> 0 | M57: 0 | N57: ='①月末在庫(実)'!N57 -> 0 | O57: ='①月末在庫(実)'!O57 -> 0 | P57: ='①月末在庫(実)'!P57 -> 0 | Q57: ='①月末在庫(実)'!Q57 -> 0 | R57: 0 | S57: ='①月末在庫(実)'!S57 -> 323 | T57: ='①月末在庫(実)'!T57 -> 0 | V57: 323 | W57: 323 | X57: ='①月末在庫(実)'!X57 -> 0 | Y57: ='①月末在庫(実)'!Y57 -> 0 | Z57: ='①月末在庫(実)'!Z57 -> 0 | AA57: ='①月末在庫(実)'!AA57 -> 0 | AB57: 0 | AC57: ='①月末在庫(実)'!AC57 -> 0 | AD57: ='①月末在庫(実)'!AD57 -> 0 | AE57: ='①月末在庫(実)'!AE57 -> 0 | AF57: 0 | AG57: 0 | AH57: ='①月末在庫(実)'!AH57 -> 0 | AI57: ='①月末在庫(実)'!AI57 -> 0 | AJ57: ='①月末在庫(実)'!AJ57 -> 0 | AK57: ='①月末在庫(実)'!AK57 -> 0 | AL57: 0 | AM57: ='①月末在庫(実)'!AM57 -> 0 | AN57: ='①月末在庫(実)'!AN57 -> 0 | AO57: ='①月末在庫(実)'!AO57 -> 0 | AP57: 0 | AQ57: 323 | AR57: =+#REF!*15.1 -> 
C58: ='①月末在庫(実)'!C58 -> KSEK | D58: ='①月末在庫(実)'!D58 -> 12200-KSE-A700-AA | G58: 960 | H58: ='①月末在庫(実)'!H58 -> 0 | I58: ='①月末在庫(実)'!I58 -> 0 | J58: ='①月末在庫(実)'!J58 -> 0 | K58: ='①月末在庫(実)'!K58 -> 695 | L58: ='①月末在庫(実)'!L58 -> 0 | M58: 695 | N58: ='①月末在庫(実)'!N58 -> 0 | O58: ='①月末在庫(実)'!O58 -> 0 | P58: ='①月末在庫(実)'!P58 -> 0 | Q58: ='①月末在庫(実)'!Q58 -> 0 | R58: 0 | S58: ='①月末在庫(実)'!S58 -> 152 | T58: ='①月末在庫(実)'!T58 -> 0 | V58: 152 | W58: 152 | X58: ='①月末在庫(実)'!X58 -> 0 | Y58: ='①月末在庫(実)'!Y58 -> 0 | Z58: ='①月末在庫(実)'!Z58 -> 0 | AA58: ='①月末在庫(実)'!AA58 -> 0 | AB58: 0 | AC58: ='①月末在庫(実)'!AC58 -> 0 | AD58: ='①月末在庫(実)'!AD58 -> 0 | AE58: ='①月末在庫(実)'!AE58 -> 0 | AF58: 0 | AG58: 0 | AH58: ='①月末在庫(実)'!AH58 -> 0 | AI58: ='①月末在庫(実)'!AI58 -> 0 | AJ58: ='①月末在庫(実)'!AJ58 -> 0 | AK58: ='①月末在庫(実)'!AK58 -> 113 | AL58: 113 | AM58: ='①月末在庫(実)'!AM58 -> 0 | AN58: ='①月末在庫(実)'!AN58 -> 0 | AO58: ='①月末在庫(実)'!AO58 -> 0 | AP58: 0 | AQ58: 960 | AR58: =+#REF!*15.1 -> 
C59: ='①月末在庫(実)'!C59 -> HP1 | D59: ='①月末在庫(実)'!D59 -> 12200-HP1-6700-AA | G59: 70 | H59: ='①月末在庫(実)'!H59 -> 0 | I59: ='①月末在庫(実)'!I59 -> 0 | J59: ='①月末在庫(実)'!J59 -> 0 | K59: ='①月末在庫(実)'!K59 -> 0 | L59: ='①月末在庫(実)'!L59 -> 0 | M59: 0 | N59: ='①月末在庫(実)'!N59 -> 0 | O59: ='①月末在庫(実)'!O59 -> 0 | P59: ='①月末在庫(実)'!P59 -> 0 | Q59: ='①月末在庫(実)'!Q59 -> 0 | R59: 0 | S59: ='①月末在庫(実)'!S59 -> 0 | T59: ='①月末在庫(実)'!T59 -> 0 | V59: 0 | W59: 0 | X59: ='①月末在庫(実)'!X59 -> 0 | Y59: ='①月末在庫(実)'!Y59 -> 0 | Z59: ='①月末在庫(実)'!Z59 -> 0 | AA59: ='①月末在庫(実)'!AA59 -> 0 | AB59: 0 | AC59: ='①月末在庫(実)'!AC59 -> 0 | AD59: ='①月末在庫(実)'!AD59 -> 0 | AE59: ='①月末在庫(実)'!AE59 -> 0 | AF59: 0 | AG59: 0 | AH59: ='①月末在庫(実)'!AH59 -> 0 | AI59: ='①月末在庫(実)'!AI59 -> 0 | AJ59: ='①月末在庫(実)'!AJ59 -> 0 | AK59: ='①月末在庫(実)'!AK59 -> 70 | AL59: 70 | AM59: ='①月末在庫(実)'!AM59 -> 0 | AN59: ='①月末在庫(実)'!AN59 -> 0 | AO59: ='①月末在庫(実)'!AO59 -> 0 | AP59: 0 | AQ59: 70 | AR59: =+#REF!*15.1 -> 
C60: ='①月末在庫(実)'!C60 -> HP1G | D60: ='①月末在庫(実)'!D60 -> 12200-HP1-6001-AA | G60: 5 | H60: ='①月末在庫(実)'!H60 -> 0 | I60: ='①月末在庫(実)'!I60 -> 0 | J60: ='①月末在庫(実)'!J60 -> 0 | K60: ='①月末在庫(実)'!K60 -> 0 | L60: ='①月末在庫(実)'!L60 -> 0 | M60: 0 | N60: ='①月末在庫(実)'!N60 -> 0 | O60: ='①月末在庫(実)'!O60 -> 0 | P60: ='①月末在庫(実)'!P60 -> 0 | Q60: ='①月末在庫(実)'!Q60 -> 0 | R60: 0 | S60: ='①月末在庫(実)'!S60 -> 0 | T60: ='①月末在庫(実)'!T60 -> 0 | V60: 0 | W60: 0 | X60: ='①月末在庫(実)'!X60 -> 0 | Y60: ='①月末在庫(実)'!Y60 -> 0 | Z60: ='①月末在庫(実)'!Z60 -> 0 | AA60: ='①月末在庫(実)'!AA60 -> 0 | AB60: 0 | AC60: ='①月末在庫(実)'!AC60 -> 0 | AD60: ='①月末在庫(実)'!AD60 -> 0 | AE60: ='①月末在庫(実)'!AE60 -> 0 | AF60: 0 | AG60: 0 | AH60: ='①月末在庫(実)'!AH60 -> 0 | AI60: ='①月末在庫(実)'!AI60 -> 0 | AJ60: ='①月末在庫(実)'!AJ60 -> 0 | AK60: ='①月末在庫(実)'!AK60 -> 5 | AL60: 5 | AM60: ='①月末在庫(実)'!AM60 -> 0 | AN60: ='①月末在庫(実)'!AN60 -> 0 | AO60: ='①月末在庫(実)'!AO60 -> 0 | AP60: 0 | AQ60: 5 | AR60: =+#REF!*15.1 -> 
C61: ='①月末在庫(実)'!C61 -> K95 | D61: ='①月末在庫(実)'!D61 -> 12201-K95-A000-AA | G61: 45 | H61: ='①月末在庫(実)'!H61 -> 0 | I61: ='①月末在庫(実)'!I61 -> 0 | J61: ='①月末在庫(実)'!J61 -> 0 | K61: ='①月末在庫(実)'!K61 -> 0 | L61: ='①月末在庫(実)'!L61 -> 0 | M61: 0 | N61: ='①月末在庫(実)'!N61 -> 0 | O61: ='①月末在庫(実)'!O61 -> 0 | P61: ='①月末在庫(実)'!P61 -> 0 | Q61: ='①月末在庫(実)'!Q61 -> 0 | R61: 0 | S61: ='①月末在庫(実)'!S61 -> 0 | T61: ='①月末在庫(実)'!T61 -> 0 | V61: 0 | W61: 0 | X61: ='①月末在庫(実)'!X61 -> 0 | Y61: ='①月末在庫(実)'!Y61 -> 0 | Z61: ='①月末在庫(実)'!Z61 -> 0 | AA61: ='①月末在庫(実)'!AA61 -> 0 | AB61: 0 | AC61: ='①月末在庫(実)'!AC61 -> 0 | AD61: ='①月末在庫(実)'!AD61 -> 0 | AE61: ='①月末在庫(実)'!AE61 -> 0 | AF61: 0 | AG61: 0 | AH61: ='①月末在庫(実)'!AH61 -> 0 | AI61: ='①月末在庫(実)'!AI61 -> 0 | AJ61: ='①月末在庫(実)'!AJ61 -> 45 | AK61: ='①月末在庫(実)'!AK61 -> 0 | AL61: 45 | AM61: ='①月末在庫(実)'!AM61 -> 0 | AN61: ='①月末在庫(実)'!AN61 -> 0 | AO61: ='①月末在庫(実)'!AO61 -> 0 | AP61: 0 | AQ61: 45 | AR61: =+#REF!*15.1 -> 
C62: ='①月末在庫(実)'!C62 -> K95F | D62: ='①月末在庫(実)'!D62 -> 12201-K95-A400-AA | G62: 252 | H62: ='①月末在庫(実)'!H62 -> 0 | I62: ='①月末在庫(実)'!I62 -> 0 | J62: ='①月末在庫(実)'!J62 -> 0 | K62: ='①月末在庫(実)'!K62 -> 0 | L62: ='①月末在庫(実)'!L62 -> 0 | M62: 0 | N62: ='①月末在庫(実)'!N62 -> 0 | O62: ='①月末在庫(実)'!O62 -> 0 | P62: ='①月末在庫(実)'!P62 -> 0 | Q62: ='①月末在庫(実)'!Q62 -> 0 | R62: 0 | S62: ='①月末在庫(実)'!S62 -> 190 | T62: ='①月末在庫(実)'!T62 -> 0 | V62: 190 | W62: 190 | X62: ='①月末在庫(実)'!X62 -> 0 | Y62: ='①月末在庫(実)'!Y62 -> 0 | Z62: ='①月末在庫(実)'!Z62 -> 0 | AA62: ='①月末在庫(実)'!AA62 -> 0 | AB62: 0 | AC62: ='①月末在庫(実)'!AC62 -> 0 | AD62: ='①月末在庫(実)'!AD62 -> 0 | AE62: ='①月末在庫(実)'!AE62 -> 0 | AF62: 0 | AG62: 0 | AH62: ='①月末在庫(実)'!AH62 -> 0 | AI62: ='①月末在庫(実)'!AI62 -> 0 | AJ62: ='①月末在庫(実)'!AJ62 -> 0 | AK62: ='①月末在庫(実)'!AK62 -> 62 | AL62: 62 | AM62: ='①月末在庫(実)'!AM62 -> 0 | AN62: ='①月末在庫(実)'!AN62 -> 0 | AO62: ='①月末在庫(実)'!AO62 -> 0 | AP62: 0 | AQ62: 252 | AR62: =+#REF!*15.1 -> 
C63: ='①月末在庫(実)'!C63 -> k95G | D63: ='①月末在庫(実)'!D63 -> 12201-K95-A600-AA | G63: 11 | H63: ='①月末在庫(実)'!H63 -> 0 | I63: ='①月末在庫(実)'!I63 -> 0 | J63: ='①月末在庫(実)'!J63 -> 0 | K63: ='①月末在庫(実)'!K63 -> 0 | L63: ='①月末在庫(実)'!L63 -> 0 | M63: 0 | N63: ='①月末在庫(実)'!N63 -> 0 | O63: ='①月末在庫(実)'!O63 -> 0 | P63: ='①月末在庫(実)'!P63 -> 0 | Q63: ='①月末在庫(実)'!Q63 -> 0 | R63: 0 | S63: ='①月末在庫(実)'!S63 -> 0 | T63: ='①月末在庫(実)'!T63 -> 0 | V63: 0 | W63: 0 | X63: ='①月末在庫(実)'!X63 -> 0 | Y63: ='①月末在庫(実)'!Y63 -> 0 | Z63: ='①月末在庫(実)'!Z63 -> 0 | AA63: ='①月末在庫(実)'!AA63 -> 0 | AB63: 0 | AC63: ='①月末在庫(実)'!AC63 -> 0 | AD63: ='①月末在庫(実)'!AD63 -> 0 | AE63: ='①月末在庫(実)'!AE63 -> 0 | AF63: 0 | AG63: 0 | AH63: ='①月末在庫(実)'!AH63 -> 0 | AI63: ='①月末在庫(実)'!AI63 -> 0 | AJ63: ='①月末在庫(実)'!AJ63 -> 0 | AK63: ='①月末在庫(実)'!AK63 -> 11 | AL63: 11 | AM63: ='①月末在庫(実)'!AM63 -> 0 | AN63: ='①月末在庫(実)'!AN63 -> 0 | AO63: ='①月末在庫(実)'!AO63 -> 0 | AP63: 0 | AQ63: 11 | AR63: =+#REF!*15.1 -> 
C64: ='①月末在庫(実)'!C64 -> K95H | D64: ='①月末在庫(実)'!D64 -> 12201-K95-AA00-AA | G64: 1374 | H64: ='①月末在庫(実)'!H64 -> 0 | I64: ='①月末在庫(実)'!I64 -> 0 | J64: ='①月末在庫(実)'!J64 -> 0 | K64: ='①月末在庫(実)'!K64 -> 220 | L64: ='①月末在庫(実)'!L64 -> 0 | M64: 220 | N64: ='①月末在庫(実)'!N64 -> 682 | O64: ='①月末在庫(実)'!O64 -> 0 | P64: ='①月末在庫(実)'!P64 -> 0 | Q64: ='①月末在庫(実)'!Q64 -> 0 | R64: 682 | S64: ='①月末在庫(実)'!S64 -> 31 | T64: ='①月末在庫(実)'!T64 -> 0 | V64: 31 | W64: 713 | X64: ='①月末在庫(実)'!X64 -> 0 | Y64: ='①月末在庫(実)'!Y64 -> 0 | Z64: ='①月末在庫(実)'!Z64 -> 0 | AA64: ='①月末在庫(実)'!AA64 -> 0 | AB64: 0 | AC64: ='①月末在庫(実)'!AC64 -> 0 | AD64: ='①月末在庫(実)'!AD64 -> 0 | AE64: ='①月末在庫(実)'!AE64 -> 0 | AF64: 0 | AG64: 0 | AH64: ='①月末在庫(実)'!AH64 -> 0 | AI64: ='①月末在庫(実)'!AI64 -> 0 | AJ64: ='①月末在庫(実)'!AJ64 -> 186 | AK64: ='①月末在庫(実)'!AK64 -> 63 | AL64: 249 | AM64: ='①月末在庫(実)'!AM64 -> 0 | AN64: ='①月末在庫(実)'!AN64 -> 192 | AO64: ='①月末在庫(実)'!AO64 -> 0 | AP64: 192 | AQ64: 1374 | AR64: =+#REF!*15.1 -> 
C65: ='①月末在庫(実)'!C65 -> MKE | D65: ='①月末在庫(実)'!D65 -> 12201-MKE-A000-AA | G65: 240 | H65: ='①月末在庫(実)'!H65 -> 0 | I65: ='①月末在庫(実)'!I65 -> 0 | J65: ='①月末在庫(実)'!J65 -> 0 | K65: ='①月末在庫(実)'!K65 -> 0 | L65: ='①月末在庫(実)'!L65 -> 0 | M65: 0 | N65: ='①月末在庫(実)'!N65 -> 0 | O65: ='①月末在庫(実)'!O65 -> 0 | P65: ='①月末在庫(実)'!P65 -> 0 | Q65: ='①月末在庫(実)'!Q65 -> 0 | R65: 0 | S65: ='①月末在庫(実)'!S65 -> 0 | T65: ='①月末在庫(実)'!T65 -> 0 | V65: 0 | W65: 0 | X65: ='①月末在庫(実)'!X65 -> 0 | Y65: ='①月末在庫(実)'!Y65 -> 0 | Z65: ='①月末在庫(実)'!Z65 -> 0 | AA65: ='①月末在庫(実)'!AA65 -> 0 | AB65: 0 | AC65: ='①月末在庫(実)'!AC65 -> 0 | AD65: ='①月末在庫(実)'!AD65 -> 0 | AE65: ='①月末在庫(実)'!AE65 -> 0 | AF65: 0 | AG65: 0 | AH65: ='①月末在庫(実)'!AH65 -> 0 | AI65: ='①月末在庫(実)'!AI65 -> 0 | AJ65: ='①月末在庫(実)'!AJ65 -> 0 | AK65: ='①月末在庫(実)'!AK65 -> 240 | AL65: 240 | AM65: ='①月末在庫(実)'!AM65 -> 0 | AN65: ='①月末在庫(実)'!AN65 -> 0 | AO65: ='①月末在庫(実)'!AO65 -> 0 | AP65: 0 | AQ65: 240 | AR65: =+#REF!*15.1 -> 
C66: ='①月末在庫(実)'!C66 -> MKEH | D66: ='①月末在庫(実)'!D66 -> 12201-MKE-A700-AA | G66: 213 | H66: ='①月末在庫(実)'!H66 -> 0 | I66: ='①月末在庫(実)'!I66 -> 0 | J66: ='①月末在庫(実)'!J66 -> 0 | K66: ='①月末在庫(実)'!K66 -> 0 | L66: ='①月末在庫(実)'!L66 -> 0 | M66: 0 | N66: ='①月末在庫(実)'!N66 -> 0 | O66: ='①月末在庫(実)'!O66 -> 0 | P66: ='①月末在庫(実)'!P66 -> 0 | Q66: ='①月末在庫(実)'!Q66 -> 0 | R66: 0 | S66: ='①月末在庫(実)'!S66 -> 44 | T66: ='①月末在庫(実)'!T66 -> 0 | V66: 44 | W66: 44 | X66: ='①月末在庫(実)'!X66 -> 0 | Y66: ='①月末在庫(実)'!Y66 -> 0 | Z66: ='①月末在庫(実)'!Z66 -> 0 | AA66: ='①月末在庫(実)'!AA66 -> 0 | AB66: 0 | AC66: ='①月末在庫(実)'!AC66 -> 0 | AD66: ='①月末在庫(実)'!AD66 -> 0 | AE66: ='①月末在庫(実)'!AE66 -> 0 | AF66: 0 | AG66: 0 | AH66: ='①月末在庫(実)'!AH66 -> 0 | AI66: ='①月末在庫(実)'!AI66 -> 0 | AJ66: ='①月末在庫(実)'!AJ66 -> 120 | AK66: ='①月末在庫(実)'!AK66 -> 49 | AL66: 169 | AM66: ='①月末在庫(実)'!AM66 -> 0 | AN66: ='①月末在庫(実)'!AN66 -> 0 | AO66: ='①月末在庫(実)'!AO66 -> 0 | AP66: 0 | AQ66: 213 | AR66: =+#REF!*15.1 -> 
C67: ='①月末在庫(実)'!C67 -> MKEG | D67: ='①月末在庫(実)'!D67 -> 12201-MKE-A500-AA | G67: 872 | H67: ='①月末在庫(実)'!H67 -> 0 | I67: ='①月末在庫(実)'!I67 -> 0 | J67: ='①月末在庫(実)'!J67 -> 0 | K67: ='①月末在庫(実)'!K67 -> 0 | L67: ='①月末在庫(実)'!L67 -> 0 | M67: 0 | N67: ='①月末在庫(実)'!N67 -> 0 | O67: ='①月末在庫(実)'!O67 -> 0 | P67: ='①月末在庫(実)'!P67 -> 0 | Q67: ='①月末在庫(実)'!Q67 -> 0 | R67: 0 | S67: ='①月末在庫(実)'!S67 -> 679 | T67: ='①月末在庫(実)'!T67 -> 0 | V67: 679 | W67: 679 | X67: ='①月末在庫(実)'!X67 -> 0 | Y67: ='①月末在庫(実)'!Y67 -> 0 | Z67: ='①月末在庫(実)'!Z67 -> 0 | AA67: ='①月末在庫(実)'!AA67 -> 0 | AB67: 0 | AC67: ='①月末在庫(実)'!AC67 -> 0 | AD67: ='①月末在庫(実)'!AD67 -> 0 | AE67: ='①月末在庫(実)'!AE67 -> 0 | AF67: 0 | AG67: 0 | AH67: ='①月末在庫(実)'!AH67 -> 0 | AI67: ='①月末在庫(実)'!AI67 -> 0 | AJ67: ='①月末在庫(実)'!AJ67 -> 0 | AK67: ='①月末在庫(実)'!AK67 -> 193 | AL67: 193 | AM67: ='①月末在庫(実)'!AM67 -> 0 | AN67: ='①月末在庫(実)'!AN67 -> 0 | AO67: ='①月末在庫(実)'!AO67 -> 0 | AP67: 0 | AQ67: 872 | AR67: =+#REF!*15.1 -> 
C68: ='①月末在庫(実)'!C68 -> MKEK | D68: ='①月末在庫(実)'!D68 -> 12201-MKE-AF01-AA | G68: 1029 | H68: ='①月末在庫(実)'!H68 -> 0 | I68: ='①月末在庫(実)'!I68 -> 0 | J68: ='①月末在庫(実)'!J68 -> 0 | K68: ='①月末在庫(実)'!K68 -> 0 | L68: ='①月末在庫(実)'!L68 -> 0 | M68: 0 | N68: ='①月末在庫(実)'!N68 -> 0 | O68: ='①月末在庫(実)'!O68 -> 0 | P68: ='①月末在庫(実)'!P68 -> 0 | Q68: ='①月末在庫(実)'!Q68 -> 0 | R68: 0 | S68: ='①月末在庫(実)'!S68 -> 720 | T68: ='①月末在庫(実)'!T68 -> 0 | V68: 720 | W68: 720 | X68: ='①月末在庫(実)'!X68 -> 0 | Y68: ='①月末在庫(実)'!Y68 -> 0 | Z68: ='①月末在庫(実)'!Z68 -> 0 | AA68: ='①月末在庫(実)'!AA68 -> 0 | AB68: 0 | AC68: ='①月末在庫(実)'!AC68 -> 110 | AD68: ='①月末在庫(実)'!AD68 -> 0 | AE68: ='①月末在庫(実)'!AE68 -> 0 | AF68: 110 | AG68: 110 | AH68: ='①月末在庫(実)'!AH68 -> 0 | AI68: ='①月末在庫(実)'!AI68 -> 0 | AJ68: ='①月末在庫(実)'!AJ68 -> 118 | AK68: ='①月末在庫(実)'!AK68 -> 81 | AL68: 199 | AM68: ='①月末在庫(実)'!AM68 -> 0 | AN68: ='①月末在庫(実)'!AN68 -> 0 | AO68: ='①月末在庫(実)'!AO68 -> 0 | AP68: 0 | AQ68: 1029 | AR68: =+#REF!*15.1 -> 
C69: ='①月末在庫(実)'!C69 -> MKEM | D69: ='①月末在庫(実)'!D69 -> 12201-MKE-AS00-AA | G69: 1060 | H69: ='①月末在庫(実)'!H69 -> 0 | I69: ='①月末在庫(実)'!I69 -> 0 | J69: ='①月末在庫(実)'!J69 -> 0 | K69: ='①月末在庫(実)'!K69 -> 219 | L69: ='①月末在庫(実)'!L69 -> 0 | M69: 219 | N69: ='①月末在庫(実)'!N69 -> 0 | O69: ='①月末在庫(実)'!O69 -> 0 | P69: ='①月末在庫(実)'!P69 -> 0 | Q69: ='①月末在庫(実)'!Q69 -> 0 | R69: 0 | S69: ='①月末在庫(実)'!S69 -> 257 | T69: ='①月末在庫(実)'!T69 -> 0 | V69: 257 | W69: 257 | X69: ='①月末在庫(実)'!X69 -> 0 | Y69: ='①月末在庫(実)'!Y69 -> 0 | Z69: ='①月末在庫(実)'!Z69 -> 0 | AA69: ='①月末在庫(実)'!AA69 -> 0 | AB69: 0 | AC69: ='①月末在庫(実)'!AC69 -> 0 | AD69: ='①月末在庫(実)'!AD69 -> 0 | AE69: ='①月末在庫(実)'!AE69 -> 0 | AF69: 0 | AG69: 0 | AH69: ='①月末在庫(実)'!AH69 -> 0 | AI69: ='①月末在庫(実)'!AI69 -> 0 | AJ69: ='①月末在庫(実)'!AJ69 -> 0 | AK69: ='①月末在庫(実)'!AK69 -> 584 | AL69: 584 | AM69: ='①月末在庫(実)'!AM69 -> 0 | AN69: ='①月末在庫(実)'!AN69 -> 0 | AO69: ='①月末在庫(実)'!AO69 -> 0 | AP69: 0 | AQ69: 1060 | AR69: =+#REF!*15.1 -> 
C70: ='①月末在庫(実)'!C70 -> HP6 | D70: ='①月末在庫(実)'!D70 -> 12200-HP6-A000-AA | G70: 153 | H70: ='①月末在庫(実)'!H70 -> 0 | I70: ='①月末在庫(実)'!I70 -> 0 | J70: ='①月末在庫(実)'!J70 -> 0 | K70: ='①月末在庫(実)'!K70 -> 0 | L70: ='①月末在庫(実)'!L70 -> 0 | M70: 0 | N70: ='①月末在庫(実)'!N70 -> 0 | O70: ='①月末在庫(実)'!O70 -> 0 | P70: ='①月末在庫(実)'!P70 -> 0 | Q70: ='①月末在庫(実)'!Q70 -> 0 | R70: 0 | S70: ='①月末在庫(実)'!S70 -> 0 | T70: ='①月末在庫(実)'!T70 -> 0 | V70: 0 | W70: 0 | X70: ='①月末在庫(実)'!X70 -> 0 | Y70: ='①月末在庫(実)'!Y70 -> 0 | Z70: ='①月末在庫(実)'!Z70 -> 0 | AA70: ='①月末在庫(実)'!AA70 -> 0 | AB70: 0 | AC70: ='①月末在庫(実)'!AC70 -> 0 | AD70: ='①月末在庫(実)'!AD70 -> 0 | AE70: ='①月末在庫(実)'!AE70 -> 0 | AF70: 0 | AG70: 0 | AH70: ='①月末在庫(実)'!AH70 -> 0 | AI70: ='①月末在庫(実)'!AI70 -> 0 | AJ70: ='①月末在庫(実)'!AJ70 -> 0 | AK70: ='①月末在庫(実)'!AK70 -> 0 | AL70: 0 | AM70: ='①月末在庫(実)'!AM70 -> 0 | AN70: ='①月末在庫(実)'!AN70 -> 153 | AO70: ='①月末在庫(実)'!AO70 -> 0 | AP70: 153 | AQ70: 153 | AR70: =+#REF!*15.1 -> 
C71: ='①月末在庫(実)'!C71 -> KSV | D71: ='①月末在庫(実)'!D71 -> 12200-KSV-J101-AA | G71: 2 | H71: ='①月末在庫(実)'!H71 -> 0 | I71: ='①月末在庫(実)'!I71 -> 0 | J71: ='①月末在庫(実)'!J71 -> 0 | K71: ='①月末在庫(実)'!K71 -> 0 | L71: ='①月末在庫(実)'!L71 -> 0 | M71: 0 | N71: ='①月末在庫(実)'!N71 -> 0 | O71: ='①月末在庫(実)'!O71 -> 0 | P71: ='①月末在庫(実)'!P71 -> 0 | Q71: ='①月末在庫(実)'!Q71 -> 0 | R71: 0 | S71: ='①月末在庫(実)'!S71 -> 0 | T71: ='①月末在庫(実)'!T71 -> 0 | V71: =SUM(S71:U71) -> 0 | W71: =R71+V71 -> 0 | X71: ='①月末在庫(実)'!X71 -> 0 | Y71: ='①月末在庫(実)'!Y71 -> 0 | Z71: ='①月末在庫(実)'!Z71 -> 0 | AA71: ='①月末在庫(実)'!AA71 -> 0 | AB71: 0 | AC71: ='①月末在庫(実)'!AC71 -> 0 | AD71: ='①月末在庫(実)'!AD71 -> 0 | AE71: ='①月末在庫(実)'!AE71 -> 0 | AF71: =SUM(AC71:AE71) -> 0 | AG71: =AB71+AF71 -> 0 | AH71: ='①月末在庫(実)'!AH71 -> 0 | AI71: ='①月末在庫(実)'!AI71 -> 0 | AJ71: ='①月末在庫(実)'!AJ71 -> 2 | AK71: ='①月末在庫(実)'!AK71 -> 0 | AL71: 2 | AM71: ='①月末在庫(実)'!AM71 -> 0 | AN71: ='①月末在庫(実)'!AN71 -> 0 | AO71: ='①月末在庫(実)'!AO71 -> 0 | AP71: 0 | AQ71: =M71+W71+AG71+AL71+AP71 -> 2 | AR71: =+#REF!*15.1 -> 
C72: ='①月末在庫(実)'!C72 -> HN8 | D72: ='①月末在庫(実)'!D72 -> 12200-HN8-0002-AA | G72: 155 | H72: ='①月末在庫(実)'!H72 -> 0 | I72: ='①月末在庫(実)'!I72 -> 0 | J72: ='①月末在庫(実)'!J72 -> 0 | K72: ='①月末在庫(実)'!K72 -> 0 | L72: ='①月末在庫(実)'!L72 -> 0 | M72: 0 | N72: ='①月末在庫(実)'!N72 -> 0 | O72: ='①月末在庫(実)'!O72 -> 0 | P72: ='①月末在庫(実)'!P72 -> 0 | Q72: ='①月末在庫(実)'!Q72 -> 0 | R72: 0 | S72: ='①月末在庫(実)'!S72 -> 0 | T72: ='①月末在庫(実)'!T72 -> 0 | V72: 0 | W72: 0 | X72: ='①月末在庫(実)'!X72 -> 0 | Y72: ='①月末在庫(実)'!Y72 -> 0 | Z72: ='①月末在庫(実)'!Z72 -> 0 | AA72: ='①月末在庫(実)'!AA72 -> 0 | AB72: 0 | AC72: ='①月末在庫(実)'!AC72 -> 0 | AD72: ='①月末在庫(実)'!AD72 -> 0 | AE72: ='①月末在庫(実)'!AE72 -> 0 | AF72: 0 | AG72: 0 | AH72: ='①月末在庫(実)'!AH72 -> 0 | AI72: ='①月末在庫(実)'!AI72 -> 0 | AJ72: ='①月末在庫(実)'!AJ72 -> 155 | AK72: ='①月末在庫(実)'!AK72 -> 0 | AL72: 155 | AM72: ='①月末在庫(実)'!AM72 -> 0 | AN72: ='①月末在庫(実)'!AN72 -> 0 | AO72: ='①月末在庫(実)'!AO72 -> 0 | AP72: 0 | AQ72: 155 | AR72: =+#REF!*15.1 -> 
C73: ='①月末在庫(実)'!C73 -> HN8H | D73: ='①月末在庫(実)'!D73 -> 12200-HN8-A600-AA | G73: 353 | H73: ='①月末在庫(実)'!H73 -> 0 | I73: ='①月末在庫(実)'!I73 -> 0 | J73: ='①月末在庫(実)'!J73 -> 0 | K73: ='①月末在庫(実)'!K73 -> 0 | L73: ='①月末在庫(実)'!L73 -> 0 | M73: =SUM(H73:L73) -> 0 | N73: ='①月末在庫(実)'!N73 -> 0 | O73: ='①月末在庫(実)'!O73 -> 0 | P73: ='①月末在庫(実)'!P73 -> 0 | Q73: ='①月末在庫(実)'!Q73 -> 0 | R73: 0 | S73: ='①月末在庫(実)'!S73 -> 0 | T73: ='①月末在庫(実)'!T73 -> 0 | V73: 0 | W73: 0 | X73: ='①月末在庫(実)'!X73 -> 0 | Y73: ='①月末在庫(実)'!Y73 -> 0 | Z73: ='①月末在庫(実)'!Z73 -> 0 | AA73: ='①月末在庫(実)'!AA73 -> 0 | AB73: 0 | AC73: ='①月末在庫(実)'!AC73 -> 0 | AD73: ='①月末在庫(実)'!AD73 -> 0 | AE73: ='①月末在庫(実)'!AE73 -> 0 | AF73: 0 | AG73: 0 | AH73: ='①月末在庫(実)'!AH73 -> 0 | AI73: ='①月末在庫(実)'!AI73 -> 0 | AJ73: ='①月末在庫(実)'!AJ73 -> 353 | AK73: ='①月末在庫(実)'!AK73 -> 0 | AL73: 353 | AM73: ='①月末在庫(実)'!AM73 -> 0 | AN73: ='①月末在庫(実)'!AN73 -> 0 | AO73: ='①月末在庫(実)'!AO73 -> 0 | AP73: 0 | AQ73: 353 | AR73: =+#REF!*15.1 -> 
C74: ='①月末在庫(実)'!C74 -> HN8T | D74: ='①月末在庫(実)'!D74 -> 12200-HN8-F401-AA | G74: 569 | H74: ='①月末在庫(実)'!H74 -> 0 | I74: ='①月末在庫(実)'!I74 -> 0 | J74: ='①月末在庫(実)'!J74 -> 0 | K74: ='①月末在庫(実)'!K74 -> 0 | L74: ='①月末在庫(実)'!L74 -> 0 | M74: 0 | N74: ='①月末在庫(実)'!N74 -> 0 | O74: ='①月末在庫(実)'!O74 -> 0 | P74: ='①月末在庫(実)'!P74 -> 0 | Q74: ='①月末在庫(実)'!Q74 -> 0 | R74: =SUM(N74:Q74) -> 0 | S74: ='①月末在庫(実)'!S74 -> 309 | T74: ='①月末在庫(実)'!T74 -> 0 | V74: 309 | W74: 309 | X74: ='①月末在庫(実)'!X74 -> 0 | Y74: ='①月末在庫(実)'!Y74 -> 0 | Z74: ='①月末在庫(実)'!Z74 -> 0 | AA74: ='①月末在庫(実)'!AA74 -> 0 | AB74: =SUM(X74:AA74) -> 0 | AC74: ='①月末在庫(実)'!AC74 -> 0 | AD74: ='①月末在庫(実)'!AD74 -> 0 | AE74: ='①月末在庫(実)'!AE74 -> 0 | AF74: 0 | AG74: 0 | AH74: ='①月末在庫(実)'!AH74 -> 0 | AI74: ='①月末在庫(実)'!AI74 -> 0 | AJ74: ='①月末在庫(実)'!AJ74 -> 260 | AK74: ='①月末在庫(実)'!AK74 -> 0 | AL74: =SUM(AH74:AK74) -> 260 | AM74: ='①月末在庫(実)'!AM74 -> 0 | AN74: ='①月末在庫(実)'!AN74 -> 0 | AO74: ='①月末在庫(実)'!AO74 -> 0 | AP74: =SUM(AM74:AO74) -> 0 | AQ74: 569 | AR74: =+#REF!*15.1 -> 
C75: ='①月末在庫(実)'!C75 -> KVZ | D75: ='①月末在庫(実)'!D75 -> 12201-KVZ-6300-AA | G75: 39 | H75: ='①月末在庫(実)'!H75 -> 0 | I75: ='①月末在庫(実)'!I75 -> 0 | J75: ='①月末在庫(実)'!J75 -> 0 | K75: ='①月末在庫(実)'!K75 -> 0 | L75: ='①月末在庫(実)'!L75 -> 0 | M75: 0 | N75: ='①月末在庫(実)'!N75 -> 0 | O75: ='①月末在庫(実)'!O75 -> 0 | P75: ='①月末在庫(実)'!P75 -> 0 | Q75: ='①月末在庫(実)'!Q75 -> 0 | R75: 0 | S75: ='①月末在庫(実)'!S75 -> 0 | T75: ='①月末在庫(実)'!T75 -> 0 | V75: 0 | W75: 0 | X75: ='①月末在庫(実)'!X75 -> 0 | Y75: ='①月末在庫(実)'!Y75 -> 0 | Z75: ='①月末在庫(実)'!Z75 -> 0 | AA75: ='①月末在庫(実)'!AA75 -> 0 | AB75: 0 | AC75: ='①月末在庫(実)'!AC75 -> 0 | AD75: ='①月末在庫(実)'!AD75 -> 0 | AE75: ='①月末在庫(実)'!AE75 -> 0 | AF75: 0 | AG75: 0 | AH75: ='①月末在庫(実)'!AH75 -> 0 | AI75: ='①月末在庫(実)'!AI75 -> 0 | AJ75: ='①月末在庫(実)'!AJ75 -> 39 | AK75: ='①月末在庫(実)'!AK75 -> 0 | AL75: 39 | AM75: ='①月末在庫(実)'!AM75 -> 0 | AN75: ='①月末在庫(実)'!AN75 -> 0 | AO75: ='①月末在庫(実)'!AO75 -> 0 | AP75: 0 | AQ75: 39 | AR75: =+#REF!*15.1 -> 
C76: ='①月末在庫(実)'!C76 -> MCT | D76: ='①月末在庫(実)'!D76 -> 12201-MCT-3003-AA | G76: 203 | H76: ='①月末在庫(実)'!H76 -> 0 | I76: ='①月末在庫(実)'!I76 -> 0 | J76: ='①月末在庫(実)'!J76 -> 0 | K76: ='①月末在庫(実)'!K76 -> 0 | L76: ='①月末在庫(実)'!L76 -> 0 | M76: 0 | N76: ='①月末在庫(実)'!N76 -> 0 | O76: ='①月末在庫(実)'!O76 -> 0 | P76: ='①月末在庫(実)'!P76 -> 0 | Q76: ='①月末在庫(実)'!Q76 -> 0 | R76: 0 | S76: ='①月末在庫(実)'!S76 -> 0 | T76: ='①月末在庫(実)'!T76 -> 0 | V76: 0 | W76: 0 | X76: ='①月末在庫(実)'!X76 -> 0 | Y76: ='①月末在庫(実)'!Y76 -> 0 | Z76: ='①月末在庫(実)'!Z76 -> 0 | AA76: ='①月末在庫(実)'!AA76 -> 0 | AB76: 0 | AC76: ='①月末在庫(実)'!AC76 -> 0 | AD76: ='①月末在庫(実)'!AD76 -> 0 | AE76: ='①月末在庫(実)'!AE76 -> 0 | AF76: 0 | AG76: 0 | AH76: ='①月末在庫(実)'!AH76 -> 0 | AI76: ='①月末在庫(実)'!AI76 -> 0 | AJ76: ='①月末在庫(実)'!AJ76 -> 203 | AK76: ='①月末在庫(実)'!AK76 -> 0 | AL76: 203 | AM76: ='①月末在庫(実)'!AM76 -> 0 | AN76: ='①月末在庫(実)'!AN76 -> 0 | AO76: ='①月末在庫(実)'!AO76 -> 0 | AP76: 0 | AQ76: 203 | AR76: =+#REF!*15.1 -> 
C77: ='①月末在庫(実)'!C77 -> MEF | D77: ='①月末在庫(実)'!D77 -> 12201-MEF-3000-AA | G77: 86 | H77: ='①月末在庫(実)'!H77 -> 0 | I77: ='①月末在庫(実)'!I77 -> 0 | J77: ='①月末在庫(実)'!J77 -> 0 | K77: ='①月末在庫(実)'!K77 -> 0 | L77: ='①月末在庫(実)'!L77 -> 0 | M77: 0 | N77: ='①月末在庫(実)'!N77 -> 0 | O77: ='①月末在庫(実)'!O77 -> 0 | P77: ='①月末在庫(実)'!P77 -> 0 | Q77: ='①月末在庫(実)'!Q77 -> 0 | R77: 0 | S77: ='①月末在庫(実)'!S77 -> 0 | T77: ='①月末在庫(実)'!T77 -> 0 | V77: 0 | W77: 0 | X77: ='①月末在庫(実)'!X77 -> 0 | Y77: ='①月末在庫(実)'!Y77 -> 0 | Z77: ='①月末在庫(実)'!Z77 -> 0 | AA77: ='①月末在庫(実)'!AA77 -> 0 | AB77: 0 | AC77: ='①月末在庫(実)'!AC77 -> 0 | AD77: ='①月末在庫(実)'!AD77 -> 0 | AE77: ='①月末在庫(実)'!AE77 -> 0 | AF77: 0 | AG77: 0 | AH77: ='①月末在庫(実)'!AH77 -> 0 | AI77: ='①月末在庫(実)'!AI77 -> 0 | AJ77: ='①月末在庫(実)'!AJ77 -> 86 | AK77: ='①月末在庫(実)'!AK77 -> 0 | AL77: 86 | AM77: ='①月末在庫(実)'!AM77 -> 0 | AN77: ='①月末在庫(実)'!AN77 -> 0 | AO77: ='①月末在庫(実)'!AO77 -> 0 | AP77: 0 | AQ77: 86 | AR77: =+#REF!*15.1 -> 
C78: ='①月末在庫(実)'!C78 -> MBV | D78: ='①月末在庫(実)'!D78 -> 12200-MBV-0000-AA | G78: 0 | H78: ='①月末在庫(実)'!H78 -> 0 | I78: ='①月末在庫(実)'!I78 -> 0 | J78: ='①月末在庫(実)'!J78 -> 0 | K78: ='①月末在庫(実)'!K78 -> 0 | L78: ='①月末在庫(実)'!L78 -> 0 | M78: 0 | N78: ='①月末在庫(実)'!N78 -> 0 | O78: ='①月末在庫(実)'!O78 -> 0 | P78: ='①月末在庫(実)'!P78 -> 0 | Q78: ='①月末在庫(実)'!Q78 -> 0 | R78: 0 | S78: ='①月末在庫(実)'!S78 -> 0 | T78: ='①月末在庫(実)'!T78 -> 0 | V78: 0 | W78: 0 | X78: ='①月末在庫(実)'!X78 -> 0 | Y78: ='①月末在庫(実)'!Y78 -> 0 | Z78: ='①月末在庫(実)'!Z78 -> 0 | AA78: ='①月末在庫(実)'!AA78 -> 0 | AB78: 0 | AC78: ='①月末在庫(実)'!AC78 -> 0 | AD78: ='①月末在庫(実)'!AD78 -> 0 | AE78: ='①月末在庫(実)'!AE78 -> 0 | AF78: 0 | AG78: 0 | AH78: ='①月末在庫(実)'!AH78 -> 0 | AI78: ='①月末在庫(実)'!AI78 -> 0 | AJ78: ='①月末在庫(実)'!AJ78 -> 0 | AK78: ='①月末在庫(実)'!AK78 -> 0 | AL78: 0 | AM78: ='①月末在庫(実)'!AM78 -> 0 | AN78: ='①月末在庫(実)'!AN78 -> 0 | AO78: ='①月末在庫(実)'!AO78 -> 0 | AP78: 0 | AQ78: 0 | AR78: =+#REF!*15.1 -> 
C79: ='①月末在庫(実)'!C79 -> HP7 | D79: ='①月末在庫(実)'!D79 -> 12200-HP7-B000-AA | G79: 4048 | H79: ='①月末在庫(実)'!H79 -> 0 | I79: ='①月末在庫(実)'!I79 -> 0 | J79: ='①月末在庫(実)'!J79 -> 0 | K79: ='①月末在庫(実)'!K79 -> 2708 | L79: ='①月末在庫(実)'!L79 -> 0 | M79: 2708 | N79: ='①月末在庫(実)'!N79 -> 0 | O79: ='①月末在庫(実)'!O79 -> 0 | P79: ='①月末在庫(実)'!P79 -> 0 | Q79: ='①月末在庫(実)'!Q79 -> 0 | R79: 0 | S79: ='①月末在庫(実)'!S79 -> 938 | T79: ='①月末在庫(実)'!T79 -> 0 | V79: 938 | W79: 938 | X79: ='①月末在庫(実)'!X79 -> 0 | Y79: ='①月末在庫(実)'!Y79 -> 0 | Z79: ='①月末在庫(実)'!Z79 -> 0 | AA79: ='①月末在庫(実)'!AA79 -> 0 | AB79: 0 | AC79: ='①月末在庫(実)'!AC79 -> 0 | AD79: ='①月末在庫(実)'!AD79 -> 0 | AE79: ='①月末在庫(実)'!AE79 -> 0 | AF79: 0 | AG79: 0 | AH79: ='①月末在庫(実)'!AH79 -> 0 | AI79: ='①月末在庫(実)'!AI79 -> 0 | AJ79: ='①月末在庫(実)'!AJ79 -> 402 | AK79: ='①月末在庫(実)'!AK79 -> 0 | AL79: 402 | AM79: ='①月末在庫(実)'!AM79 -> 0 | AN79: ='①月末在庫(実)'!AN79 -> 0 | AO79: ='①月末在庫(実)'!AO79 -> 0 | AP79: 0 | AQ79: 4048 | AR79: =+#REF!*15.1 -> 
C80: ='①月末在庫(実)'!C80 -> HS0 | D80: ='①月末在庫(実)'!D80 -> 12200-HS0-B000-AA | G80: 3206 | H80: ='①月末在庫(実)'!H80 -> 0 | I80: ='①月末在庫(実)'!I80 -> 0 | J80: ='①月末在庫(実)'!J80 -> 0 | K80: ='①月末在庫(実)'!K80 -> 1558 | L80: ='①月末在庫(実)'!L80 -> 0 | M80: 1558 | N80: ='①月末在庫(実)'!N80 -> 751 | O80: ='①月末在庫(実)'!O80 -> 0 | P80: ='①月末在庫(実)'!P80 -> 0 | Q80: ='①月末在庫(実)'!Q80 -> 0 | R80: 751 | S80: ='①月末在庫(実)'!S80 -> 0 | T80: ='①月末在庫(実)'!T80 -> 0 | V80: 0 | W80: 751 | X80: ='①月末在庫(実)'!X80 -> 0 | Y80: ='①月末在庫(実)'!Y80 -> 0 | Z80: ='①月末在庫(実)'!Z80 -> 0 | AA80: ='①月末在庫(実)'!AA80 -> 0 | AB80: 0 | AC80: ='①月末在庫(実)'!AC80 -> 0 | AD80: ='①月末在庫(実)'!AD80 -> 0 | AE80: ='①月末在庫(実)'!AE80 -> 0 | AF80: 0 | AG80: 0 | AH80: ='①月末在庫(実)'!AH80 -> 0 | AI80: ='①月末在庫(実)'!AI80 -> 0 | AJ80: ='①月末在庫(実)'!AJ80 -> 897 | AK80: ='①月末在庫(実)'!AK80 -> 0 | AL80: 897 | AM80: ='①月末在庫(実)'!AM80 -> 0 | AN80: ='①月末在庫(実)'!AN80 -> 0 | AO80: ='①月末在庫(実)'!AO80 -> 0 | AP80: 0 | AQ80: 3206 | AR80: =+#REF!*15.1 -> 
C81: ='①月末在庫(実)'!C81 -> HR6 | D81: ='①月末在庫(実)'!D81 -> 12200-HR6-B000-AA | G81: 4118 | H81: ='①月末在庫(実)'!H81 -> 0 | I81: ='①月末在庫(実)'!I81 -> 0 | J81: ='①月末在庫(実)'!J81 -> 0 | K81: ='①月末在庫(実)'!K81 -> 690 | L81: ='①月末在庫(実)'!L81 -> 0 | M81: 690 | N81: ='①月末在庫(実)'!N81 -> 949 | O81: ='①月末在庫(実)'!O81 -> 0 | P81: ='①月末在庫(実)'!P81 -> 0 | Q81: ='①月末在庫(実)'!Q81 -> 0 | R81: 949 | S81: ='①月末在庫(実)'!S81 -> 1569 | T81: ='①月末在庫(実)'!T81 -> 0 | V81: 1569 | W81: 2518 | X81: ='①月末在庫(実)'!X81 -> 0 | Y81: ='①月末在庫(実)'!Y81 -> 0 | Z81: ='①月末在庫(実)'!Z81 -> 0 | AA81: ='①月末在庫(実)'!AA81 -> 0 | AB81: 0 | AC81: ='①月末在庫(実)'!AC81 -> 0 | AD81: ='①月末在庫(実)'!AD81 -> 0 | AE81: ='①月末在庫(実)'!AE81 -> 0 | AF81: 0 | AG81: 0 | AH81: ='①月末在庫(実)'!AH81 -> 0 | AI81: ='①月末在庫(実)'!AI81 -> 0 | AJ81: ='①月末在庫(実)'!AJ81 -> 910 | AK81: ='①月末在庫(実)'!AK81 -> 0 | AL81: 910 | AM81: ='①月末在庫(実)'!AM81 -> 0 | AN81: ='①月末在庫(実)'!AN81 -> 0 | AO81: ='①月末在庫(実)'!AO81 -> 0 | AP81: 0 | AQ81: 4118 | AR81: =+#REF!*15.1 -> 
C82: ='①月末在庫(実)'!C82 -> GET | D82: ='①月末在庫(実)'!D82 -> 12200-GET-0001-AA | G82: 3606 | H82: ='①月末在庫(実)'!H82 -> 0 | I82: ='①月末在庫(実)'!I82 -> 0 | J82: ='①月末在庫(実)'!J82 -> 0 | K82: ='①月末在庫(実)'!K82 -> 0 | L82: ='①月末在庫(実)'!L82 -> 0 | M82: 0 | N82: ='①月末在庫(実)'!N82 -> 0 | O82: ='①月末在庫(実)'!O82 -> 0 | P82: ='①月末在庫(実)'!P82 -> 0 | Q82: ='①月末在庫(実)'!Q82 -> 0 | R82: 0 | S82: ='①月末在庫(実)'!S82 -> 2949 | T82: ='①月末在庫(実)'!T82 -> 0 | V82: 2949 | W82: 2949 | X82: ='①月末在庫(実)'!X82 -> 0 | Y82: ='①月末在庫(実)'!Y82 -> 0 | Z82: ='①月末在庫(実)'!Z82 -> 0 | AA82: ='①月末在庫(実)'!AA82 -> 0 | AB82: 0 | AC82: ='①月末在庫(実)'!AC82 -> 0 | AD82: ='①月末在庫(実)'!AD82 -> 0 | AE82: ='①月末在庫(実)'!AE82 -> 0 | AF82: 0 | AG82: 0 | AH82: ='①月末在庫(実)'!AH82 -> 0 | AI82: ='①月末在庫(実)'!AI82 -> 0 | AJ82: ='①月末在庫(実)'!AJ82 -> 657 | AK82: ='①月末在庫(実)'!AK82 -> 0 | AL82: 657 | AM82: ='①月末在庫(実)'!AM82 -> 0 | AN82: ='①月末在庫(実)'!AN82 -> 0 | AO82: ='①月末在庫(実)'!AO82 -> 0 | AP82: 0 | AQ82: 3606 | AR82: =+#REF!*15.1 -> 
C83: ='①月末在庫(実)'!C83 -> GETY | D83: ='①月末在庫(実)'!D83 -> 12200-GET-K400-AA | G83: 595 | H83: ='①月末在庫(実)'!H83 -> 0 | I83: ='①月末在庫(実)'!I83 -> 0 | J83: ='①月末在庫(実)'!J83 -> 0 | K83: ='①月末在庫(実)'!K83 -> 0 | L83: ='①月末在庫(実)'!L83 -> 0 | M83: 0 | N83: ='①月末在庫(実)'!N83 -> 0 | O83: ='①月末在庫(実)'!O83 -> 0 | P83: ='①月末在庫(実)'!P83 -> 0 | Q83: ='①月末在庫(実)'!Q83 -> 0 | R83: 0 | S83: ='①月末在庫(実)'!S83 -> 0 | T83: ='①月末在庫(実)'!T83 -> 0 | V83: 0 | W83: 0 | X83: ='①月末在庫(実)'!X83 -> 0 | Y83: ='①月末在庫(実)'!Y83 -> 0 | Z83: ='①月末在庫(実)'!Z83 -> 0 | AA83: ='①月末在庫(実)'!AA83 -> 0 | AB83: 0 | AC83: ='①月末在庫(実)'!AC83 -> 0 | AD83: ='①月末在庫(実)'!AD83 -> 0 | AE83: ='①月末在庫(実)'!AE83 -> 0 | AF83: 0 | AG83: 0 | AH83: ='①月末在庫(実)'!AH83 -> 0 | AI83: ='①月末在庫(実)'!AI83 -> 0 | AJ83: ='①月末在庫(実)'!AJ83 -> 595 | AK83: ='①月末在庫(実)'!AK83 -> 0 | AL83: 595 | AM83: ='①月末在庫(実)'!AM83 -> 0 | AN83: ='①月末在庫(実)'!AN83 -> 0 | AO83: ='①月末在庫(実)'!AO83 -> 0 | AP83: 0 | AQ83: 595 | AR83: =+#REF!*15.1 -> 
C84: ='①月末在庫(実)'!C84 -> GFZ | D84: ='①月末在庫(実)'!D84 -> 12200-GFZ-0000-AA | G84: =+AQ84+F84-E84 -> 1529 | H84: ='①月末在庫(実)'!H84 -> 0 | I84: ='①月末在庫(実)'!I84 -> 0 | J84: ='①月末在庫(実)'!J84 -> 0 | K84: ='①月末在庫(実)'!K84 -> 210 | L84: ='①月末在庫(実)'!L84 -> 0 | M84: 210 | N84: ='①月末在庫(実)'!N84 -> 2 | O84: ='①月末在庫(実)'!O84 -> 0 | P84: ='①月末在庫(実)'!P84 -> 0 | Q84: ='①月末在庫(実)'!Q84 -> 0 | R84: 2 | S84: ='①月末在庫(実)'!S84 -> 1007 | T84: ='①月末在庫(実)'!T84 -> 0 | V84: 1007 | W84: 1009 | X84: ='①月末在庫(実)'!X84 -> 0 | Y84: ='①月末在庫(実)'!Y84 -> 0 | Z84: ='①月末在庫(実)'!Z84 -> 0 | AA84: ='①月末在庫(実)'!AA84 -> 0 | AB84: 0 | AC84: ='①月末在庫(実)'!AC84 -> 0 | AD84: ='①月末在庫(実)'!AD84 -> 0 | AE84: ='①月末在庫(実)'!AE84 -> 0 | AF84: 0 | AG84: 0 | AH84: ='①月末在庫(実)'!AH84 -> 0 | AI84: ='①月末在庫(実)'!AI84 -> 0 | AJ84: ='①月末在庫(実)'!AJ84 -> 310 | AK84: ='①月末在庫(実)'!AK84 -> 0 | AL84: 310 | AM84: ='①月末在庫(実)'!AM84 -> 0 | AN84: ='①月末在庫(実)'!AN84 -> 0 | AO84: ='①月末在庫(実)'!AO84 -> 0 | AP84: 0 | AQ84: 1529 | AR84: =+#REF!*15.1 -> 
C85: ='①月末在庫(実)'!C85 -> GEV | D85: ='①月末在庫(実)'!D85 -> 12200-GEV-7601-AA | G85: 187 | H85: ='①月末在庫(実)'!H85 -> 0 | I85: ='①月末在庫(実)'!I85 -> 0 | J85: ='①月末在庫(実)'!J85 -> 0 | K85: ='①月末在庫(実)'!K85 -> 0 | L85: ='①月末在庫(実)'!L85 -> 0 | M85: 0 | N85: ='①月末在庫(実)'!N85 -> 0 | O85: ='①月末在庫(実)'!O85 -> 0 | P85: ='①月末在庫(実)'!P85 -> 0 | Q85: ='①月末在庫(実)'!Q85 -> 0 | R85: 0 | S85: ='①月末在庫(実)'!S85 -> 0 | T85: ='①月末在庫(実)'!T85 -> 0 | V85: 0 | W85: 0 | X85: ='①月末在庫(実)'!X85 -> 0 | Y85: ='①月末在庫(実)'!Y85 -> 0 | Z85: ='①月末在庫(実)'!Z85 -> 0 | AA85: ='①月末在庫(実)'!AA85 -> 0 | AB85: 0 | AC85: ='①月末在庫(実)'!AC85 -> 0 | AD85: ='①月末在庫(実)'!AD85 -> 0 | AE85: ='①月末在庫(実)'!AE85 -> 0 | AF85: 0 | AG85: 0 | AH85: ='①月末在庫(実)'!AH85 -> 0 | AI85: ='①月末在庫(実)'!AI85 -> 0 | AJ85: ='①月末在庫(実)'!AJ85 -> 187 | AK85: ='①月末在庫(実)'!AK85 -> 0 | AL85: 187 | AM85: ='①月末在庫(実)'!AM85 -> 0 | AN85: ='①月末在庫(実)'!AN85 -> 0 | AO85: ='①月末在庫(実)'!AO85 -> 0 | AP85: 0 | AQ85: 187 | AR85: =+#REF!*15.1 -> 
C86: ='①月末在庫(実)'!C86 -> KSEc | D86: ='①月末在庫(実)'!D86 -> 12100-KSE-6720-AD | G86: 831 | H86: ='①月末在庫(実)'!H86 -> 0 | I86: ='①月末在庫(実)'!I86 -> 0 | J86: ='①月末在庫(実)'!J86 -> 0 | K86: ='①月末在庫(実)'!K86 -> 668 | L86: ='①月末在庫(実)'!L86 -> 0 | M86: 668 | N86: ='①月末在庫(実)'!N86 -> 0 | O86: ='①月末在庫(実)'!O86 -> 0 | P86: ='①月末在庫(実)'!P86 -> 0 | Q86: ='①月末在庫(実)'!Q86 -> 0 | R86: 0 | S86: ='①月末在庫(実)'!S86 -> 120 | T86: ='①月末在庫(実)'!T86 -> 0 | V86: 120 | W86: 120 | X86: ='①月末在庫(実)'!X86 -> 0 | Y86: ='①月末在庫(実)'!Y86 -> 0 | Z86: ='①月末在庫(実)'!Z86 -> 0 | AA86: ='①月末在庫(実)'!AA86 -> 0 | AB86: 0 | AC86: ='①月末在庫(実)'!AC86 -> 0 | AD86: ='①月末在庫(実)'!AD86 -> 0 | AE86: ='①月末在庫(実)'!AE86 -> 0 | AF86: 0 | AG86: 0 | AH86: ='①月末在庫(実)'!AH86 -> 0 | AI86: ='①月末在庫(実)'!AI86 -> 0 | AJ86: ='①月末在庫(実)'!AJ86 -> 0 | AK86: ='①月末在庫(実)'!AK86 -> 43 | AL86: 43 | AM86: ='①月末在庫(実)'!AM86 -> 0 | AN86: ='①月末在庫(実)'!AN86 -> 0 | AO86: ='①月末在庫(実)'!AO86 -> 0 | AP86: 0 | AQ86: 831 | AR86: =+#REF!*15.1 ->  | AS86: =+AQ86-AR86 -> 
C87: ='①月末在庫(実)'!C87 -> KRNc | D87: ='①月末在庫(実)'!D87 -> 12100-KRN-A601-AA-01 | G87: 685 | H87: ='①月末在庫(実)'!H87 -> 0 | I87: ='①月末在庫(実)'!I87 -> 0 | J87: ='①月末在庫(実)'!J87 -> 0 | K87: ='①月末在庫(実)'!K87 -> 588 | L87: ='①月末在庫(実)'!L87 -> 0 | M87: 588 | N87: ='①月末在庫(実)'!N87 -> 0 | O87: ='①月末在庫(実)'!O87 -> 0 | P87: ='①月末在庫(実)'!P87 -> 0 | Q87: ='①月末在庫(実)'!Q87 -> 0 | R87: 0 | S87: ='①月末在庫(実)'!S87 -> 0 | T87: ='①月末在庫(実)'!T87 -> 0 | V87: 0 | W87: 0 | X87: ='①月末在庫(実)'!X87 -> 0 | Y87: ='①月末在庫(実)'!Y87 -> 0 | Z87: ='①月末在庫(実)'!Z87 -> 0 | AA87: ='①月末在庫(実)'!AA87 -> 0 | AB87: 0 | AC87: ='①月末在庫(実)'!AC87 -> 0 | AD87: ='①月末在庫(実)'!AD87 -> 0 | AE87: ='①月末在庫(実)'!AE87 -> 0 | AF87: 0 | AG87: 0 | AH87: ='①月末在庫(実)'!AH87 -> 0 | AI87: ='①月末在庫(実)'!AI87 -> 0 | AJ87: ='①月末在庫(実)'!AJ87 -> 0 | AK87: ='①月末在庫(実)'!AK87 -> 97 | AL87: 97 | AM87: ='①月末在庫(実)'!AM87 -> 0 | AN87: ='①月末在庫(実)'!AN87 -> 0 | AO87: ='①月末在庫(実)'!AO87 -> 0 | AP87: 0 | AQ87: 685 | AR87: =+#REF!*15.1 ->  | AS87: =+AQ87-AR87 -> 
C88: ='①月末在庫(実)'!C88 -> KSCc | D88: ='①月末在庫(実)'!D88 -> 12100-KRN-7300-AD | G88: 67 | H88: ='①月末在庫(実)'!H88 -> 0 | I88: ='①月末在庫(実)'!I88 -> 0 | J88: ='①月末在庫(実)'!J88 -> 0 | K88: ='①月末在庫(実)'!K88 -> 0 | L88: ='①月末在庫(実)'!L88 -> 0 | M88: 0 | N88: ='①月末在庫(実)'!N88 -> 0 | O88: ='①月末在庫(実)'!O88 -> 0 | P88: ='①月末在庫(実)'!P88 -> 0 | Q88: ='①月末在庫(実)'!Q88 -> 0 | R88: 0 | S88: ='①月末在庫(実)'!S88 -> 0 | T88: ='①月末在庫(実)'!T88 -> 0 | V88: 0 | W88: 0 | X88: ='①月末在庫(実)'!X88 -> 0 | Y88: ='①月末在庫(実)'!Y88 -> 0 | Z88: ='①月末在庫(実)'!Z88 -> 0 | AA88: ='①月末在庫(実)'!AA88 -> 0 | AB88: 0 | AC88: ='①月末在庫(実)'!AC88 -> 0 | AD88: ='①月末在庫(実)'!AD88 -> 0 | AE88: ='①月末在庫(実)'!AE88 -> 0 | AF88: 0 | AG88: 0 | AH88: ='①月末在庫(実)'!AH88 -> 0 | AI88: ='①月末在庫(実)'!AI88 -> 0 | AJ88: ='①月末在庫(実)'!AJ88 -> 0 | AK88: ='①月末在庫(実)'!AK88 -> 67 | AL88: 67 | AM88: ='①月末在庫(実)'!AM88 -> 0 | AN88: ='①月末在庫(実)'!AN88 -> 0 | AO88: ='①月末在庫(実)'!AO88 -> 0 | AP88: 0 | AQ88: 67 | AR88: =+#REF!*15.1 -> 
C89: ='①月末在庫(実)'!C89 -> MEYc | D89: ='①月末在庫(実)'!D89 -> 12100-MEY-6700-AD | G89: 282 | H89: ='①月末在庫(実)'!H89 -> 0 | I89: ='①月末在庫(実)'!I89 -> 0 | J89: ='①月末在庫(実)'!J89 -> 0 | K89: ='①月末在庫(実)'!K89 -> 0 | L89: ='①月末在庫(実)'!L89 -> 0 | M89: 0 | N89: ='①月末在庫(実)'!N89 -> 0 | O89: ='①月末在庫(実)'!O89 -> 0 | P89: ='①月末在庫(実)'!P89 -> 0 | Q89: ='①月末在庫(実)'!Q89 -> 0 | R89: 0 | S89: ='①月末在庫(実)'!S89 -> 108 | T89: ='①月末在庫(実)'!T89 -> 0 | V89: 108 | W89: 108 | X89: ='①月末在庫(実)'!X89 -> 0 | Y89: ='①月末在庫(実)'!Y89 -> 0 | Z89: ='①月末在庫(実)'!Z89 -> 0 | AA89: ='①月末在庫(実)'!AA89 -> 0 | AB89: 0 | AC89: ='①月末在庫(実)'!AC89 -> 0 | AD89: ='①月末在庫(実)'!AD89 -> 0 | AE89: ='①月末在庫(実)'!AE89 -> 0 | AF89: 0 | AG89: 0 | AH89: ='①月末在庫(実)'!AH89 -> 0 | AI89: ='①月末在庫(実)'!AI89 -> 0 | AJ89: ='①月末在庫(実)'!AJ89 -> 0 | AK89: ='①月末在庫(実)'!AK89 -> 174 | AL89: 174 | AM89: ='①月末在庫(実)'!AM89 -> 0 | AN89: ='①月末在庫(実)'!AN89 -> 0 | AO89: ='①月末在庫(実)'!AO89 -> 0 | AP89: 0 | AQ89: 282 | AR89: =+#REF!*15.1 -> 
C90: ='①月末在庫(実)'!C90 -> HP1c | D90: ='①月末在庫(実)'!D90 -> 12100-HP1-6000-AD | G90: 327 | H90: ='①月末在庫(実)'!H90 -> 0 | I90: ='①月末在庫(実)'!I90 -> 0 | J90: ='①月末在庫(実)'!J90 -> 0 | K90: ='①月末在庫(実)'!K90 -> 0 | L90: ='①月末在庫(実)'!L90 -> 0 | M90: 0 | N90: ='①月末在庫(実)'!N90 -> 0 | O90: ='①月末在庫(実)'!O90 -> 0 | P90: ='①月末在庫(実)'!P90 -> 0 | Q90: ='①月末在庫(実)'!Q90 -> 0 | R90: 0 | S90: ='①月末在庫(実)'!S90 -> 300 | T90: ='①月末在庫(実)'!T90 -> 0 | V90: 300 | W90: 300 | X90: ='①月末在庫(実)'!X90 -> 0 | Y90: ='①月末在庫(実)'!Y90 -> 0 | Z90: ='①月末在庫(実)'!Z90 -> 0 | AA90: ='①月末在庫(実)'!AA90 -> 0 | AB90: 0 | AC90: ='①月末在庫(実)'!AC90 -> 0 | AD90: ='①月末在庫(実)'!AD90 -> 0 | AE90: ='①月末在庫(実)'!AE90 -> 0 | AF90: 0 | AG90: 0 | AH90: ='①月末在庫(実)'!AH90 -> 0 | AI90: ='①月末在庫(実)'!AI90 -> 0 | AJ90: ='①月末在庫(実)'!AJ90 -> 0 | AK90: ='①月末在庫(実)'!AK90 -> 27 | AL90: 27 | AM90: ='①月末在庫(実)'!AM90 -> 0 | AN90: ='①月末在庫(実)'!AN90 -> 0 | AO90: ='①月末在庫(実)'!AO90 -> 0 | AP90: 0 | AQ90: 327 | AR90: =+#REF!*15.1 -> 
C91: ='①月末在庫(実)'!C91 -> MENc | D91: ='①月末在庫(実)'!D91 -> 12100-MEN-A501-AD-01 | G91: 476 | H91: ='①月末在庫(実)'!H91 -> 0 | I91: ='①月末在庫(実)'!I91 -> 0 | J91: ='①月末在庫(実)'!J91 -> 0 | K91: ='①月末在庫(実)'!K91 -> 0 | L91: ='①月末在庫(実)'!L91 -> 0 | M91: 0 | N91: ='①月末在庫(実)'!N91 -> 0 | O91: ='①月末在庫(実)'!O91 -> 0 | P91: ='①月末在庫(実)'!P91 -> 0 | Q91: ='①月末在庫(実)'!Q91 -> 0 | R91: 0 | S91: ='①月末在庫(実)'!S91 -> 356 | T91: ='①月末在庫(実)'!T91 -> 0 | V91: 356 | W91: 356 | X91: ='①月末在庫(実)'!X91 -> 0 | Y91: ='①月末在庫(実)'!Y91 -> 0 | Z91: ='①月末在庫(実)'!Z91 -> 0 | AA91: ='①月末在庫(実)'!AA91 -> 0 | AB91: 0 | AC91: ='①月末在庫(実)'!AC91 -> 0 | AD91: ='①月末在庫(実)'!AD91 -> 0 | AE91: ='①月末在庫(実)'!AE91 -> 0 | AF91: 0 | AG91: 0 | AH91: ='①月末在庫(実)'!AH91 -> 0 | AI91: ='①月末在庫(実)'!AI91 -> 0 | AJ91: ='①月末在庫(実)'!AJ91 -> 32 | AK91: ='①月末在庫(実)'!AK91 -> 88 | AL91: 120 | AM91: ='①月末在庫(実)'!AM91 -> 0 | AN91: ='①月末在庫(実)'!AN91 -> 0 | AO91: ='①月末在庫(実)'!AO91 -> 0 | AP91: 0 | AQ91: 476 | AR91: =+#REF!*15.1 -> 
C92: ='①月末在庫(実)'!C92 -> K95c | D92: ='①月末在庫(実)'!D92 -> 12100-K95-A000-AD-01 | G92: 6395 | H92: ='①月末在庫(実)'!H92 -> 0 | I92: ='①月末在庫(実)'!I92 -> 0 | J92: ='①月末在庫(実)'!J92 -> 0 | K92: ='①月末在庫(実)'!K92 -> 5727 | L92: ='①月末在庫(実)'!L92 -> 0 | M92: 5727 | N92: ='①月末在庫(実)'!N92 -> 16 | O92: ='①月末在庫(実)'!O92 -> 0 | P92: ='①月末在庫(実)'!P92 -> 0 | Q92: ='①月末在庫(実)'!Q92 -> 0 | R92: 16 | S92: ='①月末在庫(実)'!S92 -> 0 | T92: ='①月末在庫(実)'!T92 -> 0 | V92: 0 | W92: 16 | X92: ='①月末在庫(実)'!X92 -> 0 | Y92: ='①月末在庫(実)'!Y92 -> 0 | Z92: ='①月末在庫(実)'!Z92 -> 0 | AA92: ='①月末在庫(実)'!AA92 -> 0 | AB92: 0 | AC92: ='①月末在庫(実)'!AC92 -> 0 | AD92: ='①月末在庫(実)'!AD92 -> 0 | AE92: ='①月末在庫(実)'!AE92 -> 0 | AF92: 0 | AG92: 0 | AH92: ='①月末在庫(実)'!AH92 -> 0 | AI92: ='①月末在庫(実)'!AI92 -> 0 | AJ92: ='①月末在庫(実)'!AJ92 -> 0 | AK92: ='①月末在庫(実)'!AK92 -> 652 | AL92: 652 | AM92: ='①月末在庫(実)'!AM92 -> 0 | AN92: ='①月末在庫(実)'!AN92 -> 0 | AO92: ='①月末在庫(実)'!AO92 -> 0 | AP92: 0 | AQ92: 6395 | AR92: =+#REF!*15.1 -> 
C93: ='①月末在庫(実)'!C93 -> MKEc | D93: ='①月末在庫(実)'!D93 -> 12100-MKE-A000-AD-01 | G93: 2209 | H93: ='①月末在庫(実)'!H93 -> 0 | I93: ='①月末在庫(実)'!I93 -> 0 | J93: ='①月末在庫(実)'!J93 -> 0 | K93: ='①月末在庫(実)'!K93 -> 1151 | L93: ='①月末在庫(実)'!L93 -> 0 | M93: 1151 | N93: ='①月末在庫(実)'!N93 -> 0 | O93: ='①月末在庫(実)'!O93 -> 0 | P93: ='①月末在庫(実)'!P93 -> 0 | Q93: ='①月末在庫(実)'!Q93 -> 0 | R93: 0 | S93: ='①月末在庫(実)'!S93 -> 758 | T93: ='①月末在庫(実)'!T93 -> 0 | V93: 758 | W93: 758 | X93: ='①月末在庫(実)'!X93 -> 0 | Y93: ='①月末在庫(実)'!Y93 -> 0 | Z93: ='①月末在庫(実)'!Z93 -> 0 | AA93: ='①月末在庫(実)'!AA93 -> 0 | AB93: 0 | AC93: ='①月末在庫(実)'!AC93 -> 0 | AD93: ='①月末在庫(実)'!AD93 -> 0 | AE93: ='①月末在庫(実)'!AE93 -> 0 | AF93: 0 | AG93: 0 | AH93: ='①月末在庫(実)'!AH93 -> 0 | AI93: ='①月末在庫(実)'!AI93 -> 0 | AJ93: ='①月末在庫(実)'!AJ93 -> 0 | AK93: ='①月末在庫(実)'!AK93 -> 300 | AL93: 300 | AM93: ='①月末在庫(実)'!AM93 -> 0 | AN93: ='①月末在庫(実)'!AN93 -> 0 | AO93: ='①月末在庫(実)'!AO93 -> 0 | AP93: 0 | AQ93: 2209 | AR93: =+#REF!*15.1 -> 
C94: ='①月末在庫(実)'!C94 -> KCM | D94: ='①月末在庫(実)'!D94 -> 12200-KCM-0002-AA | G94: 5 | H94: ='①月末在庫(実)'!H94 -> 0 | I94: ='①月末在庫(実)'!I94 -> 0 | J94: ='①月末在庫(実)'!J94 -> 0 | K94: ='①月末在庫(実)'!K94 -> 0 | L94: ='①月末在庫(実)'!L94 -> 0 | M94: 0 | N94: ='①月末在庫(実)'!N94 -> 0 | O94: ='①月末在庫(実)'!O94 -> 0 | P94: ='①月末在庫(実)'!P94 -> 0 | Q94: ='①月末在庫(実)'!Q94 -> 0 | R94: 0 | S94: ='①月末在庫(実)'!S94 -> 0 | T94: ='①月末在庫(実)'!T94 -> 0 | V94: 0 | W94: 0 | X94: ='①月末在庫(実)'!X94 -> 0 | Y94: ='①月末在庫(実)'!Y94 -> 0 | Z94: ='①月末在庫(実)'!Z94 -> 0 | AA94: ='①月末在庫(実)'!AA94 -> 0 | AB94: 0 | AC94: ='①月末在庫(実)'!AC94 -> 0 | AD94: ='①月末在庫(実)'!AD94 -> 0 | AE94: ='①月末在庫(実)'!AE94 -> 0 | AF94: 0 | AG94: 0 | AH94: ='①月末在庫(実)'!AH94 -> 0 | AI94: ='①月末在庫(実)'!AI94 -> 0 | AJ94: ='①月末在庫(実)'!AJ94 -> 0 | AK94: ='①月末在庫(実)'!AK94 -> 5 | AL94: 5 | AM94: ='①月末在庫(実)'!AM94 -> 0 | AN94: ='①月末在庫(実)'!AN94 -> 0 | AO94: ='①月末在庫(実)'!AO94 -> 0 | AP94: 0 | AQ94: 5 | AR94: =+#REF!*15.1 -> 
C95: ='①月末在庫(実)'!C95 -> MKERc | D95: ='①月末在庫(実)'!D95 -> 12100-MKE-B500-AD | G95: 3659 | H95: ='①月末在庫(実)'!H95 -> 0 | I95: ='①月末在庫(実)'!I95 -> 0 | J95: ='①月末在庫(実)'!J95 -> 725 | K95: ='①月末在庫(実)'!K95 -> 788 | L95: ='①月末在庫(実)'!L95 -> 0 | M95: 1513 | N95: ='①月末在庫(実)'!N95 -> 722 | O95: ='①月末在庫(実)'!O95 -> 0 | P95: ='①月末在庫(実)'!P95 -> 0 | Q95: ='①月末在庫(実)'!Q95 -> 0 | R95: 722 | S95: ='①月末在庫(実)'!S95 -> 62 | T95: ='①月末在庫(実)'!T95 -> 0 | V95: 62 | W95: 784 | X95: ='①月末在庫(実)'!X95 -> 0 | Y95: ='①月末在庫(実)'!Y95 -> 0 | Z95: ='①月末在庫(実)'!Z95 -> 0 | AA95: ='①月末在庫(実)'!AA95 -> 0 | AB95: 0 | AC95: ='①月末在庫(実)'!AC95 -> 0 | AD95: ='①月末在庫(実)'!AD95 -> 0 | AE95: ='①月末在庫(実)'!AE95 -> 0 | AF95: 0 | AG95: 0 | AH95: ='①月末在庫(実)'!AH95 -> 0 | AI95: ='①月末在庫(実)'!AI95 -> 0 | AJ95: ='①月末在庫(実)'!AJ95 -> 35 | AK95: ='①月末在庫(実)'!AK95 -> 1327 | AL95: 1362 | AM95: ='①月末在庫(実)'!AM95 -> 0 | AN95: ='①月末在庫(実)'!AN95 -> 0 | AO95: ='①月末在庫(実)'!AO95 -> 0 | AP95: 0 | AQ95: 3659 | AR95: =+#REF!*15.1 -> 
C96: ='①月末在庫(実)'!C96 -> MKER | D96: ='①月末在庫(実)'!D96 -> 12201-MKE-B500-AA | G96: 2541 | H96: ='①月末在庫(実)'!H96 -> 0 | I96: ='①月末在庫(実)'!I96 -> 0 | J96: ='①月末在庫(実)'!J96 -> 0 | K96: ='①月末在庫(実)'!K96 -> 25 | L96: ='①月末在庫(実)'!L96 -> 0 | M96: 25 | N96: ='①月末在庫(実)'!N96 -> 504 | O96: ='①月末在庫(実)'!O96 -> 0 | P96: ='①月末在庫(実)'!P96 -> 0 | Q96: ='①月末在庫(実)'!Q96 -> 0 | R96: 504 | S96: ='①月末在庫(実)'!S96 -> 1169 | T96: ='①月末在庫(実)'!T96 -> 0 | V96: 1169 | W96: 1673 | X96: ='①月末在庫(実)'!X96 -> 0 | Y96: ='①月末在庫(実)'!Y96 -> 0 | Z96: ='①月末在庫(実)'!Z96 -> 0 | AA96: ='①月末在庫(実)'!AA96 -> 0 | AB96: 0 | AC96: ='①月末在庫(実)'!AC96 -> 0 | AD96: ='①月末在庫(実)'!AD96 -> 0 | AE96: ='①月末在庫(実)'!AE96 -> 0 | AF96: 0 | AG96: 0 | AH96: ='①月末在庫(実)'!AH96 -> 0 | AI96: ='①月末在庫(実)'!AI96 -> 0 | AJ96: ='①月末在庫(実)'!AJ96 -> 737 | AK96: ='①月末在庫(実)'!AK96 -> 106 | AL96: 843 | AM96: ='①月末在庫(実)'!AM96 -> 0 | AN96: ='①月末在庫(実)'!AN96 -> 0 | AO96: ='①月末在庫(実)'!AO96 -> 0 | AP96: 0 | AQ96: 2541 | AR96: =+#REF!*15.1 -> 
C97: ='①月末在庫(実)'!C97 -> 0 | D97: ='①月末在庫(実)'!D97 -> 0 | G97: 0 | H97: ='①月末在庫(実)'!H97 -> 0 | I97: ='①月末在庫(実)'!I97 -> 0 | J97: ='①月末在庫(実)'!J97 -> 0 | K97: ='①月末在庫(実)'!K97 -> 0 | L97: ='①月末在庫(実)'!L97 -> 0 | M97: 0 | N97: ='①月末在庫(実)'!N97 -> 0 | O97: ='①月末在庫(実)'!O97 -> 0 | P97: ='①月末在庫(実)'!P97 -> 0 | Q97: ='①月末在庫(実)'!Q97 -> 0 | R97: 0 | S97: ='①月末在庫(実)'!S97 -> 0 | T97: ='①月末在庫(実)'!T97 -> 0 | V97: 0 | W97: 0 | X97: ='①月末在庫(実)'!X97 -> 0 | Y97: ='①月末在庫(実)'!Y97 -> 0 | Z97: ='①月末在庫(実)'!Z97 -> 0 | AA97: ='①月末在庫(実)'!AA97 -> 0 | AB97: 0 | AC97: ='①月末在庫(実)'!AC97 -> 0 | AD97: ='①月末在庫(実)'!AD97 -> 0 | AE97: ='①月末在庫(実)'!AE97 -> 0 | AF97: 0 | AG97: 0 | AH97: ='①月末在庫(実)'!AH97 -> 0 | AI97: ='①月末在庫(実)'!AI97 -> 0 | AJ97: ='①月末在庫(実)'!AJ97 -> 0 | AK97: ='①月末在庫(実)'!AK97 -> 0 | AL97: 0 | AM97: ='①月末在庫(実)'!AM97 -> 0 | AN97: ='①月末在庫(実)'!AN97 -> 0 | AO97: ='①月末在庫(実)'!AO97 -> 0 | AP97: 0 | AQ97: 0 | AR97: =+#REF!*15.1 -> 
C98: ='①月末在庫(実)'!C98 -> 0 | D98: ='①月末在庫(実)'!D98 -> 0 | G98: 0 | H98: ='①月末在庫(実)'!H98 -> 0 | I98: ='①月末在庫(実)'!I98 -> 0 | J98: ='①月末在庫(実)'!J98 -> 0 | K98: ='①月末在庫(実)'!K98 -> 0 | L98: ='①月末在庫(実)'!L98 -> 0 | M98: 0 | N98: ='①月末在庫(実)'!N98 -> 0 | O98: ='①月末在庫(実)'!O98 -> 0 | P98: ='①月末在庫(実)'!P98 -> 0 | Q98: ='①月末在庫(実)'!Q98 -> 0 | R98: 0 | S98: ='①月末在庫(実)'!S98 -> 0 | T98: ='①月末在庫(実)'!T98 -> 0 | V98: 0 | W98: 0 | X98: ='①月末在庫(実)'!X98 -> 0 | Y98: ='①月末在庫(実)'!Y98 -> 0 | Z98: ='①月末在庫(実)'!Z98 -> 0 | AA98: ='①月末在庫(実)'!AA98 -> 0 | AB98: 0 | AC98: ='①月末在庫(実)'!AC98 -> 0 | AD98: ='①月末在庫(実)'!AD98 -> 0 | AE98: ='①月末在庫(実)'!AE98 -> 0 | AF98: 0 | AG98: 0 | AH98: ='①月末在庫(実)'!AH98 -> 0 | AI98: ='①月末在庫(実)'!AI98 -> 0 | AJ98: ='①月末在庫(実)'!AJ98 -> 0 | AK98: ='①月末在庫(実)'!AK98 -> 0 | AL98: 0 | AM98: ='①月末在庫(実)'!AM98 -> 0 | AN98: ='①月末在庫(実)'!AN98 -> 0 | AO98: ='①月末在庫(実)'!AO98 -> 0 | AP98: 0 | AQ98: 0 | AR98: =+#REF!*15.1 -> 
C99: ='①月末在庫(実)'!C99 -> 152 | D99: ='①月末在庫(実)'!D99 -> 12200-152-0003-XA | G99: 1189 | H99: ='①月末在庫(実)'!H99 -> 0 | I99: ='①月末在庫(実)'!I99 -> 0 | J99: ='①月末在庫(実)'!J99 -> 0 | K99: ='①月末在庫(実)'!K99 -> 0 | L99: ='①月末在庫(実)'!L99 -> 0 | M99: 0 | N99: ='①月末在庫(実)'!N99 -> 0 | O99: ='①月末在庫(実)'!O99 -> 0 | P99: ='①月末在庫(実)'!P99 -> 0 | Q99: ='①月末在庫(実)'!Q99 -> 0 | R99: 0 | S99: ='①月末在庫(実)'!S99 -> 1139 | T99: ='①月末在庫(実)'!T99 -> 0 | V99: 1139 | W99: 1139 | X99: ='①月末在庫(実)'!X99 -> 0 | Y99: ='①月末在庫(実)'!Y99 -> 0 | Z99: ='①月末在庫(実)'!Z99 -> 0 | AA99: ='①月末在庫(実)'!AA99 -> 0 | AB99: 0 | AC99: ='①月末在庫(実)'!AC99 -> 0 | AD99: ='①月末在庫(実)'!AD99 -> 0 | AE99: ='①月末在庫(実)'!AE99 -> 0 | AF99: 0 | AG99: 0 | AH99: ='①月末在庫(実)'!AH99 -> 0 | AI99: ='①月末在庫(実)'!AI99 -> 0 | AJ99: ='①月末在庫(実)'!AJ99 -> 0 | AK99: ='①月末在庫(実)'!AK99 -> 50 | AL99: 50 | AM99: ='①月末在庫(実)'!AM99 -> 0 | AN99: ='①月末在庫(実)'!AN99 -> 0 | AO99: ='①月末在庫(実)'!AO99 -> 0 | AP99: 0 | AQ99: 1189 | AR99: =+#REF!*15.1 ->  | AS99: =+AQ99-AR99 -> 
C100: ='①月末在庫(実)'!C100 -> KA8 | D100: ='①月末在庫(実)'!D100 -> 12200-KA8-0003-XA | G100: 632 | H100: ='①月末在庫(実)'!H100 -> 0 | I100: ='①月末在庫(実)'!I100 -> 0 | J100: ='①月末在庫(実)'!J100 -> 0 | K100: ='①月末在庫(実)'!K100 -> 0 | L100: ='①月末在庫(実)'!L100 -> 0 | M100: 0 | N100: ='①月末在庫(実)'!N100 -> 47 | O100: ='①月末在庫(実)'!O100 -> 0 | P100: ='①月末在庫(実)'!P100 -> 0 | Q100: ='①月末在庫(実)'!Q100 -> 0 | R100: 47 | S100: ='①月末在庫(実)'!S100 -> 386 | T100: ='①月末在庫(実)'!T100 -> 0 | V100: 386 | W100: 433 | X100: ='①月末在庫(実)'!X100 -> 0 | Y100: ='①月末在庫(実)'!Y100 -> 0 | Z100: ='①月末在庫(実)'!Z100 -> 0 | AA100: ='①月末在庫(実)'!AA100 -> 0 | AB100: 0 | AC100: ='①月末在庫(実)'!AC100 -> 0 | AD100: ='①月末在庫(実)'!AD100 -> 0 | AE100: ='①月末在庫(実)'!AE100 -> 0 | AF100: 0 | AG100: 0 | AH100: ='①月末在庫(実)'!AH100 -> 0 | AI100: ='①月末在庫(実)'!AI100 -> 0 | AJ100: ='①月末在庫(実)'!AJ100 -> 0 | AK100: ='①月末在庫(実)'!AK100 -> 199 | AL100: 199 | AM100: ='①月末在庫(実)'!AM100 -> 0 | AN100: ='①月末在庫(実)'!AN100 -> 0 | AO100: ='①月末在庫(実)'!AO100 -> 0 | AP100: 0 | AQ100: 632 | AR100: =+#REF!*15.1 ->  | AS100: =+AQ100-AR100 -> 
C101: ='①月末在庫(実)'!C101 -> GEYL | D101: ='①月末在庫(実)'!D101 -> 12200-GEY-6400-AA | G101: 388 | H101: ='①月末在庫(実)'!H101 -> 0 | I101: ='①月末在庫(実)'!I101 -> 0 | J101: ='①月末在庫(実)'!J101 -> 0 | K101: ='①月末在庫(実)'!K101 -> 0 | L101: ='①月末在庫(実)'!L101 -> 0 | M101: 0 | N101: ='①月末在庫(実)'!N101 -> 0 | O101: ='①月末在庫(実)'!O101 -> 0 | P101: ='①月末在庫(実)'!P101 -> 0 | Q101: ='①月末在庫(実)'!Q101 -> 0 | R101: 0 | S101: ='①月末在庫(実)'!S101 -> 0 | T101: ='①月末在庫(実)'!T101 -> 0 | V101: 0 | W101: 0 | X101: ='①月末在庫(実)'!X101 -> 0 | Y101: ='①月末在庫(実)'!Y101 -> 0 | Z101: ='①月末在庫(実)'!Z101 -> 0 | AA101: ='①月末在庫(実)'!AA101 -> 0 | AB101: 0 | AC101: ='①月末在庫(実)'!AC101 -> 0 | AD101: ='①月末在庫(実)'!AD101 -> 0 | AE101: ='①月末在庫(実)'!AE101 -> 0 | AF101: 0 | AG101: 0 | AH101: ='①月末在庫(実)'!AH101 -> 0 | AI101: ='①月末在庫(実)'!AI101 -> 0 | AJ101: ='①月末在庫(実)'!AJ101 -> 0 | AK101: ='①月末在庫(実)'!AK101 -> 95 | AL101: 95 | AM101: ='①月末在庫(実)'!AM101 -> 0 | AN101: ='①月末在庫(実)'!AN101 -> 293 | AO101: ='①月末在庫(実)'!AO101 -> 0 | AP101: 293 | AQ101: 388 | AR101: =+#REF!*15.1 -> 
C102: ='①月末在庫(実)'!C102 -> MCG | D102: ='①月末在庫(実)'!D102 -> 12200-MCG-0002-AA | G102: 35 | H102: ='①月末在庫(実)'!H102 -> 0 | I102: ='①月末在庫(実)'!I102 -> 0 | J102: ='①月末在庫(実)'!J102 -> 0 | K102: ='①月末在庫(実)'!K102 -> 0 | L102: ='①月末在庫(実)'!L102 -> 0 | M102: 0 | N102: ='①月末在庫(実)'!N102 -> 0 | O102: ='①月末在庫(実)'!O102 -> 0 | P102: ='①月末在庫(実)'!P102 -> 0 | Q102: ='①月末在庫(実)'!Q102 -> 0 | R102: 0 | S102: ='①月末在庫(実)'!S102 -> 29 | T102: ='①月末在庫(実)'!T102 -> 0 | V102: 29 | W102: 29 | X102: ='①月末在庫(実)'!X102 -> 0 | Y102: ='①月末在庫(実)'!Y102 -> 0 | Z102: ='①月末在庫(実)'!Z102 -> 0 | AA102: ='①月末在庫(実)'!AA102 -> 0 | AB102: 0 | AC102: ='①月末在庫(実)'!AC102 -> 0 | AD102: ='①月末在庫(実)'!AD102 -> 0 | AE102: ='①月末在庫(実)'!AE102 -> 0 | AF102: 0 | AG102: 0 | AH102: ='①月末在庫(実)'!AH102 -> 0 | AI102: ='①月末在庫(実)'!AI102 -> 0 | AJ102: ='①月末在庫(実)'!AJ102 -> 0 | AK102: ='①月末在庫(実)'!AK102 -> 6 | AL102: 6 | AM102: ='①月末在庫(実)'!AM102 -> 0 | AN102: ='①月末在庫(実)'!AN102 -> 0 | AO102: ='①月末在庫(実)'!AO102 -> 0 | AP102: 0 | AQ102: 35 | AR102: =+#REF!*15.1 -> 
C103: ='①月末在庫(実)'!C103 -> MCGP | D103: ='①月末在庫(実)'!D103 -> 12200-MCG-6000-AA | G103: 114 | H103: ='①月末在庫(実)'!H103 -> 0 | I103: ='①月末在庫(実)'!I103 -> 0 | J103: ='①月末在庫(実)'!J103 -> 0 | K103: ='①月末在庫(実)'!K103 -> 48 | L103: ='①月末在庫(実)'!L103 -> 0 | M103: 48 | N103: ='①月末在庫(実)'!N103 -> 0 | O103: ='①月末在庫(実)'!O103 -> 0 | P103: ='①月末在庫(実)'!P103 -> 0 | Q103: ='①月末在庫(実)'!Q103 -> 0 | R103: 0 | S103: ='①月末在庫(実)'!S103 -> 66 | T103: ='①月末在庫(実)'!T103 -> 0 | V103: =SUM(S103:U103) -> 66 | W103: =R103+V103 -> 66 | X103: ='①月末在庫(実)'!X103 -> 0 | Y103: ='①月末在庫(実)'!Y103 -> 0 | Z103: ='①月末在庫(実)'!Z103 -> 0 | AA103: ='①月末在庫(実)'!AA103 -> 0 | AB103: 0 | AC103: ='①月末在庫(実)'!AC103 -> 0 | AD103: ='①月末在庫(実)'!AD103 -> 0 | AE103: ='①月末在庫(実)'!AE103 -> 0 | AF103: =SUM(AC103:AE103) -> 0 | AG103: =AB103+AF103 -> 0 | AH103: ='①月末在庫(実)'!AH103 -> 0 | AI103: ='①月末在庫(実)'!AI103 -> 0 | AJ103: ='①月末在庫(実)'!AJ103 -> 0 | AK103: ='①月末在庫(実)'!AK103 -> 0 | AL103: 0 | AM103: ='①月末在庫(実)'!AM103 -> 0 | AN103: ='①月末在庫(実)'!AN103 -> 0 | AO103: ='①月末在庫(実)'!AO103 -> 0 | AP103: 0 | AQ103: =M103+W103+AG103+AL103+AP103 -> 114 | AR103: =+#REF!*15.1 -> 
C104: ='①月末在庫(実)'!C104 -> KCY | D104: ='①月末在庫(実)'!D104 -> 12200-KCY-6700-AA | G104: 75 | H104: ='①月末在庫(実)'!H104 -> 0 | I104: ='①月末在庫(実)'!I104 -> 0 | J104: ='①月末在庫(実)'!J104 -> 0 | K104: ='①月末在庫(実)'!K104 -> 0 | L104: ='①月末在庫(実)'!L104 -> 0 | M104: 0 | N104: ='①月末在庫(実)'!N104 -> 0 | O104: ='①月末在庫(実)'!O104 -> 0 | P104: ='①月末在庫(実)'!P104 -> 0 | Q104: ='①月末在庫(実)'!Q104 -> 0 | R104: 0 | S104: ='①月末在庫(実)'!S104 -> 0 | T104: ='①月末在庫(実)'!T104 -> 0 | V104: 0 | W104: 0 | X104: ='①月末在庫(実)'!X104 -> 0 | Y104: ='①月末在庫(実)'!Y104 -> 0 | Z104: ='①月末在庫(実)'!Z104 -> 0 | AA104: ='①月末在庫(実)'!AA104 -> 0 | AB104: 0 | AC104: ='①月末在庫(実)'!AC104 -> 0 | AD104: ='①月末在庫(実)'!AD104 -> 0 | AE104: ='①月末在庫(実)'!AE104 -> 0 | AF104: 0 | AG104: 0 | AH104: ='①月末在庫(実)'!AH104 -> 0 | AI104: ='①月末在庫(実)'!AI104 -> 0 | AJ104: ='①月末在庫(実)'!AJ104 -> 0 | AK104: ='①月末在庫(実)'!AK104 -> 75 | AL104: 75 | AM104: ='①月末在庫(実)'!AM104 -> 0 | AN104: ='①月末在庫(実)'!AN104 -> 0 | AO104: ='①月末在庫(実)'!AO104 -> 0 | AP104: 0 | AQ104: 75 | AR104: =+#REF!*15.1 -> 
C105: ='①月末在庫(実)'!C105 -> KW4 | D105: ='①月末在庫(実)'!D105 -> 12200-KW4-0002-AA | G105: 224 | H105: ='①月末在庫(実)'!H105 -> 0 | I105: ='①月末在庫(実)'!I105 -> 0 | J105: ='①月末在庫(実)'!J105 -> 0 | K105: ='①月末在庫(実)'!K105 -> 0 | L105: ='①月末在庫(実)'!L105 -> 0 | M105: 0 | N105: ='①月末在庫(実)'!N105 -> 0 | O105: ='①月末在庫(実)'!O105 -> 0 | P105: ='①月末在庫(実)'!P105 -> 0 | Q105: ='①月末在庫(実)'!Q105 -> 0 | R105: 0 | S105: ='①月末在庫(実)'!S105 -> 0 | T105: ='①月末在庫(実)'!T105 -> 0 | V105: 0 | W105: 0 | X105: ='①月末在庫(実)'!X105 -> 0 | Y105: ='①月末在庫(実)'!Y105 -> 0 | Z105: ='①月末在庫(実)'!Z105 -> 0 | AA105: ='①月末在庫(実)'!AA105 -> 0 | AB105: 0 | AC105: ='①月末在庫(実)'!AC105 -> 0 | AD105: ='①月末在庫(実)'!AD105 -> 0 | AE105: ='①月末在庫(実)'!AE105 -> 0 | AF105: 0 | AG105: 0 | AH105: ='①月末在庫(実)'!AH105 -> 0 | AI105: ='①月末在庫(実)'!AI105 -> 0 | AJ105: ='①月末在庫(実)'!AJ105 -> 0 | AK105: ='①月末在庫(実)'!AK105 -> 215 | AL105: 215 | AM105: ='①月末在庫(実)'!AM105 -> 0 | AN105: ='①月末在庫(実)'!AN105 -> 9 | AO105: ='①月末在庫(実)'!AO105 -> 0 | AP105: 9 | AQ105: 224 | AR105: =+#REF!*15.1 -> 
C106: ='①月末在庫(実)'!C106 -> KCZ | D106: ='①月末在庫(実)'!D106 -> 12200-KCZ-0001-AA | G106: 116 | H106: ='①月末在庫(実)'!H106 -> 0 | I106: ='①月末在庫(実)'!I106 -> 0 | J106: ='①月末在庫(実)'!J106 -> 0 | K106: ='①月末在庫(実)'!K106 -> 0 | L106: ='①月末在庫(実)'!L106 -> 0 | M106: 0 | N106: ='①月末在庫(実)'!N106 -> 0 | O106: ='①月末在庫(実)'!O106 -> 0 | P106: ='①月末在庫(実)'!P106 -> 0 | Q106: ='①月末在庫(実)'!Q106 -> 0 | R106: 0 | S106: ='①月末在庫(実)'!S106 -> 16 | T106: ='①月末在庫(実)'!T106 -> 0 | V106: 16 | W106: 16 | X106: ='①月末在庫(実)'!X106 -> 0 | Y106: ='①月末在庫(実)'!Y106 -> 0 | Z106: ='①月末在庫(実)'!Z106 -> 0 | AA106: ='①月末在庫(実)'!AA106 -> 0 | AB106: 0 | AC106: ='①月末在庫(実)'!AC106 -> 0 | AD106: ='①月末在庫(実)'!AD106 -> 0 | AE106: ='①月末在庫(実)'!AE106 -> 0 | AF106: 0 | AG106: 0 | AH106: ='①月末在庫(実)'!AH106 -> 0 | AI106: ='①月末在庫(実)'!AI106 -> 0 | AJ106: ='①月末在庫(実)'!AJ106 -> 0 | AK106: ='①月末在庫(実)'!AK106 -> 100 | AL106: 100 | AM106: ='①月末在庫(実)'!AM106 -> 0 | AN106: ='①月末在庫(実)'!AN106 -> 0 | AO106: ='①月末在庫(実)'!AO106 -> 0 | AP106: 0 | AQ106: 116 | AR106: =+#REF!*15.1 -> 
C107: ='①月末在庫(実)'!C107 -> MEGf | D107: ='①月末在庫(実)'!D107 -> 12211 MEG 3001 AA | G107: 1334 | H107: ='①月末在庫(実)'!H107 -> 0 | I107: ='①月末在庫(実)'!I107 -> 0 | J107: ='①月末在庫(実)'!J107 -> 0 | K107: ='①月末在庫(実)'!K107 -> 0 | L107: ='①月末在庫(実)'!L107 -> 0 | M107: 0 | N107: ='①月末在庫(実)'!N107 -> 0 | O107: ='①月末在庫(実)'!O107 -> 0 | P107: ='①月末在庫(実)'!P107 -> 0 | Q107: ='①月末在庫(実)'!Q107 -> 0 | R107: 0 | S107: ='①月末在庫(実)'!S107 -> 0 | T107: ='①月末在庫(実)'!T107 -> 1071 | V107: 1071 | W107: 1071 | X107: ='①月末在庫(実)'!X107 -> 0 | Y107: ='①月末在庫(実)'!Y107 -> 0 | Z107: ='①月末在庫(実)'!Z107 -> 0 | AA107: ='①月末在庫(実)'!AA107 -> 0 | AB107: 0 | AC107: ='①月末在庫(実)'!AC107 -> 0 | AD107: ='①月末在庫(実)'!AD107 -> 0 | AE107: ='①月末在庫(実)'!AE107 -> 0 | AF107: 0 | AG107: 0 | AH107: ='①月末在庫(実)'!AH107 -> 0 | AI107: ='①月末在庫(実)'!AI107 -> 0 | AJ107: ='①月末在庫(実)'!AJ107 -> 263 | AK107: ='①月末在庫(実)'!AK107 -> 0 | AL107: 263 | AM107: ='①月末在庫(実)'!AM107 -> 0 | AN107: ='①月末在庫(実)'!AN107 -> 0 | AO107: ='①月末在庫(実)'!AO107 -> 0 | AP107: 0 | AQ107: 1334 | AR107: =+#REF!*15.1 -> 
C108: ='①月末在庫(実)'!C108 -> MEGr | D108: ='①月末在庫(実)'!D108 -> 12221 MEG 3001 AA | G108: 1337 | H108: ='①月末在庫(実)'!H108 -> 0 | I108: ='①月末在庫(実)'!I108 -> 0 | J108: ='①月末在庫(実)'!J108 -> 0 | K108: ='①月末在庫(実)'!K108 -> 0 | L108: ='①月末在庫(実)'!L108 -> 0 | M108: 0 | N108: ='①月末在庫(実)'!N108 -> 0 | O108: ='①月末在庫(実)'!O108 -> 0 | P108: ='①月末在庫(実)'!P108 -> 0 | Q108: ='①月末在庫(実)'!Q108 -> 0 | R108: 0 | S108: ='①月末在庫(実)'!S108 -> 0 | T108: ='①月末在庫(実)'!T108 -> 1017 | V108: 1017 | W108: 1017 | X108: ='①月末在庫(実)'!X108 -> 0 | Y108: ='①月末在庫(実)'!Y108 -> 0 | Z108: ='①月末在庫(実)'!Z108 -> 0 | AA108: ='①月末在庫(実)'!AA108 -> 0 | AB108: 0 | AC108: ='①月末在庫(実)'!AC108 -> 0 | AD108: ='①月末在庫(実)'!AD108 -> 0 | AE108: ='①月末在庫(実)'!AE108 -> 0 | AF108: 0 | AG108: 0 | AH108: ='①月末在庫(実)'!AH108 -> 0 | AI108: ='①月末在庫(実)'!AI108 -> 0 | AJ108: ='①月末在庫(実)'!AJ108 -> 320 | AK108: ='①月末在庫(実)'!AK108 -> 0 | AL108: 320 | AM108: ='①月末在庫(実)'!AM108 -> 0 | AN108: ='①月末在庫(実)'!AN108 -> 0 | AO108: ='①月末在庫(実)'!AO108 -> 0 | AP108: 0 | AQ108: 1337 | AR108: =+#REF!*15.1 -> 
C109: ='①月末在庫(実)'!C109 -> MFSf | D109: ='①月末在庫(実)'!D109 -> 12211 MFS 0001 AA | G109: 210 | H109: ='①月末在庫(実)'!H109 -> 0 | I109: ='①月末在庫(実)'!I109 -> 0 | J109: ='①月末在庫(実)'!J109 -> 0 | K109: ='①月末在庫(実)'!K109 -> 0 | L109: ='①月末在庫(実)'!L109 -> 0 | M109: 0 | N109: ='①月末在庫(実)'!N109 -> 0 | O109: ='①月末在庫(実)'!O109 -> 0 | P109: ='①月末在庫(実)'!P109 -> 0 | Q109: ='①月末在庫(実)'!Q109 -> 0 | R109: 0 | S109: ='①月末在庫(実)'!S109 -> 0 | T109: ='①月末在庫(実)'!T109 -> 0 | V109: 0 | W109: 0 | X109: ='①月末在庫(実)'!X109 -> 0 | Y109: ='①月末在庫(実)'!Y109 -> 0 | Z109: ='①月末在庫(実)'!Z109 -> 0 | AA109: ='①月末在庫(実)'!AA109 -> 0 | AB109: 0 | AC109: ='①月末在庫(実)'!AC109 -> 162 | AD109: ='①月末在庫(実)'!AD109 -> 0 | AE109: ='①月末在庫(実)'!AE109 -> 0 | AF109: 162 | AG109: 162 | AH109: ='①月末在庫(実)'!AH109 -> 0 | AI109: ='①月末在庫(実)'!AI109 -> 0 | AJ109: ='①月末在庫(実)'!AJ109 -> 48 | AK109: ='①月末在庫(実)'!AK109 -> 0 | AL109: 48 | AM109: ='①月末在庫(実)'!AM109 -> 0 | AN109: ='①月末在庫(実)'!AN109 -> 0 | AO109: ='①月末在庫(実)'!AO109 -> 0 | AP109: 0 | AQ109: 210 | AR109: =+#REF!*15.1 -> 
C110: ='①月末在庫(実)'!C110 -> MFSr | D110: ='①月末在庫(実)'!D110 -> 12221 MFS 0001 AA | G110: 179 | H110: ='①月末在庫(実)'!H110 -> 0 | I110: ='①月末在庫(実)'!I110 -> 0 | J110: ='①月末在庫(実)'!J110 -> 0 | K110: ='①月末在庫(実)'!K110 -> 0 | L110: ='①月末在庫(実)'!L110 -> 0 | M110: 0 | N110: ='①月末在庫(実)'!N110 -> 0 | O110: ='①月末在庫(実)'!O110 -> 0 | P110: ='①月末在庫(実)'!P110 -> 0 | Q110: ='①月末在庫(実)'!Q110 -> 0 | R110: 0 | S110: ='①月末在庫(実)'!S110 -> 0 | T110: ='①月末在庫(実)'!T110 -> 0 | V110: 0 | W110: 0 | X110: ='①月末在庫(実)'!X110 -> 0 | Y110: ='①月末在庫(実)'!Y110 -> 0 | Z110: ='①月末在庫(実)'!Z110 -> 0 | AA110: ='①月末在庫(実)'!AA110 -> 0 | AB110: 0 | AC110: ='①月末在庫(実)'!AC110 -> 131 | AD110: ='①月末在庫(実)'!AD110 -> 0 | AE110: ='①月末在庫(実)'!AE110 -> 0 | AF110: 131 | AG110: 131 | AH110: ='①月末在庫(実)'!AH110 -> 0 | AI110: ='①月末在庫(実)'!AI110 -> 0 | AJ110: ='①月末在庫(実)'!AJ110 -> 48 | AK110: ='①月末在庫(実)'!AK110 -> 0 | AL110: 48 | AM110: ='①月末在庫(実)'!AM110 -> 0 | AN110: ='①月末在庫(実)'!AN110 -> 0 | AO110: ='①月末在庫(実)'!AO110 -> 0 | AP110: 0 | AQ110: 179 | AR110: =+#REF!*15.1 -> 
C111: ='①月末在庫(実)'!C111 -> MENl | D111: ='①月末在庫(実)'!D111 -> 12201 MEN 0001 AA | G111: 141 | H111: ='①月末在庫(実)'!H111 -> 0 | I111: ='①月末在庫(実)'!I111 -> 0 | J111: ='①月末在庫(実)'!J111 -> 0 | K111: ='①月末在庫(実)'!K111 -> 29 | L111: ='①月末在庫(実)'!L111 -> 0 | M111: 29 | N111: ='①月末在庫(実)'!N111 -> 0 | O111: ='①月末在庫(実)'!O111 -> 0 | P111: ='①月末在庫(実)'!P111 -> 0 | Q111: ='①月末在庫(実)'!Q111 -> 0 | R111: 0 | S111: ='①月末在庫(実)'!S111 -> 0 | T111: ='①月末在庫(実)'!T111 -> 99 | V111: 99 | W111: 99 | X111: ='①月末在庫(実)'!X111 -> 0 | Y111: ='①月末在庫(実)'!Y111 -> 0 | Z111: ='①月末在庫(実)'!Z111 -> 0 | AA111: ='①月末在庫(実)'!AA111 -> 0 | AB111: 0 | AC111: ='①月末在庫(実)'!AC111 -> 0 | AD111: ='①月末在庫(実)'!AD111 -> 0 | AE111: ='①月末在庫(実)'!AE111 -> 0 | AF111: 0 | AG111: 0 | AH111: ='①月末在庫(実)'!AH111 -> 0 | AI111: ='①月末在庫(実)'!AI111 -> 0 | AJ111: ='①月末在庫(実)'!AJ111 -> 0 | AK111: ='①月末在庫(実)'!AK111 -> 13 | AL111: 13 | AM111: ='①月末在庫(実)'!AM111 -> 0 | AN111: ='①月末在庫(実)'!AN111 -> 0 | AO111: ='①月末在庫(実)'!AO111 -> 0 | AP111: 0 | AQ111: 141 | AR111: =+#REF!*17.7 ->  | AS111: =+AQ111-AR111 -> 
C112: ='①月末在庫(実)'!C112 -> MENr | D112: ='①月末在庫(実)'!D112 -> 12201 MEN A700 AA | G112: 23 | H112: ='①月末在庫(実)'!H112 -> 0 | I112: ='①月末在庫(実)'!I112 -> 0 | J112: ='①月末在庫(実)'!J112 -> 0 | K112: ='①月末在庫(実)'!K112 -> 0 | L112: ='①月末在庫(実)'!L112 -> 0 | M112: 0 | N112: ='①月末在庫(実)'!N112 -> 0 | O112: ='①月末在庫(実)'!O112 -> 0 | P112: ='①月末在庫(実)'!P112 -> 0 | Q112: ='①月末在庫(実)'!Q112 -> 0 | R112: 0 | S112: ='①月末在庫(実)'!S112 -> 0 | T112: ='①月末在庫(実)'!T112 -> 0 | V112: 0 | W112: 0 | X112: ='①月末在庫(実)'!X112 -> 0 | Y112: ='①月末在庫(実)'!Y112 -> 0 | Z112: ='①月末在庫(実)'!Z112 -> 0 | AA112: ='①月末在庫(実)'!AA112 -> 0 | AB112: 0 | AC112: ='①月末在庫(実)'!AC112 -> 0 | AD112: ='①月末在庫(実)'!AD112 -> 0 | AE112: ='①月末在庫(実)'!AE112 -> 0 | AF112: 0 | AG112: 0 | AH112: ='①月末在庫(実)'!AH112 -> 0 | AI112: ='①月末在庫(実)'!AI112 -> 0 | AJ112: ='①月末在庫(実)'!AJ112 -> 23 | AK112: ='①月末在庫(実)'!AK112 -> 0 | AL112: 23 | AM112: ='①月末在庫(実)'!AM112 -> 0 | AN112: ='①月末在庫(実)'!AN112 -> 0 | AO112: ='①月末在庫(実)'!AO112 -> 0 | AP112: 0 | AQ112: 23 | AR112: =+#REF!*17.7 ->  | AS112: =+AQ112-AR112 -> 
C113: ='①月末在庫(実)'!C113 -> MENS | D113: ='①月末在庫(実)'!D113 -> 12201 MEN A800 AA | G113: 84 | H113: ='①月末在庫(実)'!H113 -> 0 | I113: ='①月末在庫(実)'!I113 -> 0 | J113: ='①月末在庫(実)'!J113 -> 0 | K113: ='①月末在庫(実)'!K113 -> 0 | L113: ='①月末在庫(実)'!L113 -> 0 | M113: 0 | N113: ='①月末在庫(実)'!N113 -> 0 | O113: ='①月末在庫(実)'!O113 -> 0 | P113: ='①月末在庫(実)'!P113 -> 0 | Q113: ='①月末在庫(実)'!Q113 -> 0 | R113: 0 | S113: ='①月末在庫(実)'!S113 -> 0 | T113: ='①月末在庫(実)'!T113 -> 0 | V113: 0 | W113: 0 | X113: ='①月末在庫(実)'!X113 -> 0 | Y113: ='①月末在庫(実)'!Y113 -> 0 | Z113: ='①月末在庫(実)'!Z113 -> 0 | AA113: ='①月末在庫(実)'!AA113 -> 0 | AB113: 0 | AC113: ='①月末在庫(実)'!AC113 -> 0 | AD113: ='①月末在庫(実)'!AD113 -> 0 | AE113: ='①月末在庫(実)'!AE113 -> 0 | AF113: 0 | AG113: 0 | AH113: ='①月末在庫(実)'!AH113 -> 0 | AI113: ='①月末在庫(実)'!AI113 -> 0 | AJ113: ='①月末在庫(実)'!AJ113 -> 84 | AK113: ='①月末在庫(実)'!AK113 -> 0 | AL113: 84 | AM113: ='①月末在庫(実)'!AM113 -> 0 | AN113: ='①月末在庫(実)'!AN113 -> 0 | AO113: ='①月末在庫(実)'!AO113 -> 0 | AP113: 0 | AQ113: 84 | AR113: =+#REF!*17.7 ->  | AS113: =+AQ113-AR113 -> 
C114: ='①月末在庫(実)'!C114 -> MENT | D114: ='①月末在庫(実)'!D114 -> 12201 MEN A900 AA | G114: 157 | H114: ='①月末在庫(実)'!H114 -> 0 | I114: ='①月末在庫(実)'!I114 -> 0 | J114: ='①月末在庫(実)'!J114 -> 0 | K114: ='①月末在庫(実)'!K114 -> 0 | L114: ='①月末在庫(実)'!L114 -> 0 | M114: 0 | N114: ='①月末在庫(実)'!N114 -> 0 | O114: ='①月末在庫(実)'!O114 -> 0 | P114: ='①月末在庫(実)'!P114 -> 0 | Q114: ='①月末在庫(実)'!Q114 -> 0 | R114: 0 | S114: ='①月末在庫(実)'!S114 -> 0 | T114: ='①月末在庫(実)'!T114 -> 0 | V114: 0 | W114: 0 | X114: ='①月末在庫(実)'!X114 -> 0 | Y114: ='①月末在庫(実)'!Y114 -> 0 | Z114: ='①月末在庫(実)'!Z114 -> 0 | AA114: ='①月末在庫(実)'!AA114 -> 0 | AB114: 0 | AC114: ='①月末在庫(実)'!AC114 -> 120 | AD114: ='①月末在庫(実)'!AD114 -> 0 | AE114: ='①月末在庫(実)'!AE114 -> 0 | AF114: 120 | AG114: 120 | AH114: ='①月末在庫(実)'!AH114 -> 0 | AI114: ='①月末在庫(実)'!AI114 -> 0 | AJ114: ='①月末在庫(実)'!AJ114 -> 37 | AK114: ='①月末在庫(実)'!AK114 -> 0 | AL114: 37 | AM114: ='①月末在庫(実)'!AM114 -> 0 | AN114: ='①月末在庫(実)'!AN114 -> 0 | AO114: ='①月末在庫(実)'!AO114 -> 0 | AP114: 0 | AQ114: 157 | AR114: =+#REF!*17.7 ->  | AS114: =+AQ114-AR114 -> 
C115: ='①月末在庫(実)'!C115 -> KSC | D115: ='①月末在庫(実)'!D115 -> 12201 KSC A101 AA | G115: 279 | H115: ='①月末在庫(実)'!H115 -> 0 | I115: ='①月末在庫(実)'!I115 -> 0 | J115: ='①月末在庫(実)'!J115 -> 0 | K115: ='①月末在庫(実)'!K115 -> 0 | L115: ='①月末在庫(実)'!L115 -> 0 | M115: 0 | N115: ='①月末在庫(実)'!N115 -> 0 | O115: ='①月末在庫(実)'!O115 -> 0 | P115: ='①月末在庫(実)'!P115 -> 0 | Q115: ='①月末在庫(実)'!Q115 -> 0 | R115: 0 | S115: ='①月末在庫(実)'!S115 -> 0 | T115: ='①月末在庫(実)'!T115 -> 279 | V115: 279 | W115: 279 | X115: ='①月末在庫(実)'!X115 -> 0 | Y115: ='①月末在庫(実)'!Y115 -> 0 | Z115: ='①月末在庫(実)'!Z115 -> 0 | AA115: ='①月末在庫(実)'!AA115 -> 0 | AB115: 0 | AC115: ='①月末在庫(実)'!AC115 -> 0 | AD115: ='①月末在庫(実)'!AD115 -> 0 | AE115: ='①月末在庫(実)'!AE115 -> 0 | AF115: 0 | AG115: 0 | AH115: ='①月末在庫(実)'!AH115 -> 0 | AI115: ='①月末在庫(実)'!AI115 -> 0 | AJ115: ='①月末在庫(実)'!AJ115 -> 0 | AK115: ='①月末在庫(実)'!AK115 -> 0 | AL115: 0 | AM115: ='①月末在庫(実)'!AM115 -> 0 | AN115: ='①月末在庫(実)'!AN115 -> 0 | AO115: ='①月末在庫(実)'!AO115 -> 0 | AP115: 0 | AQ115: 279 | AR115: =+#REF!*17.7 ->  | AS115: =+AQ115-AR115 -> 
C116: ='①月末在庫(実)'!C116 -> MEY | D116: ='①月末在庫(実)'!D116 -> 12201 MEY 6701 AA | G116: =+AQ116+F116-E116 -> 226 | H116: ='①月末在庫(実)'!H116 -> 0 | I116: ='①月末在庫(実)'!I116 -> 0 | J116: ='①月末在庫(実)'!J116 -> 0 | K116: ='①月末在庫(実)'!K116 -> 200 | L116: ='①月末在庫(実)'!L116 -> 0 | M116: 200 | N116: ='①月末在庫(実)'!N116 -> 0 | O116: ='①月末在庫(実)'!O116 -> 0 | P116: ='①月末在庫(実)'!P116 -> 0 | Q116: ='①月末在庫(実)'!Q116 -> 0 | R116: 0 | S116: ='①月末在庫(実)'!S116 -> 0 | T116: ='①月末在庫(実)'!T116 -> 0 | V116: 0 | W116: 0 | X116: ='①月末在庫(実)'!X116 -> 0 | Y116: ='①月末在庫(実)'!Y116 -> 0 | Z116: ='①月末在庫(実)'!Z116 -> 0 | AA116: ='①月末在庫(実)'!AA116 -> 0 | AB116: 0 | AC116: ='①月末在庫(実)'!AC116 -> 0 | AD116: ='①月末在庫(実)'!AD116 -> 0 | AE116: ='①月末在庫(実)'!AE116 -> 0 | AF116: 0 | AG116: 0 | AH116: ='①月末在庫(実)'!AH116 -> 0 | AI116: ='①月末在庫(実)'!AI116 -> 0 | AJ116: ='①月末在庫(実)'!AJ116 -> 26 | AK116: ='①月末在庫(実)'!AK116 -> 0 | AL116: 26 | AM116: ='①月末在庫(実)'!AM116 -> 0 | AN116: ='①月末在庫(実)'!AN116 -> 0 | AO116: ='①月末在庫(実)'!AO116 -> 0 | AP116: 0 | AQ116: 226 | AR116: =+#REF!*17.7 ->  | AS116: =+AQ116-AR116 -> 
C117: ='①月末在庫(実)'!C117 -> MENJ | D117: ='①月末在庫(実)'!D117 -> 12201 MEN A000 AE | G117: 265 | H117: ='①月末在庫(実)'!H117 -> 0 | I117: ='①月末在庫(実)'!I117 -> 0 | J117: ='①月末在庫(実)'!J117 -> 0 | K117: ='①月末在庫(実)'!K117 -> 0 | L117: ='①月末在庫(実)'!L117 -> 0 | M117: 0 | N117: ='①月末在庫(実)'!N117 -> 0 | O117: ='①月末在庫(実)'!O117 -> 0 | P117: ='①月末在庫(実)'!P117 -> 0 | Q117: ='①月末在庫(実)'!Q117 -> 0 | R117: 0 | S117: ='①月末在庫(実)'!S117 -> 0 | T117: ='①月末在庫(実)'!T117 -> 245 | V117: 245 | W117: 245 | X117: ='①月末在庫(実)'!X117 -> 0 | Y117: ='①月末在庫(実)'!Y117 -> 0 | Z117: ='①月末在庫(実)'!Z117 -> 0 | AA117: ='①月末在庫(実)'!AA117 -> 0 | AB117: 0 | AC117: ='①月末在庫(実)'!AC117 -> 0 | AD117: ='①月末在庫(実)'!AD117 -> 0 | AE117: ='①月末在庫(実)'!AE117 -> 0 | AF117: 0 | AG117: 0 | AH117: ='①月末在庫(実)'!AH117 -> 0 | AI117: ='①月末在庫(実)'!AI117 -> 0 | AJ117: ='①月末在庫(実)'!AJ117 -> 20 | AK117: ='①月末在庫(実)'!AK117 -> 0 | AL117: 20 | AM117: ='①月末在庫(実)'!AM117 -> 0 | AN117: ='①月末在庫(実)'!AN117 -> 0 | AO117: ='①月末在庫(実)'!AO117 -> 0 | AP117: 0 | AQ117: 265 | AR117: =+#REF!*17.7 -> 
C118: ='①月末在庫(実)'!C118 -> NN4 | D118: ='①月末在庫(実)'!D118 -> 12201 NN4 3001 AA | G118: 5 | H118: ='①月末在庫(実)'!H118 -> 0 | I118: ='①月末在庫(実)'!I118 -> 0 | J118: ='①月末在庫(実)'!J118 -> 0 | K118: ='①月末在庫(実)'!K118 -> 0 | L118: ='①月末在庫(実)'!L118 -> 0 | M118: 0 | N118: ='①月末在庫(実)'!N118 -> 0 | O118: ='①月末在庫(実)'!O118 -> 0 | P118: ='①月末在庫(実)'!P118 -> 0 | Q118: ='①月末在庫(実)'!Q118 -> 0 | R118: 0 | S118: ='①月末在庫(実)'!S118 -> 0 | T118: ='①月末在庫(実)'!T118 -> 0 | V118: 0 | W118: 0 | X118: ='①月末在庫(実)'!X118 -> 0 | Y118: ='①月末在庫(実)'!Y118 -> 0 | Z118: ='①月末在庫(実)'!Z118 -> 0 | AA118: ='①月末在庫(実)'!AA118 -> 0 | AB118: 0 | AC118: ='①月末在庫(実)'!AC118 -> 0 | AD118: ='①月末在庫(実)'!AD118 -> 0 | AE118: ='①月末在庫(実)'!AE118 -> 0 | AF118: 0 | AG118: 0 | AH118: ='①月末在庫(実)'!AH118 -> 0 | AI118: ='①月末在庫(実)'!AI118 -> 0 | AJ118: ='①月末在庫(実)'!AJ118 -> 0 | AK118: ='①月末在庫(実)'!AK118 -> 5 | AL118: 5 | AM118: ='①月末在庫(実)'!AM118 -> 0 | AN118: ='①月末在庫(実)'!AN118 -> 0 | AO118: ='①月末在庫(実)'!AO118 -> 0 | AP118: 0 | AQ118: 5 | AR118: =+#REF!*17.7 -> 
C119: ='①月末在庫(実)'!C119 -> MFRf | D119: ='①月末在庫(実)'!D119 -> 12211 MFR 6701 AA | G119: 1156 | H119: ='①月末在庫(実)'!H119 -> 0 | I119: ='①月末在庫(実)'!I119 -> 0 | J119: ='①月末在庫(実)'!J119 -> 0 | K119: ='①月末在庫(実)'!K119 -> 0 | L119: ='①月末在庫(実)'!L119 -> 0 | M119: 0 | N119: ='①月末在庫(実)'!N119 -> 0 | O119: ='①月末在庫(実)'!O119 -> 0 | P119: ='①月末在庫(実)'!P119 -> 0 | Q119: ='①月末在庫(実)'!Q119 -> 0 | R119: 0 | S119: ='①月末在庫(実)'!S119 -> 0 | T119: ='①月末在庫(実)'!T119 -> 1003 | V119: 1003 | W119: 1003 | X119: ='①月末在庫(実)'!X119 -> 0 | Y119: ='①月末在庫(実)'!Y119 -> 0 | Z119: ='①月末在庫(実)'!Z119 -> 0 | AA119: ='①月末在庫(実)'!AA119 -> 0 | AB119: 0 | AC119: ='①月末在庫(実)'!AC119 -> 0 | AD119: ='①月末在庫(実)'!AD119 -> 0 | AE119: ='①月末在庫(実)'!AE119 -> 0 | AF119: 0 | AG119: 0 | AH119: ='①月末在庫(実)'!AH119 -> 0 | AI119: ='①月末在庫(実)'!AI119 -> 0 | AJ119: ='①月末在庫(実)'!AJ119 -> 153 | AK119: ='①月末在庫(実)'!AK119 -> 0 | AL119: 153 | AM119: ='①月末在庫(実)'!AM119 -> 0 | AN119: ='①月末在庫(実)'!AN119 -> 0 | AO119: ='①月末在庫(実)'!AO119 -> 0 | AP119: 0 | AQ119: 1156 | AR119: =+#REF!*17.7 -> 
C120: ='①月末在庫(実)'!C120 -> MEAr | D120: ='①月末在庫(実)'!D120 -> 12221 MEA 6701 AA | G120: 791 | H120: ='①月末在庫(実)'!H120 -> 0 | I120: ='①月末在庫(実)'!I120 -> 0 | J120: ='①月末在庫(実)'!J120 -> 0 | K120: ='①月末在庫(実)'!K120 -> 108 | L120: ='①月末在庫(実)'!L120 -> 0 | M120: 108 | N120: ='①月末在庫(実)'!N120 -> 0 | O120: ='①月末在庫(実)'!O120 -> 0 | P120: ='①月末在庫(実)'!P120 -> 0 | Q120: ='①月末在庫(実)'!Q120 -> 0 | R120: 0 | S120: ='①月末在庫(実)'!S120 -> 0 | T120: ='①月末在庫(実)'!T120 -> 523 | V120: 523 | W120: 523 | X120: ='①月末在庫(実)'!X120 -> 0 | Y120: ='①月末在庫(実)'!Y120 -> 0 | Z120: ='①月末在庫(実)'!Z120 -> 0 | AA120: ='①月末在庫(実)'!AA120 -> 0 | AB120: 0 | AC120: ='①月末在庫(実)'!AC120 -> 0 | AD120: ='①月末在庫(実)'!AD120 -> 0 | AE120: ='①月末在庫(実)'!AE120 -> 0 | AF120: 0 | AG120: 0 | AH120: ='①月末在庫(実)'!AH120 -> 0 | AI120: ='①月末在庫(実)'!AI120 -> 0 | AJ120: ='①月末在庫(実)'!AJ120 -> 160 | AK120: ='①月末在庫(実)'!AK120 -> 0 | AL120: 160 | AM120: ='①月末在庫(実)'!AM120 -> 0 | AN120: ='①月末在庫(実)'!AN120 -> 0 | AO120: ='①月末在庫(実)'!AO120 -> 0 | AP120: 0 | AQ120: 791 | AR120: =+#REF!*17.7 ->  | AS120: =+AQ120-AR120 -> 
C121: ='①月末在庫(実)'!C121 -> MEWf | D121: ='①月末在庫(実)'!D121 -> 12211 MEW 9201 AA | G121: 0 | H121: ='①月末在庫(実)'!H121 -> 0 | I121: ='①月末在庫(実)'!I121 -> 0 | J121: ='①月末在庫(実)'!J121 -> 0 | K121: ='①月末在庫(実)'!K121 -> 0 | L121: ='①月末在庫(実)'!L121 -> 0 | M121: 0 | N121: ='①月末在庫(実)'!N121 -> 0 | O121: ='①月末在庫(実)'!O121 -> 0 | P121: ='①月末在庫(実)'!P121 -> 0 | Q121: ='①月末在庫(実)'!Q121 -> 0 | R121: 0 | S121: ='①月末在庫(実)'!S121 -> 0 | T121: ='①月末在庫(実)'!T121 -> 0 | V121: 0 | W121: 0 | X121: ='①月末在庫(実)'!X121 -> 0 | Y121: ='①月末在庫(実)'!Y121 -> 0 | Z121: ='①月末在庫(実)'!Z121 -> 0 | AA121: ='①月末在庫(実)'!AA121 -> 0 | AB121: 0 | AC121: ='①月末在庫(実)'!AC121 -> 0 | AD121: ='①月末在庫(実)'!AD121 -> 0 | AE121: ='①月末在庫(実)'!AE121 -> 0 | AF121: 0 | AG121: 0 | AH121: ='①月末在庫(実)'!AH121 -> 0 | AI121: ='①月末在庫(実)'!AI121 -> 0 | AJ121: ='①月末在庫(実)'!AJ121 -> 0 | AK121: ='①月末在庫(実)'!AK121 -> 0 | AL121: 0 | AM121: ='①月末在庫(実)'!AM121 -> 0 | AN121: ='①月末在庫(実)'!AN121 -> 0 | AO121: ='①月末在庫(実)'!AO121 -> 0 | AP121: 0 | AQ121: 0 | AR121: =+#REF!*17.7 ->  | AS121: =+AQ121-AR121 -> 
C122: ='①月末在庫(実)'!C122 -> MEWr | D122: ='①月末在庫(実)'!D122 -> 12221 MEW 9201 AA | G122: 114 | H122: ='①月末在庫(実)'!H122 -> 0 | I122: ='①月末在庫(実)'!I122 -> 0 | J122: ='①月末在庫(実)'!J122 -> 0 | K122: ='①月末在庫(実)'!K122 -> 0 | L122: ='①月末在庫(実)'!L122 -> 0 | M122: 0 | N122: ='①月末在庫(実)'!N122 -> 0 | O122: ='①月末在庫(実)'!O122 -> 0 | P122: ='①月末在庫(実)'!P122 -> 0 | Q122: ='①月末在庫(実)'!Q122 -> 0 | R122: 0 | S122: ='①月末在庫(実)'!S122 -> 0 | T122: ='①月末在庫(実)'!T122 -> 0 | V122: 0 | W122: 0 | X122: ='①月末在庫(実)'!X122 -> 0 | Y122: ='①月末在庫(実)'!Y122 -> 0 | Z122: ='①月末在庫(実)'!Z122 -> 0 | AA122: ='①月末在庫(実)'!AA122 -> 0 | AB122: 0 | AC122: ='①月末在庫(実)'!AC122 -> 0 | AD122: ='①月末在庫(実)'!AD122 -> 0 | AE122: ='①月末在庫(実)'!AE122 -> 0 | AF122: 0 | AG122: 0 | AH122: ='①月末在庫(実)'!AH122 -> 0 | AI122: ='①月末在庫(実)'!AI122 -> 0 | AJ122: ='①月末在庫(実)'!AJ122 -> 0 | AK122: ='①月末在庫(実)'!AK122 -> 114 | AL122: 114 | AM122: ='①月末在庫(実)'!AM122 -> 0 | AN122: ='①月末在庫(実)'!AN122 -> 0 | AO122: ='①月末在庫(実)'!AO122 -> 0 | AP122: 0 | AQ122: 114
C123: ='①月末在庫(実)'!C123 -> KFKf | D123: ='①月末在庫(実)'!D123 -> 12211 KFK 6301 AA | G123: 176 | H123: ='①月末在庫(実)'!H123 -> 0 | I123: ='①月末在庫(実)'!I123 -> 0 | J123: ='①月末在庫(実)'!J123 -> 0 | K123: ='①月末在庫(実)'!K123 -> 0 | L123: ='①月末在庫(実)'!L123 -> 0 | M123: 0 | N123: ='①月末在庫(実)'!N123 -> 0 | O123: ='①月末在庫(実)'!O123 -> 0 | P123: ='①月末在庫(実)'!P123 -> 0 | Q123: ='①月末在庫(実)'!Q123 -> 0 | R123: 0 | S123: ='①月末在庫(実)'!S123 -> 0 | T123: ='①月末在庫(実)'!T123 -> 69 | V123: 69 | W123: 69 | X123: ='①月末在庫(実)'!X123 -> 0 | Y123: ='①月末在庫(実)'!Y123 -> 0 | Z123: ='①月末在庫(実)'!Z123 -> 0 | AA123: ='①月末在庫(実)'!AA123 -> 0 | AB123: 0 | AC123: ='①月末在庫(実)'!AC123 -> 102 | AD123: ='①月末在庫(実)'!AD123 -> 0 | AE123: ='①月末在庫(実)'!AE123 -> 0 | AF123: 102 | AG123: 102 | AH123: ='①月末在庫(実)'!AH123 -> 0 | AI123: ='①月末在庫(実)'!AI123 -> 0 | AJ123: ='①月末在庫(実)'!AJ123 -> 5 | AK123: ='①月末在庫(実)'!AK123 -> 0 | AL123: 5 | AM123: ='①月末在庫(実)'!AM123 -> 0 | AN123: ='①月末在庫(実)'!AN123 -> 0 | AO123: ='①月末在庫(実)'!AO123 -> 0 | AP123: 0 | AQ123: 176
C124: ='①月末在庫(実)'!C124 -> KFKr | D124: ='①月末在庫(実)'!D124 -> 12221 KFK 6301 AA | G124: 271 | H124: ='①月末在庫(実)'!H124 -> 0 | I124: ='①月末在庫(実)'!I124 -> 0 | J124: ='①月末在庫(実)'!J124 -> 0 | K124: ='①月末在庫(実)'!K124 -> 0 | L124: ='①月末在庫(実)'!L124 -> 0 | M124: 0 | N124: ='①月末在庫(実)'!N124 -> 0 | O124: ='①月末在庫(実)'!O124 -> 0 | P124: ='①月末在庫(実)'!P124 -> 0 | Q124: ='①月末在庫(実)'!Q124 -> 0 | R124: 0 | S124: ='①月末在庫(実)'!S124 -> 0 | T124: ='①月末在庫(実)'!T124 -> 68 | V124: 68 | W124: 68 | X124: ='①月末在庫(実)'!X124 -> 0 | Y124: ='①月末在庫(実)'!Y124 -> 0 | Z124: ='①月末在庫(実)'!Z124 -> 0 | AA124: ='①月末在庫(実)'!AA124 -> 0 | AB124: 0 | AC124: ='①月末在庫(実)'!AC124 -> 190 | AD124: ='①月末在庫(実)'!AD124 -> 0 | AE124: ='①月末在庫(実)'!AE124 -> 0 | AF124: 190 | AG124: 190 | AH124: ='①月末在庫(実)'!AH124 -> 0 | AI124: ='①月末在庫(実)'!AI124 -> 0 | AJ124: ='①月末在庫(実)'!AJ124 -> 13 | AK124: ='①月末在庫(実)'!AK124 -> 0 | AL124: 13 | AM124: ='①月末在庫(実)'!AM124 -> 0 | AN124: ='①月末在庫(実)'!AN124 -> 0 | AO124: ='①月末在庫(実)'!AO124 -> 0 | AP124: 0 | AQ124: 271
C125: ='①月末在庫(実)'!C125 -> MFFf | D125: ='①月末在庫(実)'!D125 -> 12211 MFF D001 AA | G125: 80 | H125: ='①月末在庫(実)'!H125 -> 0 | I125: ='①月末在庫(実)'!I125 -> 0 | J125: ='①月末在庫(実)'!J125 -> 0 | K125: ='①月末在庫(実)'!K125 -> 0 | L125: ='①月末在庫(実)'!L125 -> 0 | M125: 0 | N125: ='①月末在庫(実)'!N125 -> 0 | O125: ='①月末在庫(実)'!O125 -> 0 | P125: ='①月末在庫(実)'!P125 -> 0 | Q125: ='①月末在庫(実)'!Q125 -> 0 | R125: 0 | S125: ='①月末在庫(実)'!S125 -> 0 | T125: ='①月末在庫(実)'!T125 -> 0 | V125: 0 | W125: 0 | X125: ='①月末在庫(実)'!X125 -> 0 | Y125: ='①月末在庫(実)'!Y125 -> 0 | Z125: ='①月末在庫(実)'!Z125 -> 0 | AA125: ='①月末在庫(実)'!AA125 -> 0 | AB125: 0 | AC125: ='①月末在庫(実)'!AC125 -> 0 | AD125: ='①月末在庫(実)'!AD125 -> 0 | AE125: ='①月末在庫(実)'!AE125 -> 0 | AF125: 0 | AG125: 0 | AH125: ='①月末在庫(実)'!AH125 -> 0 | AI125: ='①月末在庫(実)'!AI125 -> 0 | AJ125: ='①月末在庫(実)'!AJ125 -> 80 | AK125: ='①月末在庫(実)'!AK125 -> 0 | AL125: 80 | AM125: ='①月末在庫(実)'!AM125 -> 0 | AN125: ='①月末在庫(実)'!AN125 -> 0 | AO125: ='①月末在庫(実)'!AO125 -> 0 | AP125: 0 | AQ125: 80
C126: ='①月末在庫(実)'!C126 -> MFFr | D126: ='①月末在庫(実)'!D126 -> 12221 MFF D001 AA | G126: =+AQ126+F126-E126 -> 80 | H126: ='①月末在庫(実)'!H126 -> 0 | I126: ='①月末在庫(実)'!I126 -> 0 | J126: ='①月末在庫(実)'!J126 -> 0 | K126: ='①月末在庫(実)'!K126 -> 0 | L126: ='①月末在庫(実)'!L126 -> 0 | M126: 0 | N126: ='①月末在庫(実)'!N126 -> 0 | O126: ='①月末在庫(実)'!O126 -> 0 | P126: ='①月末在庫(実)'!P126 -> 0 | Q126: ='①月末在庫(実)'!Q126 -> 0 | R126: 0 | S126: ='①月末在庫(実)'!S126 -> 0 | T126: ='①月末在庫(実)'!T126 -> 0 | V126: 0 | W126: 0 | X126: ='①月末在庫(実)'!X126 -> 0 | Y126: ='①月末在庫(実)'!Y126 -> 0 | Z126: ='①月末在庫(実)'!Z126 -> 0 | AA126: ='①月末在庫(実)'!AA126 -> 0 | AB126: 0 | AC126: ='①月末在庫(実)'!AC126 -> 0 | AD126: ='①月末在庫(実)'!AD126 -> 0 | AE126: ='①月末在庫(実)'!AE126 -> 0 | AF126: 0 | AG126: 0 | AH126: ='①月末在庫(実)'!AH126 -> 0 | AI126: ='①月末在庫(実)'!AI126 -> 0 | AJ126: ='①月末在庫(実)'!AJ126 -> 80 | AK126: ='①月末在庫(実)'!AK126 -> 0 | AL126: 80 | AM126: ='①月末在庫(実)'!AM126 -> 0 | AN126: ='①月末在庫(実)'!AN126 -> 0 | AO126: ='①月末在庫(実)'!AO126 -> 0 | AP126: 0 | AQ126: 80 | AR126: =+#REF!*17.7 ->  | AS126: =+AQ126-AR126 -> 
C127: ='①月末在庫(実)'!C127 -> GE2 | D127: ='①月末在庫(実)'!D127 -> 0 | G127: 131 | H127: ='①月末在庫(実)'!H127 -> 0 | I127: ='①月末在庫(実)'!I127 -> 0 | J127: ='①月末在庫(実)'!J127 -> 0 | K127: ='①月末在庫(実)'!K127 -> 0 | L127: ='①月末在庫(実)'!L127 -> 0 | M127: 0 | N127: ='①月末在庫(実)'!N127 -> 0 | O127: ='①月末在庫(実)'!O127 -> 0 | P127: ='①月末在庫(実)'!P127 -> 0 | Q127: ='①月末在庫(実)'!Q127 -> 0 | R127: 0 | S127: ='①月末在庫(実)'!S127 -> 0 | T127: ='①月末在庫(実)'!T127 -> 0 | V127: 0 | W127: 0 | X127: ='①月末在庫(実)'!X127 -> 0 | Y127: ='①月末在庫(実)'!Y127 -> 0 | Z127: ='①月末在庫(実)'!Z127 -> 0 | AA127: ='①月末在庫(実)'!AA127 -> 0 | AB127: 0 | AC127: ='①月末在庫(実)'!AC127 -> 131 | AD127: ='①月末在庫(実)'!AD127 -> 0 | AE127: ='①月末在庫(実)'!AE127 -> 0 | AF127: 131 | AG127: 131 | AH127: ='①月末在庫(実)'!AH127 -> 0 | AI127: ='①月末在庫(実)'!AI127 -> 0 | AJ127: ='①月末在庫(実)'!AJ127 -> 0 | AK127: ='①月末在庫(実)'!AK127 -> 0 | AL127: 0 | AM127: ='①月末在庫(実)'!AM127 -> 0 | AN127: ='①月末在庫(実)'!AN127 -> 0 | AO127: ='①月末在庫(実)'!AO127 -> 0 | AP127: 0 | AQ127: 131 | AR127: =+#REF!*17.7 -> 
C128: ='①月末在庫(実)'!C128 -> KFR | D128: ='①月末在庫(実)'!D128 -> 12200-KFR-0000-AA | G128: 5 | H128: ='①月末在庫(実)'!H128 -> 0 | I128: ='①月末在庫(実)'!I128 -> 0 | J128: ='①月末在庫(実)'!J128 -> 0 | K128: ='①月末在庫(実)'!K128 -> 0 | L128: ='①月末在庫(実)'!L128 -> 0 | M128: 0 | N128: ='①月末在庫(実)'!N128 -> 0 | O128: ='①月末在庫(実)'!O128 -> 0 | P128: ='①月末在庫(実)'!P128 -> 0 | Q128: ='①月末在庫(実)'!Q128 -> 0 | R128: 0 | S128: ='①月末在庫(実)'!S128 -> 0 | T128: ='①月末在庫(実)'!T128 -> 0 | V128: 0 | W128: 0 | X128: ='①月末在庫(実)'!X128 -> 0 | Y128: ='①月末在庫(実)'!Y128 -> 0 | Z128: ='①月末在庫(実)'!Z128 -> 0 | AA128: ='①月末在庫(実)'!AA128 -> 0 | AB128: 0 | AC128: ='①月末在庫(実)'!AC128 -> 0 | AD128: ='①月末在庫(実)'!AD128 -> 0 | AE128: ='①月末在庫(実)'!AE128 -> 0 | AF128: 0 | AG128: 0 | AH128: ='①月末在庫(実)'!AH128 -> 0 | AI128: ='①月末在庫(実)'!AI128 -> 0 | AJ128: ='①月末在庫(実)'!AJ128 -> 5 | AK128: ='①月末在庫(実)'!AK128 -> 0 | AL128: 5 | AM128: ='①月末在庫(実)'!AM128 -> 0 | AN128: ='①月末在庫(実)'!AN128 -> 0 | AO128: ='①月末在庫(実)'!AO128 -> 0 | AP128: 0 | AQ128: 5 | AR128: =+#REF!*17.7 -> 
C129: ='①月末在庫(実)'!C129 -> KPB | D129: ='①月末在庫(実)'!D129 -> 12200-KPB-0000-AA | G129: 5 | H129: ='①月末在庫(実)'!H129 -> 0 | I129: ='①月末在庫(実)'!I129 -> 0 | J129: ='①月末在庫(実)'!J129 -> 0 | K129: ='①月末在庫(実)'!K129 -> 0 | L129: ='①月末在庫(実)'!L129 -> 0 | M129: 0 | N129: ='①月末在庫(実)'!N129 -> 0 | O129: ='①月末在庫(実)'!O129 -> 0 | P129: ='①月末在庫(実)'!P129 -> 0 | Q129: ='①月末在庫(実)'!Q129 -> 0 | R129: 0 | S129: ='①月末在庫(実)'!S129 -> 0 | T129: ='①月末在庫(実)'!T129 -> 0 | V129: 0 | W129: 0 | X129: ='①月末在庫(実)'!X129 -> 0 | Y129: ='①月末在庫(実)'!Y129 -> 0 | Z129: ='①月末在庫(実)'!Z129 -> 0 | AA129: ='①月末在庫(実)'!AA129 -> 0 | AB129: 0 | AC129: ='①月末在庫(実)'!AC129 -> 0 | AD129: ='①月末在庫(実)'!AD129 -> 0 | AE129: ='①月末在庫(実)'!AE129 -> 0 | AF129: 0 | AG129: 0 | AH129: ='①月末在庫(実)'!AH129 -> 0 | AI129: ='①月末在庫(実)'!AI129 -> 0 | AJ129: ='①月末在庫(実)'!AJ129 -> 5 | AK129: ='①月末在庫(実)'!AK129 -> 0 | AL129: 5 | AM129: ='①月末在庫(実)'!AM129 -> 0 | AN129: ='①月末在庫(実)'!AN129 -> 0 | AO129: ='①月末在庫(実)'!AO129 -> 0 | AP129: 0 | AQ129: 5 | AR129: =+#REF!*17.7 -> 
C130: ='①月末在庫(実)'!C130 -> KAB | D130: ='①月末在庫(実)'!D130 -> 12200-KAB-0003-AA | G130: 29 | H130: ='①月末在庫(実)'!H130 -> 0 | I130: ='①月末在庫(実)'!I130 -> 0 | J130: ='①月末在庫(実)'!J130 -> 0 | K130: ='①月末在庫(実)'!K130 -> 0 | L130: ='①月末在庫(実)'!L130 -> 0 | M130: 0 | N130: ='①月末在庫(実)'!N130 -> 0 | O130: ='①月末在庫(実)'!O130 -> 0 | P130: ='①月末在庫(実)'!P130 -> 0 | Q130: ='①月末在庫(実)'!Q130 -> 0 | R130: 0 | S130: ='①月末在庫(実)'!S130 -> 0 | T130: ='①月末在庫(実)'!T130 -> 0 | V130: 0 | W130: 0 | X130: ='①月末在庫(実)'!X130 -> 0 | Y130: ='①月末在庫(実)'!Y130 -> 0 | Z130: ='①月末在庫(実)'!Z130 -> 0 | AA130: ='①月末在庫(実)'!AA130 -> 0 | AB130: 0 | AC130: ='①月末在庫(実)'!AC130 -> 0 | AD130: ='①月末在庫(実)'!AD130 -> 0 | AE130: ='①月末在庫(実)'!AE130 -> 0 | AF130: 0 | AG130: 0 | AH130: ='①月末在庫(実)'!AH130 -> 0 | AI130: ='①月末在庫(実)'!AI130 -> 0 | AJ130: ='①月末在庫(実)'!AJ130 -> 29 | AK130: ='①月末在庫(実)'!AK130 -> 0 | AL130: 29 | AM130: ='①月末在庫(実)'!AM130 -> 0 | AN130: ='①月末在庫(実)'!AN130 -> 0 | AO130: ='①月末在庫(実)'!AO130 -> 0 | AP130: 0 | AQ130: 29 | AR130: =+#REF!*17.7 -> 
C131: ='①月末在庫(実)'!C131 -> GCR | D131: ='①月末在庫(実)'!D131 -> 0 | G131: 5 | H131: ='①月末在庫(実)'!H131 -> 0 | I131: ='①月末在庫(実)'!I131 -> 0 | J131: ='①月末在庫(実)'!J131 -> 0 | K131: ='①月末在庫(実)'!K131 -> 0 | L131: ='①月末在庫(実)'!L131 -> 0 | M131: 0 | N131: ='①月末在庫(実)'!N131 -> 0 | O131: ='①月末在庫(実)'!O131 -> 0 | P131: ='①月末在庫(実)'!P131 -> 0 | Q131: ='①月末在庫(実)'!Q131 -> 0 | R131: 0 | S131: ='①月末在庫(実)'!S131 -> 5 | T131: ='①月末在庫(実)'!T131 -> 0 | V131: 5 | W131: 5 | X131: ='①月末在庫(実)'!X131 -> 0 | Y131: ='①月末在庫(実)'!Y131 -> 0 | Z131: ='①月末在庫(実)'!Z131 -> 0 | AA131: ='①月末在庫(実)'!AA131 -> 0 | AB131: 0 | AC131: ='①月末在庫(実)'!AC131 -> 0 | AD131: ='①月末在庫(実)'!AD131 -> 0 | AE131: ='①月末在庫(実)'!AE131 -> 0 | AF131: 0 | AG131: 0 | AH131: ='①月末在庫(実)'!AH131 -> 0 | AI131: ='①月末在庫(実)'!AI131 -> 0 | AJ131: ='①月末在庫(実)'!AJ131 -> 0 | AK131: ='①月末在庫(実)'!AK131 -> 0 | AL131: 0 | AM131: ='①月末在庫(実)'!AM131 -> 0 | AN131: ='①月末在庫(実)'!AN131 -> 0 | AO131: ='①月末在庫(実)'!AO131 -> 0 | AP131: 0 | AQ131: 5 | AR131: =+#REF!*17.7 -> 
C132: ='①月末在庫(実)'!C132 -> 418 | D132: ='①月末在庫(実)'!D132 -> 12200-418-0003-AA | G132: 24 | H132: ='①月末在庫(実)'!H132 -> 0 | I132: ='①月末在庫(実)'!I132 -> 0 | J132: ='①月末在庫(実)'!J132 -> 0 | K132: ='①月末在庫(実)'!K132 -> 0 | L132: ='①月末在庫(実)'!L132 -> 0 | M132: 0 | N132: ='①月末在庫(実)'!N132 -> 0 | O132: ='①月末在庫(実)'!O132 -> 0 | P132: ='①月末在庫(実)'!P132 -> 0 | Q132: ='①月末在庫(実)'!Q132 -> 0 | R132: 0 | S132: ='①月末在庫(実)'!S132 -> 0 | T132: ='①月末在庫(実)'!T132 -> 0 | V132: 0 | W132: 0 | X132: ='①月末在庫(実)'!X132 -> 0 | Y132: ='①月末在庫(実)'!Y132 -> 0 | Z132: ='①月末在庫(実)'!Z132 -> 0 | AA132: ='①月末在庫(実)'!AA132 -> 0 | AB132: 0 | AC132: ='①月末在庫(実)'!AC132 -> 0 | AD132: ='①月末在庫(実)'!AD132 -> 0 | AE132: ='①月末在庫(実)'!AE132 -> 0 | AF132: 0 | AG132: 0 | AH132: ='①月末在庫(実)'!AH132 -> 0 | AI132: ='①月末在庫(実)'!AI132 -> 0 | AJ132: ='①月末在庫(実)'!AJ132 -> 0 | AK132: ='①月末在庫(実)'!AK132 -> 24 | AL132: 24 | AM132: ='①月末在庫(実)'!AM132 -> 0 | AN132: ='①月末在庫(実)'!AN132 -> 0 | AO132: ='①月末在庫(実)'!AO132 -> 0 | AP132: 0 | AQ132: 24 | AR132: =+#REF!*17.7 -> 
C133: ='①月末在庫(実)'!C133 -> GEY | D133: ='①月末在庫(実)'!D133 -> 12200-GEY-0000-AA | G133: 48 | H133: ='①月末在庫(実)'!H133 -> 0 | I133: ='①月末在庫(実)'!I133 -> 0 | J133: ='①月末在庫(実)'!J133 -> 0 | K133: ='①月末在庫(実)'!K133 -> 0 | L133: ='①月末在庫(実)'!L133 -> 0 | M133: 0 | N133: ='①月末在庫(実)'!N133 -> 0 | O133: ='①月末在庫(実)'!O133 -> 0 | P133: ='①月末在庫(実)'!P133 -> 0 | Q133: ='①月末在庫(実)'!Q133 -> 0 | R133: 0 | S133: ='①月末在庫(実)'!S133 -> 0 | T133: ='①月末在庫(実)'!T133 -> 0 | V133: 0 | W133: 0 | X133: ='①月末在庫(実)'!X133 -> 0 | Y133: ='①月末在庫(実)'!Y133 -> 0 | Z133: ='①月末在庫(実)'!Z133 -> 0 | AA133: ='①月末在庫(実)'!AA133 -> 0 | AB133: 0 | AC133: ='①月末在庫(実)'!AC133 -> 0 | AD133: ='①月末在庫(実)'!AD133 -> 0 | AE133: ='①月末在庫(実)'!AE133 -> 0 | AF133: 0 | AG133: 0 | AH133: ='①月末在庫(実)'!AH133 -> 0 | AI133: ='①月末在庫(実)'!AI133 -> 0 | AJ133: ='①月末在庫(実)'!AJ133 -> 0 | AK133: ='①月末在庫(実)'!AK133 -> 48 | AL133: 48 | AM133: ='①月末在庫(実)'!AM133 -> 0 | AN133: ='①月末在庫(実)'!AN133 -> 0 | AO133: ='①月末在庫(実)'!AO133 -> 0 | AP133: 0 | AQ133: 48 | AR133: =+#REF!*17.7 ->  | AS133: =+AQ133-AR133 -> 
C134: ='①月末在庫(実)'!C134 -> MENF | D134: ='①月末在庫(実)'!D134 -> 12201 MEN 7300AC | G134: 122 | H134: ='①月末在庫(実)'!H134 -> 0 | I134: ='①月末在庫(実)'!I134 -> 0 | J134: ='①月末在庫(実)'!J134 -> 0 | K134: ='①月末在庫(実)'!K134 -> 0 | L134: ='①月末在庫(実)'!L134 -> 0 | M134: =SUM(H134:L134) -> 0 | N134: ='①月末在庫(実)'!N134 -> 0 | O134: ='①月末在庫(実)'!O134 -> 0 | P134: ='①月末在庫(実)'!P134 -> 0 | Q134: ='①月末在庫(実)'!Q134 -> 0 | R134: 0 | S134: ='①月末在庫(実)'!S134 -> 0 | T134: ='①月末在庫(実)'!T134 -> 28 | V134: 28 | W134: 28 | X134: ='①月末在庫(実)'!X134 -> 0 | Y134: ='①月末在庫(実)'!Y134 -> 0 | Z134: ='①月末在庫(実)'!Z134 -> 0 | AA134: ='①月末在庫(実)'!AA134 -> 0 | AB134: 0 | AC134: ='①月末在庫(実)'!AC134 -> 0 | AD134: ='①月末在庫(実)'!AD134 -> 0 | AE134: ='①月末在庫(実)'!AE134 -> 0 | AF134: 0 | AG134: 0 | AH134: ='①月末在庫(実)'!AH134 -> 0 | AI134: ='①月末在庫(実)'!AI134 -> 0 | AJ134: ='①月末在庫(実)'!AJ134 -> 94 | AK134: ='①月末在庫(実)'!AK134 -> 0 | AL134: 94 | AM134: ='①月末在庫(実)'!AM134 -> 0 | AN134: ='①月末在庫(実)'!AN134 -> 0 | AO134: ='①月末在庫(実)'!AO134 -> 0 | AP134: 0 | AQ134: 122 | AR134: =+#REF!*17.7 ->  | AS134: =+AQ134-AR134 -> 
C135: ='①月末在庫(実)'!C135 -> MN9 | D135: ='①月末在庫(実)'!D135 -> 1220A-MY6-6700 | H135: ='①月末在庫(実)'!H135 -> 0 | I135: ='①月末在庫(実)'!I135 -> 0 | J135: ='①月末在庫(実)'!J135 -> 0 | K135: ='①月末在庫(実)'!K135 -> 0 | L135: ='①月末在庫(実)'!L135 -> 0 | M135: =SUM(H135:L135) -> 0 | N135: ='①月末在庫(実)'!N135 -> 0 | O135: ='①月末在庫(実)'!O135 -> 0 | P135: ='①月末在庫(実)'!P135 -> 0 | Q135: ='①月末在庫(実)'!Q135 -> 0 | R135: =SUM(N135:Q135) -> 0 | S135: ='①月末在庫(実)'!S135 -> 0 | T135: ='①月末在庫(実)'!T135 -> 0 | V135: =SUM(S135:U135) -> 0 | W135: =R135+V135 -> 0 | X135: ='①月末在庫(実)'!X135 -> 0 | Y135: ='①月末在庫(実)'!Y135 -> 0 | Z135: ='①月末在庫(実)'!Z135 -> 0 | AA135: ='①月末在庫(実)'!AA135 -> 0 | AB135: =SUM(X135:AA135) -> 0 | AC135: ='①月末在庫(実)'!AC135 -> 0 | AD135: ='①月末在庫(実)'!AD135 -> 0 | AE135: ='①月末在庫(実)'!AE135 -> 0 | AF135: =SUM(AC135:AE135) -> 0 | AG135: =AB135+AF135 -> 0 | AH135: ='①月末在庫(実)'!AH135 -> 0 | AI135: ='①月末在庫(実)'!AI135 -> 0 | AJ135: ='①月末在庫(実)'!AJ135 -> 0 | AK135: ='①月末在庫(実)'!AK135 -> 0 | AL135: =SUM(AH135:AK135) -> 0 | AM135: ='①月末在庫(実)'!AM135 -> 0 | AN135: ='①月末在庫(実)'!AN135 -> 0 | AO135: ='①月末在庫(実)'!AO135 -> 0 | AP135: =SUM(AM135:AO135) -> 0 | AQ135: =M135+W135+AG135+AL135+AP135 -> 0
C136: ='①月末在庫(実)'!C136 -> MKW | D136: ='①月末在庫(実)'!D136 -> MKTショット無し | H136: ='①月末在庫(実)'!H136 -> 0 | I136: ='①月末在庫(実)'!I136 -> 0 | J136: ='①月末在庫(実)'!J136 -> 0 | K136: ='①月末在庫(実)'!K136 -> 0 | L136: ='①月末在庫(実)'!L136 -> 0 | M136: =SUM(H136:L136) -> 0 | N136: ='①月末在庫(実)'!N136 -> 0 | O136: ='①月末在庫(実)'!O136 -> 0 | P136: ='①月末在庫(実)'!P136 -> 0 | Q136: ='①月末在庫(実)'!Q136 -> 0 | R136: =SUM(N136:Q136) -> 0 | S136: ='①月末在庫(実)'!S136 -> 0 | T136: ='①月末在庫(実)'!T136 -> 0 | V136: =SUM(S136:U136) -> 0 | W136: =R136+V136 -> 0 | X136: ='①月末在庫(実)'!X136 -> 0 | Y136: ='①月末在庫(実)'!Y136 -> 0 | Z136: ='①月末在庫(実)'!Z136 -> 0 | AA136: ='①月末在庫(実)'!AA136 -> 0 | AB136: =SUM(X136:AA136) -> 0 | AC136: ='①月末在庫(実)'!AC136 -> 0 | AD136: ='①月末在庫(実)'!AD136 -> 0 | AE136: ='①月末在庫(実)'!AE136 -> 0 | AF136: =SUM(AC136:AE136) -> 0 | AG136: =AB136+AF136 -> 0 | AH136: ='①月末在庫(実)'!AH136 -> 0 | AI136: ='①月末在庫(実)'!AI136 -> 0 | AJ136: ='①月末在庫(実)'!AJ136 -> 0 | AK136: ='①月末在庫(実)'!AK136 -> 0 | AL136: =SUM(AH136:AK136) -> 0 | AM136: ='①月末在庫(実)'!AM136 -> 0 | AN136: ='①月末在庫(実)'!AN136 -> 0 | AO136: ='①月末在庫(実)'!AO136 -> 0 | AP136: =SUM(AM136:AO136) -> 0 | AQ136: =M136+W136+AG136+AL136+AP136 -> 0
C137: ='①月末在庫(実)'!C137 -> 0 | D137: ='①月末在庫(実)'!D137 -> 0 | H137: ='①月末在庫(実)'!H137 -> 0 | I137: ='①月末在庫(実)'!I137 -> 0 | J137: ='①月末在庫(実)'!J137 -> 0 | K137: ='①月末在庫(実)'!K137 -> 0 | L137: ='①月末在庫(実)'!L137 -> 0 | M137: =SUM(H137:L137) -> 0 | N137: ='①月末在庫(実)'!N137 -> 0 | O137: ='①月末在庫(実)'!O137 -> 0 | P137: ='①月末在庫(実)'!P137 -> 0 | Q137: ='①月末在庫(実)'!Q137 -> 0 | R137: =SUM(N137:Q137) -> 0 | S137: ='①月末在庫(実)'!S137 -> 0 | T137: ='①月末在庫(実)'!T137 -> 0 | V137: =SUM(S137:U137) -> 0 | W137: =R137+V137 -> 0 | X137: ='①月末在庫(実)'!X137 -> 0 | Y137: ='①月末在庫(実)'!Y137 -> 0 | Z137: ='①月末在庫(実)'!Z137 -> 0 | AA137: ='①月末在庫(実)'!AA137 -> 0 | AB137: =SUM(X137:AA137) -> 0 | AC137: ='①月末在庫(実)'!AC137 -> 0 | AD137: ='①月末在庫(実)'!AD137 -> 0 | AE137: ='①月末在庫(実)'!AE137 -> 0 | AF137: =SUM(AC137:AE137) -> 0 | AG137: =AB137+AF137 -> 0 | AH137: ='①月末在庫(実)'!AH137 -> 0 | AI137: ='①月末在庫(実)'!AI137 -> 0 | AJ137: ='①月末在庫(実)'!AJ137 -> 0 | AK137: ='①月末在庫(実)'!AK137 -> 0 | AL137: =SUM(AH137:AK137) -> 0 | AM137: ='①月末在庫(実)'!AM137 -> 0 | AN137: ='①月末在庫(実)'!AN137 -> 0 | AO137: ='①月末在庫(実)'!AO137 -> 0 | AP137: =SUM(AM137:AO137) -> 0 | AQ137: =M137+W137+AG137+AL137+AP137 -> 0
C139: 合 計 | E139: =SUM(E7:E137) -> 0 | F139: =SUM(F7:F137) -> 0 | G139: =SUM(G7:G137) -> 88456 | H139: =SUM(M7:M137) -> 24203 | I139: =+#REF!+#REF!+#REF! ->  | M139: =+#REF!+#REF!+#REF! ->  | N139: =SUM(R7:R137) -> 6302 | S139: =SUM(V7:V137) -> 23881 | T139: =+#REF!+#REF!+#REF! ->  | U139: =+#REF!+#REF!+#REF! ->  | V139: =+#REF!+#REF!+#REF! ->  | W139: =N139+S139 -> 30183 | X139: =SUM(AB7:AB137) -> 604 | Y139: =+#REF!+#REF!+#REF! ->  | Z139: =+#REF!+#REF!+#REF! ->  | AB139: =+#REF!+#REF!+#REF! ->  | AC139: =SUM(AF7:AF137) -> 3862 | AD139: =+#REF!+#REF!+#REF! ->  | AE139: =+#REF!+#REF!+#REF! ->  | AF139: =+#REF!+#REF!+#REF! ->  | AG139: =X139+AC139 -> 4466 | AH139: =SUM(AH7:AJ137) -> 20461 | AK139: =SUM(AK7:AK137) -> 6984 | AM139: =SUM(AM7:AM137) -> 490 | AN139: =SUM(AN7:AN137) -> 1669 | AO139: =SUM(AO7:AO137) -> 0 | AQ139: =SUM(AQ7:AQ137) -> 88456 | AR139: =+#REF!+#REF!+#REF! ->  | AS139: =+#REF!+#REF!+#REF! -> 

Sheet DC素材支給計画
C1: ☜②次月検討開始 | E1: ☜①転記する
G3: ='①月末在庫(実)'!E1 -> 2026 | I3: =MOD('①月末在庫(実)'!H2,12)+1 -> 5 | J3: 月 生産管理表（Ｉ／Ｐ） | AE3: Click→ | AO3: ='①月末在庫(実)'!E1 -> 2026 | AQ3: =MOD('①月末在庫(実)'!H2+1,12)+1 -> 6 | AR3: 月 生産管理表（Ｉ／Ｐ） | GK3: =I3 -> 5 | GL3: 月
GK4: =$G$5 -> 46143 | GL4: =GK4+1 -> 46144 | GM4: =GL4+1 -> 46145 | GN4: 46146 | GO4: 46147 | GP4: 46148 | GQ4: 46149 | GR4: 46150 | GS4: 46151 | GT4: 46152 | GU4: 46153 | GV4: 46154 | GW4: 46155 | GX4: 46156 | GY4: 46157 | GZ4: 46158 | HA4: 46159 | HB4: 46160 | HC4: 46161 | HD4: 46162 | HE4: 46163 | HF4: 46164 | HG4: 46165 | HH4: 46166 | HI4: 46167 | HJ4: 46168 | HK4: 46169 | HL4: 46170 | HM4: 46171 | HN4: 46172 | HO4: 46173 | HP4: 46174 | HQ4: 46175
B5: 機種名 | C5: 部品番号 | D5: 部品名 | F5: 当月度 | G5: =DATE(G3,$I$3,1) -> 2026-05-01 | H5: =$G$5+1 -> 2026-05-02 | I5: =H5+1 -> 2026-05-03 | J5: 2026-05-04 | K5: =J5+1 -> 2026-05-05 | L5: 2026-05-06 | M5: 2026-05-07 | N5: =M5+1 -> 2026-05-08 | O5: 2026-05-09 | P5: 2026-05-10 | Q5: 2026-05-11 | R5: 2026-05-12 | S5: 2026-05-13 | T5: 2026-05-14 | U5: 2026-05-15 | V5: 2026-05-16 | W5: 2026-05-17 | X5: 2026-05-18 | Y5: 2026-05-19 | Z5: 2026-05-20 | AA5: 2026-05-21 | AB5: 2026-05-22 | AC5: 2026-05-23 | AD5: 2026-05-24 | AE5: 2026-05-25 | AF5: 2026-05-26 | AG5: =AF5+1 -> 2026-05-27 | AH5: 2026-05-28 | AI5: =AH5+1 -> 2026-05-29 | AJ5: 2026-05-30 | AK5: 2026-05-31 | AL5: 当月計画 | AM5: 1 | AO5: =DATE(AO3,$AQ$3,1) -> 2026-06-01 | AP5: =AO$5+1 -> 2026-06-02 | AQ5: =AP$5+1 -> 2026-06-03 | AR5: 2026-06-04 | AS5: 2026-06-05 | AT5: 2026-06-06 | AU5: 2026-06-07 | AV5: 2026-06-08 | AW5: 2026-06-09 | AX5: 2026-06-10 | AY5: 2026-06-11 | AZ5: 2026-06-12 | BA5: 2026-06-13 | BB5: 2026-06-14 | BC5: 2026-06-15 | BD5: 2026-06-16 | BE5: 2026-06-17 | BF5: 2026-06-18 | BG5: 2026-06-19 | BH5: 2026-06-20 | BI5: 2026-06-21 | BJ5: 2026-06-22 | BK5: 2026-06-23 | BL5: 2026-06-24 | BM5: 2026-06-25 | BN5: 2026-06-26 | BO5: 2026-06-27 | BP5: 2026-06-28 | BQ5: 2026-06-29 | BR5: 2026-06-30 | BS5: 2026-07-01 | BT5: 当月計画 | BU5: 内示 | BV5: 内々示
A6: =B6 -> MFL | B6: ='①月末在庫(実)'!C7 -> MFL | C6: ='①月末在庫(実)'!D7 -> 12201 MFL 0002 AA | D6: HEAD CYLINDER | E6: 前月先行進度 | F6: 出荷計画 | AL6: =SUM(G6:AK6) -> 0 | AM6: 1 | BF6: 300 | BG6: 300 | BJ6: 60 | BT6: =SUM(AO6:BS6) -> 660
E7: ↘実績入力 | F7: 実績 | G7: =+大型LP!H56 -> 0 | H7: =+大型LP!I56 -> 0 | I7: =+大型LP!J56 -> 0 | J7: =+大型LP!K56 -> 0 | K7: =+大型LP!L56 -> 0 | L7: =+大型LP!M56 -> 0 | M7: =+大型LP!N56 -> 0 | N7: =+大型LP!O56 -> 0 | O7: =+大型LP!P56 -> 0 | P7: =+大型LP!Q56 -> 0 | Q7: =+大型LP!R56 -> 0 | R7: =+大型LP!S56 -> 0 | S7: =+大型LP!T56 -> 0 | T7: =+大型LP!U56 -> 0 | U7: =+大型LP!V56 -> 0 | V7: =+大型LP!W56 -> 0 | W7: =+大型LP!X56 -> 0 | X7: =+大型LP!Y56 -> 0 | Y7: =+大型LP!Z56 -> 0 | Z7: =+大型LP!AA56 -> 0 | AA7: =+大型LP!AB56 -> 0 | AB7: =+大型LP!AC56 -> 0 | AC7: =+大型LP!AD56 -> 0 | AD7: =+大型LP!AE56 -> 0 | AE7: =+大型LP!AF56 -> 0 | AF7: =+大型LP!AG56 -> 0 | AG7: =+大型LP!AH56 -> 0 | AH7: =+大型LP!AI56 -> 0 | AI7: =+大型LP!AJ56 -> 0 | AJ7: =+大型LP!AK56 -> 0 | AK7: =+大型LP!AL56 -> 0 | AL7: =SUM(G7:AK7) -> 0 | AM7: 1
F8: 累計進度 | G8: =E8+G7-G6 -> 0 | H8: =G8+H7-H6 -> 0 | I8: 0 | J8: 0 | K8: 0 | L8: 0 | M8: 0 | N8: 0 | O8: 0 | P8: 0 | Q8: 0 | R8: 0 | S8: 0 | T8: 0 | U8: 0 | V8: 0 | W8: 0 | X8: 0 | Y8: 0 | Z8: 0 | AA8: 0 | AB8: 0 | AC8: 0 | AD8: 0 | AE8: 0 | AF8: 0 | AG8: 0 | AH8: 0 | AI8: 0 | AJ8: 0 | AK8: 0 | AL8: =AL7-AL6 -> 0 | AM8: 0
A9: =B9 -> MGPG | B9: ='①月末在庫(実)'!C8 -> MGPG | C9: ='①月末在庫(実)'!D8 -> 12201 MGP D601 AA | D9: HEAD CYLINDER | E9: 前月先行進度 | F9: 出荷計画 | AL9: =SUM(G9:AK9) -> 0 | AM9: =IF(AL9>0,1,0) -> 0 | BT9: =SUM(AO9:BS9) -> 0 | BU9: 641
E10: ↘実績入力 | F10: 実績 | G10: =+大型LP!H97 -> 0 | H10: =+大型LP!I97 -> 0 | I10: =+大型LP!J97 -> 0 | J10: =+大型LP!K97 -> 0 | K10: =+大型LP!L97 -> 0 | L10: =+大型LP!M97 -> 0 | M10: =+大型LP!N97 -> 0 | N10: =+大型LP!O97 -> 0 | O10: =+大型LP!P97 -> 0 | P10: =+大型LP!Q97 -> 0 | Q10: =+大型LP!R97 -> 0 | R10: =+大型LP!S97 -> 0 | S10: =+大型LP!T97 -> 0 | T10: =+大型LP!U97 -> 0 | U10: =+大型LP!V97 -> 0 | V10: =+大型LP!W97 -> 0 | W10: =+大型LP!X97 -> 0 | X10: =+大型LP!Y97 -> 0 | Y10: =+大型LP!Z97 -> 0 | Z10: =+大型LP!AA97 -> 0 | AA10: =+大型LP!AB97 -> 0 | AB10: =+大型LP!AC97 -> 0 | AC10: =+大型LP!AD97 -> 0 | AD10: =+大型LP!AE97 -> 0 | AE10: =+大型LP!AF97 -> 0 | AF10: =+大型LP!AG97 -> 0 | AG10: =+大型LP!AH97 -> 0 | AH10: =+大型LP!AI97 -> 0 | AI10: =+大型LP!AJ97 -> 0 | AJ10: =+大型LP!AK97 -> 0 | AK10: =+大型LP!AL97 -> 0 | AL10: =SUM(G10:AK10) -> 0 | AM10: =AM9 -> 0
F11: 累計進度 | G11: =E11+G10-G9 -> 0 | H11: =G11+H10-H9 -> 0 | I11: 0 | J11: 0 | K11: 0 | L11: 0 | M11: 0 | N11: 0 | O11: 0 | P11: 0 | Q11: 0 | R11: 0 | S11: 0 | T11: 0 | U11: 0 | V11: 0 | W11: 0 | X11: 0 | Y11: 0 | Z11: 0 | AA11: 0 | AB11: 0 | AC11: 0 | AD11: 0 | AE11: 0 | AF11: 0 | AG11: 0 | AH11: 0 | AI11: 0 | AJ11: 0 | AK11: 0 | AL11: =AL10-AL9 -> 0 | AM11: 0
A12: =B12 -> MFJ | B12: ='①月末在庫(実)'!C9 -> MFJ | C12: ='①月末在庫(実)'!D9 -> 12201 MFJ A401 AA | D12: HEAD CYLINDER | E12: 前月先行進度 | F12: 出荷計画 | Y12: 300 | Z12: 300 | AA12: 300 | AB12: 300 | AL12: =SUM(G12:AK12) -> 1200 | AM12: =IF(AL12>0,1,0) -> 1 | BT12: =SUM(AO12:BS12) -> 0 | BU12: 672
E13: ↘実績入力 | F13: 実績 | G13: =+大型LP!H138 -> 0 | H13: =+大型LP!I138 -> 0 | I13: =+大型LP!J138 -> 0 | J13: =+大型LP!K138 -> 0 | K13: =+大型LP!L138 -> 0 | L13: =+大型LP!M138 -> 0 | M13: =+大型LP!N138 -> 0 | N13: =+大型LP!O138 -> 0 | O13: =+大型LP!P138 -> 0 | P13: =+大型LP!Q138 -> 0 | Q13: =+大型LP!R138 -> 0 | R13: =+大型LP!S138 -> 0 | S13: =+大型LP!T138 -> 0 | T13: =+大型LP!U138 -> 0 | U13: =+大型LP!V138 -> 0 | V13: =+大型LP!W138 -> 0 | W13: =+大型LP!X138 -> 0 | X13: =+大型LP!Y138 -> 0 | Y13: =+大型LP!Z138 -> 0 | Z13: =+大型LP!AA138 -> 0 | AA13: =+大型LP!AB138 -> 0 | AB13: =+大型LP!AC138 -> 0 | AC13: =+大型LP!AD138 -> 0 | AD13: =+大型LP!AE138 -> 0 | AE13: =+大型LP!AF138 -> 0 | AF13: =+大型LP!AG138 -> 0 | AG13: =+大型LP!AH138 -> 0 | AH13: =+大型LP!AI138 -> 0 | AI13: =+大型LP!AJ138 -> 0 | AJ13: =+大型LP!AK138 -> 0 | AK13: =+大型LP!AL138 -> 0 | AL13: =SUM(G13:AK13) -> 0 | AM13: =AM12 -> 1
F14: 累計進度 | G14: =E14+G13-G12 -> 0 | H14: =G14+H13-H12 -> 0 | I14: 0 | J14: 0 | K14: 0 | L14: 0 | M14: 0 | N14: 0 | O14: 0 | P14: 0 | Q14: 0 | R14: 0 | S14: 0 | T14: 0 | U14: 0 | V14: 0 | W14: 0 | X14: 0 | Y14: -300 | Z14: -600 | AA14: -900 | AB14: -1200 | AC14: -1200 | AD14: -1200 | AE14: -1200 | AF14: -1200 | AG14: -1200 | AH14: -1200 | AI14: -1200 | AJ14: -1200 | AK14: -1200 | AL14: =AL13-AL12 -> -1200 | AM14: 0
A15: =B15 -> MFG(MER) | B15: ='①月末在庫(実)'!C10 -> MFG(MER) | C15: ='①月末在庫(実)'!D10 -> 12201 MFG D001 AA | D15: HEAD CYLINDER | E15: 前月先行進度 | F15: 出荷計画 | AL15: =SUM(G15:AK15) -> 00:00:00 | AM15: =IF(AL15>0,1,0) -> 0 | BT15: =SUM(AO15:BS15) -> 0
E16: ↘実績入力 | F16: 実績 | G16: =+大型LP!H179 -> 0 | H16: =+大型LP!I179 -> 0 | I16: =+大型LP!J179 -> 0 | J16: =+大型LP!K179 -> 0 | K16: =+大型LP!L179 -> 0 | L16: =+大型LP!M179 -> 0 | M16: =+大型LP!N179 -> 0 | N16: =+大型LP!O179 -> 0 | O16: =+大型LP!P179 -> 0 | P16: =+大型LP!Q179 -> 0 | Q16: =+大型LP!R179 -> 0 | R16: =+大型LP!S179 -> 0 | S16: =+大型LP!T179 -> 0 | T16: =+大型LP!U179 -> 0 | U16: =+大型LP!V179 -> 0 | V16: =+大型LP!W179 -> 0 | W16: =+大型LP!X179 -> 0 | X16: =+大型LP!Y179 -> 0 | Y16: =+大型LP!Z179 -> 0 | Z16: =+大型LP!AA179 -> 0 | AA16: =+大型LP!AB179 -> 0 | AB16: =+大型LP!AC179 -> 0 | AC16: =+大型LP!AD179 -> 0 | AD16: =+大型LP!AE179 -> 0 | AE16: =+大型LP!AF179 -> 0 | AF16: =+大型LP!AG179 -> 0 | AG16: =+大型LP!AH179 -> 0 | AH16: =+大型LP!AI179 -> 0 | AI16: =+大型LP!AJ179 -> 0 | AJ16: =+大型LP!AK179 -> 0 | AK16: =+大型LP!AL179 -> 0 | AL16: =SUM(G16:AK16) -> 00:00:00 | AM16: =AM15 -> 0
F17: 累計進度 | G17: =E17+G16-G15 -> 0 | H17: =G17+H16-H15 -> 0 | I17: 0 | J17: 0 | K17: 0 | L17: 0 | M17: 0 | N17: 0 | O17: 0 | P17: 0 | Q17: 0 | R17: 0 | S17: 0 | T17: 0 | U17: 0 | V17: 0 | W17: 0 | X17: 0 | Y17: 0 | Z17: 0 | AA17: 0 | AB17: 0 | AC17: 0 | AD17: 0 | AE17: 0 | AF17: 0 | AG17: 0 | AH17: 0 | AI17: 0 | AJ17: 0 | AK17: 0 | AL17: =AL16-AL15 -> 0 | AM17: 0
A18: =B18 -> MFA | B18: ='①月末在庫(実)'!C11 -> MFA | C18: ='①月末在庫(実)'!D11 -> 12201 MFA D001 AA | D18: HEAD CYLINDER | E18: 前月先行進度 | F18: 出荷計画 | AL18: =SUM(G18:AK18) -> 00:00:00 | AM18: =IF(AL18>0,1,0) -> 0 | BT18: =SUM(AO18:BS18) -> 0
E19: ↘実績入力 | F19: 実績 | G19: =+大型LP!H220 -> 0 | H19: =+大型LP!I220 -> 0 | I19: =+大型LP!J220 -> 0 | J19: =+大型LP!K220 -> 0 | K19: =+大型LP!L220 -> 0 | L19: =+大型LP!M220 -> 0 | M19: =+大型LP!N220 -> 0 | N19: =+大型LP!O220 -> 0 | O19: =+大型LP!P220 -> 0 | P19: =+大型LP!Q220 -> 0 | Q19: =+大型LP!R220 -> 0 | R19: =+大型LP!S220 -> 0 | S19: =+大型LP!T220 -> 0 | T19: =+大型LP!U220 -> 0 | U19: =+大型LP!V220 -> 0 | V19: =+大型LP!W220 -> 0 | W19: =+大型LP!X220 -> 0 | X19: =+大型LP!Y220 -> 0 | Y19: =+大型LP!Z220 -> 0 | Z19: =+大型LP!AA220 -> 0 | AA19: =+大型LP!AB220 -> 0 | AB19: =+大型LP!AC220 -> 0 | AC19: =+大型LP!AD220 -> 0 | AD19: =+大型LP!AE220 -> 0 | AE19: =+大型LP!AF220 -> 0 | AF19: =+大型LP!AG220 -> 0 | AG19: =+大型LP!AH220 -> 0 | AH19: =+大型LP!AI220 -> 0 | AI19: =+大型LP!AJ220 -> 0 | AJ19: =+大型LP!AK220 -> 0 | AK19: =+大型LP!AL220 -> 0 | AL19: =SUM(G19:AK19) -> 00:00:00 | AM19: =AM18 -> 0
F20: 累計進度 | G20: =E20+G19-G18 -> 0 | H20: =G20+H19-H18 -> 0 | I20: 0 | J20: 0 | K20: 0 | L20: 0 | M20: 0 | N20: 0 | O20: 0 | P20: 0 | Q20: 0 | R20: 0 | S20: 0 | T20: 0 | U20: 0 | V20: 0 | W20: 0 | X20: 0 | Y20: 0 | Z20: 0 | AA20: 0 | AB20: 0 | AC20: 0 | AD20: 0 | AE20: 0 | AF20: 0 | AG20: 0 | AH20: 0 | AI20: 0 | AJ20: 0 | AK20: 0 | AL20: =AL19-AL18 -> 0 | AM20: 0
A21: =B21 -> MFPV | B21: ='①月末在庫(実)'!C12 -> MFPV | C21: ='①月末在庫(実)'!D12 -> 12201 MFP JC00 AA | D21: HEAD CYLINDER | E21: 前月先行進度 | F21: 出荷計画 | AL21: =SUM(G21:AK21) -> 0 | AM21: =IF(AL21>0,1,0) -> 0 | BT21: =SUM(AO21:BS21) -> 0
E22: ↘実績入力 | F22: 実績 | G22: =+大型LP!H261 -> 0 | H22: =+大型LP!I261 -> 0 | I22: =+大型LP!J261 -> 0 | J22: =+大型LP!K261 -> 0 | K22: =+大型LP!L261 -> 0 | L22: =+大型LP!M261 -> 0 | M22: =+大型LP!N261 -> 0 | N22: =+大型LP!O261 -> 0 | O22: =+大型LP!P261 -> 0 | P22: =+大型LP!Q261 -> 0 | Q22: =+大型LP!R261 -> 0 | R22: =+大型LP!S261 -> 0 | S22: =+大型LP!T261 -> 0 | T22: =+大型LP!U261 -> 0 | U22: =+大型LP!V261 -> 0 | V22: =+大型LP!W261 -> 0 | W22: =+大型LP!X261 -> 0 | X22: =+大型LP!Y261 -> 0 | Y22: =+大型LP!Z261 -> 0 | Z22: =+大型LP!AA261 -> 0 | AA22: =+大型LP!AB261 -> 0 | AB22: =+大型LP!AC261 -> 0 | AC22: =+大型LP!AD261 -> 0 | AD22: =+大型LP!AE261 -> 0 | AE22: =+大型LP!AF261 -> 0 | AF22: =+大型LP!AG261 -> 0 | AG22: =+大型LP!AH261 -> 0 | AH22: =+大型LP!AI261 -> 0 | AI22: =+大型LP!AJ261 -> 0 | AJ22: =+大型LP!AK261 -> 0 | AK22: =+大型LP!AL261 -> 0 | AL22: =SUM(G22:AK22) -> 0 | AM22: =AM21 -> 0
F23: 累計進度 | G23: =E23+G22-G21 -> 0 | H23: =G23+H22-H21 -> 0 | I23: 0 | J23: 0 | K23: 0 | L23: 0 | M23: 0 | N23: 0 | O23: 0 | P23: 0 | Q23: 0 | R23: 0 | S23: 0 | T23: 0 | U23: 0 | V23: 0 | W23: 0 | X23: 0 | Y23: 0 | Z23: 0 | AA23: 0 | AB23: 0 | AC23: 0 | AD23: 0 | AE23: 0 | AF23: 0 | AG23: 0 | AH23: 0 | AI23: 0 | AJ23: 0 | AK23: 0 | AL23: =AL22-AL21 -> 0 | AM23: 0
A24: =B24 -> MEJ | B24: ='①月末在庫(実)'!C13 -> MEJ | C24: ='①月末在庫(実)'!D13 -> 12201 MEJ 3001 AA | D24: HEAD CYLINDER | E24: 前月先行進度 | F24: 出荷計画 | AL24: =SUM(G24:AK24) -> 00:00:00 | AM24: =IF(AL24>0,1,0) -> 0 | BT24: =SUM(AO24:BS24) -> 0
E25: ↘実績入力 | F25: 実績 | G25: =+大型LP!H302 -> 0 | H25: =+大型LP!I302 -> 0 | I25: =+大型LP!J302 -> 0 | J25: =+大型LP!K302 -> 0 | K25: =+大型LP!L302 -> 0 | L25: =+大型LP!M302 -> 0 | M25: =+大型LP!N302 -> 0 | N25: =+大型LP!O302 -> 0 | O25: =+大型LP!P302 -> 0 | P25: =+大型LP!Q302 -> 0 | Q25: =+大型LP!R302 -> 0 | R25: =+大型LP!S302 -> 0 | S25: =+大型LP!T302 -> 0 | T25: =+大型LP!U302 -> 0 | U25: =+大型LP!V302 -> 0 | V25: =+大型LP!W302 -> 0 | W25: =+大型LP!X302 -> 0 | X25: =+大型LP!Y302 -> 0 | Y25: =+大型LP!Z302 -> 0 | Z25: =+大型LP!AA302 -> 0 | AA25: =+大型LP!AB302 -> 0 | AB25: =+大型LP!AC302 -> 0 | AC25: =+大型LP!AD302 -> 0 | AD25: =+大型LP!AE302 -> 0 | AE25: =+大型LP!AF302 -> 0 | AF25: =+大型LP!AG302 -> 0 | AG25: =+大型LP!AH302 -> 0 | AH25: =+大型LP!AI302 -> 0 | AI25: =+大型LP!AJ302 -> 0 | AJ25: =+大型LP!AK302 -> 0 | AK25: =+大型LP!AL302 -> 0 | AL25: =SUM(G25:AK25) -> 00:00:00 | AM25: =AM24 -> 0
F26: 累計進度 | G26: =E26+G25-G24 -> 0 | H26: =G26+H25-H24 -> 0 | I26: 0 | J26: 0 | K26: 0 | L26: 0 | M26: 0 | N26: 0 | O26: 0 | P26: 0 | Q26: 0 | R26: 0 | S26: 0 | T26: 0 | U26: 0 | V26: 0 | W26: 0 | X26: 0 | Y26: 0 | Z26: 0 | AA26: 0 | AB26: 0 | AC26: 0 | AD26: 0 | AE26: 0 | AF26: 0 | AG26: 0 | AH26: 0 | AI26: 0 | AJ26: 0 | AK26: 0 | AL26: =AL25-AL24 -> 0 | AM26: 0
A27: =B27 -> MGEf | B27: ='①月末在庫(実)'!C14 -> MGEf | C27: ='①月末在庫(実)'!D14 -> 12211 MGE 0001 AA | D27: HEAD CYLINDER | E27: 前月先行進度 | F27: 出荷計画 | AL27: =SUM(G27:AK27) -> 00:00:00 | AM27: =IF(AL27>0,1,0) -> 0 | BT27: =SUM(AO27:BS27) -> 0
E28: ↘実績入力 | F28: 実績 | G28: =+大型LP!H343 -> 0 | H28: =+大型LP!I343 -> 0 | I28: =+大型LP!J343 -> 0 | J28: =+大型LP!K343 -> 0 | K28: =+大型LP!L343 -> 0 | L28: =+大型LP!M343 -> 0 | M28: =+大型LP!N343 -> 0 | N28: =+大型LP!O343 -> 0 | O28: =+大型LP!P343 -> 0 | P28: =+大型LP!Q343 -> 0 | Q28: =+大型LP!R343 -> 0 | R28: =+大型LP!S343 -> 0 | S28: =+大型LP!T343 -> 0 | T28: =+大型LP!U343 -> 0 | U28: =+大型LP!V343 -> 0 | V28: =+大型LP!W343 -> 0 | W28: =+大型LP!X343 -> 0 | X28: =+大型LP!Y343 -> 0 | Y28: =+大型LP!Z343 -> 0 | Z28: =+大型LP!AA343 -> 0 | AA28: =+大型LP!AB343 -> 0 | AB28: =+大型LP!AC343 -> 0 | AC28: =+大型LP!AD343 -> 0 | AD28: =+大型LP!AE343 -> 0 | AE28: =+大型LP!AF343 -> 0 | AF28: =+大型LP!AG343 -> 0 | AG28: =+大型LP!AH343 -> 0 | AH28: =+大型LP!AI343 -> 0 | AI28: =+大型LP!AJ343 -> 0 | AJ28: =+大型LP!AK343 -> 0 | AK28: =+大型LP!AL343 -> 0 | AL28: =SUM(G28:AK28) -> 00:00:00 | AM28: =AM27 -> 0
F29: 累計進度 | G29: =E29+G28-G27 -> 0 | H29: =G29+H28-H27 -> 0 | I29: 0 | J29: 0 | K29: 0 | L29: 0 | M29: 0 | N29: 0 | O29: 0 | P29: 0 | Q29: 0 | R29: 0 | S29: 0 | T29: 0 | U29: 0 | V29: 0 | W29: 0 | X29: 0 | Y29: 0 | Z29: 0 | AA29: 0 | AB29: 0 | AC29: 0 | AD29: 0 | AE29: 0 | AF29: 0 | AG29: 0 | AH29: 0 | AI29: 0 | AJ29: 0 | AK29: 0 | AL29: =AL28-AL27 -> 0 | AM29: 0
A30: =B30 -> MGEr | B30: ='①月末在庫(実)'!C15 -> MGEr | C30: ='①月末在庫(実)'!D15 -> 12221 MGE 0001 AA | D30: HEAD CYLINDER | E30: 前月先行進度 | F30: 出荷計画 | AL30: =SUM(G30:AK30) -> 00:00:00 | AM30: =IF(AL30>0,1,0) -> 0 | BT30: =SUM(AO30:BS30) -> 0
E31: ↘実績入力 | F31: 実績 | G31: =+大型LP!H384 -> 0 | H31: =+大型LP!I384 -> 0 | I31: =+大型LP!J384 -> 0 | J31: =+大型LP!K384 -> 0 | K31: =+大型LP!L384 -> 0 | L31: =+大型LP!M384 -> 0 | M31: =+大型LP!N384 -> 0 | N31: =+大型LP!O384 -> 0 | O31: =+大型LP!P384 -> 0 | P31: =+大型LP!Q384 -> 0 | Q31: =+大型LP!R384 -> 0 | R31: =+大型LP!S384 -> 0 | S31: =+大型LP!T384 -> 0 | T31: =+大型LP!U384 -> 0 | U31: =+大型LP!V384 -> 0 | V31: =+大型LP!W384 -> 0 | W31: =+大型LP!X384 -> 0 | X31: =+大型LP!Y384 -> 0 | Y31: =+大型LP!Z384 -> 0 | Z31: =+大型LP!AA384 -> 0 | AA31: =+大型LP!AB384 -> 0 | AB31: =+大型LP!AC384 -> 0 | AC31: =+大型LP!AD384 -> 0 | AD31: =+大型LP!AE384 -> 0 | AE31: =+大型LP!AF384 -> 0 | AF31: =+大型LP!AG384 -> 0 | AG31: =+大型LP!AH384 -> 0 | AH31: =+大型LP!AI384 -> 0 | AI31: =+大型LP!AJ384 -> 0 | AJ31: =+大型LP!AK384 -> 0 | AK31: =+大型LP!AL384 -> 0 | AL31: =SUM(G31:AK31) -> 00:00:00 | AM31: =AM30 -> 0
F32: 累計進度 | G32: =E32+G31-G30 -> 0 | H32: =G32+H31-H30 -> 0 | I32: 0 | J32: 0 | K32: 0 | L32: 0 | M32: 0 | N32: 0 | O32: 0 | P32: 0 | Q32: 0 | R32: 0 | S32: 0 | T32: 0 | U32: 0 | V32: 0 | W32: 0 | X32: 0 | Y32: 0 | Z32: 0 | AA32: 0 | AB32: 0 | AC32: 0 | AD32: 0 | AE32: 0 | AF32: 0 | AG32: 0 | AH32: 0 | AI32: 0 | AJ32: 0 | AK32: 0 | AL32: =AL31-AL30 -> 0 | AM32: 0
A33: =B33 -> MBTf | B33: ='①月末在庫(実)'!C16 -> MBTf | C33: ='①月末在庫(実)'!D16 -> 12211 MBT F201 AA | D33: HEAD CYLINDER | E33: 前月先行進度 | F33: 出荷計画 | AL33: =SUM(G33:AK33) -> 00:00:00 | AM33: =IF(AL33>0,1,0) -> 0 | BT33: =SUM(AO33:BS33) -> 0
E34: ↘実績入力 | F34: 実績 | G34: =+大型LP!H425 -> 0 | H34: =+大型LP!I425 -> 0 | I34: =+大型LP!J425 -> 0 | J34: =+大型LP!K425 -> 0 | K34: =+大型LP!L425 -> 0 | L34: =+大型LP!M425 -> 0 | M34: =+大型LP!N425 -> 0 | N34: =+大型LP!O425 -> 0 | O34: =+大型LP!P425 -> 0 | P34: =+大型LP!Q425 -> 0 | Q34: =+大型LP!R425 -> 0 | R34: =+大型LP!S425 -> 0 | S34: =+大型LP!T425 -> 0 | T34: =+大型LP!U425 -> 0 | U34: =+大型LP!V425 -> 0 | V34: =+大型LP!W425 -> 0 | W34: =+大型LP!X425 -> 0 | X34: =+大型LP!Y425 -> 0 | Y34: =+大型LP!Z425 -> 0 | Z34: =+大型LP!AA425 -> 0 | AA34: =+大型LP!AB425 -> 0 | AB34: =+大型LP!AC425 -> 0 | AC34: =+大型LP!AD425 -> 0 | AD34: =+大型LP!AE425 -> 0 | AE34: =+大型LP!AF425 -> 0 | AF34: =+大型LP!AG425 -> 0 | AG34: =+大型LP!AH425 -> 0 | AH34: =+大型LP!AI425 -> 0 | AI34: =+大型LP!AJ425 -> 0 | AJ34: =+大型LP!AK425 -> 0 | AK34: =+大型LP!AL425 -> 0 | AL34: =SUM(G34:AK34) -> 00:00:00 | AM34: =AM33 -> 0
F35: 累計進度 | G35: =E35+G34-G33 -> 0 | H35: =G35+H34-H33 -> 0 | I35: 0 | J35: 0 | K35: 0 | L35: 0 | M35: 0 | N35: 0 | O35: 0 | P35: 0 | Q35: 0 | R35: 0 | S35: 0 | T35: 0 | U35: 0 | V35: 0 | W35: 0 | X35: 0 | Y35: 0 | Z35: 0 | AA35: 0 | AB35: 0 | AC35: 0 | AD35: 0 | AE35: 0 | AF35: 0 | AG35: 0 | AH35: 0 | AI35: 0 | AJ35: 0 | AK35: 0 | AL35: =AL34-AL33 -> 0 | AM35: 0
A36: =B36 -> MBTr | B36: ='①月末在庫(実)'!C17 -> MBTr | C36: ='①月末在庫(実)'!D17 -> 12221 MBT F201 AA | D36: HEAD CYLINDER | E36: 前月先行進度 | F36: 出荷計画 | AL36: =SUM(G36:AK36) -> 00:00:00 | AM36: =IF(AL36>0,1,0) -> 0 | BT36: =SUM(AO36:BS36) -> 0
E37: ↘実績入力 | F37: 実績 | G37: =+大型LP!H466 -> 0 | H37: =+大型LP!I466 -> 0 | I37: =+大型LP!J466 -> 0 | J37: =+大型LP!K466 -> 0 | K37: =+大型LP!L466 -> 0 | L37: =+大型LP!M466 -> 0 | M37: =+大型LP!N466 -> 0 | N37: =+大型LP!O466 -> 0 | O37: =+大型LP!P466 -> 0 | P37: =+大型LP!Q466 -> 0 | Q37: =+大型LP!R466 -> 0 | R37: =+大型LP!S466 -> 0 | S37: =+大型LP!T466 -> 0 | T37: =+大型LP!U466 -> 0 | U37: =+大型LP!V466 -> 0 | V37: =+大型LP!W466 -> 0 | W37: =+大型LP!X466 -> 0 | X37: =+大型LP!Y466 -> 0 | Y37: =+大型LP!Z466 -> 0 | Z37: =+大型LP!AA466 -> 0 | AA37: =+大型LP!AB466 -> 0 | AB37: =+大型LP!AC466 -> 0 | AC37: =+大型LP!AD466 -> 0 | AD37: =+大型LP!AE466 -> 0 | AE37: =+大型LP!AF466 -> 0 | AF37: =+大型LP!AG466 -> 0 | AG37: =+大型LP!AH466 -> 0 | AH37: =+大型LP!AI466 -> 0 | AI37: =+大型LP!AJ466 -> 0 | AJ37: =+大型LP!AK466 -> 0 | AK37: =+大型LP!AL466 -> 0 | AL37: =SUM(G37:AK37) -> 00:00:00 | AM37: =AM36 -> 0
F38: 累計進度 | G38: =E38+G37-G36 -> 0 | H38: =G38+H37-H36 -> 0 | I38: 0 | J38: 0 | K38: 0 | L38: 0 | M38: 0 | N38: 0 | O38: 0 | P38: 0 | Q38: 0 | R38: 0 | S38: 0 | T38: 0 | U38: 0 | V38: 0 | W38: 0 | X38: 0 | Y38: 0 | Z38: 0 | AA38: 0 | AB38: 0 | AC38: 0 | AD38: 0 | AE38: 0 | AF38: 0 | AG38: 0 | AH38: 0 | AI38: 0 | AJ38: 0 | AK38: 0 | AL38: =AL37-AL36 -> 0 | AM38: 0
A39: =B39 -> MCWf | B39: ='①月末在庫(実)'!C18 -> MCWf | C39: ='①月末在庫(実)'!D18 -> 12210 MCW 0001 AA | D39: HEAD CYLINDER | E39: 前月先行進度 | F39: 出荷計画 | AL39: =SUM(G39:AK39) -> 00:00:00 | AM39: =IF(AL39>0,1,0) -> 0 | BT39: =SUM(AO39:BS39) -> 0
E40: ↘実績入力 | F40: 実績 | G40: =+大型LP!H507 -> 0 | H40: =+大型LP!I507 -> 0 | I40: =+大型LP!J507 -> 0 | J40: =+大型LP!K507 -> 0 | K40: =+大型LP!L507 -> 0 | L40: =+大型LP!M507 -> 0 | M40: =+大型LP!N507 -> 0 | N40: =+大型LP!O507 -> 0 | O40: =+大型LP!P507 -> 0 | P40: =+大型LP!Q507 -> 0 | Q40: =+大型LP!R507 -> 0 | R40: =+大型LP!S507 -> 0 | S40: =+大型LP!T507 -> 0 | T40: =+大型LP!U507 -> 0 | U40: =+大型LP!V507 -> 0 | V40: =+大型LP!W507 -> 0 | W40: =+大型LP!X507 -> 0 | X40: =+大型LP!Y507 -> 0 | Y40: =+大型LP!Z507 -> 0 | Z40: =+大型LP!AA507 -> 0 | AA40: =+大型LP!AB507 -> 0 | AB40: =+大型LP!AC507 -> 0 | AC40: =+大型LP!AD507 -> 0 | AD40: =+大型LP!AE507 -> 0 | AE40: =+大型LP!AF507 -> 0 | AF40: =+大型LP!AG507 -> 0 | AG40: =+大型LP!AH507 -> 0 | AH40: =+大型LP!AI507 -> 0 | AI40: =+大型LP!AJ507 -> 0 | AJ40: =+大型LP!AK507 -> 0 | AK40: =+大型LP!AL507 -> 0 | AL40: =SUM(G40:AK40) -> 00:00:00 | AM40: =AM39 -> 0
F41: 累計進度 | G41: =E41+G40-G39 -> 0 | H41: =G41+H40-H39 -> 0 | I41: 0 | J41: 0 | K41: 0 | L41: 0 | M41: 0 | N41: 0 | O41: 0 | P41: 0 | Q41: 0 | R41: 0 | S41: 0 | T41: 0 | U41: 0 | V41: 0 | W41: 0 | X41: 0 | Y41: 0 | Z41: 0 | AA41: 0 | AB41: 0 | AC41: 0 | AD41: 0 | AE41: 0 | AF41: 0 | AG41: 0 | AH41: 0 | AI41: 0 | AJ41: 0 | AK41: 0 | AL41: =AL40-AL39 -> 0 | AM41: 0
A42: =B42 -> MCWr | B42: ='①月末在庫(実)'!C19 -> MCWr | C42: ='①月末在庫(実)'!D19 -> 12220 MCW 0001 AA | D42: HEAD CYLINDER | E42: 前月先行進度 | F42: 出荷計画 | AL42: =SUM(G42:AK42) -> 00:00:00 | AM42: =IF(AL42>0,1,0) -> 0 | BT42: =SUM(AO42:BS42) -> 0
E43: ↘実績入力 | F43: 実績 | G43: =+大型LP!H548 -> 0 | H43: =+大型LP!I548 -> 0 | I43: =+大型LP!J548 -> 0 | J43: =+大型LP!K548 -> 0 | K43: =+大型LP!L548 -> 0 | L43: =+大型LP!M548 -> 0 | M43: =+大型LP!N548 -> 0 | N43: =+大型LP!O548 -> 0 | O43: =+大型LP!P548 -> 0 | P43: =+大型LP!Q548 -> 0 | Q43: =+大型LP!R548 -> 0 | R43: =+大型LP!S548 -> 0 | S43: =+大型LP!T548 -> 0 | T43: =+大型LP!U548 -> 0 | U43: =+大型LP!V548 -> 0 | V43: =+大型LP!W548 -> 0 | W43: =+大型LP!X548 -> 0 | X43: =+大型LP!Y548 -> 0 | Y43: =+大型LP!Z548 -> 0 | Z43: =+大型LP!AA548 -> 0 | AA43: =+大型LP!AB548 -> 0 | AB43: =+大型LP!AC548 -> 0 | AC43: =+大型LP!AD548 -> 0 | AD43: =+大型LP!AE548 -> 0 | AE43: =+大型LP!AF548 -> 0 | AF43: =+大型LP!AG548 -> 0 | AG43: =+大型LP!AH548 -> 0 | AH43: =+大型LP!AI548 -> 0 | AI43: =+大型LP!AJ548 -> 0 | AJ43: =+大型LP!AK548 -> 0 | AK43: =+大型LP!AL548 -> 0 | AL43: =SUM(G43:AK43) -> 00:00:00 | AM43: =AM42 -> 0
F44: 累計進度 | G44: =E44+G43-G42 -> 0 | H44: =G44+H43-H42 -> 0 | I44: 0 | J44: 0 | K44: 0 | L44: 0 | M44: 0 | N44: 0 | O44: 0 | P44: 0 | Q44: 0 | R44: 0 | S44: 0 | T44: 0 | U44: 0 | V44: 0 | W44: 0 | X44: 0 | Y44: 0 | Z44: 0 | AA44: 0 | AB44: 0 | AC44: 0 | AD44: 0 | AE44: 0 | AF44: 0 | AG44: 0 | AH44: 0 | AI44: 0 | AJ44: 0 | AK44: 0 | AL44: =AL43-AL42 -> 0 | AM44: 0
A45: =B45 -> MJNr | B45: ='①月末在庫(実)'!C20 -> MJNr | C45: ='①月末在庫(実)'!D20 -> 12211 MJN A000 AA | D45: HEAD CYLINDER | E45: 前月先行進度 | F45: 出荷計画 | AL45: =SUM(G45:AK45) -> 00:00:00 | AM45: =IF(AL45>0,1,0) -> 0 | BT45: =SUM(AO45:BS45) -> 0
E46: ↘実績入力 | F46: 実績 | G46: =+大型LP!H589 -> 0 | H46: =+大型LP!I589 -> 0 | I46: =+大型LP!J589 -> 0 | J46: =+大型LP!K589 -> 0 | K46: =+大型LP!L589 -> 0 | L46: =+大型LP!M589 -> 0 | M46: =+大型LP!N589 -> 0 | N46: =+大型LP!O589 -> 0 | O46: =+大型LP!P589 -> 0 | P46: =+大型LP!Q589 -> 0 | Q46: =+大型LP!R589 -> 0 | R46: =+大型LP!S589 -> 0 | S46: =+大型LP!T589 -> 0 | T46: =+大型LP!U589 -> 0 | U46: =+大型LP!V589 -> 0 | V46: =+大型LP!W589 -> 0 | W46: =+大型LP!X589 -> 0 | X46: =+大型LP!Y589 -> 0 | Y46: =+大型LP!Z589 -> 0 | Z46: =+大型LP!AA589 -> 0 | AA46: =+大型LP!AB589 -> 0 | AB46: =+大型LP!AC589 -> 0 | AC46: =+大型LP!AD589 -> 0 | AD46: =+大型LP!AE589 -> 0 | AE46: =+大型LP!AF589 -> 0 | AF46: =+大型LP!AG589 -> 0 | AG46: =+大型LP!AH589 -> 0 | AH46: =+大型LP!AI589 -> 0 | AI46: =+大型LP!AJ589 -> 0 | AJ46: =+大型LP!AK589 -> 0 | AK46: =+大型LP!AL589 -> 0 | AL46: =SUM(G46:AK46) -> 00:00:00 | AM46: =AM45 -> 0
F47: 累計進度 | G47: =E47+G46-G45 -> 0 | H47: =G47+H46-H45 -> 0 | I47: 0 | J47: 0 | K47: 0 | L47: 0 | M47: 0 | N47: 0 | O47: 0 | P47: 0 | Q47: 0 | R47: 0 | S47: 0 | T47: 0 | U47: 0 | V47: 0 | W47: 0 | X47: 0 | Y47: 0 | Z47: 0 | AA47: 0 | AB47: 0 | AC47: 0 | AD47: 0 | AE47: 0 | AF47: 0 | AG47: 0 | AH47: 0 | AI47: 0 | AJ47: 0 | AK47: 0 | AL47: =AL46-AL45 -> 0 | AM47: 0
A48: =B48 -> MCSl | B48: ='①月末在庫(実)'!C21 -> MCSl | C48: ='①月末在庫(実)'!D21 -> 12221 MCS D801 AA | D48: HEAD CYLINDER | E48: 前月先行進度 | F48: 出荷計画 | AL48: =SUM(G48:AK48) -> 00:00:00 | AM48: =IF(AL48>0,1,0) -> 0 | BT48: =SUM(AO48:BS48) -> 0
E49: ↘実績入力 | F49: 実績 | G49: =+大型LP!H630 -> 0 | H49: =+大型LP!I630 -> 0 | I49: =+大型LP!J630 -> 0 | J49: =+大型LP!K630 -> 0 | K49: =+大型LP!L630 -> 0 | L49: =+大型LP!M630 -> 0 | M49: =+大型LP!N630 -> 0 | N49: =+大型LP!O630 -> 0 | O49: =+大型LP!P630 -> 0 | P49: =+大型LP!Q630 -> 0 | Q49: =+大型LP!R630 -> 0 | R49: =+大型LP!S630 -> 0 | S49: =+大型LP!T630 -> 0 | T49: =+大型LP!U630 -> 0 | U49: =+大型LP!V630 -> 0 | V49: =+大型LP!W630 -> 0 | W49: =+大型LP!X630 -> 0 | X49: =+大型LP!Y630 -> 0 | Y49: =+大型LP!Z630 -> 0 | Z49: =+大型LP!AA630 -> 0 | AA49: =+大型LP!AB630 -> 0 | AB49: =+大型LP!AC630 -> 0 | AC49: =+大型LP!AD630 -> 0 | AD49: =+大型LP!AE630 -> 0 | AE49: =+大型LP!AF630 -> 0 | AF49: =+大型LP!AG630 -> 0 | AG49: =+大型LP!AH630 -> 0 | AH49: =+大型LP!AI630 -> 0 | AI49: =+大型LP!AJ630 -> 0 | AJ49: =+大型LP!AK630 -> 0 | AK49: =+大型LP!AL630 -> 0 | AL49: =SUM(G49:AK49) -> 00:00:00 | AM49: =AM48 -> 0
F50: 累計進度 | G50: =E50+G49-G48 -> 0 | H50: =G50+H49-H48 -> 0 | I50: 0 | J50: 0 | K50: 0 | L50: 0 | M50: 0 | N50: 0 | O50: 0 | P50: 0 | Q50: 0 | R50: 0 | S50: 0 | T50: 0 | U50: 0 | V50: 0 | W50: 0 | X50: 0 | Y50: 0 | Z50: 0 | AA50: 0 | AB50: 0 | AC50: 0 | AD50: 0 | AE50: 0 | AF50: 0 | AG50: 0 | AH50: 0 | AI50: 0 | AJ50: 0 | AK50: 0 | AL50: =AL49-AL48 -> 0 | AM50: 0
A51: =B51 -> MKF | B51: ='①月末在庫(実)'!C22 -> MKF | C51: ='①月末在庫(実)'!D22 -> 12201 MKF D700 AA | D51: HEAD CYLINDER | E51: 前月先行進度 | F51: 出荷計画 | AL51: =SUM(G51:AK51) -> 00:00:00 | AM51: =IF(AL51>0,1,0) -> 0 | BT51: =SUM(AO51:BS51) -> 0
E52: ↘実績入力 | F52: 実績 | G52: =+大型LP!H671 -> 0 | H52: =+大型LP!I671 -> 0 | I52: =+大型LP!J671 -> 0 | J52: =+大型LP!K671 -> 0 | K52: =+大型LP!L671 -> 0 | L52: =+大型LP!M671 -> 0 | M52: =+大型LP!N671 -> 0 | N52: =+大型LP!O671 -> 0 | O52: =+大型LP!P671 -> 0 | P52: =+大型LP!Q671 -> 0 | Q52: =+大型LP!R671 -> 0 | R52: =+大型LP!S671 -> 0 | S52: =+大型LP!T671 -> 0 | T52: =+大型LP!U671 -> 0 | U52: =+大型LP!V671 -> 0 | V52: =+大型LP!W671 -> 0 | W52: =+大型LP!X671 -> 0 | X52: =+大型LP!Y671 -> 0 | Y52: =+大型LP!Z671 -> 0 | Z52: =+大型LP!AA671 -> 0 | AA52: =+大型LP!AB671 -> 0 | AB52: =+大型LP!AC671 -> 0 | AC52: =+大型LP!AD671 -> 0 | AD52: =+大型LP!AE671 -> 0 | AE52: =+大型LP!AF671 -> 0 | AF52: =+大型LP!AG671 -> 0 | AG52: =+大型LP!AH671 -> 0 | AH52: =+大型LP!AI671 -> 0 | AI52: =+大型LP!AJ671 -> 0 | AJ52: =+大型LP!AK671 -> 0 | AK52: =+大型LP!AL671 -> 0 | AL52: =SUM(G52:AK52) -> 00:00:00 | AM52: =AM51 -> 0
F53: 累計進度 | G53: =E53+G52-G51 -> 0 | H53: =G53+H52-H51 -> 0 | I53: 0 | J53: 0 | K53: 0 | L53: 0 | M53: 0 | N53: 0 | O53: 0 | P53: 0 | Q53: 0 | R53: 0 | S53: 0 | T53: 0 | U53: 0 | V53: 0 | W53: 0 | X53: 0 | Y53: 0 | Z53: 0 | AA53: 0 | AB53: 0 | AC53: 0 | AD53: 0 | AE53: 0 | AF53: 0 | AG53: 0 | AH53: 0 | AI53: 0 | AJ53: 0 | AK53: 0 | AL53: =AL52-AL51 -> 0 | AM53: 0
A54: =B54 -> MCAr | B54: ='①月末在庫(実)'!C23 -> MCAr | C54: ='①月末在庫(実)'!D23 -> 12211 MCA 7801 AA | D54: HEAD CYLINDER | E54: 前月先行進度 | F54: 出荷計画 | AL54: =SUM(G54:AK54) -> 00:00:00 | AM54: =IF(AL54>0,1,0) -> 0 | BT54: =SUM(AO54:BS54) -> 0
E55: ↘実績入力 | F55: 実績 | G55: =+大型LP!H712 -> 0 | H55: =+大型LP!I712 -> 0 | I55: =+大型LP!J712 -> 0 | J55: =+大型LP!K712 -> 0 | K55: =+大型LP!L712 -> 0 | L55: =+大型LP!M712 -> 0 | M55: =+大型LP!N712 -> 0 | N55: =+大型LP!O712 -> 0 | O55: =+大型LP!P712 -> 0 | P55: =+大型LP!Q712 -> 0 | Q55: =+大型LP!R712 -> 0 | R55: =+大型LP!S712 -> 0 | S55: =+大型LP!T712 -> 0 | T55: =+大型LP!U712 -> 0 | U55: =+大型LP!V712 -> 0 | V55: =+大型LP!W712 -> 0 | W55: =+大型LP!X712 -> 0 | X55: =+大型LP!Y712 -> 0 | Y55: =+大型LP!Z712 -> 0 | Z55: =+大型LP!AA712 -> 0 | AA55: =+大型LP!AB712 -> 0 | AB55: =+大型LP!AC712 -> 0 | AC55: =+大型LP!AD712 -> 0 | AD55: =+大型LP!AE712 -> 0 | AE55: =+大型LP!AF712 -> 0 | AF55: =+大型LP!AG712 -> 0 | AG55: =+大型LP!AH712 -> 0 | AH55: =+大型LP!AI712 -> 0 | AI55: =+大型LP!AJ712 -> 0 | AJ55: =+大型LP!AK712 -> 0 | AK55: =+大型LP!AL712 -> 0 | AL55: =SUM(G55:AK55) -> 00:00:00 | AM55: =AM54 -> 0
F56: 累計進度 | G56: =E56+G55-G54 -> 0 | H56: =G56+H55-H54 -> 0 | I56: 0 | J56: 0 | K56: 0 | L56: 0 | M56: 0 | N56: 0 | O56: 0 | P56: 0 | Q56: 0 | R56: 0 | S56: 0 | T56: 0 | U56: 0 | V56: 0 | W56: 0 | X56: 0 | Y56: 0 | Z56: 0 | AA56: 0 | AB56: 0 | AC56: 0 | AD56: 0 | AE56: 0 | AF56: 0 | AG56: 0 | AH56: 0 | AI56: 0 | AJ56: 0 | AK56: 0 | AL56: =AL55-AL54 -> 0 | AM56: 0
A57: =B57 -> MCAl | B57: ='①月末在庫(実)'!C24 -> MCAl | C57: ='①月末在庫(実)'!D24 -> 12221 MCA 7801 AA | D57: HEAD CYLINDER | E57: 前月先行進度 | F57: 出荷計画 | AL57: =SUM(G57:AK57) -> 00:00:00 | AM57: =IF(AL57>0,1,0) -> 0 | BT57: =SUM(AO57:BS57) -> 0
E58: ↘実績入力 | F58: 実績 | G58: =+大型LP!H753 -> 0 | H58: =+大型LP!I753 -> 0 | I58: =+大型LP!J753 -> 0 | J58: =+大型LP!K753 -> 0 | K58: =+大型LP!L753 -> 0 | L58: =+大型LP!M753 -> 0 | M58: =+大型LP!N753 -> 0 | N58: =+大型LP!O753 -> 0 | O58: =+大型LP!P753 -> 0 | P58: =+大型LP!Q753 -> 0 | Q58: =+大型LP!R753 -> 0 | R58: =+大型LP!S753 -> 0 | S58: =+大型LP!T753 -> 0 | T58: =+大型LP!U753 -> 0 | U58: =+大型LP!V753 -> 0 | V58: =+大型LP!W753 -> 0 | W58: =+大型LP!X753 -> 0 | X58: =+大型LP!Y753 -> 0 | Y58: =+大型LP!Z753 -> 0 | Z58: =+大型LP!AA753 -> 0 | AA58: =+大型LP!AB753 -> 0 | AB58: =+大型LP!AC753 -> 0 | AC58: =+大型LP!AD753 -> 0 | AD58: =+大型LP!AE753 -> 0 | AE58: =+大型LP!AF753 -> 0 | AF58: =+大型LP!AG753 -> 0 | AG58: =+大型LP!AH753 -> 0 | AH58: =+大型LP!AI753 -> 0 | AI58: =+大型LP!AJ753 -> 0 | AJ58: =+大型LP!AK753 -> 0 | AK58: =+大型LP!AL753 -> 0 | AL58: =SUM(G58:AK58) -> 00:00:00 | AM58: =AM57 -> 0
F59: 累計進度 | G59: =E59+G58-G57 -> 0 | H59: =G59+H58-H57 -> 0 | I59: 0 | J59: 0 | K59: 0 | L59: 0 | M59: 0 | N59: 0 | O59: 0 | P59: 0 | Q59: 0 | R59: 0 | S59: 0 | T59: 0 | U59: 0 | V59: 0 | W59: 0 | X59: 0 | Y59: 0 | Z59: 0 | AA59: 0 | AB59: 0 | AC59: 0 | AD59: 0 | AE59: 0 | AF59: 0 | AG59: 0 | AH59: 0 | AI59: 0 | AJ59: 0 | AK59: 0 | AL59: =AL58-AL57 -> 0 | AM59: 0
A60: =B60 -> MGC | B60: ='①月末在庫(実)'!C25 -> MGC | C60: ='①月末在庫(実)'!D25 -> 12201 MGC 0001 AA | D60: HEAD CYLINDER | E60: 前月先行進度 | F60: 出荷計画 | AL60: =SUM(G60:AK60) -> 00:00:00 | AM60: =IF(AL60>0,1,0) -> 0 | BT60: =SUM(AO60:BS60) -> 0
E61: ↘実績入力 | F61: 実績 | G61: =+大型LP!H794 -> 0 | H61: =+大型LP!I794 -> 0 | I61: =+大型LP!J794 -> 0 | J61: =+大型LP!K794 -> 0 | K61: =+大型LP!L794 -> 0 | L61: =+大型LP!M794 -> 0 | M61: =+大型LP!N794 -> 0 | N61: =+大型LP!O794 -> 0 | O61: =+大型LP!P794 -> 0 | P61: =+大型LP!Q794 -> 0 | Q61: =+大型LP!R794 -> 0 | R61: =+大型LP!S794 -> 0 | S61: =+大型LP!T794 -> 0 | T61: =+大型LP!U794 -> 0 | U61: =+大型LP!V794 -> 0 | V61: =+大型LP!W794 -> 0 | W61: =+大型LP!X794 -> 0 | X61: =+大型LP!Y794 -> 0 | Y61: =+大型LP!Z794 -> 0 | Z61: =+大型LP!AA794 -> 0 | AA61: =+大型LP!AB794 -> 0 | AB61: =+大型LP!AC794 -> 0 | AC61: =+大型LP!AD794 -> 0 | AD61: =+大型LP!AE794 -> 0 | AE61: =+大型LP!AF794 -> 0 | AF61: =+大型LP!AG794 -> 0 | AG61: =+大型LP!AH794 -> 0 | AH61: =+大型LP!AI794 -> 0 | AI61: =+大型LP!AJ794 -> 0 | AJ61: =+大型LP!AK794 -> 0 | AK61: =+大型LP!AL794 -> 0 | AL61: =SUM(G61:AK61) -> 00:00:00 | AM61: =AM60 -> 0
F62: 累計進度 | G62: =E62+G61-G60 -> 0 | H62: =G62+H61-H60 -> 0 | I62: 0 | J62: 0 | K62: 0 | L62: 0 | M62: 0 | N62: 0 | O62: 0 | P62: 0 | Q62: 0 | R62: 0 | S62: 0 | T62: 0 | U62: 0 | V62: 0 | W62: 0 | X62: 0 | Y62: 0 | Z62: 0 | AA62: 0 | AB62: 0 | AC62: 0 | AD62: 0 | AE62: 0 | AF62: 0 | AG62: 0 | AH62: 0 | AI62: 0 | AJ62: 0 | AK62: 0 | AL62: =AL61-AL60 -> 0 | AM62: 0
A63: =B63 -> MFLc | B63: ='①月末在庫(実)'!C26 -> MFLc | C63: ='①月末在庫(実)'!D26 -> 12100 MFL 0001 AA | D63: CYLINDER | E63: 前月先行進度 | F63: 出荷計画 | AL63: =SUM(G63:AK63) -> 00:00:00 | AM63: =IF(AL63>0,1,0) -> 0 | BT63: =SUM(AO63:BS63) -> 0
E64: ↘実績入力 | F64: 実績 | G64: =+大型LP!H835 -> 0 | H64: =+大型LP!I835 -> 0 | I64: =+大型LP!J835 -> 0 | J64: =+大型LP!K835 -> 0 | K64: =+大型LP!L835 -> 0 | L64: =+大型LP!M835 -> 0 | M64: =+大型LP!N835 -> 0 | N64: =+大型LP!O835 -> 0 | O64: =+大型LP!P835 -> 0 | P64: =+大型LP!Q835 -> 0 | Q64: =+大型LP!R835 -> 0 | R64: =+大型LP!S835 -> 0 | S64: =+大型LP!T835 -> 0 | T64: =+大型LP!U835 -> 0 | U64: =+大型LP!V835 -> 0 | V64: =+大型LP!W835 -> 0 | W64: =+大型LP!X835 -> 0 | X64: =+大型LP!Y835 -> 0 | Y64: =+大型LP!Z835 -> 0 | Z64: =+大型LP!AA835 -> 0 | AA64: =+大型LP!AB835 -> 0 | AB64: =+大型LP!AC835 -> 0 | AC64: =+大型LP!AD835 -> 0 | AD64: =+大型LP!AE835 -> 0 | AE64: =+大型LP!AF835 -> 0 | AF64: =+大型LP!AG835 -> 0 | AG64: =+大型LP!AH835 -> 0 | AH64: =+大型LP!AI835 -> 0 | AI64: =+大型LP!AJ835 -> 0 | AJ64: =+大型LP!AK835 -> 0 | AK64: =+大型LP!AL835 -> 0 | AL64: =SUM(G64:AK64) -> 00:00:00 | AM64: =AM63 -> 0
F65: 累計進度 | G65: =E65+G64-G63 -> 0 | H65: =G65+H64-H63 -> 0 | I65: 0 | J65: 0 | K65: 0 | L65: 0 | M65: 0 | N65: 0 | O65: 0 | P65: 0 | Q65: 0 | R65: 0 | S65: 0 | T65: 0 | U65: 0 | V65: 0 | W65: 0 | X65: 0 | Y65: 0 | Z65: 0 | AA65: 0 | AB65: 0 | AC65: 0 | AD65: 0 | AE65: 0 | AF65: 0 | AG65: 0 | AH65: 0 | AI65: 0 | AJ65: 0 | AK65: 0 | AL65: =AL64-AL63 -> 0 | AM65: 0
A66: =B66 -> MGS | B66: ='①月末在庫(実)'!C27 -> MGS | C66: ='①月末在庫(実)'!D27 -> 12200 MGS 0002 AA | D66: HEAD CYLINDER | E66: 前月先行進度 | F66: 出荷計画 | AL66: =SUM(G66:AK66) -> 00:00:00 | AM66: =IF(AL66>0,1,0) -> 0 | BT66: =SUM(AO66:BS66) -> 0
E67: ↘実績入力 | F67: 実績 | G67: =+大型LP!H876 -> 0 | H67: =+大型LP!I876 -> 0 | I67: =+大型LP!J876 -> 0 | J67: =+大型LP!K876 -> 0 | K67: =+大型LP!L876 -> 0 | L67: =+大型LP!M876 -> 0 | M67: =+大型LP!N876 -> 0 | N67: =+大型LP!O876 -> 0 | O67: =+大型LP!P876 -> 0 | P67: =+大型LP!Q876 -> 0 | Q67: =+大型LP!R876 -> 0 | R67: =+大型LP!S876 -> 0 | S67: =+大型LP!T876 -> 0 | T67: =+大型LP!U876 -> 0 | U67: =+大型LP!V876 -> 0 | V67: =+大型LP!W876 -> 0 | W67: =+大型LP!X876 -> 0 | X67: =+大型LP!Y876 -> 0 | Y67: =+大型LP!Z876 -> 0 | Z67: =+大型LP!AA876 -> 0 | AA67: =+大型LP!AB876 -> 0 | AB67: =+大型LP!AC876 -> 0 | AC67: =+大型LP!AD876 -> 0 | AD67: =+大型LP!AE876 -> 0 | AE67: =+大型LP!AF876 -> 0 | AF67: =+大型LP!AG876 -> 0 | AG67: =+大型LP!AH876 -> 0 | AH67: =+大型LP!AI876 -> 0 | AI67: =+大型LP!AJ876 -> 0 | AJ67: =+大型LP!AK876 -> 0 | AK67: =+大型LP!AL876 -> 0 | AL67: =SUM(G67:AK67) -> 00:00:00 | AM67: =AM66 -> 0
F68: 累計進度 | G68: =E68+G67-G66 -> 0 | H68: =G68+H67-H66 -> 0 | I68: 0 | J68: 0 | K68: 0 | L68: 0 | M68: 0 | N68: 0 | O68: 0 | P68: 0 | Q68: 0 | R68: 0 | S68: 0 | T68: 0 | U68: 0 | V68: 0 | W68: 0 | X68: 0 | Y68: 0 | Z68: 0 | AA68: 0 | AB68: 0 | AC68: 0 | AD68: 0 | AE68: 0 | AF68: 0 | AG68: 0 | AH68: 0 | AI68: 0 | AJ68: 0 | AK68: 0 | AL68: =AL67-AL66 -> 0 | AM68: 0
A69: =B69 -> MJH | B69: ='①月末在庫(実)'!C28 -> MJH | C69: ='①月末在庫(実)'!D28 -> 12200 MJH Y000 AA | D69: HEAD CYLINDER | E69: 前月先行進度 | F69: 出荷計画 | AL69: =SUM(G69:AK69) -> 00:00:00 | AM69: =IF(AL69>0,1,0) -> 0 | BT69: =SUM(AO69:BS69) -> 0
E70: ↘実績入力 | F70: 実績 | G70: =+大型LP!H917 -> 0 | H70: =+大型LP!I917 -> 0 | I70: =+大型LP!J917 -> 0 | J70: =+大型LP!K917 -> 0 | K70: =+大型LP!L917 -> 0 | L70: =+大型LP!M917 -> 0 | M70: =+大型LP!N917 -> 0 | N70: =+大型LP!O917 -> 0 | O70: =+大型LP!P917 -> 0 | P70: =+大型LP!Q917 -> 0 | Q70: =+大型LP!R917 -> 0 | R70: =+大型LP!S917 -> 0 | S70: =+大型LP!T917 -> 0 | T70: =+大型LP!U917 -> 0 | U70: =+大型LP!V917 -> 0 | V70: =+大型LP!W917 -> 0 | W70: =+大型LP!X917 -> 0 | X70: =+大型LP!Y917 -> 0 | Y70: =+大型LP!Z917 -> 0 | Z70: =+大型LP!AA917 -> 0 | AA70: =+大型LP!AB917 -> 0 | AB70: =+大型LP!AC917 -> 0 | AC70: =+大型LP!AD917 -> 0 | AD70: =+大型LP!AE917 -> 0 | AE70: =+大型LP!AF917 -> 0 | AF70: =+大型LP!AG917 -> 0 | AG70: =+大型LP!AH917 -> 0 | AH70: =+大型LP!AI917 -> 0 | AI70: =+大型LP!AJ917 -> 0 | AJ70: =+大型LP!AK917 -> 0 | AK70: =+大型LP!AL917 -> 0 | AL70: =SUM(G70:AK70) -> 00:00:00 | AM70: =AM69 -> 0
F71: 累計進度 | G71: =E71+G70-G69 -> 0 | H71: =G71+H70-H69 -> 0 | I71: 0 | J71: 0 | K71: 0 | L71: 0 | M71: 0 | N71: 0 | O71: 0 | P71: 0 | Q71: 0 | R71: 0 | S71: 0 | T71: 0 | U71: 0 | V71: 0 | W71: 0 | X71: 0 | Y71: 0 | Z71: 0 | AA71: 0 | AB71: 0 | AC71: 0 | AD71: 0 | AE71: 0 | AF71: 0 | AG71: 0 | AH71: 0 | AI71: 0 | AJ71: 0 | AK71: 0 | AL71: =AL70-AL69 -> 0 | AM71: 0
A72: =B72 -> HL4 | B72: ='①月末在庫(実)'!C29 -> HL4 | C72: ='①月末在庫(実)'!D29 -> 12201 HL4 0001 AA | D72: HEAD CYLINDER | E72: 前月先行進度 | F72: 出荷計画 | L72: 150 | M72: 150 | N72: 150 | Q72: 150 | R72: 150 | S72: 150 | T72: 150 | X72: 150 | Y72: 150 | Z72: 150 | AA72: 150 | AE72: 150 | AF72: 150 | AG72: 150 | AL72: =SUM(G72:AK72) -> 2100 | AM72: =IF(AL72>0,1,0) -> 1 | BT72: =SUM(AO72:BS72) -> 0 | BU72: 3723 | BV72: 2836
E73: ↘実績入力 | F73: 実績 | G73: =+大型LP!H958 -> 0 | H73: =+大型LP!I958 -> 0 | I73: =+大型LP!J958 -> 0 | J73: =+大型LP!K958 -> 0 | K73: =+大型LP!L958 -> 0 | L73: =+大型LP!M958 -> 150 | M73: =+大型LP!N958 -> 150 | N73: =+大型LP!O958 -> 150 | O73: =+大型LP!P958 -> 0 | P73: =+大型LP!Q958 -> 0 | Q73: =+大型LP!R958 -> 0 | R73: =+大型LP!S958 -> 300 | S73: =+大型LP!T958 -> 150 | T73: =+大型LP!U958 -> 0 | U73: =+大型LP!V958 -> 0 | V73: =+大型LP!W958 -> 0 | W73: =+大型LP!X958 -> 0 | X73: =+大型LP!Y958 -> 0 | Y73: =+大型LP!Z958 -> 0 | Z73: =+大型LP!AA958 -> 0 | AA73: =+大型LP!AB958 -> 0 | AB73: =+大型LP!AC958 -> 0 | AC73: =+大型LP!AD958 -> 0 | AD73: =+大型LP!AE958 -> 0 | AE73: =+大型LP!AF958 -> 0 | AF73: =+大型LP!AG958 -> 0 | AG73: =+大型LP!AH958 -> 0 | AH73: =+大型LP!AI958 -> 0 | AI73: =+大型LP!AJ958 -> 0 | AJ73: =+大型LP!AK958 -> 0 | AK73: =+大型LP!AL958 -> 0 | AL73: =SUM(G73:AK73) -> 900 | AM73: =AM72 -> 1
F74: 累計進度 | G74: =E74+G73-G72 -> 0 | H74: =G74+H73-H72 -> 0 | I74: 0 | J74: 0 | K74: 0 | L74: 0 | M74: 0 | N74: 0 | O74: 0 | P74: 0 | Q74: -150 | R74: 0 | S74: 0 | T74: -150 | U74: -150 | V74: -150 | W74: -150 | X74: -300 | Y74: -450 | Z74: -600 | AA74: -750 | AB74: -750 | AC74: -750 | AD74: -750 | AE74: -900 | AF74: -1050 | AG74: -1200 | AH74: -1200 | AI74: -1200 | AJ74: -1200 | AK74: -1200 | AL74: =AL73-AL72 -> -1200 | AM74: 0
A75: =B75 -> HL6 | B75: ='①月末在庫(実)'!C30 -> HL6 | C75: ='①月末在庫(実)'!D30 -> 12201 HL6 A000 AA | D75: HEAD CYLINDER | E75: 前月先行進度 | F75: 出荷計画 | AL75: =SUM(G75:AK75) -> 0 | AM75: =IF(AL75>0,1,0) -> 0 | BT75: =SUM(AO75:BS75) -> 0 | BV75: 842
E76: ↘実績入力 | F76: 実績 | G76: =+大型LP!H999 -> 0 | H76: =+大型LP!I999 -> 0 | I76: =+大型LP!J999 -> 0 | J76: =+大型LP!K999 -> 0 | K76: =+大型LP!L999 -> 0 | L76: =+大型LP!M999 -> 0 | M76: =+大型LP!N999 -> 0 | N76: =+大型LP!O999 -> 0 | O76: =+大型LP!P999 -> 0 | P76: =+大型LP!Q999 -> 0 | Q76: =+大型LP!R999 -> 0 | R76: =+大型LP!S999 -> 0 | S76: =+大型LP!T999 -> 0 | T76: =+大型LP!U999 -> 0 | U76: =+大型LP!V999 -> 0 | V76: =+大型LP!W999 -> 0 | W76: =+大型LP!X999 -> 0 | X76: =+大型LP!Y999 -> 0 | Y76: =+大型LP!Z999 -> 0 | Z76: =+大型LP!AA999 -> 0 | AA76: =+大型LP!AB999 -> 0 | AB76: =+大型LP!AC999 -> 0 | AC76: =+大型LP!AD999 -> 0 | AD76: =+大型LP!AE999 -> 0 | AE76: =+大型LP!AF999 -> 0 | AF76: =+大型LP!AG999 -> 0 | AG76: =+大型LP!AH999 -> 0 | AH76: =+大型LP!AI999 -> 0 | AI76: =+大型LP!AJ999 -> 0 | AJ76: =+大型LP!AK999 -> 0 | AK76: =+大型LP!AL999 -> 0 | AL76: =SUM(G76:AK76) -> 0 | AM76: =AM75 -> 0
F77: 累計進度 | G77: =E77+G76-G75 -> 0 | H77: =G77+H76-H75 -> 0 | I77: 0 | J77: 0 | K77: 0 | L77: 0 | M77: 0 | N77: 0 | O77: 0 | P77: 0 | Q77: 0 | R77: 0 | S77: 0 | T77: 0 | U77: 0 | V77: 0 | W77: 0 | X77: 0 | Y77: 0 | Z77: 0 | AA77: 0 | AB77: 0 | AC77: 0 | AD77: 0 | AE77: 0 | AF77: 0 | AG77: 0 | AH77: 0 | AI77: 0 | AJ77: 0 | AK77: 0 | AL77: =AL76-AL75 -> 0 | AM77: 0
A78: =B78 -> MKS | B78: ='①月末在庫(実)'!C31 -> MKS | C78: ='①月末在庫(実)'!D31 -> 12201 MLN E000 AA | D78: HEAD CYLINDER | E78: 前月先行進度 | F78: 出荷計画 | L78: 150 | M78: 150 | N78: 150 | R78: 150 | S78: 150 | T78: 150 | U78: 150 | Y78: 150 | Z78: 150 | AA78: 150 | AF78: 150 | AG78: 150 | AH78: 150 | AI78: 150 | AL78: =SUM(G78:AK78) -> 2100 | AM78: =IF(AL78>0,1,0) -> 1 | AP78: 150 | AQ78: 150 | AR78: 150 | AS78: 150 | AW78: 150 | AX78: 150 | AY78: 150 | AZ78: 150 | BT78: =SUM(AO78:BS78) -> 1200 | BU78: 2627 | BV78: 1820
E79: ↘実績入力 | F79: 実績 | G79: =+大型LP!H1040 -> 0 | H79: =+大型LP!I1040 -> 0 | I79: =+大型LP!J1040 -> 0 | J79: =+大型LP!K1040 -> 0 | K79: =+大型LP!L1040 -> 150 | L79: =+大型LP!M1040 -> 150 | M79: =+大型LP!N1040 -> 150 | N79: =+大型LP!O1040 -> 0 | O79: =+大型LP!P1040 -> 0 | P79: =+大型LP!Q1040 -> 0 | Q79: =+大型LP!R1040 -> 150 | R79: =+大型LP!S1040 -> 150 | S79: =+大型LP!T1040 -> 150 | T79: =+大型LP!U1040 -> 0 | U79: =+大型LP!V1040 -> 0 | V79: =+大型LP!W1040 -> 0 | W79: =+大型LP!X1040 -> 0 | X79: =+大型LP!Y1040 -> 0 | Y79: =+大型LP!Z1040 -> 0 | Z79: =+大型LP!AA1040 -> 0 | AA79: =+大型LP!AB1040 -> 0 | AB79: =+大型LP!AC1040 -> 0 | AC79: =+大型LP!AD1040 -> 0 | AD79: =+大型LP!AE1040 -> 0 | AE79: =+大型LP!AF1040 -> 0 | AF79: =+大型LP!AG1040 -> 0 | AG79: =+大型LP!AH1040 -> 0 | AH79: =+大型LP!AI1040 -> 0 | AI79: =+大型LP!AJ1040 -> 0 | AJ79: =+大型LP!AK1040 -> 0 | AK79: =+大型LP!AL1040 -> 0 | AL79: =SUM(G79:AK79) -> 900 | AM79: =AM78 -> 1
F80: 累計進度 | G80: =E80+G79-G78 -> 0 | H80: =G80+H79-H78 -> 0 | I80: =H80+I79-I78 -> 0 | J80: 0 | K80: 150 | L80: 150 | M80: 150 | N80: 0 | O80: 0 | P80: 0 | Q80: 150 | R80: 150 | S80: 150 | T80: 0 | U80: -150 | V80: -150 | W80: -150 | X80: -150 | Y80: -300 | Z80: -450 | AA80: -600 | AB80: -600 | AC80: -600 | AD80: -600 | AE80: -600 | AF80: =AE80+AF79-AF78 -> -750 | AG80: =AF80+AG79-AG78 -> -900 | AH80: -1050 | AI80: -1200 | AJ80: -1200 | AK80: -1200 | AL80: =AL79-AL78 -> -1200 | AM80: 0
A81: =B81 -> NX7 | B81: ='①月末在庫(実)'!C32 -> NX7 | C81: ='①月末在庫(実)'!D32 -> 12200 NX7 0000 AA | D81: HEAD CYLINDER | E81: 前月先行進度 | F81: 出荷計画 | AL81: =SUM(G81:AK81) -> 0 | AM81: =IF(AL81>0,1,0) -> 0 | BT81: =SUM(AO81:BS81) -> 0
E82: ↘実績入力 | F82: 実績 | G82: =+大型LP!H1081 -> 0 | H82: =+大型LP!I1081 -> 0 | I82: =+大型LP!J1081 -> 0 | J82: =+大型LP!K1081 -> 0 | K82: =+大型LP!L1081 -> 0 | L82: =+大型LP!M1081 -> 0 | M82: =+大型LP!N1081 -> 0 | N82: =+大型LP!O1081 -> 0 | O82: =+大型LP!P1081 -> 0 | P82: =+大型LP!Q1081 -> 0 | Q82: =+大型LP!R1081 -> 0 | R82: =+大型LP!S1081 -> 0 | S82: =+大型LP!T1081 -> 0 | T82: =+大型LP!U1081 -> 0 | U82: =+大型LP!V1081 -> 0 | V82: =+大型LP!W1081 -> 0 | W82: =+大型LP!X1081 -> 0 | X82: =+大型LP!Y1081 -> 0 | Y82: =+大型LP!Z1081 -> 0 | Z82: =+大型LP!AA1081 -> 0 | AA82: =+大型LP!AB1081 -> 0 | AB82: =+大型LP!AC1081 -> 0 | AC82: =+大型LP!AD1081 -> 0 | AD82: =+大型LP!AE1081 -> 0 | AE82: =+大型LP!AF1081 -> 0 | AF82: =+大型LP!AG1081 -> 0 | AG82: =+大型LP!AH1081 -> 0 | AH82: =+大型LP!AI1081 -> 0 | AI82: =+大型LP!AJ1081 -> 0 | AJ82: =+大型LP!AK1081 -> 0 | AK82: =+大型LP!AL1081 -> 0 | AL82: =SUM(G82:AK82) -> 0 | AM82: =AM81 -> 0
F83: 累計進度 | G83: =E83+G82-G81 -> 0 | H83: =G83+H82-H81 -> 0 | I83: 0 | J83: 0 | K83: 0 | L83: 0 | M83: 0 | N83: 0 | O83: 0 | P83: 0 | Q83: 0 | R83: 0 | S83: 0 | T83: 0 | U83: 0 | V83: 0 | W83: 0 | X83: 0 | Y83: 0 | Z83: 0 | AA83: 0 | AB83: 0 | AC83: 0 | AD83: 0 | AE83: 0 | AF83: 0 | AG83: 0 | AH83: 0 | AI83: 0 | AJ83: 0 | AK83: 0 | AL83: =AL82-AL81 -> 0 | AM83: 0
A84: =B84 -> NX7c | B84: ='①月末在庫(実)'!C33 -> NX7c | C84: ='①月末在庫(実)'!D33 -> 12101 NX7 0000 AA | D84: CYLINDER | E84: 前月先行進度 | F84: 出荷計画 | AL84: =SUM(G84:AK84) -> 00:00:00 | AM84: =IF(AL84>0,1,0) -> 0 | BT84: =SUM(AO84:BS84) -> 0 | BU84: 851
E85: ↘実績入力 | F85: 実績 | G85: =+大型LP!H1122 -> 0 | H85: =+大型LP!I1122 -> 0 | I85: =+大型LP!J1122 -> 0 | J85: =+大型LP!K1122 -> 0 | K85: =+大型LP!L1122 -> 0 | L85: =+大型LP!M1122 -> 0 | M85: =+大型LP!N1122 -> 0 | N85: =+大型LP!O1122 -> 0 | O85: =+大型LP!P1122 -> 0 | P85: =+大型LP!Q1122 -> 0 | Q85: =+大型LP!R1122 -> 0 | R85: =+大型LP!S1122 -> 0 | S85: =+大型LP!T1122 -> 0 | T85: =+大型LP!U1122 -> 0 | U85: =+大型LP!V1122 -> 0 | V85: =+大型LP!W1122 -> 0 | W85: =+大型LP!X1122 -> 0 | X85: =+大型LP!Y1122 -> 0 | Y85: =+大型LP!Z1122 -> 0 | Z85: =+大型LP!AA1122 -> 0 | AA85: =+大型LP!AB1122 -> 0 | AB85: =+大型LP!AC1122 -> 0 | AC85: =+大型LP!AD1122 -> 0 | AD85: =+大型LP!AE1122 -> 0 | AE85: =+大型LP!AF1122 -> 0 | AF85: =+大型LP!AG1122 -> 0 | AG85: =+大型LP!AH1122 -> 0 | AH85: =+大型LP!AI1122 -> 0 | AI85: =+大型LP!AJ1122 -> 0 | AJ85: =+大型LP!AK1122 -> 0 | AK85: =+大型LP!AL1122 -> 0 | AL85: =SUM(G85:AK85) -> 00:00:00 | AM85: =AM84 -> 0
F86: 累計進度 | G86: =E86+G85-G84 -> 0 | H86: =G86+H85-H84 -> 0 | I86: 0 | J86: 0 | K86: 0 | L86: 0 | M86: 0 | N86: 0 | O86: 0 | P86: 0 | Q86: 0 | R86: 0 | S86: 0 | T86: 0 | U86: 0 | V86: 0 | W86: 0 | X86: 0 | Y86: 0 | Z86: 0 | AA86: 0 | AB86: 0 | AC86: 0 | AD86: 0 | AE86: 0 | AF86: 0 | AG86: 0 | AH86: 0 | AI86: 0 | AJ86: 0 | AK86: 0 | AL86: =AL85-AL84 -> 0 | AM86: 0
A87: =B87 -> MLL | B87: ='①月末在庫(実)'!C34 -> MLL | C87: ='①月末在庫(実)'!D34 -> 12201 MLL D000 AA | D87: HEAD CYLINDER | E87: 前月先行進度 | F87: 出荷計画 | L87: 180 | M87: 240 | N87: 240 | Q87: 240 | R87: 240 | S87: 240 | T87: 240 | U87: 240 | X87: 240 | Y87: 240 | Z87: 240 | AA87: 240 | AB87: 180 | AL87: =SUM(G87:AK87) -> 3000 | AM87: =IF(AL87>0,1,0) -> 1 | AW87: 120 | AX87: 240 | AY87: 240 | AZ87: 240 | BC87: 240 | BD87: 240 | BE87: 240 | BF87: 240 | BG87: 240 | BJ87: 240 | BK87: 240 | BT87: =SUM(AO87:BS87) -> 2520 | BU87: 3068 | BV87: 2836
E88: ↘実績入力 | F88: 実績 | G88: =+大型LP!H1163 -> 0 | H88: =+大型LP!I1163 -> 0 | I88: =+大型LP!J1163 -> 0 | J88: =+大型LP!K1163 -> 0 | K88: =+大型LP!L1163 -> 180 | L88: =+大型LP!M1163 -> 240 | M88: =+大型LP!N1163 -> 240 | N88: =+大型LP!O1163 -> 240 | O88: =+大型LP!P1163 -> 0 | P88: =+大型LP!Q1163 -> 0 | Q88: =+大型LP!R1163 -> 240 | R88: =+大型LP!S1163 -> 240 | S88: =+大型LP!T1163 -> 240 | T88: =+大型LP!U1163 -> 0 | U88: =+大型LP!V1163 -> 0 | V88: =+大型LP!W1163 -> 0 | W88: =+大型LP!X1163 -> 0 | X88: =+大型LP!Y1163 -> 0 | Y88: =+大型LP!Z1163 -> 0 | Z88: =+大型LP!AA1163 -> 0 | AA88: =+大型LP!AB1163 -> 0 | AB88: =+大型LP!AC1163 -> 0 | AC88: =+大型LP!AD1163 -> 0 | AD88: =+大型LP!AE1163 -> 0 | AE88: =+大型LP!AF1163 -> 0 | AF88: =+大型LP!AG1163 -> 0 | AG88: =+大型LP!AH1163 -> 0 | AH88: =+大型LP!AI1163 -> 0 | AI88: =+大型LP!AJ1163 -> 0 | AJ88: =+大型LP!AK1163 -> 0 | AK88: =+大型LP!AL1163 -> 0 | AL88: =SUM(G88:AK88) -> 1620 | AM88: =AM87 -> 1
F89: 累計進度 | G89: =E89+G88-G87 -> 0 | H89: =G89+H88-H87 -> 0 | I89: 0 | J89: 0 | K89: 180 | L89: 240 | M89: 240 | N89: 240 | O89: 240 | P89: 240 | Q89: 240 | R89: 240 | S89: 240 | T89: 0 | U89: -240 | V89: -240 | W89: -240 | X89: -480 | Y89: -720 | Z89: -960 | AA89: -1200 | AB89: -1380 | AC89: -1380 | AD89: -1380 | AE89: -1380 | AF89: -1380 | AG89: -1380 | AH89: -1380 | AI89: -1380 | AJ89: -1380 | AK89: -1380 | AL89: =AL88-AL87 -> -1380 | AM89: 0
A90: =B90 -> MLLc | B90: ='①月末在庫(実)'!C35 -> MLLc | C90: ='①月末在庫(実)'!D35 -> 12100 MLL D000 AA | D90: CYLINDER | E90: 前月先行進度 | F90: 出荷計画 | L90: 336 | M90: 336 | N90: 336 | Q90: 336 | R90: 336 | S90: 336 | T90: 336 | AI90: 112 | AL90: =SUM(G90:AK90) -> 2464 | AM90: =IF(AL90>0,1,0) -> 1 | AO90: 336 | AP90: 336 | AQ90: 336 | AR90: 336 | AS90: 336 | AV90: 336 | AW90: 336 | AX90: 336 | AY90: 336 | AZ90: 336 | BC90: 224 | BT90: =SUM(AO90:BS90) -> 3584 | BU90: 2128 | BV90: 2128
E91: ↘実績入力 | F91: 実績 | G91: =+大型LP!H1204 -> 0 | H91: =+大型LP!I1204 -> 0 | I91: =+大型LP!J1204 -> 0 | J91: =+大型LP!K1204 -> 0 | K91: =+大型LP!L1204 -> 336 | L91: =+大型LP!M1204 -> 336 | M91: =+大型LP!N1204 -> 336 | N91: =+大型LP!O1204 -> 336 | O91: =+大型LP!P1204 -> 0 | P91: =+大型LP!Q1204 -> 0 | Q91: =+大型LP!R1204 -> 336 | R91: =+大型LP!S1204 -> 336 | S91: =+大型LP!T1204 -> 336 | T91: =+大型LP!U1204 -> 0 | U91: =+大型LP!V1204 -> 0 | V91: =+大型LP!W1204 -> 0 | W91: =+大型LP!X1204 -> 0 | X91: =+大型LP!Y1204 -> 0 | Y91: =+大型LP!Z1204 -> 0 | Z91: =+大型LP!AA1204 -> 0 | AA91: =+大型LP!AB1204 -> 0 | AB91: =+大型LP!AC1204 -> 0 | AC91: =+大型LP!AD1204 -> 0 | AD91: =+大型LP!AE1204 -> 0 | AE91: =+大型LP!AF1204 -> 0 | AF91: =+大型LP!AG1204 -> 0 | AG91: =+大型LP!AH1204 -> 0 | AH91: =+大型LP!AI1204 -> 0 | AI91: =+大型LP!AJ1204 -> 0 | AJ91: =+大型LP!AK1204 -> 0 | AK91: =+大型LP!AL1204 -> 0 | AL91: =SUM(G91:AK91) -> 2352 | AM91: =AM90 -> 1
F92: 累計進度 | G92: =E92+G91-G90 -> 0 | H92: =G92+H91-H90 -> 0 | I92: 0 | J92: 0 | K92: 336 | L92: 336 | M92: 336 | N92: 336 | O92: 336 | P92: 336 | Q92: 336 | R92: 336 | S92: 336 | T92: 0 | U92: 0 | V92: 0 | W92: 0 | X92: 0 | Y92: 0 | Z92: 0 | AA92: 0 | AB92: 0 | AC92: 0 | AD92: 0 | AE92: 0 | AF92: 0 | AG92: 0 | AH92: 0 | AI92: -112 | AJ92: -112 | AK92: -112 | AL92: =AL91-AL90 -> -112 | AM92: 0
A93: =B93 -> ZY9 | B93: ='①月末在庫(実)'!C36 -> ZY9 | C93: ='①月末在庫(実)'!D36 -> 12211 ZY9 M001 AA | D93: HEAD CYLINDER | E93: 前月先行進度 | F93: 出荷計画 | L93: 50 | M93: 50 | N93: 50 | Q93: 50 | R93: 50 | AA93: 50 | AB93: 50 | AE93: 50 | AF93: 50 | AG93: 50 | AH93: 50 | AI93: 50 | AL93: =SUM(G93:AK93) -> 600 | AM93: =IF(AL93>0,1,0) -> 1 | AO93: 50 | AP93: 50 | AQ93: 50 | AR93: 50 | AS93: 50 | BT93: =SUM(AO93:BS93) -> 250 | BU93: 700 | BV93: 550
E94: ↘実績入力 | F94: 実績 | G94: =+大型LP!H1245 -> 0 | H94: =+大型LP!I1245 -> 0 | I94: =+大型LP!J1245 -> 0 | J94: =+大型LP!K1245 -> 0 | K94: =+大型LP!L1245 -> 50 | L94: =+大型LP!M1245 -> 50 | M94: =+大型LP!N1245 -> 50 | N94: =+大型LP!O1245 -> 50 | O94: =+大型LP!P1245 -> 0 | P94: =+大型LP!Q1245 -> 0 | Q94: =+大型LP!R1245 -> 50 | R94: =+大型LP!S1245 -> 0 | S94: =+大型LP!T1245 -> 0 | T94: =+大型LP!U1245 -> 0 | U94: =+大型LP!V1245 -> 0 | V94: =+大型LP!W1245 -> 0 | W94: =+大型LP!X1245 -> 0 | X94: =+大型LP!Y1245 -> 0 | Y94: =+大型LP!Z1245 -> 0 | Z94: =+大型LP!AA1245 -> 0 | AA94: =+大型LP!AB1245 -> 0 | AB94: =+大型LP!AC1245 -> 0 | AC94: =+大型LP!AD1245 -> 0 | AD94: =+大型LP!AE1245 -> 0 | AE94: =+大型LP!AF1245 -> 0 | AF94: =+大型LP!AG1245 -> 0 | AG94: =+大型LP!AH1245 -> 0 | AH94: =+大型LP!AI1245 -> 0 | AI94: =+大型LP!AJ1245 -> 0 | AJ94: =+大型LP!AK1245 -> 0 | AK94: =+大型LP!AL1245 -> 0 | AL94: =SUM(G94:AK94) -> 250 | AM94: =AM93 -> 1
F95: 累計進度 | G95: =E95+G94-G93 -> 0 | H95: =G95+H94-H93 -> 0 | I95: 0 | J95: 0 | K95: 50 | L95: 50 | M95: 50 | N95: 50 | O95: 50 | P95: 50 | Q95: 50 | R95: 0 | S95: 0 | T95: 0 | U95: 0 | V95: 0 | W95: 0 | X95: 0 | Y95: 0 | Z95: 0 | AA95: -50 | AB95: -100 | AC95: -100 | AD95: -100 | AE95: -150 | AF95: -200 | AG95: -250 | AH95: -300 | AI95: -350 | AJ95: -350 | AK95: -350 | AL95: =AL94-AL93 -> -350 | AM95: 0
A96: =B96 -> ZZ3 | B96: ='①月末在庫(実)'!C37 -> ZZ3 | C96: ='①月末在庫(実)'!D37 -> 12211 ZZ3 3001 AA | D96: HEAD CYLINDER | E96: 前月先行進度 | F96: 出荷計画 | X96: 50 | Y96: 50 | Z96: 50 | AA96: 50 | AB96: 50 | AL96: =SUM(G96:AK96) -> 250 | AM96: =IF(AL96>0,1,0) -> 1 | BT96: =SUM(AO96:BS96) -> 0 | BU96: 300 | BV96: 350
E97: ↘実績入力 | F97: 実績 | G97: =+大型LP!H1286 -> 0 | H97: =+大型LP!I1286 -> 0 | I97: =+大型LP!J1286 -> 0 | J97: =+大型LP!K1286 -> 0 | K97: =+大型LP!L1286 -> 0 | L97: =+大型LP!M1286 -> 0 | M97: =+大型LP!N1286 -> 0 | N97: =+大型LP!O1286 -> 0 | O97: =+大型LP!P1286 -> 0 | P97: =+大型LP!Q1286 -> 0 | Q97: =+大型LP!R1286 -> 0 | R97: =+大型LP!S1286 -> 0 | S97: =+大型LP!T1286 -> 0 | T97: =+大型LP!U1286 -> 0 | U97: =+大型LP!V1286 -> 0 | V97: =+大型LP!W1286 -> 0 | W97: =+大型LP!X1286 -> 0 | X97: =+大型LP!Y1286 -> 0 | Y97: =+大型LP!Z1286 -> 0 | Z97: =+大型LP!AA1286 -> 0 | AA97: =+大型LP!AB1286 -> 0 | AB97: =+大型LP!AC1286 -> 0 | AC97: =+大型LP!AD1286 -> 0 | AD97: =+大型LP!AE1286 -> 0 | AE97: =+大型LP!AF1286 -> 0 | AF97: =+大型LP!AG1286 -> 0 | AG97: =+大型LP!AH1286 -> 0 | AH97: =+大型LP!AI1286 -> 0 | AI97: =+大型LP!AJ1286 -> 0 | AJ97: =+大型LP!AK1286 -> 0 | AK97: =+大型LP!AL1286 -> 0 | AL97: =SUM(G97:AK97) -> 0 | AM97: =AM96 -> 1
F98: 累計進度 | G98: =E98+G97-G96 -> 0 | H98: =G98+H97-H96 -> 0 | I98: 0 | J98: 0 | K98: 0 | L98: 0 | M98: 0 | N98: 0 | O98: 0 | P98: 0 | Q98: 0 | R98: 0 | S98: 0 | T98: 0 | U98: 0 | V98: 0 | W98: 0 | X98: -50 | Y98: -100 | Z98: -150 | AA98: -200 | AB98: -250 | AC98: -250 | AD98: -250 | AE98: -250 | AF98: -250 | AG98: -250 | AH98: -250 | AI98: -250 | AJ98: -250 | AK98: -250 | AL98: =AL97-AL96 -> -250 | AM98: 0
A99: =B99 -> ZW5 | B99: ='①月末在庫(実)'!C38 -> ZW5 | C99: ='①月末在庫(実)'!D38 -> 12211 ZW5 3001 AC-01 | D99: HEAD CYLINDER | E99: 前月先行進度 | F99: 出荷計画 | AL99: =SUM(G99:AK99) -> 00:00:00 | AM99: =IF(AL99>0,1,0) -> 0 | BT99: =SUM(AO99:BS99) -> 0
E100: ↘実績入力 | F100: 実績 | G100: =+大型LP!H1327 -> 0 | H100: =+大型LP!I1327 -> 0 | I100: =+大型LP!J1327 -> 0 | J100: =+大型LP!K1327 -> 0 | K100: =+大型LP!L1327 -> 0 | L100: =+大型LP!M1327 -> 0 | M100: =+大型LP!N1327 -> 0 | N100: =+大型LP!O1327 -> 0 | O100: =+大型LP!P1327 -> 0 | P100: =+大型LP!Q1327 -> 0 | Q100: =+大型LP!R1327 -> 0 | R100: =+大型LP!S1327 -> 0 | S100: =+大型LP!T1327 -> 0 | T100: =+大型LP!U1327 -> 0 | U100: =+大型LP!V1327 -> 0 | V100: =+大型LP!W1327 -> 0 | W100: =+大型LP!X1327 -> 0 | X100: =+大型LP!Y1327 -> 0 | Y100: =+大型LP!Z1327 -> 0 | Z100: =+大型LP!AA1327 -> 0 | AA100: =+大型LP!AB1327 -> 0 | AB100: =+大型LP!AC1327 -> 0 | AC100: =+大型LP!AD1327 -> 0 | AD100: =+大型LP!AE1327 -> 0 | AE100: =+大型LP!AF1327 -> 0 | AF100: =+大型LP!AG1327 -> 0 | AG100: =+大型LP!AH1327 -> 0 | AH100: =+大型LP!AI1327 -> 0 | AI100: =+大型LP!AJ1327 -> 0 | AJ100: =+大型LP!AK1327 -> 0 | AK100: =+大型LP!AL1327 -> 0 | AL100: =SUM(G100:AK100) -> 00:00:00 | AM100: =AM99 -> 0
F101: 累計進度 | G101: =E101+G100-G99 -> 0 | H101: =G101+H100-H99 -> 0 | I101: 0 | J101: 0 | K101: 0 | L101: 0 | M101: 0 | N101: 0 | O101: 0 | P101: 0 | Q101: 0 | R101: 0 | S101: 0 | T101: 0 | U101: 0 | V101: 0 | W101: 0 | X101: 0 | Y101: 0 | Z101: 0 | AA101: 0 | AB101: 0 | AC101: 0 | AD101: 0 | AE101: 0 | AF101: 0 | AG101: 0 | AH101: 0 | AI101: 0 | AJ101: 0 | AK101: 0 | AL101: =AL100-AL99 -> 0 | AM101: 0
A102: =B102 -> MKCr | B102: ='①月末在庫(実)'!C39 -> MKCr | C102: ='①月末在庫(実)'!D39 -> 12211 MKC A000 AA | D102: HEAD CYLINDER | E102: 前月先行進度 | F102: 出荷計画 | L102: 90 | M102: 90 | N102: 90 | Q102: 90 | R102: 90 | S102: 90 | T102: 90 | U102: 90 | AB102: 90 | AE102: 90 | AF102: 90 | AH102: 90 | AI102: 90 | AL102: =SUM(G102:AK102) -> 1170 | AM102: =IF(AL102>0,1,0) -> 1 | AO102: 90 | AQ102: 90 | AR102: 90 | AS102: 90 | AW102: 90 | AX102: 90 | AY102: 90 | BT102: =SUM(AO102:BS102) -> 630 | BU102: 1607 | BV102: 1229
E103: ↘実績入力 | F103: 実績 | G103: =+大型LP!H1368 -> 0 | H103: =+大型LP!I1368 -> 0 | I103: =+大型LP!J1368 -> 0 | J103: =+大型LP!K1368 -> 0 | K103: =+大型LP!L1368 -> 90 | L103: =+大型LP!M1368 -> 90 | M103: =+大型LP!N1368 -> 90 | N103: =+大型LP!O1368 -> 90 | O103: =+大型LP!P1368 -> 0 | P103: =+大型LP!Q1368 -> 0 | Q103: =+大型LP!R1368 -> 0 | R103: =+大型LP!S1368 -> 90 | S103: =+大型LP!T1368 -> 90 | T103: =+大型LP!U1368 -> 0 | U103: =+大型LP!V1368 -> 0 | V103: =+大型LP!W1368 -> 0 | W103: =+大型LP!X1368 -> 0 | X103: =+大型LP!Y1368 -> 0 | Y103: =+大型LP!Z1368 -> 0 | Z103: =+大型LP!AA1368 -> 0 | AA103: =+大型LP!AB1368 -> 0 | AB103: =+大型LP!AC1368 -> 0 | AC103: =+大型LP!AD1368 -> 0 | AD103: =+大型LP!AE1368 -> 0 | AE103: =+大型LP!AF1368 -> 0 | AF103: =+大型LP!AG1368 -> 0 | AG103: =+大型LP!AH1368 -> 0 | AH103: =+大型LP!AI1368 -> 0 | AI103: =+大型LP!AJ1368 -> 0 | AJ103: =+大型LP!AK1368 -> 0 | AK103: =+大型LP!AL1368 -> 0 | AL103: =SUM(G103:AK103) -> 540 | AM103: =AM102 -> 1
F104: 累計進度 | G104: =E104+G103-G102 -> 0 | H104: =G104+H103-H102 -> 0 | I104: 0 | J104: 0 | K104: 90 | L104: 90 | M104: 90 | N104: 90 | O104: 90 | P104: 90 | Q104: 0 | R104: 0 | S104: 0 | T104: -90 | U104: -180 | V104: -180 | W104: -180 | X104: -180 | Y104: -180 | Z104: -180 | AA104: -180 | AB104: -270 | AC104: -270 | AD104: -270 | AE104: -360 | AF104: -450 | AG104: -450 | AH104: -540 | AI104: -630 | AJ104: -630 | AK104: -630 | AL104: =AL103-AL102 -> -630 | AM104: 0
A105: =B105 -> MKCl | B105: ='①月末在庫(実)'!C40 -> MKCl | C105: ='①月末在庫(実)'!D40 -> 12221 MKC A000 AA | D105: HEAD CYLINDER | E105: 前月先行進度 | F105: 出荷計画 | L105: 90 | M105: 90 | N105: 90 | Q105: 90 | R105: 90 | S105: 90 | T105: 90 | U105: 90 | AB105: 90 | AE105: 90 | AF105: 90 | AH105: 90 | AI105: 90 | AL105: =SUM(G105:AK105) -> 1170 | AM105: =IF(AL105>0,1,0) -> 1 | AO105: 90 | AQ105: 90 | AR105: 90 | AS105: 90 | AW105: 90 | AX105: 90 | AY105: 90 | BT105: =SUM(AO105:BS105) -> 630 | BU105: 1607 | BV105: 1229
E106: ↘実績入力 | F106: 実績 | G106: =+大型LP!H1409 -> 0 | H106: =+大型LP!I1409 -> 0 | I106: =+大型LP!J1409 -> 0 | J106: =+大型LP!K1409 -> 0 | K106: =+大型LP!L1409 -> 90 | L106: =+大型LP!M1409 -> 90 | M106: =+大型LP!N1409 -> 90 | N106: =+大型LP!O1409 -> 90 | O106: =+大型LP!P1409 -> 0 | P106: =+大型LP!Q1409 -> 0 | Q106: =+大型LP!R1409 -> 0 | R106: =+大型LP!S1409 -> 90 | S106: =+大型LP!T1409 -> 90 | T106: =+大型LP!U1409 -> 0 | U106: =+大型LP!V1409 -> 0 | V106: =+大型LP!W1409 -> 0 | W106: =+大型LP!X1409 -> 0 | X106: =+大型LP!Y1409 -> 0 | Y106: =+大型LP!Z1409 -> 0 | Z106: =+大型LP!AA1409 -> 0 | AA106: =+大型LP!AB1409 -> 0 | AB106: =+大型LP!AC1409 -> 0 | AC106: =+大型LP!AD1409 -> 0 | AD106: =+大型LP!AE1409 -> 0 | AE106: =+大型LP!AF1409 -> 0 | AF106: =+大型LP!AG1409 -> 0 | AG106: =+大型LP!AH1409 -> 0 | AH106: =+大型LP!AI1409 -> 0 | AI106: =+大型LP!AJ1409 -> 0 | AJ106: =+大型LP!AK1409 -> 0 | AK106: =+大型LP!AL1409 -> 0 | AL106: =SUM(G106:AK106) -> 540 | AM106: =AM105 -> 1
F107: 累計進度 | G107: =E107+G106-G105 -> 0 | H107: =G107+H106-H105 -> 0 | I107: 0 | J107: 0 | K107: 90 | L107: 90 | M107: 90 | N107: 90 | O107: 90 | P107: 90 | Q107: 0 | R107: 0 | S107: 0 | T107: -90 | U107: -180 | V107: -180 | W107: -180 | X107: -180 | Y107: -180 | Z107: -180 | AA107: -180 | AB107: -270 | AC107: -270 | AD107: -270 | AE107: -360 | AF107: -450 | AG107: -450 | AH107: -540 | AI107: -630 | AJ107: -630 | AK107: -630 | AL107: =AL106-AL105 -> -630 | AM107: 0
A108: =B108 -> MKJ | B108: ='①月末在庫(実)'!C41 -> MKJ | C108: ='①月末在庫(実)'!D41 -> 12201 MKJ D001 AA | D108: HEAD CYLINDER | E108: 前月先行進度 | F108: 出荷計画 | AL108: =SUM(G108:AK108) -> 0 | AM108: =IF(AL108>0,1,0) -> 0 | BT108: =SUM(AO108:BS108) -> 0
E109: ↘実績入力 | F109: 実績 | G109: =+大型LP!H1450 -> 0 | H109: =+大型LP!I1450 -> 0 | I109: =+大型LP!J1450 -> 0 | J109: =+大型LP!K1450 -> 0 | K109: =+大型LP!L1450 -> 0 | L109: =+大型LP!M1450 -> 0 | M109: =+大型LP!N1450 -> 0 | N109: =+大型LP!O1450 -> 0 | O109: =+大型LP!P1450 -> 0 | P109: =+大型LP!Q1450 -> 0 | Q109: =+大型LP!R1450 -> 0 | R109: =+大型LP!S1450 -> 0 | S109: =+大型LP!T1450 -> 0 | T109: =+大型LP!U1450 -> 0 | U109: =+大型LP!V1450 -> 0 | V109: =+大型LP!W1450 -> 0 | W109: =+大型LP!X1450 -> 0 | X109: =+大型LP!Y1450 -> 0 | Y109: =+大型LP!Z1450 -> 0 | Z109: =+大型LP!AA1450 -> 0 | AA109: =+大型LP!AB1450 -> 0 | AB109: =+大型LP!AC1450 -> 0 | AC109: =+大型LP!AD1450 -> 0 | AD109: =+大型LP!AE1450 -> 0 | AE109: =+大型LP!AF1450 -> 0 | AF109: =+大型LP!AG1450 -> 0 | AG109: =+大型LP!AH1450 -> 0 | AH109: =+大型LP!AI1450 -> 0 | AI109: =+大型LP!AJ1450 -> 0 | AJ109: =+大型LP!AK1450 -> 0 | AK109: =+大型LP!AL1450 -> 0 | AL109: =SUM(G109:AK109) -> 0 | AM109: =AM108 -> 0
F110: 累計進度 | G110: =E110+G109-G108 -> 0 | H110: =G110+H109-H108 -> 0 | I110: 0 | J110: 0 | K110: 0 | L110: 0 | M110: 0 | N110: 0 | O110: 0 | P110: 0 | Q110: 0 | R110: 0 | S110: 0 | T110: 0 | U110: 0 | V110: 0 | W110: 0 | X110: 0 | Y110: 0 | Z110: 0 | AA110: 0 | AB110: 0 | AC110: 0 | AD110: 0 | AE110: 0 | AF110: 0 | AG110: 0 | AH110: 0 | AI110: 0 | AJ110: 0 | AK110: 0 | AL110: =AL109-AL108 -> 0 | AM110: 0
A111: =B111 -> MKR | B111: ='①月末在庫(実)'!C42 -> MKR | C111: ='①月末在庫(実)'!D42 -> 12200 MKR D103 AA | D111: HEAD CYLINDER | E111: 前月先行進度 | F111: 出荷計画 | AL111: =SUM(G111:AK111) -> 00:00:00 | AM111: =IF(AL111>0,1,0) -> 0 | BT111: =SUM(AO111:BS111) -> 0
E112: ↘実績入力 | F112: 実績 | G112: =+大型LP!H1491 -> 0 | H112: =+大型LP!I1491 -> 0 | I112: =+大型LP!J1491 -> 0 | J112: =+大型LP!K1491 -> 0 | K112: =+大型LP!L1491 -> 0 | L112: =+大型LP!M1491 -> 0 | M112: =+大型LP!N1491 -> 0 | N112: =+大型LP!O1491 -> 0 | O112: =+大型LP!P1491 -> 0 | P112: =+大型LP!Q1491 -> 0 | Q112: =+大型LP!R1491 -> 0 | R112: =+大型LP!S1491 -> 0 | S112: =+大型LP!T1491 -> 0 | T112: =+大型LP!U1491 -> 0 | U112: =+大型LP!V1491 -> 0 | V112: =+大型LP!W1491 -> 0 | W112: =+大型LP!X1491 -> 0 | X112: =+大型LP!Y1491 -> 0 | Y112: =+大型LP!Z1491 -> 0 | Z112: =+大型LP!AA1491 -> 0 | AA112: =+大型LP!AB1491 -> 0 | AB112: =+大型LP!AC1491 -> 0 | AC112: =+大型LP!AD1491 -> 0 | AD112: =+大型LP!AE1491 -> 0 | AE112: =+大型LP!AF1491 -> 0 | AF112: =+大型LP!AG1491 -> 0 | AG112: =+大型LP!AH1491 -> 0 | AH112: =+大型LP!AI1491 -> 0 | AI112: =+大型LP!AJ1491 -> 0 | AJ112: =+大型LP!AK1491 -> 0 | AK112: =+大型LP!AL1491 -> 0 | AL112: =SUM(G112:AK112) -> 00:00:00 | AM112: =AM111 -> 0
F113: 累計進度 | G113: =E113+G112-G111 -> 0 | H113: =G113+H112-H111 -> 0 | I113: 0 | J113: 0 | K113: 0 | L113: 0 | M113: 0 | N113: 0 | O113: 0 | P113: 0 | Q113: 0 | R113: 0 | S113: 0 | T113: 0 | U113: 0 | V113: 0 | W113: 0 | X113: 0 | Y113: 0 | Z113: 0 | AA113: 0 | AB113: 0 | AC113: 0 | AD113: 0 | AE113: 0 | AF113: 0 | AG113: 0 | AH113: 0 | AI113: 0 | AJ113: 0 | AK113: 0 | AL113: =AL112-AL111 -> 0 | AM113: 0
A114: =B114 -> MKRF | B114: ='①月末在庫(実)'!C43 -> MKRF | C114: ='①月末在庫(実)'!D43 -> 12201 MKR D600 AA | D114: HEAD CYLINDER | E114: 前月先行進度 | F114: 出荷計画 | AL114: =SUM(G114:AK114) -> 0 | AM114: =IF(AL114>0,1,0) -> 0 | BT114: =SUM(AO114:BS114) -> 0
E115: ↘実績入力 | F115: 実績 | G115: =+大型LP!H1532 -> 0 | H115: =+大型LP!I1532 -> 0 | I115: =+大型LP!J1532 -> 0 | J115: =+大型LP!K1532 -> 0 | K115: =+大型LP!L1532 -> 0 | L115: =+大型LP!M1532 -> 0 | M115: =+大型LP!N1532 -> 0 | N115: =+大型LP!O1532 -> 0 | O115: =+大型LP!P1532 -> 0 | P115: =+大型LP!Q1532 -> 0 | Q115: =+大型LP!R1532 -> 0 | R115: =+大型LP!S1532 -> 0 | S115: =+大型LP!T1532 -> 0 | T115: =+大型LP!U1532 -> 0 | U115: =+大型LP!V1532 -> 0 | V115: =+大型LP!W1532 -> 0 | W115: =+大型LP!X1532 -> 0 | X115: =+大型LP!Y1532 -> 0 | Y115: =+大型LP!Z1532 -> 0 | Z115: =+大型LP!AA1532 -> 0 | AA115: =+大型LP!AB1532 -> 0 | AB115: =+大型LP!AC1532 -> 0 | AC115: =+大型LP!AD1532 -> 0 | AD115: =+大型LP!AE1532 -> 0 | AE115: =+大型LP!AF1532 -> 0 | AF115: =+大型LP!AG1532 -> 0 | AG115: =+大型LP!AH1532 -> 0 | AH115: =+大型LP!AI1532 -> 0 | AI115: =+大型LP!AJ1532 -> 0 | AJ115: =+大型LP!AK1532 -> 0 | AK115: =+大型LP!AL1532 -> 0 | AL115: =SUM(G115:AK115) -> 0 | AM115: =AM114 -> 0
F116: 累計進度 | G116: =E116+G115-G114 -> 0 | H116: =G116+H115-H114 -> 0 | I116: 0 | J116: 0 | K116: 0 | L116: 0 | M116: 0 | N116: 0 | O116: 0 | P116: 0 | Q116: 0 | R116: 0 | S116: 0 | T116: 0 | U116: 0 | V116: 0 | W116: 0 | X116: 0 | Y116: 0 | Z116: 0 | AA116: 0 | AB116: 0 | AC116: 0 | AD116: 0 | AE116: 0 | AF116: 0 | AG116: 0 | AH116: 0 | AI116: 0 | AJ116: 0 | AK116: 0 | AL116: =AL115-AL114 -> 0 | AM116: 0
A117: =B117 -> MKRc | B117: ='①月末在庫(実)'!C44 -> MKRc | C117: ='①月末在庫(実)'!D44 -> 12100 MKR D101 AA | D117: CYLINDER | E117: 前月先行進度 | F117: 出荷計画 | AL117: =SUM(G117:AK117) -> 0 | AM117: =IF(AL117>0,1,0) -> 0 | BF117: 168 | BG117: 336 | BJ117: 336 | BK117: 252 | BT117: =SUM(AO117:BS117) -> 1092
E118: ↘実績入力 | F118: 実績 | G118: =+大型LP!H1573 -> 0 | H118: =+大型LP!I1573 -> 0 | I118: =+大型LP!J1573 -> 0 | J118: =+大型LP!K1573 -> 0 | K118: =+大型LP!L1573 -> 0 | L118: =+大型LP!M1573 -> 0 | M118: =+大型LP!N1573 -> 0 | N118: =+大型LP!O1573 -> 0 | O118: =+大型LP!P1573 -> 0 | P118: =+大型LP!Q1573 -> 0 | Q118: =+大型LP!R1573 -> 0 | R118: =+大型LP!S1573 -> 0 | S118: =+大型LP!T1573 -> 0 | T118: =+大型LP!U1573 -> 0 | U118: =+大型LP!V1573 -> 0 | V118: =+大型LP!W1573 -> 0 | W118: =+大型LP!X1573 -> 0 | X118: =+大型LP!Y1573 -> 0 | Y118: =+大型LP!Z1573 -> 0 | Z118: =+大型LP!AA1573 -> 0 | AA118: =+大型LP!AB1573 -> 0 | AB118: =+大型LP!AC1573 -> 0 | AC118: =+大型LP!AD1573 -> 0 | AD118: =+大型LP!AE1573 -> 0 | AE118: =+大型LP!AF1573 -> 0 | AF118: =+大型LP!AG1573 -> 0 | AG118: =+大型LP!AH1573 -> 0 | AH118: =+大型LP!AI1573 -> 0 | AI118: =+大型LP!AJ1573 -> 0 | AJ118: =+大型LP!AK1573 -> 0 | AK118: =+大型LP!AL1573 -> 0 | AL118: =SUM(G118:AK118) -> 0 | AM118: =AM117 -> 0
F119: 累計進度 | G119: =E119+G118-G117 -> 0 | H119: =G119+H118-H117 -> 0 | I119: 0 | J119: 0 | K119: 0 | L119: 0 | M119: 0 | N119: 0 | O119: 0 | P119: 0 | Q119: 0 | R119: 0 | S119: 0 | T119: 0 | U119: 0 | V119: 0 | W119: 0 | X119: 0 | Y119: 0 | Z119: 0 | AA119: 0 | AB119: 0 | AC119: 0 | AD119: 0 | AE119: 0 | AF119: 0 | AG119: 0 | AH119: 0 | AI119: 0 | AJ119: 0 | AK119: 0 | AL119: =AL118-AL117 -> 0 | AM119: 0
A120: =B120 -> MKT | B120: ='①月末在庫(実)'!C45 -> MKT | C120: ='①月末在庫(実)'!D45 -> 12200 MKT D000 AA | D120: HEAD CYLINDER | E120: 前月先行進度 | F120: 出荷計画 | M120: 306 | N120: 384 | Q120: 384 | R120: 384 | S120: 384 | T120: 384 | U120: 384 | X120: 384 | Y120: 384 | Z120: 384 | AA120: 384 | AL120: =SUM(G120:AK120) -> 4146 | AM120: =IF(AL120>0,1,0) -> 1 | AP120: 192 | AQ120: =384+192 -> 576 | AR120: =384+192 -> 576 | AS120: 576 | AV120: =384+192 -> 576 | AW120: 576 | AX120: 576 | AY120: 576 | AZ120: =164+192 -> 356 | BC120: 192 | BD120: 30 | BT120: =SUM(AO120:BS120) -> 4802 | BU120: 5560 | BV120: 5163
E121: ↘実績入力 | F121: 実績 | G121: =+大型LP!H1614 -> 0 | H121: =+大型LP!I1614 -> 0 | I121: =+大型LP!J1614 -> 0 | J121: =+大型LP!K1614 -> 0 | K121: =+大型LP!L1614 -> 0 | L121: =+大型LP!M1614 -> 0 | M121: =+大型LP!N1614 -> 0 | N121: =+大型LP!O1614 -> 306 | O121: =+大型LP!P1614 -> 0 | P121: =+大型LP!Q1614 -> 0 | Q121: =+大型LP!R1614 -> 384 | R121: =+大型LP!S1614 -> 384 | S121: =+大型LP!T1614 -> 384 | T121: =+大型LP!U1614 -> 0 | U121: =+大型LP!V1614 -> 0 | V121: =+大型LP!W1614 -> 0 | W121: =+大型LP!X1614 -> 0 | X121: =+大型LP!Y1614 -> 0 | Y121: =+大型LP!Z1614 -> 0 | Z121: =+大型LP!AA1614 -> 0 | AA121: =+大型LP!AB1614 -> 0 | AB121: =+大型LP!AC1614 -> 0 | AC121: =+大型LP!AD1614 -> 0 | AD121: =+大型LP!AE1614 -> 0 | AE121: =+大型LP!AF1614 -> 0 | AF121: =+大型LP!AG1614 -> 0 | AG121: =+大型LP!AH1614 -> 0 | AH121: =+大型LP!AI1614 -> 0 | AI121: =+大型LP!AJ1614 -> 0 | AJ121: =+大型LP!AK1614 -> 0 | AK121: =+大型LP!AL1614 -> 0 | AL121: =SUM(G121:AK121) -> 1458 | AM121: =AM120 -> 1
F122: 累計進度 | G122: =E122+G121-G120 -> 0 | H122: =G122+H121-H120 -> 0 | I122: 0 | J122: 0 | K122: 0 | L122: 0 | M122: -306 | N122: -384 | O122: -384 | P122: -384 | Q122: -384 | R122: -384 | S122: -384 | T122: -768 | U122: -1152 | V122: -1152 | W122: -1152 | X122: -1536 | Y122: -1920 | Z122: -2304 | AA122: -2688 | AB122: -2688 | AC122: -2688 | AD122: -2688 | AE122: -2688 | AF122: -2688 | AG122: -2688 | AH122: -2688 | AI122: -2688 | AJ122: -2688 | AK122: -2688 | AL122: =AL121-AL120 -> -2688 | AM122: 0
A123: =B123 -> MKZ | B123: ='①月末在庫(実)'!C46 -> MKZ | C123: ='①月末在庫(実)'!D46 -> 12201 MKZ J000 AA | D123: HEAD CYLINDER | E123: 前月先行進度 | F123: 出荷計画 | AL123: =SUM(G123:AK123) -> 0 | AM123: =IF(AL123>0,1,0) -> 0 | BT123: =SUM(AO123:BS123) -> 0 | BU123: 997
E124: ↘実績入力 | F124: 実績 | G124: =+大型LP!H1655 -> 0 | H124: =+大型LP!I1655 -> 0 | I124: =+大型LP!J1655 -> 0 | J124: =+大型LP!K1655 -> 0 | K124: =+大型LP!L1655 -> 0 | L124: =+大型LP!M1655 -> 0 | M124: =+大型LP!N1655 -> 240 | N124: =+大型LP!O1655 -> 240 | O124: =+大型LP!P1655 -> 0 | P124: =+大型LP!Q1655 -> 0 | Q124: =+大型LP!R1655 -> 0 | R124: =+大型LP!S1655 -> 240 | S124: =+大型LP!T1655 -> 0 | T124: =+大型LP!U1655 -> 0 | U124: =+大型LP!V1655 -> 0 | V124: =+大型LP!W1655 -> 0 | W124: =+大型LP!X1655 -> 0 | X124: =+大型LP!Y1655 -> 0 | Y124: =+大型LP!Z1655 -> 0 | Z124: =+大型LP!AA1655 -> 0 | AA124: =+大型LP!AB1655 -> 0 | AB124: =+大型LP!AC1655 -> 0 | AC124: =+大型LP!AD1655 -> 0 | AD124: =+大型LP!AE1655 -> 0 | AE124: =+大型LP!AF1655 -> 0 | AF124: =+大型LP!AG1655 -> 0 | AG124: =+大型LP!AH1655 -> 0 | AH124: =+大型LP!AI1655 -> 0 | AI124: =+大型LP!AJ1655 -> 0 | AJ124: =+大型LP!AK1655 -> 0 | AK124: =+大型LP!AL1655 -> 0 | AL124: =SUM(G124:AK124) -> 720 | AM124: =AM123 -> 0
F125: 累計進度 | G125: =E125+G124-G123 -> 0 | H125: =G125+H124-H123 -> 0 | I125: 0 | J125: 0 | K125: 0 | L125: 0 | M125: 240 | N125: 480 | O125: 480 | P125: 480 | Q125: 480 | R125: 720 | S125: 720 | T125: 720 | U125: 720 | V125: 720 | W125: 720 | X125: 720 | Y125: 720 | Z125: 720 | AA125: 720 | AB125: 720 | AC125: 720 | AD125: 720 | AE125: 720 | AF125: 720 | AG125: 720 | AH125: 720 | AI125: 720 | AJ125: 720 | AK125: 720 | AL125: =AL124-AL123 -> 720 | AM125: 0
